{"text_format":"1","workbook":"xlsx","n_sheets":17,"sheets":["Source CA-FORM","Janvier","Fevrier","mars","Juillet","Aout","Septembre","Octobre","Novembre","Decembre","Taux Occup","Légende","avril","Mai","Feuil2","Juin","Feuil1"],"not_rendered":{"charts":0,"images":0,"macros":1,"external_links":0,"defined_names":1287,"comments":12,"pivot_tables":0},"unopened":[],"bounds":{"document_bytes":16777216,"sheet_cells":100000,"rows_first":2000,"rows_last":500,"rows_between":2000,"halvings":0,"cell_chars":16384,"cell_head_chars":4096},"cells_cut":0,"cells_raw":0,"read":"whole","date_system":"1900"}

{"sheet":"Source CA-FORM","index":0,"n_rows":645,"n_cols":22,"rows_kept":645,"cut":false,"hidden":false,"merged":[]}
["ANNEE","DATE","Quarter","MOIS","AGENCE","Commercial","FORMATEUR","CLIENT","SITE","DEP","DIR/VPI","Ligne","Famille","Catégorie","CODEFORM","FORMATION","NB Jours","Nb Heures","Nb Stag","TARIF HT","statut","Commentaires"]
[2017,"2017-01-02","Q1","janvier","OUEST","ANAIS MORIN","Tbouteiller","avftp ",null,null,"direct","SECOURISME","TRAD","INITIAL","SST01","SST INITIALE",2,null,null,1410,"C","02 et 03,01"]
[2017,"2017-01-03","Q1","janvier","ROUEN","ANAIS MORIN","Tbinet","SODESSAM",null,null,"direct","SECOURISME","TRAD","INITIAL","SST01","SST INITIALE",2,14,8,1478.28,"C"]
[2017,"2017-01-03","Q1","janvier","ROUEN","ANAIS MORIN","Jlongfier","SODESSAM",null,null,"direct","INCENDIE","TRAD","EPI","I03","EPI - Mise en Œuvre des Extincteurs",null,null,null,579.09,"C"]
[2017,"2017-01-04","Q1","janvier","ROUEN","ANAIS MORIN","Jlongfier","CER Stains","STAINS",93,"direct","SECOURISME","TRAD","AUTO","SST07","AUTO ECOLE",0.5,2.5,15,445,"C"]
[2017,"2017-01-04","Q1","janvier","NANTERRE",null,"PMarin","HOTEL MIRAMAR","HOTEL MIRAMAR",56,"vpi","INCENDIE","UM","UM","UMEP","EPI - Mise en Œuvre des Extincteurs",2,null,null,{"$f":"2*2500","v":5000},"C"]
[2017,"2017-01-04","Q1","janvier","NANTERRE",null,"JCSicurani","HOTEL MISTER BED","HOTEL MISTER BED",18,"vpi","INCENDIE","UM","UM","UMDRA","EPI - Mise en Œuvre des Extincteurs",0.5,null,null,603,"C"]
[2017,"2017-01-04","Q1","janvier","ROUEN","ANAIS MORIN","Pgarin","SODESSAM",null,null,"direct","RISQUES PROFESSIONNELS","TRAD","GP","RP41","GESTES ET POSTURES",1,"3+3",20,1078.6400000000001,"C"]
[2017,"2017-01-04","Q1","janvier","NANTERRE",null,"JFBassereau","TRIDOME","SALAISE",38,"vpi","INCENDIE","TRAD","EPI","I04","EPI - Mise en Œuvre des Extincteurs",1,null,null,860,"C"]
[2017,"2017-01-04","Q1","janvier","OUEST","ANAIS MORIN","Tbouteiller","AVFTP",null,null,"direct","SECOURISME","TRAD","INITIAL","SST01","SST INITIALE",2,null,null,1410,"C","04 et 05,01"]
[2017,"2017-01-05","Q1","janvier","ROUEN","ANAIS MORIN","Pgarin","AVFTP",null,null,"direct","INCENDIE","TRAD","EPI","I03","EPI - Mise en Œuvre des Extincteurs",0.5,3,10,789,"C"]
[2017,"2017-01-05","Q1","janvier","ROUEN","ANAIS MORIN","Pgarin","AVFTP",null,null,"direct","RISQUES PROFESSIONNELS","TRAD","GP","RP41","GESTES ET POSTURES",0.5,3,10,540,"C"]
[2017,"2017-01-05","Q1","janvier","ROUEN","jcr","Jlongfier","irfa alencon","ALENCON",61,"vpi","SECOURISME","TRAD","INITIAL","SST01","SST INITIALE",2,14,8,1542,"C"]
[2017,"2017-01-05","Q1","janvier","NANTERRE",null,"JCSicurani","NETTO GILSIBER","AULNAY",93,"vpi","INCENDIE","UM","UM","UMDRA","EPI - Mise en Œuvre des Extincteurs",0.5,null,null,488,"C"]
[2017,"2017-01-05","Q1","janvier","ROUEN","ANAIS MORIN","Tbinet","SODESSAM",null,null,"direct","SECOURISME","TRAD","MAC","SST02","SST MAC",1,7,10,739.14,"C"]
[2017,"2017-01-06","Q1","janvier","ROUEN","ANAIS MORIN","Pgarin","AVFTP",null,null,"direct","RISQUES PROFESSIONNELS","TRAD","GP","RP41","GESTES ET POSTURES",0.5,3,7,540,"C"]
[2017,"2017-01-06","Q1","janvier","NANTERRE",null,"Cpequay","CLYDE UNION","ANNECY",74,"vpi","INCENDIE","UM","UM","UMCM102","EPI - Mise en Œuvre des Extincteurs",1,null,null,2200,"C"]
[2017,"2017-01-06","Q1","janvier","NANTERRE",null,"JCSicurani","INITIAL BTB SA","Boulogne billancourt",92,"vpi","INCENDIE","UM","UM","UMDRA","EPI - Mise en Œuvre des Extincteurs",0.5,null,null,710,"C"]
[2017,"2017-01-06","Q1","janvier","ROUEN","ANAIS MORIN","Tbinet","sévépi",null,null,"vpi","INCENDIE","TRAD","EPI","I03","EPI - Mise en Œuvre des Extincteurs",1,"3+3",20,1300,"C"]
[2017,"2017-01-06","Q1","janvier","OUEST","ANAIS MORIN","Tbouteiller","avftp ",null,null,"direct","INCENDIE","TRAD","EPI","I03","EPI - Mise en Œuvre des Extincteurs",0.5,null,null,789,"C"]
[2017,"2017-01-09","Q1","janvier","NANTERRE",null,"JFBassereau","AAPHTV","AAPHTV EVEUX",69,"vpi","INCENDIE","TRAD","EPI","I03","EPI - Mise en Œuvre des Extincteurs",0.5,null,null,400,"C"]
[2017,"2017-01-09","Q1","janvier","ROUEN","ANAIS MORIN","Jlongfier","sévépi",null,null,"vpi","INCENDIE","TRAD","EPI","I03","EPI - Mise en Œuvre des Extincteurs",1,"3+3",20,1300,"C"]
[2017,"2017-01-09","Q1","janvier","ROUEN","ROBIN CHATONEY","Pgarin","hotel aiglon",null,null,"direct","EVACUATION","TRAD","SENSIBILISATION","I207","Sensibilisation Evacuation",0.5,1.5,8,390,"C"]
[2017,"2017-01-10","Q1","janvier","NANTERRE",null,"PMarin","AIRPORT COLLEGE","LILLE",59,"direct","INCENDIE","UM","UM","UMEP","EPI - Mise en Œuvre des Extincteurs",1,null,null,1300,"C"]
[2017,"2017-01-10","Q1","janvier","ROUEN","ANAIS MORIN","Pgarin","bic techno",null,null,"vpi","CONDUITE & MANUTENTION",null,"CONDUITE","CM101","PEMP R386 Cat.1A,3A - Débutants",1,7,3,750,"C"]
[2017,"2017-01-10","Q1","janvier","ROUEN","PREV INCENDIE","Jlongfier","bateau livre lille",null,null,"vpi","INCENDIE","TRAD","EPI","I03","EPI - Mise en Œuvre des Extincteurs",0.5,3,8,443,"C"]
[2017,"2017-01-10","Q1","janvier","NANTERRE",null,"Abordes","ORANGE","CAEN",14,"direct","INCENDIE","UM","UM","UMCM102","EPI - Mise en Œuvre des Extincteurs",1,null,null,1650,"C"]
[2017,"2017-01-10","Q1","janvier","NANTERRE",null,"Cpequay","ROADY","SAS VERCORT",64,"vpi","INCENDIE","UM","UM","UMCM102","EPI - Mise en Œuvre des Extincteurs",0.5,null,null,443,"C"]
[2017,"2017-01-10","Q1","janvier","NANTERRE",null,"JFBassereau","UDAF 03","moulins","03","vpi","SECOURISME","TRAD","MAC","SST02","SST MAC",1,null,null,630,"C"]
[2017,"2017-01-10","Q1","janvier","ROUEN","ROBIN CHATONEY",null,"hotel place du louvre",null,null,"direct","EVACUATION","TRAD","SENSIBILISATION","I207","Sensibilisation Evacuation",null,null,null,null,"C"]
[2017,"2017-01-11","Q1","janvier","ROUEN","ANAIS MORIN","Pgarin","CER Stains","STAINS",93,"direct","SECOURISME","TRAD","AUTO","SST07","AUTO ECOLE",0.5,2.5,14,445,"C"]
[2017,"2017-01-11","Q1","janvier","NANTERRE",null,"JFBassereau","ECOLE PRIVE SAINT PIERRE",null,38,"vpi","INCENDIE","TRAD","EPI","I03","EPI - Mise en Œuvre des Extincteurs",0.5,null,null,430,"C"]
[2017,"2017-01-11","Q1","janvier","ROUEN","ANAIS MORIN","Jlongfier","taranis",null,null,"vpi","INCENDIE","TRAD","EPI","I03","EPI - Mise en Œuvre des Extincteurs",0.5,3,6,695,"C"]
[2017,"2017-01-11","Q1","janvier","NANTERRE",null,"JCSicurani","VILLA  MALESHERBES","PARIS 17EME",75,"direct","EVACUATION","TRAD","SENSIBILISATION","I207","Sensibilisation Evacuation",0.5,null,null,685,"C"]
[2017,"2017-01-12","Q1","janvier","ROUEN","ANAIS MORIN","Jlongfier","COPIREL",null,null,"vpi","SECOURISME","TRAD","INITIAL","SST01","SST INITIALE",2,14,4,1490,"C"]
[2017,"2017-01-12","Q1","janvier","NANTERRE",null,"Cpequay","BRICOMARCHE","LAROQUE",31,"vpi","INCENDIE","TRAD","EPI","I03","EPI - Mise en Œuvre des Extincteurs",0.5,null,null,597,"C"]
[2017,"2017-01-12","Q1","janvier","NANTERRE",null,"JFBassereau","I.M.E","MONTELEGER",26,"vpi","INCENDIE","TRAD","EPI","I03","EPI - Mise en Œuvre des Extincteurs",0.5,null,null,410,"C"]
[2017,"2017-01-12","Q1","janvier","NANTERRE",null,"Cpequay","BRICOMARCHE","LAROQUE",31,"vpi","EVACUATION","TRAD","EXERCICE","I203","Exercice d'évacuation sans fumée",0.5,null,null,471,"C"]
[2017,"2017-01-12","Q1","janvier","ROUEN","ROBIN CHATONEY","Pgarin","hotel parc st severin",null,null,"direct","EVACUATION","TRAD","SENSIBILISATION","I207","Sensibilisation Evacuation",0.5,1.5,11,390,"C"]
[2017,"2017-01-16","Q1","janvier","ROUEN","sfp","Jlongfier","RAMSAY",null,null,"direct","EVACUATION","TRAD","CHARGE EVAC","I202","Guides et serres-files",1,6,15,1038,"C"]
[2017,"2017-01-16","Q1","janvier","NANTERRE",null,"JCSicurani","AGEVIE","AGEVIE",37,"vpi","INCENDIE","TRAD","EPI","I03","EPI - Mise en Œuvre des Extincteurs",0.5,null,null,371.31,"C"]
[2017,"2017-01-16","Q1","janvier","OUEST","bouteiller","Tbouteiller","SODIMAC",null,null,"vpi","INCENDIE","TRAD","EPI","I03","EPI - Mise en Œuvre des Extincteurs",0.5,null,null,483.05,"C"]
[2017,"2017-01-16","Q1","janvier","ROUEN","ANAIS MORIN",null,"SODESSAM",null,null,"direct","SECOURISME","TRAD","MAC","SST02","SST MAC",null,0,0,null,"A"]
[2017,"2017-01-16","Q1","janvier","ROUEN","ANAIS MORIN","Pgarin","lyovel",null,null,"vpi","EVACUATION","TRAD","EXERCICE","I204R","Exercice d'évacuation avec fumée",0.5,2,0,440,"C"]
[2017,"2017-01-16","Q1","janvier","ROUEN","ROBIN CHATONEY","Pgarin","hotel st pères","PARIS",75,"direct","EVACUATION","TRAD","SENSIBILISATION","I207","Sensibilisation Evacuation",0.5,1.5,null,390,"C"]
[2017,"2017-01-17","Q1","janvier","ROUEN","sfp","Pgarin","RAMSAY",null,null,"direct","EVACUATION","TRAD","CHARGE EVAC","I202","Guides et serres-files",0.5,3,8,519,"C"]
[2017,"2017-01-17","Q1","janvier","NANTERRE",null,"Nantoine","Centre technique","DUGNY",93,"vpi","INCENDIE","UM","UM","UMCM202","EPI - Mise en Œuvre des Extincteurs",1,null,null,2650,"C"]
[2017,"2017-01-17","Q1","janvier","ROUEN","ANAIS MORIN","Tbinet","mairie de fleury",null,null,"direct","INCENDIE","TRAD","EPI","I03","EPI - Mise en Œuvre des Extincteurs",0.5,3,10,580,"C"]
[2017,"2017-01-17","Q1","janvier","NANTERRE",null,"PMarin","NOVANDIE","VIEL MOUTIER",62,"direct","INCENDIE","UM","UM","UMEP","EPI - Mise en Œuvre des Extincteurs",1,null,null,1908,"C"]
[2017,"2017-01-17","Q1","janvier","NANTERRE",null,"Abordes","ORANGE","PARIS 10 LA VILLETTE",75,"direct","INCENDIE","UM","UM","UMEP","EPI - Mise en Œuvre des Extincteurs",1,null,null,1650,"C"]
[2017,"2017-01-17","Q1","janvier","ROUEN","ANAIS MORIN","Jlongfier","taranis",null,null,"vpi","INCENDIE","TRAD","EPI","I03","EPI - Mise en Œuvre des Extincteurs",0.5,3,9,695,"C"]
[2017,"2017-01-17","Q1","janvier","NANTERRE",null,"JFBassereau","Centre Médical Infantile","ROMAGNAT",63,"vpi","SECOURISME","TRAD","MAC","SST02","SST MAC",1,null,null,790,"C"]
[2017,"2017-01-17","Q1","janvier","OUEST","ANAIS MORIN","Tbouteiller","protectas",null,null,"vpi","SECOURISME","TRAD","INITIAL","SST02","SST MAC",1,null,null,762,"C"]
[2017,"2017-01-18","Q1","janvier","ROUEN","ANAIS MORIN",null,"CER Stains","STAINS",93,"direct","SECOURISME","TRAD","AUTO","SST07","AUTO ECOLE",null,null,null,null,"C","ANNULE"]
[2017,"2017-01-18","Q1","janvier","ROUEN","jcr","Jlongfier","irfa alencon",null,null,"vpi","INCENDIE","TRAD","EPI","I12","EPI PYROS - Théorie et Pratique",0.5,2,7,503.88,"C"]
[2017,"2017-01-18","Q1","janvier","NANTERRE",null,"JFBassereau","CASA","LA CIOTAT",13,"vpi","INCENDIE","TRAD","EPI","I03","EPI - Mise en Œuvre des Extincteurs",0.5,null,null,490,"C"]
[2017,"2017-01-18","Q1","janvier","NANTERRE",null,"JFBassereau","CASA","LA CIOTAT",13,"vpi","EVACUATION","TRAD","EXERCICE","I203","Exercice d'évacuation sans fumée",0.5,null,null,320,"C"]
[2017,"2017-01-19","Q1","janvier","ROUEN","sfp","Pgarin","mbda",null,null,"direct","EVACUATION","TRAD","CHARGE EVAC","I202","Guides et serres-files",0.5,3,7,587,"C"]
[2017,"2017-01-19","Q1","janvier","NANTERRE",null,"PMarin","CABOT CARBONE","LILLEBONNE",76,"vpi","INCENDIE","UM","UM","UMCM102","EPI - Mise en Œuvre des Extincteurs",0.5,null,null,1000,"C"]
[2017,"2017-01-19","Q1","janvier","NANTERRE",null,"Cpequay","INTERMARCHE","ENNEZAT",63,"vpi","INCENDIE","TRAD","ESI","I100","ESI Feu Réel - Initial - Théorie et pratique",2,null,null,2482,"C"]
[2017,"2017-01-19","Q1","janvier","NANTERRE",null,"PMarin","CABOT CARBONE","LILLEBONNE",76,"vpi","INCENDIE","UM","UM","UMCM104","EPI - Mise en Œuvre des Extincteurs",0.5,null,null,900,"C"]
[2017,"2017-01-19","Q1","janvier","NANTERRE",null,"PMarin","LECLERC ORLY DISTRIBUTION","LECLERC ORLY DISTRIBUTION",94,"vpi","INCENDIE","UM","UM","UMEP","EPI - Mise en Œuvre des Extincteurs",1,null,null,2140,"C"]
[2017,"2017-01-19","Q1","janvier","NANTERRE",null,"JCSicurani","VILLA  MALESHERBES","PARIS 17EME",75,"direct","INCENDIE","UM","UM","UMDRA","EPI - Mise en Œuvre des Extincteurs",0.5,null,null,1133,"C"]
[2017,"2017-01-19","Q1","janvier","ROUEN","mpi","Jlongfier","DEDIENNE",null,null,"vpi","SECOURISME","TRAD","MAC","SST02","SST MAC",1,7,6,810,"C"]
[2017,"2017-01-19","Q1","janvier","NANTERRE",null,"JFBassereau","SALAISON MERLE","SALAISON MERLE",42,"vpi","SECOURISME","TRAD","MAC","SST02","SST MAC",1,null,null,735,"C"]
[2017,"2017-01-19","Q1","janvier","ROUEN","ROBIN CHATONEY","Tbinet","hotel d orday",null,null,"direct","EVACUATION","TRAD","SENSIBILISATION","I207","Sensibilisation Evacuation",0.5,1.5,null,390,"C"]
[2017,"2017-01-20","Q1","janvier","OUEST","ANAIS MORIN","Tbouteiller","ROYAL CANIN ",null,null,"vpi","INCENDIE","TRAD","EPI","I03","EPI - Mise en Œuvre des Extincteurs",1,null,null,800,"C"]
[2017,"2017-01-23","Q1","janvier","ROUEN","bussy","Tbinet","lapro",null,null,"vpi","SECOURISME","TRAD","INITIAL","SST01","SST INITIALE",2,14,6,2820,"C"]
[2017,"2017-01-23","Q1","janvier","NANTERRE",null,"JFBassereau","SATELC","SATELC",74,"vpi","PROTECTION INDIVIDUELLE","TRAD","ARI","RPI01","ARI - Initial",0.5,null,null,725,"C"]
[2017,"2017-01-23","Q1","janvier","ROUEN","coquard","Pgarin","college pablo picasso",null,null,"vpi","EVACUATION","TRAD","SSI","I206","Formation à l'utilisation du SSI",0.5,3,8,464,"C"]
[2017,"2017-01-24","Q1","janvier","NANTERRE",null,"JFBassereau","THIMON","MERY",73,"vpi","EVACUATION","TRAD","CHARGE EVAC","I202","Guides et serres-files",0.5,null,null,391,"C"]
[2017,"2017-01-24","Q1","janvier","NANTERRE",null,"Cpequay","ECO TITANIUM","UKAD",63,"vpi","INCENDIE","UM","UM","UMCM102","EPI - Mise en Œuvre des Extincteurs",0.5,null,null,960,"C"]
[2017,"2017-01-24","Q1","janvier","NANTERRE",null,"Cpequay","ECO TITANIUM","UKAD",63,"vpi","INCENDIE","UM","UM","UMCM102","EPI - Mise en Œuvre des Extincteurs",0.5,null,null,640,"C"]
[2017,"2017-01-24","Q1","janvier","ROUEN","sfp","Jlongfier","RAMSAY",null,null,"direct","SECOURISME","TRAD","MAC","SST02","SST MAC",1,7,4,869,"C"]
[2017,"2017-01-25","Q1","janvier","ROUEN","ANAIS MORIN","Tbinet","mairie de fleury",null,null,"direct","EVACUATION","TRAD","CHARGE EVAC","I202","Guides et serres-files",0.5,3,10,420,"C"]
[2017,"2017-01-25","Q1","janvier","ROUEN","pg","Pgarin","bureau veritas",null,null,"direct","AUDIT & CONSEIL",null,"AUDIT",null,null,3,21,0,1962.55,"C"]
[2017,"2017-01-25","Q1","janvier","ROUEN","ANAIS MORIN","Jlongfier","bronze alu",null,null,"vpi","INCENDIE","TRAD","EPI","I05","EPI - Mise en Œuvre des Extincteurs",0.5,3,"8+11+4",1020,"C"]
[2017,"2017-01-25","Q1","janvier","NANTERRE",null,"Cpequay","INTERMARCHE","ENNEZAT",63,"vpi","INCENDIE","TRAD","EPI","I03","EPI - Mise en Œuvre des Extincteurs",0.5,null,null,433,"C"]
[2017,"2017-01-25","Q1","janvier","ROUEN","ANAIS MORIN","Tbinet","mairie de fleury",null,null,"direct","INCENDIE","TRAD","EPI","I03","EPI - Mise en Œuvre des Extincteurs",0.5,3,10,580,"C"]
[2017,"2017-01-25","Q1","janvier","NANTERRE",null,"JFBassereau","MFR ST BARTHELEMY","MFR ST BARTHELEMY",38,"vpi","INCENDIE","TRAD","EPI","I03","EPI - Mise en Œuvre des Extincteurs",1,null,null,910,"C"]
[2017,"2017-01-26","Q1","janvier","ROUEN","ANAIS MORIN",null,"GREIF",null,null,"vpi","CONDUITE & MANUTENTION",null,"CONDUITE","CM1",null,null,null,null,null,"C"]
[2017,"2017-01-26","Q1","janvier","NANTERRE","ANAIS MORIN","Cpequay","GREIF","LAUDUN",30,"vpi","INCENDIE","UM","UM","UMCM102","EPI - Mise en Œuvre des Extincteurs",1,null,null,1500,"C"]
[2017,"2017-01-26","Q1","janvier","ROUEN","mpi","Jlongfier","DEDIENNE",null,null,"vpi","SECOURISME","TRAD","MAC","SST02","SST MAC",1,7,"?",810,"C"]
[2017,"2017-01-26","Q1","janvier","ROUEN","ANAIS MORIN","Tbinet","GREIF",null,null,"vpi","SECOURISME","TRAD","MAC","SST02","SST MAC",null,0,1,120,"C"]
[2017,"2017-01-26","Q1","janvier","ROUEN","ANAIS MORIN","Tbinet","lsi",null,null,"direct","SECOURISME","TRAD","MAC","SST02","SST MAC",null,0,2,240,"C"]
[2017,"2017-01-26","Q1","janvier","ROUEN","ANAIS MORIN","Tbinet","SODESSAM",null,null,"direct","SECOURISME","TRAD","MAC","SST02","SST MAC",1,7,3,660,"C"]
[2017,"2017-01-27","Q1","janvier","ROUEN","ANAIS MORIN","Jlongfier","paganetti",null,null,"direct","INCENDIE","TRAD","EPI","I03","EPI - Mise en Œuvre des Extincteurs",1,"3+3","10+12",1080,"C"]
[2017,"2017-01-30","Q1","janvier","ROUEN","ANAIS MORIN","Jlongfier","mf prod saumur",null,null,"vpi","EVACUATION","TRAD","EXERCICE","I204R","Exercice d'évacuation avec fumée",0.5,3,0,930,"C"]
[2017,"2017-01-31","Q1","janvier","ROUEN","mpi","Jlongfier","chaplet",null,null,"vpi","INCENDIE","TRAD","EPI","I03","EPI - Mise en Œuvre des Extincteurs",0.5,3,3,375,"C"]
[2017,"2017-01-31","Q1","janvier","NANTERRE",null,"PMarin","ORANGE","ERAGNY",95,"direct","INCENDIE","UM","UM","UMEP","EPI - Mise en Œuvre des Extincteurs",1,null,null,1650,"C"]
[2017,"2017-01-31","Q1","janvier","NANTERRE",null,"JFBassereau","NICOMATIC","BONS EN CHABLAIS",74,"vpi","SECOURISME","TRAD","MAC","SST02","SST MAC",1,null,null,876,"C"]
[2017,"2017-02-01","Q1","février","NANTERRE",null,"Abordes","NOVANDIE","VIEL MOUTIER",62,"direct","INCENDIE","UM","UM","UMEP","EPI - Mise en Œuvre des Extincteurs",1,1,null,1908,"C"]
[2017,"2017-02-01","Q1","février","NANTERRE",null,"Cpequay","CANDIA","CLERMOND-FERRAND",63,"direct","EVACUATION","TRAD","EXERCICE","I203R","Exercice d'évacuation sans fumée",0.5,null,null,433,"C"]
[2017,"2017-02-02","Q1","février","ROUEN","ANAIS MORIN","Tbinet","studiosport",null,null,"direct","SECOURISME","TRAD","INITIAL","SST01","SST INITIALE",2,14,10,1390,"C"]
[2017,"2017-02-02","Q1","février","ROUEN","smatis","Pgarin","SKF",null,null,"vpi","CONDUITE & MANUTENTION",null,"CONDUITE","CM402","Gerbeur à conducteur accompagnant - Recyclage",null,null,null,650,"C"]
[2017,"2017-02-02","Q1","février","NANTERRE",null,"PMarin","MBDA France","LE PLESSIS ROBINSON",92,"direct","INCENDIE","UM","UM","UMEP","EPI - Mise en Œuvre des Extincteurs",0.5,null,null,1164,"C"]
[2017,"2017-02-02","Q1","février","NANTERRE",null,"JFBassereau","MEDICAL COATING","VAULX-EN-VELIN",69,"vpi","INCENDIE","TRAD","EPI","I03","EPI - Mise en Œuvre des Extincteurs",0.5,null,null,490,"C"]
[2017,"2017-02-03","Q1","février","ROUEN","smatis","Pgarin","tlc",null,null,"vpi","EVACUATION","TRAD","CHARGE EVAC","I202","Guides et serres-files",null,null,null,420,"C"]
[2017,"2017-02-03","Q1","février","OUEST","bouteiller","Tbouteiller","mr les jardins du castel ",null,null,"vpi","INCENDIE","TRAD","EPI + HORIZ","I13H","EPI + Evacuation Horiz - Ets Santé",0.5,null,null,295,"C"]
[2017,"2017-02-06","Q1","février","ROUEN","ANAIS MORIN","Jlongfier","bic ecriture",null,null,"vpi","SECOURISME","TRAD","INITIAL","SST01","SST INITIALE",2,14,10,1760,"C"]
[2017,"2017-02-06","Q1","février","ROUEN","ANAIS MORIN","Tbinet","sévépi",null,null,"vpi","SECOURISME","TRAD","INITIAL","SST01","SST INITIALE",2,14,6,1480,"C"]
[2017,"2017-02-07","Q1","février","NANTERRE",null,"JFBassereau","INTERMARCHE","ENNEZAT",63,"vpi","SECOURISME","TRAD","INITIAL","SST01","SST INITIALE",2,null,null,2482,"C"]
[2017,"2017-02-07","Q1","février","NANTERRE",null,"JCSicurani","EPHAD VILLA D'HERVE","VILLEHERVIERS",41,"vpi","INCENDIE","TRAD","EPI + HORIZ","I13H","EPI + Evacuation Horiz - Ets Santé",0.5,null,null,659,"C"]
[2017,"2017-02-07","Q1","février","OUEST","bouteiller","Tbouteiller","residence st roch",null,null,"vpi","INCENDIE","TRAD","EPI + HORIZ","I13H","EPI + Evacuation Horiz - Ets Santé",1,null,null,780,"C"]
[2017,"2017-02-08","Q1","février","OUEST",null,"Tbouteiller","college immaculee conception ",null,null,"vpi","EVACUATION","TRAD","SENSIBILISATION","I207","Sensibilisation Evacuation",0.5,null,null,242,"C"]
[2017,"2017-02-09","Q1","février","NANTERRE",null,"Cpequay","NOVANDIE","VIEL MOUTIER",62,"direct","INCENDIE","UM","UM","UMCM105","EXT & RIA Form Renforcée - Théorie & Pratique",1,1,null,1908,"C"]
[2017,"2017-02-09","Q1","février","ROUEN","ROBIN CHATONEY","Jlongfier","villa malesherbes","PARIS",75,"direct","SECOURISME","TRAD","DAE","SST06","DAE",null,null,null,685,"C"]
[2017,"2017-02-09","Q1","février","NANTERRE",null,"JCSicurani","FONCIA ","TOURS",37,"vpi","INCENDIE","UM","UM","UMDRA","EPI - Mise en Œuvre des Extincteurs",1,null,null,800,"C"]
[2017,"2017-02-09","Q1","février","NANTERRE",null,"JFBassereau","IPAS","SAINT-PRIEST",69,"vpi","INCENDIE","TRAD","EPI","I03","EPI - Mise en Œuvre des Extincteurs",0.5,null,null,504,"C"]
[2017,"2017-02-09","Q1","février","ROUEN","ANAIS MORIN","Tbinet","COPIREL",null,null,"vpi","SECOURISME","TRAD","MAC","SST02","SST MAC",1,7,7,730,"C"]
[2017,"2017-02-10","Q1","février","NANTERRE",null,"JCSicurani","FONCIA ","TOURS",37,"vpi","EVACUATION","TRAD","CHARGE EVAC","I202","Guides et serres-files",0.5,null,null,440,"C"]
[2017,"2017-02-10","Q1","février","NANTERRE",null,"JCSicurani","FONCIA ","TOURS",37,"vpi","EVACUATION","TRAD","EXERCICE","I203R","Exercice d'évacuation sans fumée",0.5,null,null,800,"C"]
[2017,"2017-02-13","Q1","février","NANTERRE",null,"Cpequay","FP ALU","VAULX-EN-VELIN",69,"vpi","INCENDIE","UM","UM","UMCM102","EPI - Mise en Œuvre des Extincteurs",1,null,null,2000,"C"]
[2017,"2017-02-13","Q1","février","ROUEN","ANAIS MORIN","Pgarin","ligue havraise",null,null,"direct","EVACUATION","TRAD","SSI","I206","Formation à l'utilisation du SSI",0.5,3,7,400,"C"]
[2017,"2017-02-14","Q1","février","ROUEN","bussy","Pgarin","France horizon",null,null,"vpi","EVACUATION","TRAD","CHARGE EVAC","I202","Guides et serres-files",0.5,3,14,690,"C"]
[2017,"2017-02-14","Q1","février","ROUEN","ROBIN CHATONEY","Jlongfier","villa malesherbes","PARIS",75,"direct","SECOURISME","TRAD","DAE","SST06","DAE",null,null,null,685,"C"]
[2017,"2017-02-14","Q1","février","NANTERRE",null,"JCSicurani","FUAJ","PARIS 20EME",75,"vpi","INCENDIE","UM","UM","UMDRA","EPI - Mise en Œuvre des Extincteurs",0.5,null,null,545,"C","1090 / 2"]
[2017,"2017-02-14","Q1","février","NANTERRE",null,"Cpequay","OPINEL","CHAMBERY",74,"vpi","INCENDIE","TRAD","EPI","I03","EPI - Mise en Œuvre des Extincteurs",0.5,null,null,450,"C"]
[2017,"2017-02-14","Q1","février","ROUEN","ANAIS MORIN","Tbinet","COPIREL",null,null,"vpi","SECOURISME","TRAD","MAC","SST02","SST MAC",1,7,7,730,"C"]
[2017,"2017-02-14","Q1","février","NANTERRE",null,"JCSicurani","FUAJ","PARIS 20EME",75,"vpi","EVACUATION","TRAD","EXERCICE","I203","Exercice d'évacuation sans fumée",0.5,null,null,545,"C","1090 / 2"]
[2017,"2017-02-15","Q1","février","NANTERRE",null,"PMarin","NOVO NORDISK","CHARTRES",28,"direct","INCENDIE","UM","UM","UMEP","EPI - Mise en Œuvre des Extincteurs",2,null,null,{"$f":"1600*2","v":3200},"C"]
[2017,"2017-02-15","Q1","février","NANTERRE",null,"Cpequay","TRIDOME","CREYSSE",24,"vpi","INCENDIE","TRAD","EPI","I04 + I203","EPI - Mise en Œuvre des Extincteurs",0.5,null,null,780,"C"]
[2017,"2017-02-15","Q1","février","OUEST",null,"Tbouteiller","itep marguerite le maitre",null,null,"vpi","SECOURISME","TRAD","INITIAL","SST02","SST MAC",1,null,null,535,"C"]
[2017,"2017-02-16","Q1","février","NANTERRE",null,"JFBassereau","IME LES COLOMBES","VALENCE",26,"vpi","EVACUATION","TRAD","CHARGE EVAC","I200","Formation à l'Evacuation des locaux sans fumée",0.5,null,null,410,"C"]
[2017,"2017-02-16","Q1","février","ROUEN","ANAIS MORIN","Jlongfier","cerp plessis robinson",null,null,"vpi","SECOURISME","TRAD","MAC","SST02","SST MAC",1,7,4,800,"C"]
[2017,"2017-02-17","Q1","février","NANTERRE",null,"Cpequay","FAURECIA","NOGENT SUR VERNISSON",49,"direct","INCENDIE","UM","UM","UMCM105","EXT & RIA Form Renforcée - Théorie & Pratique",1,null,null,2447,"C"]
[2017,"2017-02-20","Q1","février","NANTERRE",null,"JFBassereau","NICOMATIC","BON EN CHABLAIS",74,"vpi","SECOURISME","TRAD","INITIAL","SST01","SST INITIALE",2,null,null,1471,"C"]
[2017,"2017-02-20","Q1","février","NANTERRE",null,"Cpequay","FAURECIA","NOGENT SUR VERNISSON",49,"direct","INCENDIE","UM","UM","UMCM105","EXT & RIA Form Renforcée - Théorie & Pratique",1,null,null,2447,"C"]
[2017,"2017-02-21","Q1","février","NANTERRE",null,"Abordes","HYATT REGENCY","PARIS 17",75,"direct","INCENDIE","UM","UM","UMEP","EPI - Mise en Œuvre des Extincteurs",1,null,null,1780,"C"]
[2017,"2017-02-21","Q1","février","NANTERRE",null,"PMarin","ORANGE","SOISY SOUS MONTMORENCY",95,"direct","INCENDIE","UM","UM","UMEP","EPI - Mise en Œuvre des Extincteurs",0.5,null,null,825,"C"]
[2017,"2017-02-21","Q1","février","ROUEN","sfp","Tbinet","ESPRIT DE FRANCE","PARIS",75,"direct","SECOURISME","TRAD","MAC","SST02","SST MAC",1,7,10,861,"C"]
[2017,"2017-02-22","Q1","février","NANTERRE",null,"PMarin","ANTARGAZ","COURBEVOIE",92,"direct","INCENDIE","UM","UM","UMEP","EPI - Mise en Œuvre des Extincteurs",1,null,null,2100,"C"]
[2017,"2017-02-22","Q1","février","NANTERRE",null,"PMarin","ORANGE","SAINT-GERMAIN-EN-LAYE",78,"direct","INCENDIE","UM","UM","UMEP","EPI - Mise en Œuvre des Extincteurs",1,null,null,1650,"C"]
[2017,"2017-02-22","Q1","février","ROUEN","sfp","Tbinet","ESPRIT DE FRANCE","PARIS",75,"direct","SECOURISME","TRAD","MAC","SST02","SST MAC",1,7,9,861,"C"]
[2017,"2017-02-23","Q1","février","NANTERRE",null,"JFBassereau","ELY GESTION","LYON",69,"vpi","EVACUATION","TRAD","EXERCICE","I203R","Exercice d'évacuation sans fumée",0.5,null,null,405,"C"]
[2017,"2017-02-23","Q1","février","ROUEN","sfp","Jlongfier","ESPRIT DE FRANCE","PARIS",75,"direct","SECOURISME","TRAD","MAC","SST02","SST MAC",1,7,10,861,"C"]
[2017,"2017-02-24","Q1","février","ROUEN","sfp","Jlongfier","ESPRIT DE FRANCE","PARIS",75,"direct","SECOURISME","TRAD","MAC","SST02","SST MAC",1,7,9,861,"C"]
[2017,"2017-02-27","Q1","février","NANTERRE",null,"JFBassereau","CLINIQUE SAINT-CHARLES","LYON",69,"vpi","INCENDIE","TRAD","EPI + HORIZ","I13H","EPI + Evacuation Horiz - Ets Santé",0.5,null,null,524,"C"]
[2017,"2017-02-27","Q1","février","ROUEN","smatis","Jlongfier","snme",null,null,"vpi","INCENDIE","TRAD","EPI","I03","EPI - Mise en Œuvre des Extincteurs",0.5,3,4,565,"C"]
[2017,"2017-02-27","Q1","février","NANTERRE",null,"JCSicurani","EPHAD VILLA D'HERVE","VILLEHERVIERS",41,"vpi","EVACUATION","TRAD","EXERCICE","I203R","Exercice d'évacuation sans fumée",1,null,null,{"$f":"659*2","v":1318},"C"]
[2017,"2017-02-27","Q1","février","NANTERRE",null,"Malbaladejo","MAC DONALDS","PEYREHORADE",40,"vpi","EVACUATION","TRAD","EXERCICE","I203R","Exercice d'évacuation sans fumée",0.5,null,null,380,"C"]
[2017,"2017-02-28","Q1","février","NANTERRE",null,"Abordes","AIRPORT COLLEGE","ROISSY",93,"direct","INCENDIE","UM","UM","UMEP","EPI - Mise en Œuvre des Extincteurs",1,null,null,1540,"C"]
[2017,"2017-03-01","Q1","mars","NANTERRE",null,"JFBassereau","ESAT","MOULINS","03","vpi","SECOURISME","TRAD","INITIAL","SST01","SST INITIALE",2,null,null,1324,"C"]
[2017,"2017-03-01","Q1","mars","NANTERRE",null,"Cpequay","AIRPORT COLLEGE","ROISSY",93,"direct","RISQUES PROFESSIONNELS","TRAD","PERMIS FEU","RP06","PERMIS FEU",1,null,null,1200,"C"]
[2017,"2017-03-01","Q1","mars","NANTERRE",null,"PMarin","AIRPORT COLLEGE","ORLY",94,"direct","INCENDIE","UM","UM","UMEP","EPI - Mise en Œuvre des Extincteurs",1,null,null,1540,"C"]
[2017,"2017-03-01","Q1","mars","NANTERRE",null,"JCSicurani","SHAFT BATTERIES","LEVALLOIS-PERRET",92,"direct","INCENDIE","UM","UM","UMDRA","EPI - Mise en Œuvre des Extincteurs",0.5,null,null,713,"C"]
[2017,"2017-03-01","Q1","mars","OUEST","ANAIS MORIN","Tbouteiller","maison de retraite st cyr",null,null,"vpi","INCENDIE","TRAD","EPI","I05","EPI - Mise en Œuvre des Extincteurs",1,null,null,855,"C"]
[2017,"2017-03-01","Q1","mars","NANTERRE",null,"JCSicurani","SHAFT BATTERIES","LEVALLOIS-PERRET",92,"direct","EVACUATION","TRAD","SENSIBILISATION","I207","Sensibilisation Evacuation",0.5,null,null,346,"C"]
[2017,"2017-03-02","Q1","mars","NANTERRE",null,"PMarin","ORANGE","VILLABE",91,"direct","INCENDIE","UM","UM","UMEP","EPI - Mise en Œuvre des Extincteurs",1,null,null,1650,"C"]
[2017,"2017-03-02","Q1","mars","OUEST","bouteiller","Tbouteiller","ehpad pierre goenvic ",null,null,"vpi","EVACUATION","TRAD","EXERCICE","I203R","Exercice d'évacuation sans fumée",0.5,null,null,324,"C"]
[2017,"2017-03-03","Q1","mars","OUEST",null,"Tbouteiller","irfa alencon",null,null,"vpi","EVACUATION","TRAD","EXERCICE","I204R","Exercice d'évacuation avec fumée",0.5,null,null,498.88,"C"]
[2017,"2017-03-06","Q1","mars","NANTERRE",null,"Cpequay","CENTRE HOSPITALIER","ISSOIRE",63,"direct","INCENDIE","TRAD","EPI + HORIZ","I13H","EPI + Evacuation Horiz - Ets Santé",0.5,null,null,440,"C"]
[2017,"2017-03-06","Q1","mars","NANTERRE",null,"JFBassereau","EHPAD château de la Serra","VILETTE D'ANTHON",38,"vpi","INCENDIE","TRAD","EPI + HORIZ","I13H","EPI + Evacuation Horiz - Ets Santé",0.5,null,null,450,"C"]
[2017,"2017-03-06","Q1","mars","NANTERRE",null,"JCSicurani","Grand Hotel","TOURS",37,"vpi","INCENDIE","UM","UM","UMDRA","EPI - Mise en Œuvre des Extincteurs",1,null,null,750,"C"]
[2017,"2017-03-07","Q1","mars","NANTERRE",null,"JCSicurani","CHR HANSEN","ARPAJON",91,"direct","INCENDIE","UM","UM","UMDRA","EPI - Mise en Œuvre des Extincteurs",1,null,null,2100,"C"]
[2017,"2017-03-07","Q1","mars","NANTERRE",null,"PMarin","HP ENTERPRISE","GRENOBLE",38,"direct","INCENDIE","UM","UM","UMEP","EPI - Mise en Œuvre des Extincteurs",0.5,null,null,1025,"C"]
[2017,"2017-03-07","Q1","mars","NANTERRE",null,"PMarin","HP INK","GRENOBLE",38,"direct","INCENDIE","UM","UM","UMEP","EPI - Mise en Œuvre des Extincteurs",0.5,null,null,1025,"C"]
[2017,"2017-03-07","Q1","mars","NANTERRE",null,"Abordes","NOVANDIE","VIEL MOUTIER",62,"direct","INCENDIE","UM","UM","UMEP","EPI - Mise en Œuvre des Extincteurs",1,null,null,1908,"C"]
[2017,"2017-03-08","Q1","mars","NANTERRE",null,"Cpequay","AIRPORT COLLEGE","ROISSY",93,"direct","RISQUES PROFESSIONNELS","TRAD","PERMIS FEU","RP06","PERMIS FEU",0.5,null,null,600,"C"]
[2017,"2017-03-08","Q1","mars","NANTERRE",null,"PMarin","HP ENTERPRISE","ISLE D'ABEAU",38,"direct","INCENDIE","UM","UM","UMEP","EPI - Mise en Œuvre des Extincteurs",0.5,null,null,1025,"C"]
[2017,"2017-03-08","Q1","mars","NANTERRE",null,"JFBassereau","CROUS","LYON",69,"vpi","EVACUATION","TRAD","SSI","I206","Formation à l'utilisation du SSI",0.5,null,null,800,"C"]
[2017,"2017-03-09","Q1","mars","OUEST","bouteiller","Tbouteiller","ehpad pierre goenvic ",null,null,"vpi","INCENDIE","TRAD","EPI + HORIZ","I13H","EPI + Evacuation Horiz - Ets Santé",0.5,null,null,390,"C"]
[2017,"2017-03-09","Q1","mars","NANTERRE",null,"Abordes","HOPITAL DE NAVARRE","EVREUX",27,"direct","INCENDIE","UM","UM","UMEP","EPI - Mise en Œuvre des Extincteurs",1,null,null,1540,"C"]
[2017,"2017-03-09","Q1","mars","NANTERRE",null,"JCSicurani","LE MANOIR DU VERGER","VERETZ",37,"vpi","INCENDIE","TRAD","EPI","I03","EPI - Mise en Œuvre des Extincteurs",0.5,null,null,573,"C"]
[2017,"2017-03-09","Q1","mars","NANTERRE",null,"PMarin","MBDA France","LE PLESSIS ROBINSON",92,"direct","INCENDIE","UM","UM","UMEP","EPI - Mise en Œuvre des Extincteurs",0.5,null,null,1164,"C"]
[2017,"2017-03-10","Q1","mars","OUEST","bouteiller","Tbouteiller","mr les jardins du castel ",null,null,"vpi","INCENDIE","TRAD","EPI + HORIZ","I13H","EPI + Evacuation Horiz - Ets Santé",0.5,null,null,295,"C"]
[2017,"2017-03-10","Q1","mars","NANTERRE",null,"Cpequay","HP2S","OYONNAX","01","vpi","INCENDIE","TRAD","EPI","I03","EPI - Mise en Œuvre des Extincteurs",0.5,null,null,450,"C"]
[2017,"2017-03-11","Q1","mars","NANTERRE",null,"JFBassereau","ELIS RA","VIENNE",38,"vpi","INCENDIE","TRAD","EPI","I03","EPI - Mise en Œuvre des Extincteurs",0.5,null,null,450,"C"]
[2017,"2017-03-13","Q1","mars","NANTERRE",null,"PMarin","HP ENTERPRISE","NANTERRE",92,"direct","INCENDIE","UM","UM","UMEP","EPI - Mise en Œuvre des Extincteurs",0.5,null,null,1025,"C"]
[2017,"2017-03-13","Q1","mars","NANTERRE",null,"Abordes","NOV BLM","NANTES",44,"vpi","INCENDIE","UM","UM","UMEP","EPI - Mise en Œuvre des Extincteurs",3,null,null,{"$f":"3*2200","v":6600},"C"]
[2017,"2017-03-13","Q1","mars","OUEST","ANAIS MORIN","Tbouteiller","maison de retraite st cyr",null,null,"vpi","EVACUATION","TRAD","SENSIBILISATION","I207","Sensibilisation Evacuation",1,null,null,792,"C"]
[2017,"2017-03-14","Q1","mars","NANTERRE",null,"Cpequay","BPAURA","LYON",69,"direct","INCENDIE","UM","UM","UMCM102","EPI - Mise en Œuvre des Extincteurs",1,null,null,2392,"C"]
[2017,"2017-03-14","Q1","mars","NANTERRE",null,"JFBassereau","EHPAD EDEN","VALENCE",26,"vpi","INCENDIE","TRAD","EPI + HORIZ","I13H","EPI + Evacuation Horiz - Ets Santé",0.5,null,null,450,"C"]
[2017,"2017-03-14","Q1","mars","NANTERRE",null,"PMarin","HP ENTERPRISE","LES ULIS",94,"direct","INCENDIE","UM","UM","UMEP","EPI - Mise en Œuvre des Extincteurs",0.5,null,null,1025,"C"]
[2017,"2017-03-14","Q1","mars","NANTERRE",null,"PMarin","HP INK","LES ULIS",94,"direct","INCENDIE","UM","UM","UMEP","EPI - Mise en Œuvre des Extincteurs",0.5,null,null,1025,"C"]
[2017,"2017-03-14","Q1","mars","NANTERRE",null,"JFBassereau","I.M.E","MONTELEGER",26,"vpi","INCENDIE","TRAD","EPI","I03","EPI - Mise en Œuvre des Extincteurs",0.5,null,null,410,"C"]
[2017,"2017-03-15","Q1","mars","NANTERRE",null,"JCSicurani","BRICOMARCHE","LES ANDELYS",27,"vpi","EVACUATION","TRAD","CHARGE EVAC","I201","Formation à l'évacuation des locaux",0.5,null,null,519,"C"]
[2017,"2017-03-15","Q1","mars","NANTERRE",null,"PMarin","AIRPORT COLLEGE","ROISSY",93,"direct","INCENDIE","UM","UM","UMEP","EPI - Mise en Œuvre des Extincteurs",1,null,null,1540,"C"]
[2017,"2017-03-15","Q1","mars","NANTERRE",null,"JCSicurani","BRICOMARCHE","LES ANDELYS",27,"vpi","INCENDIE","TRAD","EPI","I03","EPI - Mise en Œuvre des Extincteurs",0.5,null,null,{"$f":"2*488","v":976},"C"]
[2017,"2017-03-15","Q1","mars","NANTERRE",null,"JFBassereau","CROUS","SAINT-ETIENNE",42,"vpi","EVACUATION","TRAD","SSI","I206","Formation à l'utilisation du SSI",1,null,null,800,"C"]
[2017,"2017-03-15","Q1","mars","NANTERRE",null,"JFBassereau","CROUS","LYON",69,"vpi","EVACUATION","TRAD","SSI","I206","Formation à l'utilisation du SSI",1,null,null,800,"C"]
[2017,"2017-03-16","Q1","mars","NANTERRE",null,"Cpequay","ANDROS","VALENCE",26,"direct","INCENDIE","UM","UM","UMCM106","ESI Personnalisé",1,null,null,2000,"C"]
[2017,"2017-03-16","Q1","mars","NANTERRE",null,"JFBassereau","EHPAD BIANCHERI","HAUTERIVES",26,"vpi","INCENDIE","TRAD","EPI + HORIZ","I13H","EPI + Evacuation Horiz - Ets Santé",0.5,null,null,400,"C"]
[2017,"2017-03-16","Q1","mars","NANTERRE",null,"JFBassereau","EHPAD COLLINES","ST DONAT SUR L'HERBASSE",26,"vpi","INCENDIE","TRAD","EPI + HORIZ","I13H","EPI + Evacuation Horiz - Ets Santé",0.5,null,null,400,"C"]
[2017,"2017-03-16","Q1","mars","NANTERRE",null,"Abordes","NOVO NORDISK","CHARTRES",28,"direct","INCENDIE","UM","UM","UMEP","EPI - Mise en Œuvre des Extincteurs",2,null,null,{"$f":"2*1600","v":3200},"C"]
[2017,"2017-03-16","Q1","mars","NANTERRE",null,"PMarin","ORANGE","GUYANCOURT",78,"direct","INCENDIE","UM","UM","UMEP","EPI - Mise en Œuvre des Extincteurs",0.5,null,null,825,"C"]
[2017,"2017-03-16","Q1","mars","OUEST","ANAIS MORIN","Tbouteiller","maison de retraite st cyr",null,null,"vpi","EVACUATION","TRAD","SENSIBILISATION","I207","Sensibilisation Evacuation",1,null,null,792,"C"]
[2017,"2017-03-17","Q1","mars","NANTERRE",null,"PMarin","DATAONE","GAILLON",27,"vpi","EVACUATION","TRAD","CHARGE EVAC","I202","Guides et serres-files",0.5,null,null,260,"C"]
[2017,"2017-03-17","Q1","mars","NANTERRE",null,"PMarin","DATAONE","GAILLON",27,"vpi","INCENDIE","UM","UM","UMEP","EPI - Mise en Œuvre des Extincteurs",0.5,null,null,2500,"C"]
[2017,"2017-03-20","Q1","mars","NANTERRE",null,"PMarin","ORANGE","PARIS ALLERAY",75,"direct","INCENDIE","UM","UM","UMEP","EPI - Mise en Œuvre des Extincteurs",3,null,null,{"$f":"3*1650","v":4950},"C"]
[2017,"2017-03-21","Q1","mars","NANTERRE",null,"Cpequay","BAIKOWSKI","POISY",78,"vpi","INCENDIE","UM","UM","UMCM102","EPI - Mise en Œuvre des Extincteurs",1,null,null,2090,"C"]
[2017,"2017-03-21","Q1","mars","NANTERRE",null,"JFBassereau","EHPAD PEYSSON","ROMANS SUR ISERE",26,"vpi","INCENDIE","TRAD","EPI + HORIZ","I13H","EPI + Evacuation Horiz - Ets Santé",0.5,null,null,450,"C"]
[2017,"2017-03-21","Q1","mars","NANTERRE",null,"JCSicurani","FOYER CREUSOIS","GUERET",23,"vpi","INCENDIE","TRAD","EPI","I03","EPI - Mise en Œuvre des Extincteurs",0.5,null,null,590,"C"]
[2017,"2017-03-21","Q1","mars","NANTERRE",null,"Abordes","SANOFI","GENTILLY",92,"direct","INCENDIE","UM","UM","UMEP","EPI - Mise en Œuvre des Extincteurs",3,null,null,{"$f":"3*1806","v":5418},"C"]
[2017,"2017-03-21","Q1","mars","OUEST","bouteiller","Tbouteiller","leclerc",null,null,"vpi","SECOURISME","TRAD","INITIAL","SST02","SST MAC",1,null,null,623.5,"C"]
[2017,"2017-03-22","Q1","mars","NANTERRE",null,"JCSicurani","VOYAGES DE MICHELINE","LA CHATRE",36,"vpi","INCENDIE","TRAD","EPI","I03","EPI - Mise en Œuvre des Extincteurs",0.5,null,null,940,"C"]
[2017,"2017-03-22","Q1","mars","OUEST",null,"Tbouteiller","golfe hotel ",null,null,"vpi","INCENDIE","TRAD","EPI","I03","EPI - Mise en Œuvre des Extincteurs",0.5,null,null,366,"C"]
[2017,"2017-03-22","Q1","mars","NANTERRE",null,"JFBassereau","CROUS","LYON",69,"vpi","EVACUATION","TRAD","SSI","I206","Formation à l'utilisation du SSI",1,null,null,800,"C"]
[2017,"2017-03-23","Q1","mars","ROUEN","ANAIS MORIN","PMarin","CLINIQUE MATHILDE","ROUEN",76,"vpi","INCENDIE","UM","UM","UMEP","EPI - Mise en Œuvre des Extincteurs",1,null,null,2750,"C"]
[2017,"2017-03-23","Q1","mars","NANTERRE",null,"JCSicurani","SIAH","BONNEUIL EN France",95,"vpi","INCENDIE","UM","UM","UMDRA","EPI - Mise en Œuvre des Extincteurs",1.5,null,null,3100,"C"]
[2017,"2017-03-23","Q1","mars","OUEST","ANAIS MORIN","Tbouteiller","maison de retraite st cyr",null,null,"vpi","INCENDIE","TRAD","EPI","I05","EPI - Mise en Œuvre des Extincteurs",1,null,null,855,"C"]
[2017,"2017-03-24","Q1","mars","NANTERRE",null,"JFBassereau","EHPAD LOUBET","MONTELIMAR",26,"vpi","INCENDIE","TRAD","EPI + HORIZ","I13H","EPI + Evacuation Horiz - Ets Santé",0.5,null,null,450,"C"]
[2017,"2017-03-27","Q1","mars","NANTERRE",null,"Cpequay","CCM SAS TEXEN","IZERNORE","01","vpi","INCENDIE","UM","UM","UMCM102","EPI - Mise en Œuvre des Extincteurs",1,null,null,2200,"C"]
[2017,"2017-03-27","Q1","mars","NANTERRE",null,"JFBassereau","SAMEDIA ETANCHEITE","CALUIRE ET CUIRE",69,"vpi","INCENDIE","TRAD","EPI","I03","EPI - Mise en Œuvre des Extincteurs",0.5,null,null,258,"C"]
[2017,"2017-03-27","Q1","mars","OUEST","bouteiller","Tbouteiller","leclerc",null,null,"vpi","SECOURISME","TRAD","INITIAL","SST02","SST MAC",1,null,null,623.5,"C"]
[2017,"2017-03-28","Q1","mars","NANTERRE",null,"JFBassereau","EHPAD COLLINES","ST DONAT SUR L'HERBASSE",26,"vpi","INCENDIE","TRAD","EPI + HORIZ","I13H","EPI + Evacuation Horiz - Ets Santé",0.5,null,null,400,"C"]
[2017,"2017-03-28","Q1","mars","OUEST","bouteiller","Tbouteiller","ehpad ty an dud coz ",null,null,"vpi","INCENDIE","TRAD","EPI + HORIZ","I13H","EPI + Evacuation Horiz - Ets Santé",0.5,null,null,395,"C"]
[2017,"2017-03-28","Q1","mars","NANTERRE",null,"JFBassereau","EHPAD DELESSERT","VALENCE",26,"vpi","INCENDIE","TRAD","EPI + HORIZ","I13H","EPI + Evacuation Horiz - Ets Santé",0.5,null,null,400,"C"]
[2017,"2017-03-28","Q1","mars","NANTERRE",null,"Cpequay","ORANGE","ANNECY",74,"direct","INCENDIE","UM","UM","UMCM102","EPI - Mise en Œuvre des Extincteurs",1,null,null,1650,"C"]
[2017,"2017-03-28","Q1","mars","NANTERRE",null,"PMarin","ORANGE","METZ",57,"direct","INCENDIE","UM","UM","UMEP","EPI - Mise en Œuvre des Extincteurs",1,null,null,1650,"C"]
[2017,"2017-03-28","Q1","mars","NANTERRE",null,"PMarin","ORANGE","SCHILTIGHEIM",67,"direct","INCENDIE","UM","UM","UMEP","EPI - Mise en Œuvre des Extincteurs",1,null,null,1650,"C"]
[2017,"2017-03-29","Q1","mars","NANTERRE",null,"Cpequay","ORANGE","FONTAINE",38,"direct","INCENDIE","UM","UM","UMCM102","EPI - Mise en Œuvre des Extincteurs",1,null,null,1650,"C"]
[2017,"2017-03-29","Q1","mars","NANTERRE",null,"JFBassereau","CROUS","LYON",69,"vpi","EVACUATION","TRAD","SSI","I206","Formation à l'utilisation du SSI",1,null,null,800,"C"]
[2017,"2017-03-30","Q1","mars","NANTERRE",null,"JFBassereau","EHPAD DELESSERT","VALENCE",26,"vpi","INCENDIE","TRAD","EPI + HORIZ","I13H","EPI + Evacuation Horiz - Ets Santé",0.5,null,null,400,"C"]
[2017,"2017-03-30","Q1","mars","NANTERRE",null,"JFBassereau","EHPAD EDEN","VALENCE",26,"vpi","INCENDIE","TRAD","EPI + HORIZ","I13H","EPI + Evacuation Horiz - Ets Santé",0.5,null,null,400,"C"]
[2017,"2017-03-30","Q1","mars","NANTERRE",null,"Abordes","HYATT REGENCY","PARIS",75,"direct","INCENDIE","UM","UM","UMEP","EPI - Mise en Œuvre des Extincteurs",1,null,null,1780,"C"]
[2017,"2017-03-31","Q1","mars","NANTERRE",null,"Abordes","AIRPORT COLLEGE","ROISSY",93,"direct","INCENDIE","UM","UM","UMEP","EPI - Mise en Œuvre des Extincteurs",1,null,null,1540,"C"]
[2017,"2017-03-31","Q1","mars","NANTERRE",null,"JFBassereau","KAPORAL JEANS","MIRAMAS",13,"vpi","INCENDIE","TRAD","EPI","I03","EPI - Mise en Œuvre des Extincteurs",0.5,null,null,450,"C"]
[2017,"2017-03-31","Q1","mars","OUEST",null,"Tbouteiller","HOTEL PARC ER GREO",null,null,"vpi","INCENDIE","TRAD","EPI","I03","EPI - Mise en Œuvre des Extincteurs",0.5,null,null,450,"C"]
[2017,"2017-04-03","Q2","avril","NANTERRE",null,"JFBassereau","CENTRE HOSPITALIER","ISSOIRE",63,"direct","INCENDIE","TRAD","EPI + HORIZ","I13H","EPI + Evacuation Horiz - Ets Santé",0.5,null,null,440,"C"]
[2017,"2017-04-03","Q2","avril","NANTERRE",null,"Cpequay","CCM SAS TEXEN","IZERNORE","01","vpi","INCENDIE","UM","UM","UMCM102","EPI - Mise en Œuvre des Extincteurs",1,null,null,2200,"C"]
[2017,"2017-04-03","Q2","avril","NANTERRE","ANAIS MORIN","Abordes","LEROY MERLIN","ISNEAUVILLE",76,"vpi","INCENDIE","UM","UM","UMEP","EPI - Mise en Œuvre des Extincteurs",2,null,null,{"$f":"2*2500","v":5000},"C"]
[2017,"2017-04-03","Q2","avril","NANTERRE",null,"PMarin","ORANGE","EPINAL",88,"direct","INCENDIE","UM","UM","UMEP","EPI - Mise en Œuvre des Extincteurs",0.5,null,null,825,"C"]
[2017,"2017-04-04","Q2","avril","NANTERRE",null,"Cpequay","IME LES COLOMBES","MONTELEGER",26,"vpi","INCENDIE","TRAD","EPI","I03","EPI - Mise en Œuvre des Extincteurs",0.5,null,null,410,"C"]
[2017,"2017-04-04","Q2","avril","NANTERRE",null,"PMarin","ORANGE","NANCY",54,"direct","INCENDIE","UM","UM","UMEP","EPI - Mise en Œuvre des Extincteurs",1,null,null,1650,"C"]
[2017,"2017-04-04","Q2","avril","NANTERRE",null,"JCSicurani","SIDAMO","CHAUSSE ST VICTOR",41,"vpi","INCENDIE","TRAD","EPI","I03","EPI - Mise en Œuvre des Extincteurs",0.5,null,null,{"$f":"424*3","v":1272},"C","3x0,5j"]
[2017,"2017-04-06","Q2","avril","NANTERRE",null,"Abordes","ORANGE","LANNION",22,"direct","INCENDIE","UM","UM","UMEP","EPI - Mise en Œuvre des Extincteurs",2,null,null,{"$f":"2*1650","v":3300},"C"]
[2017,"2017-04-07","Q2","avril","OUEST","bouteiller","Tbouteiller","mr les jardins du castel ",null,null,"vpi","INCENDIE","TRAD","EPI + HORIZ","I13H","EPI + Evacuation Horiz - Ets Santé",0.5,null,null,295,"C"]
[2017,"2017-04-07","Q2","avril","NANTERRE",null,"Cpequay","EHPAD LE MONTEL","ROMANS SUR ISERE",26,"vpi","INCENDIE","TRAD","EPI","I03","EPI - Mise en Œuvre des Extincteurs",1,null,null,700,"C"]
[2017,"2017-04-07","Q2","avril","NANTERRE",null,"JCSicurani","THEBAULT","AZAY",37,"vpi","INCENDIE","TRAD","EPI","I03","EPI - Mise en Œuvre des Extincteurs",0.5,null,null,600,"C"]
[2017,"2017-04-10","Q2","avril","NANTERRE",null,"JFBassereau","GIVAUDAN LAVIROTTE","LYON",69,"vpi","INCENDIE","TRAD","ESI","I109","ESI - Recyclage",1,null,null,860,"C"]
[2017,"2017-04-10","Q2","avril","NANTERRE",null,"JFBassereau","EHPAD PEYSSON","ROMANS SUR ISERE",26,"vpi","INCENDIE","TRAD","EPI + HORIZ","I13H","EPI + Evacuation Horiz - Ets Santé",0.5,null,null,450,"C"]
[2017,"2017-04-11","Q2","avril","NANTERRE",null,"PMarin","BPAURA","SAINT-ETIENNE",42,"direct","INCENDIE","UM","UM","UMEP","EPI - Mise en Œuvre des Extincteurs",1,null,null,2392,"C"]
[2017,"2017-04-11","Q2","avril","NANTERRE",null,"Cpequay","EHPAD LOUBET","MONTELIMAR",26,"vpi","INCENDIE","TRAD","EPI","I03","EPI - Mise en Œuvre des Extincteurs",1,null,null,800,"C"]
[2017,"2017-04-11","Q2","avril","NANTERRE",null,"JFBassereau","CROUS","VILLEURBANNE",69,"vpi","EVACUATION","TRAD","SSI","I206","Formation à l'utilisation du SSI",1,null,null,800,"C"]
[2017,"2017-04-11","Q2","avril","OUEST","bouteiller","Tbouteiller","imprimerie raynard",null,null,"vpi","EVACUATION","TRAD","SENSIBILISATION","I207","Sensibilisation Evacuation",0.5,null,null,258,"C"]
[2017,"2017-04-12","Q2","avril","NANTERRE",null,"PMarin","BPAURA","LYON",69,"direct","INCENDIE","UM","UM","UMEP","EPI - Mise en Œuvre des Extincteurs",1,null,null,2392,"C"]
[2017,"2017-04-13","Q2","avril","NANTERRE",null,"PMarin","ORANGE","BELFORT",90,"direct","INCENDIE","UM","UM","UMEP","EPI - Mise en Œuvre des Extincteurs",1,null,null,1650,"C"]
[2017,"2017-04-14","Q2","avril","NANTERRE",null,"JFBassereau","ELIS RA","DECINES CHARPIEU",69,"vpi","EVACUATION","TRAD","CHARGE EVAC","I202","Guides et serres-files",0.5,null,null,800,"C"]
[2017,"2017-04-14","Q2","avril","NANTERRE",null,"PMarin","ORANGE","DIJON",21,"direct","INCENDIE","UM","UM","UMEP","EPI - Mise en Œuvre des Extincteurs",1,null,null,1650,"C"]
[2017,"2017-04-18","Q2","avril","NANTERRE",null,"PMarin","AIRPORT COLLEGE","ROISSY",93,"direct","INCENDIE","UM","UM","UMEP","EPI - Mise en Œuvre des Extincteurs",1,null,null,1000,"C"]
[2017,"2017-04-18","Q2","avril","NANTERRE",null,"JCSicurani","CEA","LE VESINET",78,"vpi","INCENDIE","UM","UM","UMDRA","EPI - Mise en Œuvre des Extincteurs",1,null,null,1125,"C"]
[2017,"2017-04-18","Q2","avril","NANTERRE",null,"Cpequay","LYCEE BON SECOURS","PERPIGNAN",66,"vpi","INCENDIE","UM","UM","UMCM102","EPI - Mise en Œuvre des Extincteurs",1,null,null,2137,"C"]
[2017,"2017-04-18","Q2","avril","NANTERRE",null,"JFBassereau","CROUS","VILLEURBANNE",69,"vpi","EVACUATION","TRAD","SSI","I206","Formation à l'utilisation du SSI",0.5,null,null,450,"C"]
[2017,"2017-04-19","Q2","avril","NANTERRE",null,"JFBassereau","SUEZ","VOREPPE",69,"vpi","INCENDIE","TRAD","EPI","I03","EPI - Mise en Œuvre des Extincteurs",0.5,null,null,415,"C"]
[2017,"2017-04-20","Q2","avril","NANTERRE",null,"JFBassereau","PHILAGRO SUMITOMO","SAINT-DIZIER MONT D'OR",69,"vpi","EVACUATION","TRAD","CHARGE EVAC","I202","Guides et serres-files",0.5,null,null,450,"C"]
[2017,"2017-04-21","Q2","avril","OUEST","bouteiller","Tbouteiller","imprimerie raynard",null,null,"vpi","INCENDIE","TRAD","EPI","I03","EPI - Mise en Œuvre des Extincteurs",0.5,null,null,395.7,"C"]
[2017,"2017-04-24","Q2","avril","NANTERRE",null,"JCSicurani","CALVIN KLEIN","SERRIS",77,"vpi","INCENDIE","TRAD","EPI","I03","EPI - Mise en Œuvre des Extincteurs",0.5,null,null,901,"C"]
[2017,"2017-04-24","Q2","avril","NANTERRE",null,"PMarin","ORANGE","GENTILLY",92,"direct","INCENDIE","UM","UM","UMEP","EPI - Mise en Œuvre des Extincteurs",0.5,null,null,825,"C"]
[2017,"2017-04-24","Q2","avril","OUEST",null,"Tbouteiller","fuaj",null,null,"vpi","INCENDIE","TRAD","EPI","I03+I202","EPI - Mise en Œuvre des Extincteurs",1,null,null,890,"C"]
[2017,"2017-04-25","Q2","avril","NANTERRE","ANAIS MORIN","Cpequay","DANONE","FERRIERES EN BRAY",76,"direct","INCENDIE","UM","UM","UMCM103","EPI - Mise en Œuvre des Extincteurs + RIA - T + P",1,null,null,2350,"C"]
[2017,"2017-04-25","Q2","avril","NANTERRE",null,"JCSicurani","RECALL","COMPANS",77,"vpi","INCENDIE","TRAD","EPI","i03","EPI - Mise en Œuvre des Extincteurs",0.5,null,null,500,"C"]
[2017,"2017-04-25","Q2","avril","NANTERRE",null,"Abordes","ST MICRO","RENNES R&D",35,"direct","INCENDIE","UM","UM","UMEP","EPI - Mise en Œuvre des Extincteurs",0.5,null,null,859,"C"]
[2017,"2017-04-25","Q2","avril","NANTERRE",null,"JFBassereau","Maison de retraite sevigne","SAINT MARTIN LE VINOUX",38,"vpi","SECOURISME","TRAD","MAC","SST02","SST MAC",1,null,null,700,"C"]
[2017,"2017-04-26","Q2","avril","NANTERRE",null,"PMarin","MBDA France","LE PLESSIS ROBINSON",92,"direct","INCENDIE","UM","UM","UMEP","EPI - Mise en Œuvre des Extincteurs",0.5,null,null,1164,"C"]
[2017,"2017-04-26","Q2","avril","NANTERRE",null,"Abordes","ST MICRO","LE MANS",72,"direct","INCENDIE","UM","UM","UMEP","EPI - Mise en Œuvre des Extincteurs",1.5,null,null,2577,"C"]
[2017,"2017-04-26","Q2","avril","NANTERRE",null,"JFBassereau","CANDIA","CLERMOND-FERRAND",63,"direct","SECOURISME","TRAD","MAC","SST02","SST MAC",2,null,null,2000,"C"]
[2017,"2017-04-26","Q2","avril","OUEST","bouteiller","Tbouteiller","imprimerie raynard",null,null,"vpi","SECOURISME","TRAD","INITIAL","SST02","SST MAC",1,null,null,428.34,"C"]
[2017,"2017-04-27","Q2","avril","NANTERRE",null,"Cpequay + Tbinet","CABOT CARBONE","LILLEBONNE",76,"vpi","INCENDIE","UM","UM","UMCM110","ESI",3,null,null,6500,"C","3j avec Tbinet"]
[2017,"2017-04-27","Q2","avril","NANTERRE",null,"JFBassereau","MAIRIE DE FRANGY","FRANGY",74,"vpi","INCENDIE","TRAD","EPI","I03","EPI - Mise en Œuvre des Extincteurs",0.5,null,null,505,"C"]
[2017,"2017-04-27","Q2","avril","NANTERRE",null,"JCSicurani","MANOIR DU VERGER","VERETZ",37,"vpi","INCENDIE","TRAD","EPI","I03","EPI - Mise en Œuvre des Extincteurs",0.5,null,null,573,"C"]
[2017,"2017-04-27","Q2","avril","NANTERRE",null,"PMarin","ORANGE","CHATILLON",92,"direct","INCENDIE","UM","UM","UMEP","EPI - Mise en Œuvre des Extincteurs",1,null,null,1650,"C"]
[2017,"2017-04-28","Q2","avril","NANTERRE",null,"JCSicurani","CEA","LE VESINET",78,"vpi","INCENDIE","UM","UM","UMDRA","EPI - Mise en Œuvre des Extincteurs",1,null,null,1125,"C","OPTION"]
[2017,"2017-05-02","Q2","mai","NANTERRE",null,"JFBassereau","EHPAD COLLINES","ST DONAT SUR L'HERBASSE",26,"vpi","INCENDIE","TRAD","EPI + HORIZ","I13H","EPI + Evacuation Horiz - Ets Santé",0.5,null,null,450,"C"]
[2017,"2017-05-02","Q2","mai","NANTERRE",null,"JCSicurani","ALPI SA","LOGNES",77,"vpi","INCENDIE","UM","UM","UMDRA","EPI - Mise en Œuvre des Extincteurs",0.5,null,null,899,"C"]
[2017,"2017-05-02","Q2","mai","NANTERRE",null,"PMarin","RENAULT","GUYANCOURT",78,"direct","INCENDIE","UM","UM","UMEP","EPI - Mise en Œuvre des Extincteurs",1,null,null,1640,"C"]
[2017,"2017-05-02","Q2","mai","ROUEN","ANAIS MORIN","Jlongfier","nexity galees du roi",null,null,"vpi","EVACUATION","TRAD","EXERCICE","I204R","Exercice d'évacuation avec fumée",0.5,null,null,505]
[2017,"2017-05-02","Q2","mai","ROUEN","ANAIS MORIN","Jlongfier","nexity blaise pascal",null,null,"vpi","EVACUATION","TRAD","EXERCICE","I204R","Exercice d'évacuation avec fumée",0.5,null,null,505]
[2017,"2017-05-03","Q2","mai","ROUEN","ANAIS MORIN","Pgarin","leroy merlin isneau",null,null,"vpi","CONDUITE & MANUTENTION","TRAD","PEMP","CM104","PEMP R386 Cat.1A,1B,3A,3B - Recyclage",1,null,null,730,"C"]
[2017,"2017-05-03","Q2","mai","NANTERRE",null,"Cpequay","SKF","SAINT MARCEL",27,"vpi","RISQUES PROFESSIONNELS","TRAD","RISQUES CHIMI",null,null,1,null,null,950,"Report","reportée"]
[2017,"2017-05-03","Q2","mai","NANTERRE",null,"JCSicurani","LA MAISON DES OISEAUX","LA CHATRE",36,"direct","INCENDIE","UM","UM","UMDRA","EPI - Mise en Œuvre des Extincteurs",1,null,null,1500,"C"]
[2017,"2017-05-03","Q2","mai","NANTERRE",null,"Abordes","TOURS HABITAT","TOURS",37,"vpi","INCENDIE","UM","UM","UMEP","EPI - Mise en Œuvre des Extincteurs",2,null,null,4600,"C"]
[2017,"2017-05-03","Q2","mai","ROUEN","ANAIS MORIN","Jlongfier","anne fontaine serris",null,null,"vpi","INCENDIE","TRAD","EPI","I03","EPI - Mise en Œuvre des Extincteurs",0.5,null,null,650,"C"]
[2017,"2017-05-04","Q2","mai","ROUEN","ANAIS MORIN","Jlongfier","leroy merlin tourville",null,null,"vpi","EVACUATION","TRAD","CHARGE EVAC","I202","Guides et serres-files",1,null,null,900]
[2017,"2017-05-04","Q2","mai","ROUEN","ANAIS MORIN","Pgarin","leroy merlin isneau",null,null,"vpi","CONDUITE & MANUTENTION","TRAD","PEMP","CM101","PEMP R386 Cat.1A,3A - Débutants",1,null,null,730,"C"]
[2017,"2017-05-04","Q2","mai","ROUEN","ANAIS MORIN",null,"DANONE",null,null,"vpi","CONDUITE & MANUTENTION","TRAD","PEMP","CM103","PEMP R386 Cat.1B,3B - Débutants",null,null,null,2350,"C"]
[2017,"2017-05-04","Q2","mai","NANTERRE","ANAIS MORIN","Cpequay","DANONE","FERRIERES",76,"vpi","INCENDIE","UM","UM","UMCM102","EPI - Mise en Œuvre des Extincteurs + RIA - T + P",3,null,null,{"$f":"2350*3","v":7050},"C","4/04 + 11/4 + 23/4"]
[2017,"2017-05-05","Q2","mai","ROUEN","ANAIS MORIN","Jlongfier","Mc Do","ST ETIENNE TIRR",null,"vpi","EVACUATION","TRAD","EXERCICE","I204R","Exercice d'évacuation avec fumée",0.5,null,null,270,"C"]
[2017,"2017-05-05","Q2","mai","NANTERRE",null,"JFBassereau","OKKO HOTEL","LYON",69,"vpi","INCENDIE","TRAD","EPI + SSI","I03 + I206","EPI - Mise en Œuvre des Extincteurs + SSI - T + P",0.5,null,null,780,"C"]
[2017,"2017-05-05","Q2","mai","ROUEN","ANAIS MORIN","Jlongfier","bureau veritas",null,null,"vpi","PROTECTION INDIVIDUELLE","TRAD","ARI","RPI02","ARI - Recyclage",0.5,null,null,649]
[2017,"2017-05-05","Q2","mai","ROUEN","ANAIS MORIN","Jlongfier","mc do st etienne tirr",null,null,"vpi","EVACUATION","TRAD","EXERCICE","I204R","Exercice d'évacuation avec fumée",0.5,null,null,270]
[2017,"2017-05-07","Q2","juin","NANTERRE",null,"PMarin","AIRPORT COLLEGE","ROISSY",95,"direct","INCENDIE","UM","UM","UMEP","EPI - Mise en Œuvre des Extincteurs",1,null,null,1540,"C"]
[2017,"2017-05-08","Q2","mai","NANTERRE",null,"PMarin","MBDA","PLESSIS ROBINSON",92,"direct","INCENDIE","UM","UM","UMEP","EPI - Mise en Œuvre des Extincteurs",0.5,null,null,1164,"C"]
[2017,"2017-05-09","Q2","mai","ROUEN","leroux","Jlongfier","milton roy ",null,null,"vpi","EVACUATION","TRAD","EXERCICE","I204R","Exercice d'évacuation avec fumée",0.5,null,null,650,"C"]
[2017,"2017-05-09","Q2","mai","NANTERRE",null,"JCSicurani","CHR HANSEN","ARPAJON",91,"direct","INCENDIE","UM","UM","UMDRA","EPI - Mise en Œuvre des Extincteurs",1,null,null,2100,"C"]
[2017,"2017-05-09","Q2","mai","NANTERRE",null,"JFBassereau","EHPAD GERONDINES LOUIS PASQUIER","CHABEUL",26,"vpi","INCENDIE","TRAD","EPI + HORIZ","I13H","EPI + Evacuation Horiz - Ets Santé",0.5,null,null,450,"C"]
[2017,"2017-05-09","Q2","mai","NANTERRE",null,"PMarin","ATSI","CHARENTON",75,"direct","INCENDIE","UM","UM","UMEP","EPI - Mise en Œuvre des Extincteurs",1,null,null,1700,"C"]
[2017,"2017-05-10","Q2","mai","ROUEN","ANAIS MORIN","Pgarin","SKF",null,null,"vpi","CONDUITE & MANUTENTION","TRAD","PONTIER","CM301","Pontier/Elingueur - boite à boutons - Recyclage",1,null,null,760,"C"]
[2017,"2017-05-10","Q2","mai","NANTERRE",null,"JFBassereau","CROUS","LYON",69,"vpi","INCENDIE","TRAD","EPI","I03","EPI - Mise en Œuvre des Extincteurs",1,null,null,800,"C","à vérifier"]
[2017,"2017-05-11","Q2","mai","ROUEN","ANAIS MORIN",null,"DANONE",null,null,"vpi","CONDUITE & MANUTENTION","TRAD","PEMP","CM103","PEMP R386 Cat.1B,3B - Débutants",null,null,null,2350,"C"]
[2017,"2017-05-11","Q2","mai","ROUEN","ANAIS MORIN","Pgarin","leroy merlin isneau",null,null,"vpi","CONDUITE & MANUTENTION","TRAD","PEMP","CM104","PEMP R386 Cat.1A,1B,3A,3B - Recyclage",1,null,null,730,"C"]
[2017,"2017-05-11","Q2","mai","NANTERRE",null,"JFBassereau","EHPAD BEAUSOLEIL","MOURS ST EUSEBE",26,"vpi","INCENDIE","TRAD","EPI + HORIZ","I13H","EPI + Evacuation Horiz - Ets Santé",0.5,null,null,450,"C"]
[2017,"2017-05-11","Q2","mai","NANTERRE",null,"PMarin","MBDA France","LE PLESSIS ROBINSON",92,"direct","INCENDIE","UM","UM","UMEP","EPI - Mise en Œuvre des Extincteurs",0.5,null,null,1164,"C"]
[2017,"2017-05-12","Q2","mai","NANTERRE",null,"JFBassereau","EMMAUS","CRANVES",74,"vpi","SECOURISME","TRAD","INITIAL","SST01","SST INITIALE",2,null,null,1200,"C","12/5 + 19/5"]
[2017,"2017-05-12","Q2","mai","NANTERRE",null,"JCSicurani","THIBAULT","AZAY",37,"vpi","INCENDIE","TRAD","EPI","I03","EPI - Mise en Œuvre des Extincteurs",0.5,null,null,600,"C"]
[2017,"2017-05-12","Q2","mai","BRETAGNE",null,"Tbouteiller","EHPAD LES JARDINS DU CASTEL","CHATEAUGIRON",35,"vpi","INCENDIE","TRAD","EPI + HORIZ","I13H","EPI + Evacuation Horiz - Ets Santé",0.5,null,null,295,"C"]
[2017,"2017-05-15","Q2","mai","ROUEN","ANAIS MORIN","Tbinet","hopital durécu",null,null,"vpi","INCENDIE","TRAD","EPI","I03","EPI - Mise en Œuvre des Extincteurs",0.5,null,null,580,"C"]
[2017,"2017-05-15","Q2","mai","NANTERRE",null,"JCSicurani","AIRCOS","ARDON",45,"vpi","INCENDIE","TRAD","EPI","I05","EPI - Mise en Œuvre des Extincteurs",1,2,null,510,"C","2 heures de formation"]
[2017,"2017-05-15","Q2","mai","ROUEN","ANAIS MORIN","Tbinet","Hopital durécu",null,null,"vpi","INCENDIE","TRAD","EPI","I03","EPI - Mise en Œuvre des Extincteurs",2.5,3,15,580,"C"]
[2017,"2017-05-15","Q2","mai","NANTERRE",null,"Cpequay","EHPAD LE MONTEL","ROMANS SUR ISERE",26,"vpi","INCENDIE","TRAD","EPI + HORIZ","I13H","EPI + Evacuation Horiz - Ets Santé",1,null,null,705,"C"]
[2017,"2017-05-15","Q2","avril","NANTERRE",null,"Abordes","SCHUTZ","MARCOUSSIS",78,"direct","INCENDIE","UM","UM","UMEP","EPI - Mise en Œuvre des Extincteurs",0.5,null,null,1200,"C"]
[2017,"2017-05-15","Q2","mai","NANTERRE",null,"Abordes","SCHUTZ","MARCOUSSIS",78,"direct","INCENDIE","UM","UM","UMEP","EPI - Mise en Œuvre des Extincteurs",0.5,null,null,1200,"C","Remise accordée suite à un souci"]
[2017,"2017-05-15","Q2","mai","NANTERRE",null,"PMarin","SLAM","SELESTAT",68,"direct","INCENDIE","UM","UM","UMEP","EPI - Mise en Œuvre des Extincteurs",1,null,null,1875,"C"]
[2017,"2017-05-16","Q2","mai","ROUEN","ANAIS MORIN","Pgarin","leroy merlin isneau",null,null,"vpi","CONDUITE & MANUTENTION","TRAD","PEMP","CM101","PEMP R386 Cat.1A,3A - Débutants",1,null,null,730,"C"]
[2017,"2017-05-16","Q2","mai","NANTERRE",null,"Cpequay","CLINIQUE HAUT CANTAL","RIOM ES MONTAGNE",15,"vpi","INCENDIE","TRAD","EPI","I03","EPI - Mise en Œuvre des Extincteurs",2,null,null,2036,"C","16/5 + 18/5 --> 4X514"]
[2017,"2017-05-16","Q2","mai","NANTERRE",null,"Abordes","HOPITAL DE NAVARRE","EVREUX",27,"direct","INCENDIE","UM","UM","UMEP","EPI - Mise en Œuvre des Extincteurs",1,null,null,1540,"C"]
[2017,"2017-05-16","Q2","mai","NANTERRE",null,"JCSicurani","MAC DONALDS","NOISY LE GRAND",93,"vpi","INCENDIE","TRAD","EPI","I03","EPI - Mise en Œuvre des Extincteurs",0.5,null,null,450,"C"]
[2017,"2017-05-16","Q2","mai","NANTERRE",null,"JFBassereau","EHPAD BIANCHERI","HAUTERIVES",26,"vpi","INCENDIE","TRAD","EPI + HORIZ","I13H","EPI + Evacuation Horiz - Ets Santé",1,null,null,800,"C"]
[2017,"2017-05-17","Q2","mai","ROUEN","ANAIS MORIN","Pgarin","SKF",null,null,"vpi","CONDUITE & MANUTENTION","TRAD","CHARIOTS","CM05","CHARIOTS R389 Cat. 1,2,3,4,5 - Recyclage",1,null,null,740,"C"]
[2017,"2017-05-17","Q2","mai","NANTERRE",null,"PMarin","RENAULT","GUYANCOURT",78,"direct","INCENDIE","UM","UM","UMEP","EPI - Mise en Œuvre des Extincteurs",1,null,null,1640,"C"]
[2017,"2017-05-17","Q2","mai","NANTERRE",null,"JCSicurani","LYCEE CLAUDE DE France","ROMORANTHIN",41,"vpi","INCENDIE","TRAD","EPI","I03","EPI - Mise en Œuvre des Extincteurs",0.5,null,null,490.81,"C"]
[2017,"2017-05-17","Q2","mai","BRETAGNE",null,"Tbouteiller","EHPAD PIERRE GOENVIC","PLONEOUR LANVERN ",29,"vpi","INCENDIE","TRAD","EPI + HORIZ","I13H","EPI + Evacuation Horiz - Ets Santé",0.5,null,null,390]
[2017,"2017-05-17","Q2","mai","ROUEN","ANAIS MORIN","Jlongfier","cer le globe",null,null,"direct","SECOURISME","TRAD","AUTO","sst07","Secourisme - Module Auto Ecole",0.5,null,null,445]
[2017,"2017-05-17","Q2","mai","ROUEN","ROBIN CHATONEY","Jlongfier","esprit de France royal garden",null,null,"direct","EVACUATION","TRAD","SENSIBILISATION","I207","Sensibilisation Evacuation",0.5,null,null,390]
[2017,"2017-05-18","Q2","mai","NANTERRE",null,"PMarin","SLAUR","LE HAVRE",76,"vpi","INCENDIE","UM","UM","UMEP","EPI - Mise en Œuvre des Extincteurs",1,null,null,1990]
[2017,"2017-05-18","Q2","mai","NANTERRE",null,"JFBassereau","EHPAD LAMARTINE","VALENCE",26,"vpi","INCENDIE","TRAD","EPI + HORIZ","I13H","EPI + Evacuation Horiz - Ets Santé",0.5,null,null,450]
[2017,"2017-05-19","Q2","mai","NANTERRE",null,"JCSicurani","AIRCOS","ROMORANTHIN",41,"vpi","INCENDIE","TRAD","EPI","I03","EPI - Mise en Œuvre des Extincteurs",1,null,null,750]
[2017,"2017-05-19","Q2","mai","NANTERRE",null,"Cpequay","CLINIQUE HAUT CANTAL","RIOM ES MONTAGNE",15,"vpi","INCENDIE","TRAD","EPI + HORIZ","I13H","EPI + Evacuation Horiz - Ets Santé",1,null,null,450]
[2017,"2017-05-22","Q2","mai","ROUEN","ANAIS MORIN","Pgarin","LEROY MERLIN","ISNEAUVILLE",76,"vpi","CONDUITE & MANUTENTION","TRAD","CHARIOTS","CM05","CHARIOTS R389 Cat. 1,2,3,4,5 - Recyclage",1.5,null,null,1120,"C","22 et 23 05"]
[2017,"2017-05-22","Q2","mai","ROUEN","ANAIS MORIN","Tbinet","hopital durécu",null,null,"vpi","INCENDIE","TRAD","EPI","I03","EPI - Mise en Œuvre des Extincteurs",0.5,null,null,580]
[2017,"2017-05-22","Q2","mai","ROUEN","ANAIS MORIN","Tbinet","Hopital durécu",null,null,"vpi","INCENDIE","TRAD","EPI","I03","EPI - Mise en Œuvre des Extincteurs",2.5,3,14,580]
[2017,"2017-05-22","Q2","mai","NANTERRE",null,"JCSicurani","BMW","TIGERY",91,"vpi","INCENDIE","UM","UM","UMDRA","EPI - Mise en Œuvre des Extincteurs",1,null,null,1250]
[2017,"2017-05-22","Q2","mai","NANTERRE",null,"Cpequay","CENTRE HOSPITALIER","ISSOIRE",63,"vpi","INCENDIE","TRAD","EPI + HORIZ","I13H","EPI + Evacuation Horiz - Ets Santé",0.5,null,null,440]
[2017,"2017-05-23","Q2","mai","ROUEN","ANAIS MORIN",null,"DANONE",null,null,"vpi","CONDUITE & MANUTENTION","TRAD","PEMP","CM103","PEMP R386 Cat.1B,3B - Débutants",null,null,null,2350,"C"]
[2017,"2017-05-23","Q2","mai","ROUEN","ANAIS MORIN","Jlongfier","copro bulins",null,null,"vpi","INCENDIE","TRAD","EPI","I04","EPI - Mise en Œuvre des Extincteurs",0.5,null,null,420]
[2017,"2017-05-23","Q2","mai","NANTERRE",null,"JFBassereau","EHPAD BEAUSOLEIL","MOURS ST EUSEBE",26,"vpi","INCENDIE","TRAD","EPI + HORIZ","I13H","EPI + Evacuation Horiz - Ets Santé",0.5,null,null,450]
[2017,"2017-05-23","Q2","mai","ROUEN","ANAIS MORIN","Jlongfier","copro bulins",null,null,"vpi","EVACUATION","TRAD","SENSIBILISATION","I207H","Formation des chargés d'évacuation (Guides et serre-files) - Type U & J - Transfert Horizontal - RECYCLAGE",0.5,null,null,230]
[2017,"2017-05-24","Q2","mai","NANTERRE",null,"JFBassereau","CLINIQUE HAUT CANTAL","RIOM ES MONTAGNE",15,"vpi","INCENDIE","TRAD","EPI + HORIZ","I13H","EPI + Evacuation Horiz - Ets Santé",1,null,null,900]
[2017,"2017-05-25","Q2","mai","ROUEN","ANAIS MORIN","Jlongfier","mf prod maromme",null,null,"vpi","INCENDIE","TRAD","EPI + RIA","I06","EPI - Mise en Œuvre des Extincteurs + RIA",1,null,null,1420]
[2017,"2017-05-26","Q2","mai","NANTERRE",null,"JFBassereau","EMMAUS","CRANVES",74,"vpi","INCENDIE","TRAD","EPI + HORIZ","I13H","EPI + Evacuation Horiz - Ets Santé",1,null,null,860]
[2017,"2017-05-29","Q2","mai","NANTERRE",null,"JCSicurani","OKKO HOTEL","PARIS 15EME",75,"vpi","EVACUATION","TRAD","CHARGE EVAC","I202","Guides et serres-files",0.5,null,null,490]
[2017,"2017-05-29","Q2","mai","ROUEN","ANAIS MORIN","Tbinet","hopital durécu",null,null,"vpi","INCENDIE","TRAD","EPI","I03","EPI - Mise en Œuvre des Extincteurs",0.5,3,8,580]
[2017,"2017-05-29","Q2","mai","ROUEN","ANAIS MORIN","Tbinet","Hopital durécu",null,null,"vpi","INCENDIE","TRAD","EPI","I03","EPI - Mise en Œuvre des Extincteurs",0.5,null,null,580]
[2017,"2017-05-29","Q2","mai","NANTERRE",null,"JCSicurani","OKKO HOTEL","PARIS 15EME",75,"vpi","INCENDIE","UM","UM","UMDRA","EPI - Mise en Œuvre des Extincteurs",0.5,null,null,700]
[2017,"2017-05-29","Q2","mai","NANTERRE",null,"Abordes","ESPRIT DE FRANCE","PARIS",75,"direct","INCENDIE","UM","UM","UMEP","EPI - Mise en Œuvre des Extincteurs",3,null,null,5400]
[2017,"2017-05-30","Q2","mai","NANTERRE",null,"JFBassereau","EHPAD EDEN","VALENCE",26,"vpi","INCENDIE","TRAD","EPI + HORIZ","I13H","EPI + Evacuation Horiz - Ets Santé",0.5,null,null,450]
[2017,"2017-05-30","Q2","mai","ROUEN",null,"Jlongfier","ccas la madeleine",null,null,"vpi","INCENDIE","TRAD","EPI","I03","EPI - Mise en Œuvre des Extincteurs",0.5,null,null,610]
[2017,"2017-05-30","Q2","mai","ROUEN","mandeville","Jlongfier","mod passion",null,null,"vpi","INCENDIE","TRAD","EPI","I04","EPI - Mise en Œuvre des Extincteurs",0.5,1.5,10,333]
[2017,"2017-05-31","Q2","mai","OUEST","romero",null,"SYSTHERM",null,null,"vpi","SECOURISME","TRAD","INITIAL","SST01","SST INITIALE",2,null,null,1205.25]
[2017,"2017-05-31","Q2","mai","ROUEN","ANAIS MORIN","Jlongfier","tapon",null,null,"vpi","INCENDIE","TRAD","EPI + RIA","I06","EPI - Mise en Œuvre des Extincteurs + RIA",0.5,3.5,10,410]
[2017,"2017-05-31","Q2","mai","NANTERRE",null,"JCSicurani + Nantoine","MOET HENNESSY","PARIS",75,"direct","INCENDIE","UM","UM","UMCM202","EPI - Mise en Œuvre des Extincteurs",1,null,null,3250]
[2017,"2017-05-31","Q2","mai","NANTERRE",null,"JFBassereau","CANDIA","CLERMOND-FERRAND",63,"direct","INCENDIE","TRAD","ESI","I105","ESI - Recyclage",1,null,null,null,null,"A REPORTER - 1836€"]
[2017,"2017-06-01","Q2","juin","NANTERRE",null,"JCSicurani","CARPIMKO","MONTIGNY-LE-BRETONNEUX",78,"vpi","INCENDIE","UM","UM","UMDRA","EPI - Mise en Œuvre des Extincteurs",0.5,null,null,1210,"C"]
[2017,"2017-06-01","Q2","juin","ROUEN","ANAIS MORIN","PMarin","CLINIQUE MATHILDE","ROUEN",76,"vpi","INCENDIE","UM","UM","UMEP","EPI - Mise en Œuvre des Extincteurs",1,null,null,2750,"C"]
[2017,"2017-06-01","Q2","juin","NANTERRE",null,"JFBassereau","MUTUALITE FRANCAISE DU RHONE","LYON",69,"vpi","INCENDIE","TRAD","EPI","I03","EPI - Mise en Œuvre des Extincteurs",0.5,null,null,565,"C"]
[2017,"2017-06-01","Q2","juin","NANTERRE",null,"JFBassereau","MUTUALITE FRANCAISE DU RHONE","LYON",69,"vpi","INCENDIE","TRAD","EPI","I03","EPI - Mise en Œuvre des Extincteurs",0.5,null,null,565,"C"]
[2017,"2017-06-01","Q2","juin","NANTERRE",null,"Abordes","RAMSAY","PARIS",75,"direct","INCENDIE","UM","UM","UMEP","EPI - Mise en Œuvre des Extincteurs",1,null,null,2200,"C"]
[2017,"2017-06-01","Q2","juin","NANTERRE",null,"JFBassereau","EHPAD LOUISE MICHEL","PORTE LES VALENCE",26,"vpi","INCENDIE","TRAD","EPI + HORIZ","I13H","EPI + Evacuation Horiz - Ets Santé",0.5,null,null,450,"C"]
[2017,"2017-06-01","Q2","juin","NANTERRE","antoine","Nantoine","Externalis Formation","Epernon",29,"direct","AUDIT & CONSEIL","TRAD","AUDIT","RP03","Contrôle rayonnages",2,null,null,2070,"O"]
[2017,"2017-06-01","Q2","juin","NANTERRE","antoine","Nantoine","Planet Hollywood","Chessy",77,"direct","AUDIT & CONSEIL","TRAD","POLITIQUE","RP02","Les Enjeux de la prévention",10,null,null,9000,"C"]
[2017,"2017-06-01","Q2","juin","ROUEN","ANAIS MORIN","Jlongfier","FERRERO","GRAND QUEVILLY",76,"vpi","SECOURISME","TRAD","SST MAC","SST02","SST MAC",1,7,8,720,"C"]
[2017,"2017-06-01","Q2","juin","NANTERRE",null,"Amilazzo","NOVO NORDISK","CHARTRES",28,"direct","AUDIT & CONSEIL","TRAD","AUDIT","RP04","visite de sécurité",2,null,null,2700,"C"]
[2017,"2017-06-02","Q2","juin","ROUEN","ROBIN CHATONEY","Tbinet","RENAULT","PLESSIS ROBINSON",92,"direct","EVACUATION","TRAD","CHARGE EVAC","I202","Guides et serres-files",1,null,null,1217,"C"]
[2017,"2017-06-02","Q2","juin","NANTERRE",null,"Abordes","RENAULT","AUBEVOYE",27,"direct","INCENDIE","UM","UM","UMEP","EPI - Mise en Œuvre des Extincteurs",1,null,null,0,"ANNULE"]
[2017,"2017-06-02","Q2","juin","NANTERRE",null,"JCSicurani","TSE France","BONNEUIL SUR MARNE",94,"vpi","INCENDIE","TRAD","EPI","I03","EPI - Mise en Œuvre des Extincteurs",1,null,null,803,"C","-18% DE REMISE"]
[2017,"2017-06-02","Q2","juin","ROUEN","ANAIS MORIN","Jlongfier","pharmasynthèse","ST PIERRE LES ELBEUF","PI02","vpi","INCENDIE","TRAD","ESI","I107","ESI - Recyclage",1,8,12,2340,"C"]
[2017,"2017-06-02","Q2","juin","NANTERRE",null,"JFBassereau","AUDREX","AGENCE DE BROUX",74,"vpi","SECOURISME","TRAD","MAC","SST02","SST MAC",1,null,null,700,"C"]
[2017,"2017-06-06","Q2","juin","ROUEN","ANAIS MORIN","Tbinet","cepl fleury",null,null,"vpi","EVACUATION","TRAD","EXERCICE","I204R","Exercice d'évacuation avec fumée",0.5,1,null,455,"C"]
[2017,"2017-06-06","Q2","juin","ROUEN","ANAIS MORIN","Jlongfier","tapon",null,null,"vpi","INCENDIE","TRAD","EPI + RIA","I06","EPI - Mise en Œuvre des Extincteurs + RIA",0.5,3.5,10,410,"C"]
[2017,"2017-06-06","Q2","juin","NANTERRE",null,"Cpequay","EHPAD COLLINES","ST DONAT SUR L'HERBASSE",26,"vpi","INCENDIE","TRAD","EPI","I03","EPI - Mise en Œuvre des Extincteurs",0.5,null,null,450,"C"]
[2017,"2017-06-06","Q2","juin","NANTERRE",null,"PMarin","RENAULT","GUYANCOURT",78,"direct","INCENDIE","UM","UM","UMEP","EPI - Mise en Œuvre des Extincteurs",1,null,null,1640,"C"]
[2017,"2017-06-06","Q2","juin","NANTERRE",null,"JCSicurani","RESIDENCE DES CEDRES","ST GEORGES SUR CHER",41,"vpi","INCENDIE","TRAD","EPI","I03","EPI - Mise en Œuvre des Extincteurs",0.5,null,null,{"$f":"1897/2","v":948.5},"C"]
[2017,"2017-06-06","Q2","juin","NANTERRE",null,"JFBassereau","TECHNIDATA","MONTBONNOT",38,"vpi","INCENDIE","TRAD","EPI","I03","EPI - Mise en Œuvre des Extincteurs",1,null,null,371,"C"]
[2017,"2017-06-06","Q2","juin","NANTERRE",null,"JCSicurani","RESIDENCE DES CEDRES","ST GEORGES SUR CHER",41,"vpi","INCENDIE","TRAD","EPI + HORIZ","I13H","EPI + Evacuation Horiz - Ets Santé",0.5,null,null,949,"C"]
[2017,"2017-06-07","Q2","juin","ROUEN",null,"Pgarin","audrex",null,null,"vpi","SECOURISME","TRAD","INITIAL","SST01","SST INITIALE",2,14,8,1350,"C","07 et 08 ,06"]
[2017,"2017-06-07","Q2","juin","NANTERRE",null,"Cpequay","CLINIQUE DU HAUT CANTAL","RIOM ES MONTAGNE",15,"vpi","EVACUATION","TRAD","EXERCICE","I203R","Exercice d'évacuation sans fumée",0.5,null,null,488,"C"]
[2017,"2017-06-07","Q2","juin","ROUEN","ANAIS MORIN","Tbinet","cit","miserey",27,"vpi","INCENDIE","TRAD","EPI + RIA","I06","EPI - Mise en Œuvre des Extincteurs + RIA",1,8,13,1100,"C"]
[2017,"2017-06-07","Q2","juin","BRETAGNE","ANAIS MORIN","JCSicurani","BARR HEOL","BREHAN",56,"vpi","INCENDIE","TRAD","EPI","I11","EPI - Mise en Œuvre des Extincteurs",0.5,7,10,840,"C"]
[2017,"2017-06-07","Q2","juin","NANTERRE",null,"Abordes","BIC","CLICHY",92,"direct","INCENDIE","UM","UM","UMEP","EPI - Mise en Œuvre des Extincteurs",2,null,null,{"$f":"1950+1875","v":3825},"C","7 - 8 /06/2017"]
[2017,"2017-06-07","Q3","juin","ROUEN","antoine","Jlongfier","vpi bussy",null,null,"vpi","INCENDIE","TRAD","EPI","I03 + I203","EPI - Mise en Œuvre des Extincteurs",1,null,null,620,"C"]
[2017,"2017-06-07","Q2","juin","NANTERRE",null,"PMarin","AIRPORT COLLEGE","ROISSY",93,"direct","INCENDIE","UM","EPI","UMEP","EPI - Mise en Œuvre des Extincteurs",1,null,null,1540,"C"]
[2017,"2017-06-07","Q2","juin","NANTERRE",null,"Malbaladejo","MAC DONALDS","MONTAUBAN",82,"vpi","INCENDIE","TRAD","EPI","I03","EPI - Mise en œuvre des extincteurs",1,null,null,450,"C"]
[2017,"2017-06-08","Q2","juin","NANTERRE",null,"Cpequay","PHARMACIE DE LA POTERIE","FERNAY VOLTAIRE","01","vpi","INCENDIE","TRAD","EPI","I03","EPI - Mise en Œuvre des Extincteurs",null,null,null,null,"REPORT AU 13/10"]
[2017,"2017-06-08","Q2","juin","BRETAGNE","ANAIS MORIN","JCSicurani","EHPAD PIERRE GOENVIC","PLONEOUR LANVERN ",29,"vpi","INCENDIE","TRAD","EPI + HORIZ","I13H","EPI + Evacuation Horiz - Ets Santé",0.5,3.5,9,390,"C"]
[2017,"2017-06-08","Q2","juin","NANTERRE",null,"JCSicurani","EHPAD PIERRE GOENVIC","PLONEOUR LANVERN",29,"vpi",null,null,null,"I13H",null,0.5]
[2017,"2017-06-08","Q2","JUIN","ROUEN","ANAIS MORIN","Tbinet","GREIF","LE GRAND QUEVILLY",76,"vpi","INCENDIE","TRAD","ESI","I107","ESI - Recyclage",1.5,10,4,1880,"C"]
[2017,"2017-06-09","Q2","juin","ROUEN","ANAIS MORIN","Tbinet","cepl fleury",null,null,"vpi","EVACUATION","TRAD","EXERCICE","I204R","Exercice d'évacuation avec fumée",0.5,1,null,455,"C"]
[2017,"2017-06-09","Q2","juin","ROUEN","ANAIS MORIN","Jlongfier","sdpp","EVREUX",27,"vpi","INCENDIE","TRAD","EPI + RIA","I06","EPI - Mise en Œuvre des Extincteurs + RIA",1,8,18,1420,"C"]
[2017,"2017-06-09","Q2","juin","NANTERRE",null,"PMarin","AMAT","CROLLES",38,"direct","INCENDIE","UM","UM","UMEP","EPI - Mise en Œuvre des Extincteurs",1,null,null,1718,"C"]
[2017,"2017-06-09","Q2","juin","BRETAGNE","ANAIS MORIN","JCSicurani","EHPAD LES JARDINS DU CASTEL ","CHATEAUGIRON",35,"vpi","INCENDIE","TRAD","EPI + HORIZ","I13H","EPI + Evacuation Horiz - Ets Santé",0.5,null,null,295,"C"]
[2017,"2017-06-09","Q2","juin","NANTERRE",null,"Cpequay","EHPAD LE MONTEL","ST AMAND TALLENDE",63,"vpi","INCENDIE","TRAD","EPI + HORIZ","I13H","EPI + Evacuation Horiz - Ets Santé",1,null,null,null,"ANNULE"]
[2017,"2017-06-09","Q2","juin","NANTERRE",null,"JCSicurani","LES JARDINS DU CASTEL","CHATEAUGIRON",null,"vpi",null,null,null,"I13H",null,0.5]
[2017,"2017-06-09","Q2","juin","BRETAGNE","ANAIS MORIN","JCSicurani","mr les jardins du castel ","CHATEAUGIRON",35,"vpi","INCENDIE","TRAD","EPI + HORIZ","I13H","EPI + Evacuation Horiz - Ets Santé",0.5,3,11,295,"C"]
[2017,"2017-06-12","Q2","juin","ROUEN","ANAIS MORIN","Tbinet","hopital durécu",null,null,"vpi","INCENDIE","TRAD","EPI","I03","EPI - Mise en Œuvre des Extincteurs",0.5,3,12,580,"C"]
[2017,"2017-06-12","Q2","juin","ROUEN","ANAIS MORIN","Tbinet","LEROY MERLIN",null,null,"vpi","INCENDIE","TRAD","EPI + RIA","I09","EPI : Mise en œuvre de RIA - Exercices Pratiques",1,null,null,190,"C"]
[2017,"2017-06-12","Q2","juin","NANTERRE",null,"PMarin","MAIRIE DE VOIRON","VOIRON",null,"direct","INCENDIE","UM","UM","UMEP","EPI - Mise en Œuvre des Extincteurs",1,null,null,1897,"C"]
[2017,"2017-06-12","Q2","juin","NANTERRE","ANAIS MORIN","Abordes","LEROY MERLIN","TOURVILLE",76,"vpi","INCENDIE","UM","UM","UMEP","EPI - Mise en Œuvre des Extincteurs",2,null,null,{"$f":"2*2500","v":5000},"C","12 - 13 /06/2017"]
[2017,"2017-06-12","Q2","juin","NANTERRE","ROBIN CHATONEY","Nantoine","ORANGE","PARIS",75,"direct","AUDIT & CONSEIL","TRAD","REGLEMTATION","RP02","Formation à la réglementation pour les équipes de sécurité",1,null,null,1800,"C"]
[2017,"2017-06-13","Q2","juin","NANTERRE","ROBIN CHATONEY","Nantoine","ORANGE","PARIS",75,"direct","EVACUATION","TRAD","CHARGE EVAC","I202","Guides et serres-files",1,null,null,{"$f":"2*416","v":832},"C"]
[2017,"2017-06-13","Q2","juin","ROUEN","ANAIS MORIN","Tbinet","LEROY MERLIN",null,null,"vpi","INCENDIE","TRAD","EPI + RIA","I09","EPI : Mise en œuvre de RIA - Exercices Pratiques",2,null,null,380,"C"]
[2017,"2017-06-13","Q2","juin","NANTERRE",null,"Cpequay","TSE France","CASTELNAU",31,"vpi","INCENDIE","TRAD","EPI","I03","EPI - Mise en Œuvre des Extincteurs",0.5,null,null,803,"C","-18% DE REMISE"]
[2017,"2017-06-13","Q2","juin","NANTERRE",null,"PMarin","ST MICRO","CROLLES",38,"direct","INCENDIE","UM","UM","UMEP","EPI - Mise en Œuvre des Extincteurs",4,null,null,{"$f":"4*1718+580+580","v":8032},"C","13 - 14 - 15 - 16 /06/2017"]
[2017,"2017-06-13","Q2","juin","NANTERRE",null,"JCSicurani","ORANGE","TOULOUSE",31,"direct","INCENDIE","UM","UM","UMCM202","EPI - Mise en Œuvre des Extincteurs",4,null,null,{"$f":"4*1650","v":6600},"C","13 - 14 - 15 - 16/06/2017"]
[2017,"2017-06-13","Q2","juin","ROUEN","ANAIS MORIN","Jlongfier","FERRERO","msa",76,"vpi","SECOURISME","TRAD","MAC","SST02","SST MAC",1,7,4,720,"C"]
[2017,"2017-06-14","Q2","juin","NANTERRE","antoine","JFBassereau","VPI BROUX","PRINGY",74,"direct","EVACUATION","TRAD","CHARGE EVAC","I202","Guides et serres-files",0.5,null,null,260,"C"]
[2017,"2017-06-14","Q2","juin","NANTERRE","antoine","JFBassereau","VPI ISECURIT","GENAS",69,"direct","EVACUATION","TRAD","CHARGE EVAC","I202","Guides et serres-files",0.5,null,null,260,"C"]
[2017,"2017-06-14","Q2","juin","NANTERRE","antoine","JFBassereau","VPI BROUX","PRINGY",74,"direct","EVACUATION","TRAD","EXERCICE","I203R","Exercice d'évacuation sans fumée",0.5,null,null,260,"C"]
[2017,"2017-06-14","Q2","juin","ROUEN","ANAIS MORIN","Tbinet","pharmasynthèse",null,null,"vpi","EVACUATION","TRAD","EXERCICE","I204R","Exercice d'évacuation avec fumée",0.5,1,null,450,"C"]
[2017,"2017-06-14","Q2","juin","ROUEN","ANAIS MORIN","Jlongfier","tapon",null,null,"vpi","INCENDIE","TRAD","EPI + RIA","I06","EPI - Mise en Œuvre des Extincteurs + RIA",0.5,305,10,410,"C"]
[2017,"2017-06-14","Q2","juin","NANTERRE","ANAIS MORIN","Abordes","LES PAPILLONS BLANCS DE BEAUNE","BEAUNE",21,"direct","INCENDIE","UM","UM","UMEP","EPI - Mise en Œuvre des Extincteurs",1,null,null,2500,"C"]
[2017,"2017-06-14","Q2","juin","NANTERRE",null,"Cpequay","NEW LOOK","TOULOUSE",31,"vpi","INCENDIE","TRAD","EPI","I04","EPI - Mise en Œuvre des Extincteurs",0.5,null,null,938.2,"C","+I200"]
[2017,"2017-06-14","Q2","juin","NANTERRE","antoine","JFBassereau","VPI BROUX","PRINGY",74,"direct","INCENDIE","TRAD","EPI","I04","EPI - Mise en Œuvre des Extincteurs",0.5,null,null,268,"C"]
[2017,"2017-06-15","Q2","juin","ROUEN","ANAIS MORIN","Jlongfier","cerp plessis",null,null,"vpi","SECOURISME","TRAD","INITIAL","SST01","SST INITIALE",2,null,null,null,"ANNULE","15 et 16,06 facturation 50% de790 €"]
[2017,"2017-06-15","Q2","juin","ROUEN",null,"Tbinet","TSE France","NOYELLES GODAULT",62,"vpi","INCENDIE","TRAD","EPI","I03","EPI - Mise en Œuvre des Extincteurs",0.5,null,null,803,"C","-18% DE REMISE"]
[2017,"2017-06-15","Q2","juin","NANTERRE",null,"Abordes","ST MICRO","PARIS",75,"direct","INCENDIE","UM","UM","UMEP","EPI - Mise en Œuvre des Extincteurs",1,null,null,1718,"C"]
[2017,"2017-06-15","Q2","juin","ROUEN",null,"Tbinet","tse",null,null,"vpi","INCENDIE","TRAD","EPI","I03","EPI - Mise en Œuvre des Extincteurs",1,null,null,803.6,"C"]
[2017,"2017-06-15","Q2","juin","NANTERRE",null,"Cpequay","EHPAD PEYSSON","ROMAN SUR ISERE",26,"vpi","INCENDIE","TRAD","EPI + HORIZ","I13H","EPI + Evacuation Horiz - Ets Santé",0.5,null,null,450,"C"]
[2017,"2017-06-16","Q2","juin","BRETAGNE","ANAIS MORIN","Tbinet","PCDL","LE GENEST ST ISLE",53,"vpi","INCENDIE","TRAD","EPI","I03","EPI - Mise en Œuvre des Extincteurs",0.5,3,4,445,"C"]
[2017,"2017-06-16","Q2","juin","NANTERRE",null,"JFBassereau","EHPAD LA PROVIDENCE","AUTUN",71,"vpi","INCENDIE","TRAD","EPI + HORIZ","I13H","EPI + Evacuation Horiz - Ets Santé",0.5,null,null,450,"C"]
[2017,"2017-06-19","Q2","juin","ROUEN","ANAIS MORIN","Jlongfier","aptar",null,null,"vpi","INCENDIE","TRAD","EPI + RIA","I06","EPI - Mise en Œuvre des Extincteurs + RIA",1,8,17,1405,"C"]
[2017,"2017-06-19","Q2","juin","NANTERRE",null,"PMarin","ST MICRO","GRENOBLE",null,"direct","INCENDIE","UM","UM","UMEP","EPI - Mise en Œuvre des Extincteurs",2,null,null,{"$f":"2*1718","v":3436},"C","19 - 20 /06/2017"]
[2017,"2017-06-19","Q2","juin","NANTERRE",null,"Abordes","RENAULT","PLESSIS ROBINSON",92,"direct","INCENDIE","UM","UM","UMEP","EPI - Mise en Œuvre des Extincteurs",1,null,null,1640,"C"]
[2017,"2017-06-19","Q2","juin","NANTERRE",null,"Cpequay","CENTRE HOSPITALIER ISSOIRE","ISSOIRE",63,"vpi","INCENDIE","TRAD","EPI + HORIZ","I13H","EPI + Evacuation Horiz - Ets Santé",0.5,null,null,440,"C"]
[2017,"2017-06-19","Q2","juin","NANTERRE",null,"JFBassereau","OKKO HOTEL","LYON",69,"vpi","INCENDIE","TRAD","EPI + SSI","I03","EPI - Mise en Œuvre des Extincteurs+formation SSI",0.5,null,null,430,"C"]
[2017,"2017-06-20","Q2","juin","NANTERRE",null,"JCSicurani","FUAJ","LILLE",59,"vpi","EVACUATION","TRAD","CHARGE EVAC","I202","Guides et serres-files",0.5,3,null,433,"C"]
[2017,"2017-06-20","Q2","juin","BRETAGNE",null,"Pgarin","FOYER LOGEMENT","TREVOU TREGUINEC",22,"vpi","EVACUATION","TRAD","EXERCICE","I203R","EPI - Mise en Œuvre des Extincteurs",0.5,null,null,324,"C"]
[2017,"2017-06-20","Q2","juin","NANTERRE",null,"JCSicurani","FUAJ","LILLE",59,"vpi","INCENDIE","UM","UM","UMDRA","EPI - Mise en Œuvre des Extincteurs",0.5,null,null,750,"C"]
[2017,"2017-06-20","Q2","juin","NANTERRE",null,"Abordes","SANOFI","GENTILLY",92,"direct","INCENDIE","UM","UM","UMEP","EPI - Mise en Œuvre des Extincteurs",3,null,null,{"$f":"3*1806","v":5418},"C"]
[2017,"2017-06-20","Q2","juin","BRETAGNE",null,"Pgarin","FOYER LOGEMENT","TREVOU TREGUINEC",22,"vpi","INCENDIE","TRAD","EPI","I12","EPI - Mise en Œuvre des Extincteurs",0.5,null,null,190,"C"]
[2017,"2017-06-20","Q2","juin","NANTERRE",null,"Cpequay","EHPAD ARLANC","ARLANC",null,"vpi","INCENDIE","TRAD","EPI + HORIZ","I13H","EPI + Evacuation Horiz - Ets Santé",0.5,null,null,400,"C"]
[2017,"2017-06-20","Q2","juin","NANTERRE",null,"Cpequay","EHPAD VIVEROLLES","VIVEROLLES",null,"vpi","INCENDIE","TRAD","EPI + HORIZ","I13H","EPI + Evacuation Horiz - Ets Santé",0.5,null,null,400,"C"]
[2017,"2017-06-20","Q2","juin","NANTERRE",null,"JFBassereau","EHPAD DAUPHINE","ROMANS SUR ISERE",26,"vpi","INCENDIE","TRAD","EPI + HORIZ","I13H","EPI + Evacuation Horiz - Ets Santé",1,null,null,800,"C"]
[2017,"2017-06-20","Q2","juin","ROUEN","ANAIS MORIN","Jlongfier","DELIFRANCE","MARTAINVILE",76,"vpi","INCENDIE","TRAD","EPI","I04","EPI - Mise en œuvre des extincteurs",2,3,8,804,"C"]
[2017,"2017-06-21","Q2","juin","NANTERRE",null,"PMarin","HP ENTREPRISE","MOUGINS","06","direct","EVACUATION","TRAD","EXERCICE","I203R","Exercice d'évacuation sans fumeé",0.5,null,null,349,"C"]
[2017,"2017-06-21","Q2","juin","ROUEN","ANAIS MORIN","Jlongfier","LEROY MERLIN","TOURVILLE",76,"vpi","EVACUATION","TRAD","EXERCICE","I204R","EVACUATION",1,3,8,460,"C"]
[2017,"2017-06-21","Q2","juin","NANTERRE",null,"PMarin","HP ENTREPRISE","MOUGINS","06","direct","INCENDIE","UM","UM","UMEP","EPI - Mise en Œuvre des Extincteurs",0.5,null,null,1025,"C"]
[2017,"2017-06-21","Q2","juin","BRETAGNE",null,"Tbinet","LA PATETERIE ","LAVAL",53,"vpi","INCENDIE","TRAD","EPI","I03","EPI - Mise en Œuvre des Extincteurs",0.5,null,null,443,"C"]
[2017,"2017-06-21","Q2","juin","NANTERRE",null,"JFBassereau","THERMAL CERAMICS","Saint-Marcellin-en-Forez",42,"vpi","INCENDIE","TRAD","EPI","i03","EPI - Mise en Œuvre des Extincteurs",0.5,null,null,626,"C"]
[2017,"2017-06-21","Q2","juin","ROUEN","ANAIS MORIN","Pgarin","LA LIGUE HAVRAISE","LE HAVRE",76,"vpi","INCENDIE","TRAD","SSI","I206","SSI",2,null,null,800,"C"]
[2017,"2017-06-21","Q2","juin","NANTERRE","ROBIN CHATONEY","Cpequay","CANDIA","CLERMOND-FERRAND",63,"vpi","INCENDIE","UM","EPI","UMCM202","EPI - Mise en Œuvre des Extincteurs",1,null,null,1836]
[2017,"2017-06-22","Q3","juin","NANTERRE",null,"JCSicurani","CAROLL","ASCOUX",45,"vpi","INCENDIE","UM","UM","UMDRA","EPI - Mise en Œuvre des Extincteurs",2,null,null,2076,"C","22 - 23 /06/2017"]
[2017,"2017-06-22","Q2","juin","NANTERRE",null,"Cpequay","EHPAD LA FEUILLERAIE","RAZAC",24,"vpi","INCENDIE","TRAD","EPI + HORIZ","I13H","EPI + Evacuation Horiz - Ets Santé",1,null,null,800,"C"]
[2017,"2017-06-22","Q2","juin","NANTERRE",null,"PMarin","ORANGE","NICE","06","direct","INCENDIE","UM","EPI","UMEP","EPI - Mise en Œuvre des Extincteurs",0.5,null,null,825,"C"]
[2017,"2017-06-22","Q2","juin","NANTERRE",null,"JFBassereau","EHPAD BEAUSOLEIL","MOURS ST EUSEBE",26,"vpi","INCENDIE","TRAD","EPI + HORIZ","I13H","EPI + Evacuation Horiz - Ets Santé",0.5,null,null,450,"C"]
[2017,"2017-06-22","Q2","juin","ROUEN","ANAIS MORIN","Jlongfier","FERRERO","GRAND QUEVILLY",76,"vpi","SECOURISME","TRAD","SST MAC","SST02","SST MAC",1,7,8,720,"C"]
[2017,"2017-06-22","Q2","juin","ROUEN","ANAIS MORIN","Pgarin","SKF","ST MARCEL",27,"vpi","CONDUITE & MANUTENTION","TRAD","CHARIOTS","CM04","CHARIOTS R389 Cat. 1,2,3,4,5 - Recyclage",2,null,null,1334,"C"]
[2017,"2017-06-22","Q2","JUIN","BRETAGNE","FRANCOISE TALBOURDEL","Tbinet","SAS GEMY","VANNES",56,"vpi","INCENDIE","TRAD","EPI+HORIZ","I03","EPI - Mise en Œuvre des Extincteurs",0.5,3,null,450,"C"]
[2017,"2017-06-23","Q2","juin","ROUEN","ANAIS MORIN","Jlongfier","mf prod",null,null,"vpi","INCENDIE","TRAD","EPI + RIA","I06","EPI - Mise en Œuvre des Extincteurs + RIA",1,8,14,1420,"C"]
[2017,"2017-06-23","Q2","juin","NANTERRE",null,"JFBassereau","EHPAD GERONDINE LOUISE MICEL","PORTE LES VALENCE",26,"vpi","INCENDIE","TRAD","EPI + HORIZ","I13H","EPI + Evacuation Horiz - Ets Santé",0.5,null,null,450,"C"]
[2017,"2017-06-23","Q2","juin","NANTERRE",null,"Tbinet","ORANGE MOLITOR","BOULOGNE BILLANCOURT",92,"direct","INCENDIE","TRAD","EXERCICE","I203R","Exercice d'évacuation sans fumeé",0.5]
[2017,"2017-06-23","Q2","JUIN","ROUEN","ANAIS MORIN","Pgarin","LEROY MERLIN","ISNEAUVILLE",76,"vpi","CONDUITE & MANUTENTION","TRAD","CHARIOTS","CM05","CHARIOTS R389 Cat. 1,2,3,4,5 - Recyclage",1,7,4,730,"C"]
[2017,"2017-06-26","Q2","juin","ROUEN","ANAIS MORIN","Jlongfier","FERRERO",null,null,"vpi","SECOURISME","TRAD","INITIAL","SST01","SST INITIALE",2,null,null,1420,null,"26 et 27,06"]
[2017,"2017-06-26","Q2","juin","NANTERRE",null,"PMarin","HP ENTREPRISE","BOULOGNE BILLANCOURT",92,"direct","INCENDIE","UM","UM","UMEP","EPI - Mise en Œuvre des Extincteurs",0.5,null,null,1025,"C"]
[2017,"2017-06-26","Q2","juin","NANTERRE",null,"Abordes","RENAULT","GUYANCOURT",78,"direct","INCENDIE","UM","UM","UMEP","EPI - Mise en Œuvre des Extincteurs",1,null,null,1640,"C"]
[2017,"2017-06-26","Q2","juin","NANTERRE",null,"JCSicurani","CENTRE DES FINANCES","NANTERRE",92,"direct","INCENDIE","UM","UM","UMDRA","EPI - Mise en Œuvre des Extincteurs",0.5,null,null,400,"C"]
[2017,"2017-06-26","Q2","juin","NANTERRE",null,"JFBassereau","NAOS BIODERMA","LYON",69,"vpi","SECOURISME","TRAD","MAC","SST02","SST MAC",1,null,null,700,"C"]
[2017,"2017-06-27","Q2","juin","NANTERRE",null,"JCSicurani","OTV","GARGES LES GONNESSES",95,"vpi","INCENDIE","UM","UM","UMDRA","EPI - Mise en Œuvre des Extincteurs",1,null,null,2050,"C"]
[2017,"2017-06-27","Q2","juin","BRETAGNE","ANAIS MORIN","Tbinet","MAISON DU DEVELOPPEMENT","ST MEEN MONTAUBAN",35,"vpi","INCENDIE","TRAD","EPI","I03","EPI - Mise en Œuvre des Extincteurs",0.5,null,null,475,"C"]
[2017,"2017-06-27","Q2","juin","NANTERRE",null,"PMarin","AIRPORT COLLEGE","ORLY",94,"direct","INCENDIE","UM","UM","UMEP","EPI - Mise en Œuvre des Extincteurs",1,null,null,1540,"C"]
[2017,"2017-06-27","Q2","juin","NANTERRE",null,"Abordes","SANOFI","ANTONY",92,"direct","INCENDIE","UM","UM","UMEP","EPI - Mise en Œuvre des Extincteurs",3,null,null,{"$f":"3*1806","v":5418},"C","27 - 28 - 29 /06/2017"]
[2017,"2017-06-27","Q2","juin","NANTERRE",null,"JFBassereau","EHPAD DAUPHINE","ROMANS SUR ISERE",26,"vpi","INCENDIE","TRAD","EPI + HORIZ","I13H","EPI + Evacuation Horiz - Ets Santé",0.5,null,null,450,"C"]
[2017,"2017-06-28","Q2","juin","NANTERRE","ROBIN CHATONEY","Cpequay","CANDIA","CLERMOND-FERRAND",63,"direct","INCENDIE","TRAD","ESI","I105","ESI - Recyclage",1,null,null,1836,"C"]
[2017,"2017-06-28","Q2","juin","NANTERRE",null,"PMarin","ORANGE","REIMS",51,"direct","INCENDIE","UM","UM","UMEP","EPI - Mise en Œuvre des Extincteurs",1,null,null,1650,"C"]
[2017,"2017-06-28","Q2","juin","NANTERRE",null,"JCSicurani","HOPITAL DE NAVARRE","BERNAY",27,"direct","INCENDIE","UM","UM","UMDRA","EPI - Mise en Œuvre des Extincteurs",2,null,null,3080,"C"]
[2017,"2017-06-28","Q2","juin","NANTERRE",null,"JFBassereau","Maison de retraite sevigne","ST MARTIN VIGOUX",38,"vpi","INCENDIE","TRAD","SST MAC","SST01","SST MAC",1,null,null,700,"C"]
[2017,"2017-06-28","Q2","Juin","NANTERRE","RCHATONEY","TLOHY","BIC ","CLICHY",92,"direct","INCENDIE","TRAD","EXERCICE","I204R","Exercice d'évacuation avec fumeé",0.5,null,null,470,"C"]
[2017,"2017-06-29","Q2","juin","ROUEN","ANAIS MORIN","Tbinet","tipiak",null,null,"vpi","INCENDIE","TRAD","ESI","I105","ESI - Recyclage",1,null,null,1340,"C"]
[2017,"2017-06-29","Q2","juin","NANTERRE",null,"PMarin","GPA","ROISSY",95,"direct","INCENDIE","UM","UM","UMEP","EPI - Mise en Œuvre des Extincteurs",1,null,null,1985,"C"]
[2017,"2017-06-29","Q2","juin","NANTERRE",null,"Cpequay","FARTO","THONES",74,"vpi","INCENDIE","UM","UM","UMCM202","EPI - Mise en Œuvre des Extincteurs",1,null,null,2200,"C"]
[2017,"2017-06-29","Q2","juin","NANTERRE",null,"JFBassereau","EHPAD LES SERENIDES","CHAPELLE EN VERCORS",26,"vpi","INCENDIE","TRAD","EPI + HORIZ","I13H","EPI + Evacuation Horiz - Ets Santé",1,null,null,450,"C"]
[2017,"2017-06-30","Q2","juin","NANTERRE",null,"PMarin","AIRPORT COLLEGE","ROISSY",77,"direct","INCENDIE","UM","UM","UMEP","EPI - Mise en Œuvre des Extincteurs",1,null,null,1540,"C"]
[2017,"2017-06-30","Q2","juin","NANTERRE",null,"JFBassereau","TSE France","GENAS",69,"vpi","INCENDIE","TRAD","EPI","I04","EPI - Mise en Œuvre des Extincteurs",1,null,null,803.6,"C","2X402"]
[2017,"2017-06-30","Q2","juin","NANTERRE",null,"Cpequay","TSE France","GENAS",69,"vpi","INCENDIE","TRAD","EPI","I04","EPI - Mise en Œuvre des Extincteurs",1,null,null,{"$f":"(2*490)*0.82","v":803.59999999999991},"C"]
[2017,"2017-06-30","Q2","juin","NANTERRE",null,"JCSicurani","EHPAD LES POMMERIS","VALLIERES LES GRANDES",41,"direct","INCENDIE","UM","UM","UMDRA",null,0.5,null,null,504,"C"]
[2017,"2017-06-30","Q2","juin","NANTERRE",null,"JCSicurani","EHPAD LES POMMERIS","VALLIERES LES GRANDES",41,"direct",null,null,null,"I210H",null,0.5,null,null,504,"C"]
[2017,"2017-06-30","Q2","juin","ROUEN","ANAIS MORIN","Tbinet","tipiak",null,null,"vpi","SECOURISME","TRAD","MAC","SST02","SST MAC",1,null,null,770,"C"]
[2017,"2017-06-30","Q2","juin","ROUEN","fabienne cudorge","Jlongfier","ccas la madeleine","EVREUX",27,"vpi","INCENDIE","TRAD","EPI + RIA","I06","EPI - Mise en Œuvre des Extincteurs + RIA",0.5,1,null,610,"C"]
[2017,"2017-06-30","Q2","juin","NANTERRE",null,"JFBassereau","CANDIA","CLERMOND-FERRAND",63,"vpi","SECOURISME","TRAD","MAC","SST02","SST MAC",1,null,null,783,"C"]
[2017,"2017-06-30","Q2","juin","NANTERRE",null,"Malbaladejo","FERRERO CARROS","CARROS",6,"vpi","INCENDIE","TRAD","EPI","I03","EPI - Mise en euvre des extincteurs",0.5,null,null,495,"C"]
[2017,"2017-07-01","Q3","juillet","NANTERRE","antoine","Cpequay","Advantages Services","Vélizy",78,"direct","AUDIT & CONSEIL","TRAD","POLITIQUE","RP02","Les Enjeux de la prévention",20,null,null,18000,"C"]
[2017,"2017-07-03","Q2","juillet","BRETAGNE","ANAIS MORIN","Jlongfier","LET SERVICES","VERN SUR SEICHE",35,"direct","EVACUATION","TRAD","EXERCICE","I203R","Exercice d'évacuation avec fumée",0.5,null,null,337]
[2017,"2017-07-03","Q3","juillet","ROUEN","ANAIS MORIN","Tbinet","CH DURECU","DARNETAL",76,"vpi","INCENDIE","TRAD","EPI","I03","EPI - Mise en euvre des extincteurs",0.5,null,null,580,"C"]
[2017,"2017-07-03","Q3","juillet","NANTERRE",null,"JFBassereau","GIVAUDAN LAVIROTTE","LYON",69,"vpi","INCENDIE","TRAD","ESI","I109","ESI - Recyclage",1,null,null,1290,"C"]
[2017,"2017-07-03","Q3","juillet","NANTERRE","ROBIN CHATONEY","Pmarin","MAC DONALDS","PARIS",75,"vpi","INCENDIE","UM","EPI","UMEP02","EPI - mise en œuvre des extincteurs",1,null,null,2200,"C"]
[2017,"2017-07-03","Q3","juillet","ROUEN","CELINE COQUARD","TBINET","SOCORAIL","GONFREVILLE",76,"vpi","INCENDIE","TRAD","EPI","I03","EPI - Mise en Œuvre des Extincteurs",0.5,3,null,550,"C"]
[2017,"2017-07-04","Q3","juillet","NANTERRE","ROBIN CHATONEY","JCSicurani","FUAJ","CARCASSONNE",11,"vpi","INCENDIE","TRAD","EPI + exercice","i04 +I203R","EPI - mise en œuvre des extincteurs +exercice d'évacuation sans fumée",0.5,null,null,847,"C"]
[2017,"2017-07-04","Q3","juillet","ROUEN","CELINE COQUARD","TBINET","SOCORAIL","GONFREVILLE",76,"vpi","INCENDIE","TRAD","EPI","I03","EPI - Mise en Œuvre des Extincteurs",0.5,3,null,550,"C"]
[2017,"2017-07-05","Q3","juillet","ROUEN","ANAIS MORIN","Tbinet","cerp les sorinieres","LES SORINIERES",44,"vpi","EVACUATION","TRAD","CHARGE EVAC","I202 ","Guides et serres-files",0.5,3,null,475,"C"]
[2017,"2017-07-05","Q3","juillet","ROUEN","ANAIS MORIN","Tbinet","cerp les sorinieres","LES SORINIERES",44,"vpi","EVACUATION","TRAD","EXERCICE","I204R","Exercice d'évacuation avec fumée",0.5,null,null,475,"C"]
[2017,"2017-07-05","Q3","juillet","NANTERRE",null,"JFBassereau","EMMAUS","CRANVES",74,"vpi","INCENDIE","TRAD","EXERCICE","I204R","Exercice d'évacuation avec fumée",0.5,null,null,490,"C"]
[2017,"2017-07-05","Q3","juillet","NANTERRE",null,"JFBassereau","FALLON","POISY",74,"vpi","INCENDIE","TRAD","EPI","I03","EPI - Mise en Œuvre des Extincteurs",0.5,null,null,504,"C"]
[2017,"2017-07-05","Q3","juillet","NANTERRE",null,"Cpequay","THERMAL CERAMICS","Saint-Marcellin-en-Forez",42,"vpi","INCENDIE","TRAD","EPI",null,"ESI",0.5,3,null,590,"C"]
[2017,"2017-07-06","Q3","juillet","ROUEN","ANAIS MORIN","Tbinet","cerp les sorinieres","LES SORINIERES",44,"vpi","SECOURISME","TRAD","MAC","SST02","SST MAC",1,7,null,705,"C"]
[2017,"2017-07-06","Q3","juillet","NANTERRE",null,"JFBassereau","DECOPER","CLUSES",74,"vpi","INCENDIE","TRAD","EPI","I03","EPI - Mise en Œuvre des Extincteurs",0.5,null,null,470,"C"]
[2017,"2017-07-06","Q3","juillet","NANTERRE","ROBIN CHATONEY","Jcsicurani","Ecole privée jeanne d'arc","Carcassonne",11,"vpi","INCENDIE","UM","EPI","UMDRA02","EPI - mise en œuvre des extincteurs",1,null,null,2000,"C"]
[2017,"2017-07-06","Q3","juillet","NANTERRE","antony abello","JFBassereau","VPI","CLUSES",74,"vpi","INCENDIE","TRAD","EPI","I03","EPI - Mise en Œuvre des Extincteurs",0.5,null,null,471,"C"]
[2017,"2017-07-07","Q3","juillet","ROUEN","ANAIS MORIN","Tbinet","cerp les sorinieres","LES SORINIERES",44,"vpi","INCENDIE","TRAD","EPI + RIA","I06","EPI - Mise en Œuvre des Extincteurs + RIA",0.5,4,null,689,"C"]
[2017,"2017-07-07","Q3","juillet","NANTERRE",null,"JFBassereau","LVETEC","MOINS",69,"vpi","INCENDIE","TRAD","EPI","I04","EPI - mise en œuvre des extincteurs",0.5,null,null,450,"C"]
[2017,"2017-07-10","Q3","juillet","ROUEN","CELINE COQUARD","TBINET","SOCORAIL","GONFREVILLE",76,"vpi","INCENDIE","TRAD","EPI","I03","EPI - Mise en Œuvre des Extincteurs",0.5,3,null,550,"C"]
[2017,"2017-07-11","Q3","juillet","ROUEN","ANAIS MORIN","Jlongfier","BIC TECNOLOGIES","CLICHY",92,"vpi","INCENDIE","TRAD","EPI","I07","EPI - Mise en Œuvre des Extincteurs + RIA",1,null,null,2160,"C"]
[2017,"2017-07-11","Q3","juillet","ROUEN","CLEROUX","Tbinet","milton roy ","PONT SAINT PIERRE",27,"vpi","INCENDIE","TRAD","ESI","I106","ESI - INITIALE",1.5,null,null,1761,"C"]
[2017,"2017-07-13","Q3","juillet","SDI",null,"JCSicurani","LP","SAINT-AIGNAN",41,"vpi","INCENDIE","TRAD","EPI","i03","EPI - Mise en Œuvre des Extincteurs",0.5,null,null,590,"C"]
[2017,"2017-07-17","Q3","juillet","NANTERRE",null,"JFBassereau","VITA COLOR","ETRECHY",91,"direct","INCENDIE","UM+TRAD","EPI + exercice","UMEP03 + I203R","EPI - mise en œuvre des extincteurs +exercice d'évacuation sans fumée",1,null,null,1500,"C"]
[2017,"2017-07-18","Q3","juillet","BROUX",null,"JFBassereau","ALME","SEYNOD",74,"vpi","INCENDIE","TRAD","EPI","I03","EPI - Mise en Œuvre des Extincteurs",0.5,null,null,504.7,"C"]
[2017,"2017-07-18","Q3","juillet","NANTERRE","ROBIN CHATONEY","Jlongfier","ASCCA","ROUEN",76,"direct","SECOURISME","TRAD","SST","SST02","SST-INITIALE",2,null,null,1000,"C"]
[2017,"2017-07-20","Q3","JUILLET","ROUEN","ANAIS MORIN","Jlongfier","COPIREL","CRIQUEBEUF SUR SEINE",27,"VPI","SECOURISME","TRAD","SST02","SST02","SST MAC",1,7,null,730,"C"]
[2017,"2017-07-21","Q3","juillet","NANTERRE","ROBIN CHATONEY","jcSicurani","NETTO ","CHARLY S/MARNE",2,"vpi","INCENDIE","TRAD","EPI","i03","EPI - Mise en Œuvre des Extincteurs",0.5,null,null,375,"C"]
[2017,"2017-07-24","Q3","juillet","NANTERRE","Nadine Van Assche","JFBassereau","LE THIANTY","ALEX",74,"vpi","INCENDIE","TRAD","EPI","I04","EPI - Mise en Œuvre des Extincteurs",1,null,null,479,"C"]
[2017,"2017-07-27","Q3","juillet","NANTERRE",null,"JFBassereau","CLINIQUE SAINT-CHARLES","LYON",69,"vpi","INCENDIE","TRAD","EPI + HORIZ","I13H","EPI + Evacuation Horiz - Ets Santé",0.5,null,null,524,"C"]
[2017,"2017-08-04","Q3","aout","ROUEN","ANAIS MORIN","Jlongfier","bronze alu","LA COUTURE BOUSSEY",27,"VPI","INCENDIE","TRAD","EPI","I04","EPI - Mise en Œuvre des Extincteurs",0.5,1.5,null,440,"C"]
[2017,"2017-08-11","Q3","aout","ROUEN",null,"Jcsicurani","GEMO","Saint Martin des champs",29,"vpi","INCENDIE","TRAD","EPI","i04","EPI - Mise en Œuvre des Extincteurs",0.5,null,null,674.8,"C"]
[2017,"2017-08-22","Q3","aout","ROUEN","ANAIS MORIN","Tbinet","MEPLE","TOURVILLE LA RIVIERE",76,"vpi","INCENDIE","TRAD","EPI + RIA","I06","EPI - Mise en Œuvre des Extincteurs + RIA",1,8,null,1220,"C"]
[2017,"2017-08-28","Q3","aout","ROUEN","ANAIS MORIN","Tbinet","RAS","ST ETIENNE DU ROUVRAY",76,"vpi","INCENDIE","TRAD","EPI","I04","EPI - Mise en Œuvre des Extincteurs",0.5,null,null,420,"C"]
[2017,"2017-08-29","Q3","aout","ROUEN","ANAIS MORIN",null,"clinique mathilde",null,null,"vpi","EVACUATION","TRAD","EXERCICE","I203R","Exercice d'évacuation sans fumée",null,null,null,380,"C"]
[2017,"2017-08-30","Q3","aout","NANTERRE",null,"JFBassereau","GIVAUDAN LAVIROTTE","LYON",69,"vpi","INCENDIE","UM","ESI","i109","ESI - Exercice d'établissement",1,null,null,860,"C"]
[2017,"2017-09-01","Q3","septembre","ROUEN","ANAIS MORIN","Abordes","VTNI","MARTIN L'EGLISE",76,"direct","INCENDIE","UM","EPI","UMEP01","EPI - Mise en Œuvre des Extincteurs",1,null,null,2100,"C"]
[2017,"2017-09-01","Q3","septembre","ROUEN","ANAIS MORIN","Jlongfier","clinique",null,null,"vpi","EVACUATION","TRAD","SENSIBILISATION","I207H","Formation des chargés d'évacuation (Guides et serre-files) - Type U & J - Transfert Horizontal - RECYCLAGE",1,null,null,1000,"C"]
[2017,"2017-09-01","Q3","septembre","ROUEN","ANAIS MORIN","Tbinet","CLINIQUE MATHILDE","ROUEN",76,"VPI","EVACUATION","TRAD","EVACUATION ","I207H","EVACUATION",1,null,null,1000,"C"]
[2017,"2017-09-04","Q3","septembre","ROUEN","ANAIS MORIN","Tbinet","FONCIA CHAMBRE DES METIERS","ROUEN",76,"VPI","EVACUATION","TRAD","EXERCICE","I204R","EXERCICEC EVACUATION",0.5,null,null,500,"C"]
[2017,"2017-09-04","Q3","septembre","NANTERRE",null,"Cpequay","ORANGE","MONTPELLIER",34,"direct","INCENDIE","UM","EPI","UMEP02","EPI - Mise en œuvre des extincteurs",4,null,null,6600,"C"]
[2017,"2017-09-05","Q3","septembre","NANTERRE","ROBIN CHATONEY","PMarin","HP ENTREPRISE","GRENOBLE",38,"direct","INCENDIE","UM","EPI","UMEP02","EPI - Mise en œuvre des extincteurs",0.5,null,null,1025,"C"]
[2017,"2017-09-05","Q3","septembre","NANTERRE","JFBASSEREAU","JFBassereau","GERONDINES LAMARTINE","VALENCE",26,"vpi","INCENDIE","TRAD","EPI + HORIZ","I13H","EPI + Evacuation Horiz - Ets Santé",0.5,null,null,400,"O"]
[2017,"2017-09-05","Q3","septembre","NANTERRE","JFBASSEREAU","JFBassereau","EPHAD DELESSERT","ROMANS SUR ISERE",26,"vpi","INCENDIE","TRAD","EPI + HORIZ","I13H","EPI + Evacuation Horiz - Ets Santé",0.5,null,null,400,"O"]
[2017,"2017-09-05","Q3","septembre","NANTERRE","ROBIN CHATONEY","Abordes","AIRPORT COLLEGE","ROISSY",95,"direct","INCENDIE","UM","UM","UM EP03","EPI - Mise en Œuvre des Extincteurs",1,null,null,1540,"C"]
[2017,"2017-09-05","Q3","septembre","ROUEN","ANAIS MORIN","Jlongfier","MF PRODUCTIONS","MAROMME",76,"VPI","SECOURISME","TRAD","SST","SST02","SECOURISME",1,7,null,760,"C"]
[2017,"2017-09-05","Q3","septembre","ROUEN","ANAIS MORIN","Tbinet","CITOXLAB","MISEREY",27,"VPI","INCENDIE","TRAD","EPI","I04","EPI - Mise en Œuvre des Extincteurs",0.5,3,null,860,"C"]
[2017,"2017-09-06","Q3","septembre","NANTERRE","ROBIN CHATONEY","Jlongfier","IDF THERMIC","NOISY LE ROI",78,"direct","EVACUATION","TRAD","EXERCICE","I204R","Exercice d'évacuation avec fumée",0.5,null,null,420,"C"]
[2017,"2017-09-06","Q3","septembre","ROUEN","ANAIS MORIN","Tbinet","ARRED","BOIS GUILLAUME",76,"vpi","SECOURISME","TRAD","SST","SST02","SST MAC",1,7,null,572,"C"]
[2017,"2017-09-06","Q3","septembre","NANTERRE","ROBIN CHATONEY","PMarin","AIRPORT COLLEGE","LYON",69,"direct","INCENDIE","UM","EPI","UMEP02","EPI - Mise en œuvre des extincteurs",1,null,null,1700,"O"]
[2017,"2017-09-07","Q3","septembre","ROUEN","ANAIS MORIN","Tbinet","GREIF",null,null,"vpi","SECOURISME","TRAD","MAC","SST02","SST MAC",1,null,null,720,"C"]
[2017,"2017-09-07","Q3","septembre","NANTERRE",null,"JFBassereau","SUEZ","RILLIEUX LA PAPE",69,"vpi","INCENDIE","TRAD","EPI + RIA","I06 ","EPI - Mise en Œuvre des Extincteurs + RIA",0.5,null,null,550,"C"]
[2017,"2017-09-07","Q3","septembre","NANTERRE","ROBIN CHATONEY","Abordes","AIRPORT COLLEGE","ROISSY",95,"direct","INCENDIE","UM","UM","UM EP02","EPI - Mise en Œuvre des Extincteurs",1,null,null,1540,"C"]
[2017,"2017-09-07","Q3","septembre","ROUEN","ANAIS MORIN","Pgarin","GREF","ROUEN",76,"VPI","SECOURISME","TRAD","SST","SST02","SST MAC",1,7,null,720,"C"]
[2017,"2017-09-07","Q3","septembre","ROUEN","ANAIS MORIN","Tbinet","GREIF","GRAND QUEVILLY",76,"VPI","INCENDIE","TRAD","ESI","I107","ESI",1.5,10,null,1880,"C"]
[2017,"2017-09-08","Q2","septembre","NANTERRE","ROBIN CHATONEY","Cpequay","CANDIA","CLERMOND",63,"vpi","INCENDIE","TRAD","ESI","I105","ESI - Recyclage",1,null,null,1836,"C"]
[2017,"2017-09-08","Q3","septembre","ROUEN","ANAIS MORIN","Jlongfier","SDPP","EVREUX",27,"VPI","SECOURISME","TRAD","SST","SST02","SST MAC",1,7,null,760,"C"]
[2017,"2017-09-08","Q3","septembre","NANTERRE",null,"Cpequay","ORANGE","NARBONNE",11,"direct","INCENDIE","um","epi","UMEP02","EPI - Mise en œuvre des extincteurs",1,null,null,1650,"C"]
[2017,"2017-09-11","Q3","septembre","NANTERRE","ROBIN CHATONEY","Abordes","NOVO NORDISK","CHARTRES",28,"direct","INCENDIE","UM","EPI","UM02","EPI - Mise en Œuvre des Extincteurs",2,null,null,3200,"C"]
[2017,"2017-09-11","Q3","septembre","NANTERRE","ROBIN CHATONEY","PMarin","HP ENTREPRISE","NANTERRE",92,"direct","INCENDIE","UM","EPI","UMEP02","EPI - Mise en œuvre des extincteurs",0.5,null,null,1025,"O"]
[2017,"2017-09-11","Q3","septembre","NANTERRE","ROBIN CHATONEY","Nantoine","NEXANCE","BOURG EN BRESSE",1,"direct","AUDIT & CONSEIL","UM",null,null,"AUDIT & CONSEIL",1,null,null,1700,"C"]
[2017,"2017-09-11","Q3","septembre","NANTERRE","JFBASSEREAU","JFBassereau","NP SAVOIE","BELMONT TRAMONET",73,"vpi","INCENDIE","TRAD","EPI","I03","EPI - Mise en Œuvre des Extincteurs",1,null,null,1048,"C"]
[2017,"2017-09-11","Q3","septembre","BRETAGNE","ANAIS MORIN","JCSicurani","LECLERC","ST NICOLAS DE REDON",44,"VPI","INCENDIE","TRAD","EPI","I04","EPI - Mise en Œuvre des Extincteurs",1,null,null,1378,"C"]
[2017,"2017-09-12","Q3","septembre","NANTERRE",null,"JFBassereau","CENTRE DEP DES FAMILLES","NIMES",30,"vpi","EVACUATION","TRAD","EXERCICE","I203","Exercice d'évacuation sans fumée",1,null,null,820,"C","3 exo"]
[2017,"2017-09-12","Q3","septembre","ROUEN","LAURENT HUCHON","JCS","LAFARGE","LANESTER",56,"vpi","INCENDIE","TRAD","EPI","I03","EPI - Mise en Œuvre des Extincteurs",0.5,3,null,540]
[2017,"2017-09-12","Q3","septembre","ROUEN","ANAIS MORIN",null,"APTAR",null,null,"vpi",null,null,null," ",null,null,null,null,1405,"C"]
[2017,"2017-09-12","Q3","septembre","NANTERRE",null,"JFBassereau","CENTRE DEP DES FAMILLES","NIMES",30,"vpi","INCENDIE","TRAD","EPI","I03","EPI - Mise en Œuvre des Extincteurs",0.5,null,null,455,"C"]
[2017,"2017-09-12","Q3","septembre","NANTERRE","ROBIN CHATONEY","PMarin","HOPITAL DE NAVARRE","EVREUX",27,"direct","INCENDIE","UM","EPI","UMEP","EPI - Mise en Œuvre des Extincteurs",1,null,null,1540,"C"]
[2017,"2017-09-12","Q3","septembre","NANTERRE","ROBIN CHATONEY","JFBassereau","EHPAD BIANCHERI","HAUTERIVES",26,"vpi","INCENDIE","TRAD","EPI + HORIZ","I13H","EPI + Evacuation Horiz - Ets Santé",0.5,null,null,450,"C"]
[2017,"2017-09-12","Q3","septembre","NANTERRE","ROBIN CHATONEY","JFBassereau","EHPAD BEAUSOLEIL","MOURS ST EUSEBE",26,"vpi","INCENDIE","TRAD","EPI + HORIZ","I13H","EPI + Evacuation Horiz - Ets Santé",0.5,null,null,450,"C"]
[2017,"2017-09-13","Q3","septembre","NANTERRE","ROBIN CHATONEY","Abordes","GPA","Tremblay en France",93,"direct","INCENDIE","UM",null,"UMEP02","EPI - mise en œuvre des extincteurs",1,null,null,1985,"C"]
[2017,"2017-09-13","Q3","septembre","NANTERRE","ROBIN CHATONEY","PMarin","AIRPORT COLLEGE","ORLY",94,"direct","INCENDIE","UM","EPI","UMEP02","EPI - Mise en œuvre des extincteurs",1,null,null,1540,"C"]
[2017,"2017-09-13","Q3","septembre","NANTERRE","ROBIN CHATONEY","JCSicurani","LVMH","PARIS",75,"direct","AUDIT & CONSEIL","UM","EPI","UMDRA02","EPI - Mise en œuvre des extincteurs",0.5,null,null,1400,"C"]
[2017,"2017-09-13","Q3","septembre","BRETAGNE","ANAIS MORIN","JCSicurani","LECLERC","ST NICOLAS DE REDON",44,"VPI","INCENDIE","TRAD","EVACUATION ","I207H","EVACUATION",1,null,null,1064,"C"]
[2017,"2017-09-13","Q3","septembre","ROUEN","ANAIS MORIN"]
[2017,"2017-09-13","Q3","septembre","NANTERRE","ROBIN CHATONEY","Pgarin","AIRPORT COLLEGE","ORLY",94,"direct","INCENDIE","UM","UM","UM EP02","EPI - Mise en Œuvre des Extincteurs",1,null,null,1540,"C"]
[2017,"2017-09-13","Q3","septembre","ROUEN","ANAIS MORIN","Tbinet","MEPLE","TOURVILLE LA RIVIERE",76,"vpi","INCENDIE","TRAD","EPI + RIA","I06","EPI - Mise en Œuvre des Extincteurs + RIA",1,8,null,1220,"c"]
[2017,"2017-09-14","Q3","septembre","NANTERRE","ROBIN CHATONEY","JCSicurani","OKKO HOTEL","RUEIL MALMAISON",92,"vpi","EVACUATION","TRAD","CHARGE EVAC","I200+ I203R","Formation guide et serre-file + exercice d'évac",0.5,null,null,540,"C"]
[2017,"2017-09-14","Q3","septembre","OUEST","ANAIS MORIN",null,"ehpad pierre goenvic ",null,null,"vpi","INCENDIE","TRAD","EPI + HORIZ","I13H","EPI + Evacuation Horiz - Ets Santé",0.5,null,null,390,"C"]
[2017,"2017-09-14","Q3","septembre","ROUEN","ANAIS MORIN","PMarin","FINAGAZ","COURBEVOIE",92,"vpi","INCENDIE","UM","EPI","UMEP02","EPI - Mise en œuvre des extincteurs",1,null,null,1780,"C"]
[2017,"2017-09-14","Q3","septembre","NANTERRE","ROBIN CHATONEY","Cpequay","EHPAD LE MONTEL",null,63,"vpi","INCENDIE","TRAD","EPI + HORIZ","I13H","EPI + Evacuation Horiz - Ets Santé",1,null,null,800,"C"]
[2017,"2017-09-14","Q3","septembre","NANTERRE","JFBASSEREAU","JFBassereau","EHPAD BIANCHERI","HAUTERIVES",26,"vpi","INCENDIE","TRAD","EPI + HORIZ","I13H","EPI + Evacuation Horiz - Ets Santé",0.5,null,null,400,"C"]
[2017,"2017-09-14","Q3","septembre","NANTERRE","JFBASSEREAU","JFBassereau","EHPAD PEYSSON","ROMANS SUR ISERE",26,"vpi","INCENDIE","TRAD","EPI + HORIZ","I13H","EPI + Evacuation Horiz - Ets Santé",0.5,null,null,400,"C"]
[2017,"2017-09-14","Q3","septembre","ROUEN","ANAIS MORIN","Tbinet","CITOXLAB","MISEREY",27,"VPI","INCENDIE","TRAD","EPI","I04","EPI - Mise en Œuvre des Extincteurs",0.5,3,null,860,"C"]
[2017,"2017-09-14","Q3","septembre","NANTERRE","ROBIN CHATONEY","Abordes","RENAULT","GUYANCOURT",78,"direct","INCENDIE","UM","EPI","UMEP02","EPI - Mise en Œuvre des Extincteurs",1,null,null,1640,"C"]
[2017,"2017-09-15","Q3","septembre","ROUEN","ANAIS MORIN","Jlongfier","MF PRODUCTIONS","MAROMME",76,"VPI","EVACUATION","TRAD","EXERCICE","I204R","EVACUATION",1,null,null,1860,"C"]
[2017,"2017-09-15","Q3","septembre","NANTERRE",null,"JFBassereau","GIVAUDAN LAVIROTTE","LYON",69,"vpi","INCENDIE","UM","ESI","CM107","ESI - Recyclage",1,null,null,1989,"C"]
[2017,"2017-09-15","Q3","septembre","OUEST","ANAIS MORIN",null,"mr les jardins du castel ",null,null,"vpi","INCENDIE","TRAD","EPI + HORIZ","I13H","EPI + Evacuation Horiz - Ets Santé",0.5,null,null,295,"C"]
[2017,"2017-09-15","Q3","septembre","NANTERRE",null,"Cpequay","GIVAUDAN LAVIROTTE","LYON",69,"vpi","INCENDIE","UM","EPI","UMEP02","EPI - Mise en œuvre des extincteurs",2,null,null,1692]
[2017,"2017-09-18","Q3","septembre","NANTERRE",null,"JFBassereau","MUTUALITE FRANCAISE DU RHONE","LYON",69,"vpi","INCENDIE","TRAD","EPI","I03","EPI - Mise en Œuvre des Extincteurs",1,null,null,1130,"C"]
[2017,"2017-09-18","Q3","septembre","ROUEN","ANAIS MORIN","Jlongfier","MF PRODUCTIONS","SAUMUR",49,"vpi","INCENDIE","TRAD","EPI + RIA","I06","EPI - Mise en Œuvre des Extincteurs + RIA",0.5,null,null,710,"C"]
[2017,"2017-09-18","Q3","septembre","ROUEN","ANAIS MORIN","Jlongfier","MF PRODUCTIONS","SAUMUR",49,"vpi","INCENDIE","TRAD","EPI + RIA","I06","EPI - Mise en Œuvre des Extincteurs + RIA",0.5,null,null,710,"C"]
[2017,"2017-09-18","Q3","septembre","NANTERRE","ROBIN CHATONEY","Pmarin","RENAULT","GUYANCOURT",78,"direct","INCENDIE","UM","EPI","UMEP02","EPI - Mise en œuvre des extincteurs",1,null,null,1640,"C"]
[2017,"2017-09-18","Q3","septembre","ROUEN","ANAIS MORIN","Tbinet","KOYO","MAROMME",76,"VPI","INCENDIE","TRAD","ESI","I105","ESI",3,null,null,3960,"C"]
[2017,"2017-09-18","Q3","septembre",null,null,"JCSicurani","SOMATER","MAROLLES",72,"VPI","INCENDIE","TRAD","EPI","I04","EPI - Mise en Œuvre des Extincteurs",1,null,null,700]
[2017,"2017-09-19","Q3","septembre","ROUEN","ANAIS MORIN","Jlongfier","MF PRODUCTIONS","SAUMUR",49,"vpi","INCENDIE","TRAD","EPI + RIA","I06","EPI - Mise en Œuvre des Extincteurs + RIA",0.5,null,null,710,"C"]
[2017,"2017-09-19","Q3","septembre","ROUEN","ANAIS MORIN","Jlongfier","MF PRODUCTIONS","SAUMUR",49,"vpi","INCENDIE","TRAD","EPI + RIA","I06","EPI - Mise en Œuvre des Extincteurs + RIA",0.5,null,null,710,"C"]
[2017,"2017-09-19","Q3","septembre","NANTERRE","ROBIN CHATONEY","Abordes","NOVANDIE","VIEL MOUTIER",62,"direct","INCENDIE","UM","EPI","UMEP02","EPI - Mise en œuvre des extincteurs",1,null,null,1908,"C"]
[2017,"2017-09-19","Q3","septembre","NANTERRE","ROBIN CHATONEY","Cpequay","ORANGE","TARBES",65,"direct","INCENDIE","UM","EPI","UMEP02","EPI - Mise en œuvre des extincteurs",2,null,null,3200,"C"]
[2017,"2017-09-19","Q3","septembre","NANTERRE","ROBIN CHATONEY","JCSicurani","OKKO HOTEL","RUEIL MALMAISON",92,"vpi","INCENDIE","UM","UM","UMDRA03","EPI - Mise en œuvre des extincteurs",0.5,null,null,650,"C"]
[2017,"2017-09-19","Q3","septembre","NANTERRE",null,"JFBassereau","Maison de retraite sevigne","SAINT MARTIN LE VINOUX",38,"vpi","INCENDIE","TRAD","EPI + HORIZ","i13h","EPI + Evacuation Horiz - Ets Santé",0.5,null,null,550,"C"]
[2017,"2017-09-19","Q3","septembre","ROUEN","ANAIS MORIN","Pgarin","GRT GAZ","GENNEVILLIERS",92,"VPI",null,"TRAD",null,"RP42","GESTES ET POSTURES",1,7,null,890,"C"]
[2017,"2017-09-20","Q3","septembre","ROUEN ","EMILIE LEGRIX","Jlongfier","vega mc do ","BAYEUX",14,"vpi","SECOURISME","TRAD","SST MAC","SST02","SST MAC",1,null,null,835,"C"]
[2017,"2017-09-20","Q3","septembre","NANTERRE",null,"Jcsicurani","BRICOMARCHE","SAINTE MAURE DE TOURAINE",37,"vpi","INCENDIE","TRAD","EPI","I04","EPI - Mise en œuvre des extincteurs",1,null,null,475,"C"]
[2017,"2017-09-20","Q3","septembre","ROUEN","EMILIE LEGRIX","Jlongfier","MC DONALDS BAYEUX","BAYEUX",14,"VPI","SECOURISME","TRAD","SST","SST02","SECOURISME",1,7,null,835,"C"]
[2017,"2017-09-21","Q3","septembre","ROUEN","ANAIS MORIN","Jlongfier","SDPP","EVREUX",27,"VPI","EVACUATION","TRAD","EXERCICE","I204R","EVACUATION",0.5,null,null,465,"C"]
[2017,"2017-09-21","Q3","septembre","NANTERRE","ROBIN CHATONEY","Abordes","AIRPORT COLLEGE","MULHOUSE",68,"direct","INCENDIE","UM","UM","UMEP","EPI - Mise en Œuvre des Extincteurs",1,null,null,1700,"O"]
[2017,"2017-09-21","Q3","septembre","ROUEN","ANAIS MORIN","Tbinet","ARRED","BOIS GUILLAUME",76,"vpi","SECOURISME","TRAD","SST","SST02","SST MAC",1,7,null,572,"C"]
[2017,"2017-09-21","Q3","septembre","NANTERRE","ROBIN CHATONEY","PMarin","ST MICRO","NICE",6,"direct","INCENDIE","UM","EPI","UMEP02","EPI - Mise en œuvre des extincteurs",1,null,null,1718,"C"]
[2017,"2017-09-21","Q3","septembre","NANTERRE",null,"JFBassereau","BIODERMA","LYON",69,"vpi","SECOURISME","TRAD","SST INITIAL","SST01","SST INITIALE",2,null,null,1700,"C"]
[2017,"2017-09-21","Q3","septembre","ROUEN","ANAIS MORIN","Jlongfier","SDPP","EVREUX",27,"VPI","EVACUATION","TRAD","EXERCICE","I204R","EVACUATION",0.5,null,null,465,"C"]
[2017,"2017-09-22","Q3","septembre","NANTERRE",null,"JCSicurani","COJEAN","PARIS",75,"direct","INCENDIE","TRAD","EPI","I04","EPI - Mise en œuvre des extincteurs",0.5,null,null,1020,"C"]
[2017,"2017-09-22","Q3","SEPTEMBRE","ROUEN","ANAIS MORIN","Jlongfier","VPI ROUEN","ROUEN",76,"VPI","SECOURISME","TRAD","SST","SST02","SST MAC",1,7,null,457.6,"C"]
[2017,"2017-09-25","Q3","septembre","NANTERRE",null,"JFBassereau","MUTUALITE FRANCAISE DU RHONE","LYON",69,"vpi","INCENDIE","TRAD","EPI","I03","EPI - Mise en Œuvre des Extincteurs",1,null,null,565,"C"]
[2017,"2017-09-25","Q3","septembre","ROUEN","ANAIS MORIN","Tbinet","CITOXLAB","MISEREY",27,"VPI","INCENDIE","TRAD","EPI","I04","EPI - Mise en œuvre des extincteurs",0.5,3,null,860,"C"]
[2017,"2017-09-25","Q3","septembre","NANTERRE","ROBIN CHATONEY","Pmarin","HP ENTREPRISE","GRENOBLE",38,"direct","INCENDIE","UM","EPI","UMEP02","EPI - Mise en œuvre des extincteurs",1,null,null,1025,"C"]
[2017,"2017-09-26","Q3","septembre","ROUEN","ANAIS MORIN","Pgarin","IMMEUBLE HASTINGS","ROUEN",76,"VPI","EVACUATION","TRAD","CHARGE EVAC","I202","EVACUATION",0.5,3,null,433,"C"]
[2017,"2017-09-26","Q3","septembre","NANTERRE","ROBIN CHATONEY","Abordes","AIRPORT COLLEGE","NANTES",44,"direct","INCENDIE","UM","EPI","UMEP02","EPI - Mise en œuvre des extincteurs",1,null,null,1700,"C"]
[2017,"2017-09-26","Q3","septembre","NANTERRE",null,"JFBassereau","GIVAUDAN LAVIROTTE","LYON",69,"vpi","INCENDIE","UM","ESI","CM107","ESI - Recyclage",1,null,null,1989,"C"]
[2017,"2017-09-26","Q3","septembre","ROUEN","ANAIS MORIN","Jlongfier","LA CLE DES CHAMPS ","MONTJAVOULT",60,"vpi","INCENDIE","TRAD","EPI + RIA","I06","EPI - Mise en Œuvre des Extincteurs + RIA",0.5,3,null,590,"C"]
[2017,"2017-09-26","Q3","septembre","ROUEN","ANAIS MORIN","Jlongfier","LA CLE DES CHAMPS ","MONTJAVOULT",60,"vpi","INCENDIE","TRAD","EPI + RIA","I06","EPI - Mise en Œuvre des Extincteurs + RIA",0.5,3,null,590,"C"]
[2017,"2017-09-26","Q3 ","septembre","ROUEN ","EMILIE LEGRIX","Tbinet","vega mc do ","BAYEUX",14,"vpi","SECOURISME","TRAD","SST INITIAL","SST01","SST INITIALE",2,null,null,1625,"C"]
[2017,"2017-09-26","Q3","septembre","NANTERRE","ROBIN CHATONEY","Pmarin","AOSTE","?",null,"direct","INCENDIE","UM","EPI","UMEP02","EPI - Mise en œuvre des extincteurs",3,null,null,6060,"C"]
[2017,"2017-09-26","Q3","septembre","ROUEN","EMILIE LEGRIX","Tbinet","MC DONALDS BAYEUX","BAYEUX",14,"VPI","SECOURISME","TRAD","SST ","SST01","SST INIATIAL",2,14,null,1625,"C"]
[2017,"2017-09-27","Q3 ","septembre","ROUEN","ANAIS MORIN","Pgarin","BIC ECRITURE","MONTEVRAIN",77,"vpi","INCENDIE","TRAD","CHARIOTS","CM301","CHARIOTS R389 Cat. 1,2,3,4,5 - Recyclage",1,7,null,830,"C"]
[2017,"2017-09-27","Q3","septembre","BLOIS","JEAN-LUC DUMOULIN","JCSicurani","BOLLORE ENERGY","MONTEREAU FAUT SUR YONNE",77,"vpi","INCENDIE","TRAD","EPI","I03","EPI - Mise en Œuvre des Extincteurs",1,6,null,1040,"C","2X 570€"]
[2017,"2017-09-27","Q3","septembre","BLOIS","JEAN-LUC DUMOULIN","JCSicurani","BOLLORE ENERGY","ROMILLY SUR SEINE",10,"vpi","INCENDIE","TRAD","EPI","I03","EPI - Mise en Œuvre des Extincteurs",1,6,null,1040,"C","2X 570€"]
[2017,"2017-09-27","Q3","septembre","NANTERRE",null,"Cpequay","THERMAL CERAMICS","Saint-Marcellin-en-Forez",42,"direct","INCENDIE","TRAD","EPI",null,"ESI",0.5,4,null,626,"C"]
[2017,"2017-09-28","Q3","septembre","ROUEN","ANAIS MORIN","Jlongfier","SDPP","EVREUX",27,"VPI","SECOURISME","TRAD","SST","SST02","SST MAC",1,7,null,760,"C"]
[2017,"2017-09-28","Q3","septembre","NANTERRE","ROBIN CHATONEY","Nantoine","RENAULT","GUYANCOURT",78,"direct","INCENDIE","UM","EPI","UMEP02","EPI - Mise en Œuvre des Extincteurs",1,null,null,1640,"C"]
[2017,"2017-10-02","Q4","octobre","NANTERRE",null,"Cpequay","SALAISONS DU MACONNAIS","PIERRECLOS",71,"vpi","EVACUATION","TRAD","CHARGE EVAC","I202","Guides et serres-files",0.5,3,null,410,"C"]
[2017,"2017-10-03","Q4","octobre","ROUEN","ANAIS MORIN","J.Longfier","CLINIQUE MATHILDE","ROUEN",76,"vpi","EVACUATION","TRAD","EXERCICE","I203R","Exercice d'évacuation sans fumée",0.5,null,null,380,"C"]
[2017,"2017-10-03","Q4","octobre","OUEST","bouteiller",null,"ehpad pierre goenvic ",null,null,"vpi","INCENDIE","TRAD","EPI + HORIZ","I13H","EPI + Evacuation Horiz - Ets Santé",0.5,null,null,390,"C"]
[2017,"2017-10-03","Q4","octobre","ROUEN","ANAIS MORIN",null,"CLINIQUE MATHILDE","ROUEN",76,"vpi","INCENDIE","UM","UM","UMEP","EPI - Mise en Œuvre des Extincteurs",null,null,null,2750,"C"]
[2017,"2017-10-04","Q4","octobre","ROUEN","EMILIE LEGRIX","Jlongfier","vega mc do ","BAYEUX",14,"vpi","EVACUATION","TRAD","CHARGE EVAC","I200","EVACUATION",0.5,null,null,450,"C"]
[2017,"2017-10-04","Q4","octobre","ROUEN",null,"T.Binet","maison d'enfants le clos",null,null,"vpi","EVACUATION","TRAD","EXERCICE","I204R","Exercice d'évacuation avec fumée",0.5,null,null,469.5,"C"]
[2017,"2017-10-04","Q4","octobre","ROUEN","EMILIE LEGRIX","Jlongfier","vega mc do ","BAYEUX",14,"vpi","INCENDIE","TRAD","EPI","I03","EPI - Mise en Œuvre des Extincteurs",0.5,null,null,590,"C"]
[2017,"2017-10-04","Q4","octobre","ROUEN","EMILIE LEGRIX","Jlongfier","MC DONALDS BAYEUX","BAYEUX",14,"VPI","INCENDIE","TRAD","EPI+EVAC","I03+I200","EPI + EVAC",1,7,null,1115,"C"]
[2017,"2017-10-05","Q4","octobre","NANTERRE",null,"PMarin","ORANGE","NOISY LE GRAND",93,"direct","INCENDIE","UM","UM","UMEP","EPI - Mise en Œuvre des Extincteurs",1,null,null,1650,"C"]
[2017,"2017-10-05","Q4","octobre","NANTERRE","ROBIN CHATONEY","Pgarin","LVMH","PARIS",75,"direct","SECOURISME","TRAD","SST ","SST02","SST MAC",1,null,null,1200,"C"]
[2017,"2017-10-06","Q4","octobre","OUEST","bouteiller",null,"mr les jardins du castel ",null,null,"vpi","INCENDIE","TRAD","EPI + HORIZ","I13H","EPI + Evacuation Horiz - Ets Santé",0.5,null,null,295,"C"]
[2017,"2017-10-06","Q4","octobre","BLOIS","JEAN-LUC DUMOULIN","JCSicurani","BOLLORE ENERGY","NEVERS",58,"vpi","INCENDIE","TRAD","EPI","I03","EPI - Mise en Œuvre des Extincteurs",0.5,3,null,570,"C"]
[2017,"2017-10-06","Q4","octobre","ROUEN","ANAIS MORIN","Jlongfier","BACHELET BONNEFOND","LE PETIT QUEVILLY",76,"VPI","INCENDIE","TRAD","EPI","I03","EPI - Mise en Œuvre des Extincteurs",0.5,3,null,575,"C"]
[2017,"2017-10-06","Q3","septembre","NANTERRE",null,"Cpequay","GIVAUDAN LAVIROTTE","LYON",69,"vpi","INCENDIE","UM","ESI","CM107","ESI - Recyclage",1,null,null,1989,"C"]
[2017,"2017-10-09","Q4","octobre","ROUEN","ANAIS MORIN","Tbinet","ARRED","BOIS GUILLAUME",76,"vpi","SECOURISME","TRAD","SST","SST02","SST MAC",1,7,null,572,"C"]
[2017,"2017-10-09","Q4","octobre","NANTERRE",null,"JFBassereau","ZELLER + GMELLIN","GENAS",69,"vpi","INCENDIE","TRAD","EPI","I03","EPI - Mise en Œuvre des Extincteurs",1,null,null,901,"C"]
[2017,"2017-10-09","Q4","octobre","NANTERRE","ROBIN CHATONEY","Pgarin","LVMH","PARIS",75,"direct","SECOURISME","TRAD","SST ","SST01","SST INTIAL",2,null,null,2400,"C"]
[2017,"2017-10-09","Q4","octobre","BLOIS","JEAN-LUC DUMOULIN","JCSicurani","BOLLORE ENERGY","LUCE",28,"vpi","INCENDIE","TRAD","EPI","I03","EPI - Mise en Œuvre des Extincteurs",0.5,3,null,570,"C"]
[2017,"2017-10-10","Q4","octobre","ROUEN",null,"T.Binet","maison d'enfants le clos",null,null,"vpi","INCENDIE","TRAD","EPI","I03","EPI - Mise en Œuvre des Extincteurs",1,null,null,1099.5,"C"]
[2017,"2017-10-11","Q4","octobre","BLOIS","JEAN-LUC DUMOULIN","JCSicurani","BOLLORE ENERGY","ORLEANS",45,"vpi","INCENDIE","TRAD","EPI","I03","EPI - Mise en Œuvre des Extincteurs",1,6,null,1040,"C","2X 570€"]
[2017,"2017-10-11","Q3","septembre","NANTERRE","ROBIN CHATONEY","Abordes","GPA","Tremblay en France",93,"direct","INCENDIE","UM","EPI","UMEP02","EPI - Mise en œuvre des extincteurs",1,null,null,1985,"C"]
[2017,"2017-10-12","Q4","octobre","NANTERRE","ROBIN CHATONEY","Cpequay","L'OREAL","CREUZIER LE VIEUX",3,"vpi","INCENDIE","TRAD","EPI ","I03","EPI - Mise en Œuvre des Extincteurs",1,null,null,820,"C"]
[2017,"2017-10-13","Q4","octobre","NANTERRE","ROBIN CHATONEY","Cpequay","L'OREAL","CREUZIER LE VIEUX",3,"vpi","INCENDIE","TRAD","ESI","I105","ESI - Recyclage",1,null,null,1143,"C"]
[2017,"2017-10-13","Q4","octobre","BROUX","FRANCOISE ROMERO","JFBassereau","PHARMACIE DE LA POTERIE","FERNAY VOLTAIRE","01","vpi","INCENDIE","TRAD","EPI","I03","EPI - Mise en Œuvre des Extincteurs",0.5,3,null,574]
[2017,"2017-10-17","Q4","octobre","ROUEN","ANAIS MORIN","Cpequay","GREIF","HAISNES",62,"VPI","INCENDIE","UM","EPI","UMCM103","EPI - Mise en Œuvre des Extincteurs",1,6,null,2300,"C"]
[2017,"2017-10-18","Q4","octobre","ROUEN","ANAIS MORIN","Tbinet","ARRED","BOIS GUILLAUME",76,"vpi","SECOURISME","TRAD","SST","SST01","SST INITIALE",2,14,null,1143,"C","18 ET 19/10"]
[2017,"2017-10-19","Q4","octobre","OUEST","bouteiller",null,"ehpad ty an dud coz ",null,null,"vpi","INCENDIE","TRAD","EPI + HORIZ","I13H","EPI + Evacuation Horiz - Ets Santé",0.5,null,null,395,"C"]
[2017,"2017-10-19","Q4","octobre","NANTERRE",null,"JFBassereau","MUTUALITE FRANCAISE DU RHONE","VILLEURBANNE",69,"vpi","INCENDIE","TRAD","EPI","I03","EPI - Mise en Œuvre des Extincteurs",0.5,null,null,565,"C"]
[2017,"2017-10-26","Q4","octobre","NANTERRE",null,"JFBassereau","SUEZ","RILLIEUX LA PAPE",69,"vpi","INCENDIE","TRAD","EPI + RIA","I06","EPI - Mise en Œuvre des Extincteurs + RIA",1,null,null,1100,"C"]
[2017,"2017-11-02","Q4","novembre","ROUEN","ANAIS MORIN","Pgarin","GRT GAZ","EVRY GREGY",77,"VPI","PRAP","TRAD",null,"RP40","PRAP",2,14,null,1790,"C"]
[2017,"2017-11-07","Q4","novembre","ROUEN","FLORENCE DAUPHIN","Tbinet","OMMIC","LIMEIL BREVANNES",94,"vpi","PROTECTION INDIVIDUELLE","TRAD","ARI","PI01","ARI INITIAL",1,null,null,1160,"C"]
[2017,"2017-11-08","Q4","novembre","NANTERRE",null,"Abordes","ORANGE","LAGNY SUR MARNE",77,"direct","INCENDIE","UM","UM","UMEP","EPI - Mise en Œuvre des Extincteurs",1,null,null,1650,"C"]
[2017,"2017-11-09","Q4","novembre","ROUEN","ANAIS MORIN","Tbinet","ARRED","BOIS GUILLAUME",76,"vpi","SECOURISME","TRAD","SST","SST01","SST INITIALE",2,14,null,1143,"C","9 ET 10/10"]
[2017,"2017-11-15","Q4","novembre","ROUEN","ANAIS MORIN","Pgarin","CONDIVEX","ETREPAGNY",27,"vpi","CONDUITE & MANUTENTION","TRAD","EPI","CM05","CHARIOTS R389 Cat. 1,2,3,4,5 - Recyclage",1,null,null,750]
[2017,"2017-11-16","Q4","novembre","ROUEN","ANAIS MORIN","Pgarin","GRT GAZ","CUVILLY",60,"VPI","PRAP","TRAD",null,"RP40","PRAP",2,14,null,1790,"C"]
[2017,"2017-11-20","Q4","novembre","ROUEN","ANAIS MORIN","Tbinet","ARRED","BOIS GUILLAUME",76,"vpi","SECOURISME","TRAD","SST","SST01","SST INITIALE",2,14,null,1143,"C","20 ET 21/10"]
[2017,"2017-11-23","Q4","NOVEMBRE","ROUEN","ANAIS MORIN","PMarin","GREIF","GRAND QUEVILLY",76,"VPI","INCENDIE","TRAD","EPI","UMEP","EPI - Mise en Œuvre des Extincteurs",1,6,null,2300,"C"]
[2017,"2017-11-24","Q4","NOVEMBRE","ROUEN","ANAIS MORIN","PMarin","GREIF","GRAND QUEVILLY",76,"VPI","INCENDIE","TRAD","EPI","UMEP","EPI - Mise en Œuvre des Extincteurs",1,6,null,2300,"C"]
[2017,"2017-11-29","Q4","novembre","NANTERRE",null,"PMarin","NOVANDIE","VIEL MOUTIER",62,"direct","INCENDIE","UM","UM","UMEP","EPI - Mise en Œuvre des Extincteurs",1,null,null,1908,"C"]
[2017,"2017-11-30","Q4","novembre","NANTERRE",null,"Abordes","ORANGE","RENNES TATELIN",35,"direct","INCENDIE","UM","UM","UMEP","EPI - Mise en œuvre des extincteurs",0.5,null,null,825,"C"]
[2017,"2017-11-30","Q4","novembre","NANTERRE",null,"Abordes","ORANGE","RENNES PATTON",35,"direct","INCENDIE","UM","UM","UMEP","EPI - Mise en œuvre des extincteurs",0.5,null,null,825,"C"]
[2017,"2017-12-01","Q4","décembre","NANTERRE",null,"Abordes","ORANGE","CESSON SEVIGNE",35,"direct","INCENDIE","UM","UM","UMEP","EPI - Mise en œuvre des extincteurs",1,null,null,1650,"C"]
[2017,"2017-12-04","Q4","décembre","ROUEN","ANAIS MORIN","Tbinet","ARRED","BOIS GUILLAUME",76,"vpi","SECOURISME","TRAD","SST","SST01","SST INITIALE",2,14,null,1143,"C","4 ET 5/12"]
[2017,"2017-12-05","Q4","décembre","ROUEN","ANAIS MORIN",null,"condivex",null,null,"vpi","CONDUITE & MANUTENTION","TRAD","PEMP","CM104","PEMP R386 Cat.1A,1B,3A,3B - Recyclage",1,null,null,720,"C"]
[2017,"2017-12-18","Q4","décembre","ROUEN","ANAIS MORIN","Pgarin","GRT GAZ","BEYNES",78,"VPI","PRAP","TRAD",null,"RP40","PRAP",2,14,null,1790,"C"]
[2018,"2018-02-06","Q1","février","ISECURIT","JEAN-FRANCOIS BASSEREAU","JFBassereau","Maison de retraite sevigne","SAINT-MARTIN-LE-VINOUX",38,"VPI","SECOURISME","TRAD","SST","SST02","SST MAC",1,null,null,700,"C"]

{"sheet":"Janvier","index":1,"n_rows":55,"n_cols":51,"rows_kept":55,"cut":false,"hidden":false,"merged":[[0,47,1,50],[0,43,1,46],[20,46,21,46],[48,1,49,1],[46,1,47,1],[46,10,47,10],[44,0,49,0],[44,1,45,1],[26,1,27,1],[32,15,33,15],[32,18,33,18],[30,34,31,34],[30,42,31,42],[28,26,29,26],[28,42,29,42],[32,1,33,1],[30,1,31,1],[14,0,23,0],[14,1,15,1],[16,1,17,1],[4,0,13,0],[4,1,5,1],[6,1,7,1],[10,1,11,1],[22,1,23,1],[20,1,21,1],[0,19,1,22],[0,0,2,2],[0,3,1,6],[0,7,1,10],[0,11,1,14],[0,15,1,18],[0,31,1,34],[0,35,1,38],[0,39,1,42],[0,23,1,26],[0,27,1,30],[20,50,21,50],[28,50,29,50],[30,50,31,50],[10,7,11,7],[8,1,9,1],[18,1,19,1],[12,1,13,1],[20,42,21,42],[22,10,23,10],[20,10,21,10],[30,10,31,10],[26,10,27,10],[26,15,27,15],[26,18,27,18],[28,1,29,1],[28,10,29,10],[51,1,52,1],[53,1,54,1],[51,0,54,0],[28,46,29,46],[30,46,31,46],[36,1,37,1],[36,6,37,6],[34,0,43,0],[34,1,35,1],[24,0,33,0],[24,1,25,1],[42,1,43,1],[38,1,39,1],[40,1,41,1],[40,6,41,6],[40,10,41,10]]}
["2018-01-01",null,null,"PHILIPPE (EP)",null,null,null,"ANDRE  (EP)",null,null,null,"(CM2)",null,null,null,"CHRISTIAN (CM1)",null,null,null,"Jean-Côme (Dragon)",null,null,null,"JEAN FRANCOIS",null,null,null,"ANTOINE Antoine",null,null,null,"THIERRY BINET",null,null,null,"PASCAL GARIN",null,null,null,"JORIS LONGFIER",null,null,null,"PRESTATAIRE",null,null,null,"COFISEC"]
[]
[null,null,null,{"$f":"F3/E3","v":0.5},{"$f":"SUM(E5:E44)","v":20},{"$f":"SUM(F5:F44)","v":10},null,{"$f":"J3/I3","v":1},{"$f":"SUM(I5:I44)","v":20},{"$f":"SUM(J5:J44)","v":20},null,null,{"$f":"SUM(M5:M44)","v":20},{"$f":"SUM(N5:N44)","v":13.5},null,{"$f":"R3/Q3","v":0.45},{"$f":"SUM(Q5:Q44)","v":20},{"$f":"SUM(R5:R44)","v":9},null,{"$f":"V3/U3","v":0.27500000000000002},{"$f":"SUM(U5:U44)","v":20},{"$f":"SUM(V5:V44)","v":5.5},null,{"$f":"Z3/Y3","v":0.77500000000000002},{"$f":"SUM(Y5:Y44)","v":20},{"$f":"SUM(Z5:Z44)","v":15.5},null,{"$f":"AD3/AC3","v":0.875},{"$f":"SUM(AC5:AC44)","v":20},{"$f":"SUM(AD5:AD44)","v":17.5},null,{"$f":"AH3/AG3","v":0.4},{"$f":"SUM(AG5:AG44)","v":20},{"$f":"SUM(AH5:AH44)","v":8},null,{"$f":"AL3/AK3","v":1},{"$f":"SUM(AK5:AK44)","v":20},{"$f":"SUM(AL5:AL44)","v":20},null,{"$f":"AP3/AO3","v":{"$error":"#DIV/0!"}},{"$f":"SUM(AO5:AO44)","v":0},{"$f":"SUM(AP5:AP44)","v":0},null,{"$f":"AT3/AS3","v":{"$error":"#DIV/0!"}},{"$f":"SUM(AS5:AS44)","v":0},{"$f":"SUM(AT5:AT44)","v":0},null,{"$f":"AX3/AW3","v":{"$error":"#DIV/0!"}},{"$f":"SUM(AW5:AW44)","v":0},{"$f":"SUM(AX5:AX44)","v":0}]
["SEM","JOUR","AM/PM","FORMATION","Ouv","trav","STATUT","FORMATION","Ouv","trav","STATUT","FORMATION","Ouv","trav","STATUT","FORMATION","Ouv","trav","STATUT","FORMATION","Ouv","trav","STATUT","FORMATION","Ouv","trav","STATUT","FORMATION","Ouv","trav","STATUT","FORMATION","Ouv","trav","STATUT","FORMATION","Ouv","trav","STATUT","FORMATION","Ouv","trav","STATUT","FORMATION","Ouv","trav","STATUT","FORMATION","Ouv","trav","STATUT"]
[1,"2018-01-01","am",null,0.5,0.5,null,null,0.5,0.5,null,null,0.5,0.5,null,null,0.5,0.5,null,null,0.5,0.5,null,null,0.5,0.5,null,null,0.5,0.5,null,null,0.5,0.5,null,null,0.5,0.5]
[null,null,"pm",null,0.5,0.5,null,null,0.5,0.5,null,null,0.5,0.5,null,null,0.5,0.5,null,null,0.5,0.5,null,null,0.5,0.5,null,null,0.5,0.5,null,null,0.5,0.5,null,null,0.5,0.5]
[null,"2018-01-02","am",null,0.5,0.5,null,null,0.5,0.5,null,null,0.5,0.5,null,null,0.5,0.5,null,null,0.5,0.5,null,null,0.5,0.5,null,null,0.5,0.5,null,null,0.5,null,null,null,0.5,0.5]
[null,null,"pm",null,0.5,0.5,null,null,0.5,0.5,null,null,0.5,0.5,null,null,0.5,0.5,null,null,0.5,0.5,null,null,0.5,0.5,null,null,0.5,0.5,null,null,0.5,null,null,null,0.5,0.5]
[null,"2018-01-03","am",null,0.5,0.5,null,null,0.5,0.5,null,null,0.5,0.5,null,null,0.5,null,null,null,0.5,null,null,null,0.5,0.5,null,null,0.5,0.5,null,null,0.5,null,null,null,0.5,0.5]
[null,null,"pm",null,0.5,0.5,null,null,0.5,0.5,null,null,0.5,0.5,null,null,0.5,null,null,null,0.5,null,null,null,0.5,0.5,null,null,0.5,0.5,null,null,0.5,null,null,null,0.5,0.5]
[null,"2018-01-04","am",null,0.5,0.5,null,null,0.5,0.5,null,null,0.5,0.5,null,null,0.5,null,null,null,0.5,null,null,null,0.5,0.5,null,null,0.5,null,null,null,0.5,null,null,null,0.5,0.5]
[null,null,"pm",null,0.5,0.5,null,null,0.5,0.5,null,null,0.5,0.5,null,null,0.5,null,null,null,0.5,null,null,null,0.5,0.5,null,null,0.5,0.5,null,null,0.5,null,null,null,0.5,0.5]
[null,"2018-01-05","am",null,0.5,0.5,null,null,0.5,0.5,null,null,0.5,0.5,null,null,0.5,null,null,null,0.5,null,null,null,0.5,0.5,null,null,0.5,0.5,null,null,0.5,null,null,null,0.5,0.5]
[null,null,"pm",null,0.5,0.5,null,null,0.5,0.5,null,null,0.5,0.5,null,null,0.5,null,null,null,0.5,null,null,null,0.5,0.5,null,null,0.5,0.5,null,null,0.5,null,null,null,0.5,0.5]
[2,"2018-01-08","am",null,0.5,null,null,null,0.5,0.5,null,null,0.5,0.5,null,null,0.5,null,null,null,0.5,null,null,null,0.5,0.5,null,null,0.5,0.5,null,null,0.5,null,null,null,0.5,0.5]
[null,null,"pm",null,0.5,null,null,null,0.5,0.5,null,null,0.5,0.5,null,null,0.5,null,null,null,0.5,null,null,null,0.5,0.5,null,null,0.5,0.5,null,null,0.5,0.5,null,null,0.5,0.5]
[null,"2018-01-09","am",null,0.5,null,null,null,0.5,0.5,null,null,0.5,0.5,null,null,0.5,null,null,null,0.5,null,null,null,0.5,0.5,null,null,0.5,null,null,null,0.5,0.5,null,null,0.5,0.5]
[null,null,"pm",null,0.5,null,null,null,0.5,0.5,null,null,0.5,0.5,null,null,0.5,null,null,null,0.5,null,null,null,0.5,0.5,null,null,0.5,0.5,null,null,0.5,0.5,null,null,0.5,0.5]
[null,"2018-01-10","am",null,0.5,null,null,null,0.5,0.5,null,null,0.5,0.5,null,null,0.5,null,null,null,0.5,null,null,null,0.5,0.5,null,null,0.5,0.5,null,null,0.5,0.5,null,null,0.5,0.5]
[null,null,"pm",null,0.5,null,null,null,0.5,0.5,null,null,0.5,0.5,null,null,0.5,null,null,null,0.5,null,null,null,0.5,0.5,null,null,0.5,0.5,null,null,0.5,0.5,null,null,0.5,0.5]
[null,"2018-01-11","am",null,0.5,null,null,null,0.5,0.5,null,null,0.5,0.5,null,null,0.5,null,null,null,0.5,null,null,null,0.5,0.5,null,null,0.5,0.5,null,null,0.5,0.5,null,null,0.5,0.5]
[null,null,"pm",null,0.5,null,null,null,0.5,0.5,null,null,0.5,0.5,null,null,0.5,null,null,null,0.5,null,null,null,0.5,0.5,null,null,0.5,0.5,null,null,0.5,null,null,null,0.5,0.5]
[null,"2018-01-12","am",null,0.5,null,null,null,0.5,0.5,null,null,0.5,0.5,null,null,0.5,null,null,null,0.5,null,null,null,0.5,0.5,null,null,0.5,null,null,null,0.5,null,null,null,0.5,0.5]
[null,null,"pm",null,0.5,null,null,null,0.5,0.5,null,null,0.5,0.5,null,null,0.5,null,null,null,0.5,null,null,null,0.5,0.5,null,null,0.5,0.5,null,null,0.5,null,null,null,0.5,0.5]
[3,"2018-01-15","am",null,0.5,null,null,null,0.5,0.5,null,null,0.5,0.5,null,null,0.5,null,null,null,0.5,null,null,null,0.5,0.5,null,null,0.5,0.5,null,null,0.5,null,null,null,0.5,0.5]
[null,null,"pm",null,0.5,null,null,null,0.5,0.5,null,null,0.5,0.5,null,null,0.5,null,null,null,0.5,null,null,null,0.5,0.5,null,null,0.5,0.5,null,null,0.5,null,null,null,0.5,0.5]
[null,"2018-01-16","am",null,0.5,null,null,null,0.5,0.5,null,null,0.5,0.5,null,null,0.5,null,null,null,0.5,null,null,null,0.5,0.5,null,null,0.5,0.5,null,null,0.5,null,null,null,0.5,0.5]
[null,null,"pm",null,0.5,null,null,null,0.5,0.5,null,null,0.5,0.5,null,null,0.5,null,null,null,0.5,null,null,null,0.5,0.5,null,null,0.5,0.5,null,null,0.5,null,null,null,0.5,0.5]
[null,"2018-01-17","am",null,0.5,null,null,null,0.5,0.5,null,null,0.5,0.5,null,null,0.5,null,null,null,0.5,null,null,null,0.5,0.5,null,null,0.5,0.5,null,null,0.5,null,null,null,0.5,0.5]
[null,null,"pm",null,0.5,null,null,null,0.5,0.5,null,null,0.5,0.5,null,null,0.5,null,null,null,0.5,null,null,null,0.5,0.5,null,null,0.5,null,null,null,0.5,null,null,null,0.5,0.5]
[null,"2018-01-18","am",null,0.5,null,null,null,0.5,0.5,null,null,0.5,0.5,null,null,0.5,0.5,null,null,0.5,null,null,null,0.5,0.5,null,null,0.5,0.5,null,null,0.5,0.5,null,null,0.5,0.5]
[null,null,"pm",null,0.5,null,null,null,0.5,0.5,null,null,0.5,null,null,null,0.5,0.5,null,null,0.5,null,null,null,0.5,0.5,null,null,0.5,0.5,null,null,0.5,0.5,null,null,0.5,0.5]
[null,"2018-01-19","am",null,0.5,null,null,null,0.5,0.5,null,null,0.5,null,null,null,0.5,0.5,null,null,0.5,null,null,null,0.5,0.5,null,null,0.5,0.5,null,null,0.5,0.5,null,null,0.5,0.5]
[null,null,"pm",null,0.5,null,null,null,0.5,0.5,null,null,0.5,null,null,null,0.5,0.5,null,null,0.5,null,null,null,0.5,0.5,null,null,0.5,0.5,null,null,0.5,0.5,null,null,0.5,0.5]
[4,"2018-01-22","am",null,0.5,0.5,null,null,0.5,0.5,null,null,0.5,null,null,null,0.5,0.5,null,null,0.5,null,null,null,0.5,0.5,null,null,0.5,0.5,null,null,0.5,0.5,null,null,0.5,0.5]
[null,null,"pm",null,0.5,0.5,null,null,0.5,0.5,null,null,0.5,null,null,null,0.5,0.5,null,null,0.5,null,null,null,0.5,null,null,null,0.5,0.5,null,null,0.5,null,null,null,0.5,0.5]
[null,"2018-01-23","am",null,0.5,0.5,null,null,0.5,0.5,null,null,0.5,null,null,null,0.5,0.5,null,null,0.5,null,null,null,0.5,null,null,null,0.5,0.5,null,null,0.5,null,null,null,0.5,0.5]
[null,null,"pm",null,0.5,0.5,null,null,0.5,0.5,null,null,0.5,null,null,null,0.5,0.5,null,null,0.5,0.5,null,null,0.5,null,null,null,0.5,null,null,null,0.5,null,null,null,0.5,0.5]
[null,"2018-01-24","am",null,0.5,0.5,null,null,0.5,0.5,null,null,0.5,null,null,null,0.5,0.5,null,null,0.5,0.5,null,null,0.5,null,null,null,0.5,0.5,null,null,0.5,null,null,null,0.5,0.5]
[null,null,"pm",null,0.5,0.5,null,null,0.5,0.5,null,null,0.5,null,null,null,0.5,0.5,null,null,0.5,0.5,null,null,0.5,null,null,null,0.5,0.5,null,null,0.5,null,null,null,0.5,0.5]
[null,"2018-01-25","am",null,0.5,0.5,null,null,0.5,0.5,null,null,0.5,null,null,null,0.5,0.5,null,null,0.5,0.5,null,null,0.5,null,null,null,0.5,0.5,null,null,0.5,null,null,null,0.5,0.5]
[null,null,"pm",null,0.5,0.5,null,null,0.5,0.5,null,null,0.5,null,null,null,0.5,0.5,null,null,0.5,0.5,null,null,0.5,null,null,null,0.5,0.5,null,null,0.5,0.5,null,null,0.5,0.5]
[null,"2018-01-26","am",null,0.5,0.5,null,null,0.5,0.5,null,null,0.5,null,null,null,0.5,0.5,null,null,0.5,0.5,null,null,0.5,null,null,null,0.5,0.5,null,null,0.5,0.5,null,null,0.5,0.5]
[null,null,"pm",null,0.5,0.5,null,null,0.5,0.5,null,null,0.5,null,null,null,0.5,0.5,null,null,0.5,0.5,null,null,0.5,null,null,null,0.5,0.5,null,null,0.5,0.5,null,null,0.5,0.5]
[5,"2018-01-29","am",null,0.5,0.5,null,null,0.5,0.5,null,null,0.5,null,null,null,0.5,0.5,null,null,0.5,0.5,null,null,0.5,null,null,null,0.5,0.5,null,null,0.5,0.5,null,null,0.5,0.5]
[null,null,"pm",null,0.5,0.5,null,null,0.5,0.5,null,null,0.5,null,null,null,0.5,0.5,null,null,0.5,0.5,null,null,0.5,null,null,null,0.5,0.5,null,null,0.5,0.5,null,null,0.5,0.5]
[null,"2018-01-30","am",null,0.5,0.5,null,null,0.5,0.5,null,null,0.5,null,null,null,0.5,0.5,null,null,0.5,0.5,null,null,0.5,null,null,null,0.5,0.5,null,null,0.5,0.5,null,null,0.5,0.5]
[null,null,"pm",null,0.5,0.5,null,null,0.5,0.5,null,null,0.5,0.5,null,null,0.5,0.5,null,null,0.5,0.5,null,null,0.5,null,null,null,0.5,0.5,null,null,0.5,0.5,null,null,0.5,0.5]
[null,"2018-01-31","am",null,0.5,0.5,null,null,0.5,0.5,null,null,0.5,0.5,null,null,0.5,0.5,null,null,0.5,0.5,null,null,0.5,0.5,null,null,0.5,0.5,null,null,0.5,0.5,null,null,0.5,0.5]
[null,null,"pm",null,0.5,0.5,null,null,0.5,0.5,null,null,0.5,0.5,null,null,0.5,0.5,null,null,0.5,0.5,null,null,0.5,0.5,null,null,0.5,0.5,null,null,0.5,0.5,null,null,0.5,0.5]
[null,"FEVRIER"]
[5,"2018-02-01","am",{"$f":"Fevrier!D5","v":0},{"$f":"Fevrier!E5","v":0.5},{"$f":"Fevrier!F5","v":0.5},{"$f":"Fevrier!G5","v":0},{"$f":"Fevrier!H5","v":"ORANGE\n2x EP02 1H30\nERAGNY 95"},{"$f":"Fevrier!I5","v":0.5},{"$f":"Fevrier!J5","v":0.5},{"$f":"Fevrier!K5","v":"C"},{"$f":"Fevrier!L5","v":"ORANGE\n2x EP02 1H30\nERAGNY 95"},{"$f":"Fevrier!M5","v":0.5},{"$f":"Fevrier!N5","v":0.5},{"$f":"Fevrier!O5","v":"C"},{"$f":"Fevrier!P5","v":"ORANGE\n2x EP02 1H30\nERAGNY 95"},{"$f":"Fevrier!Q5","v":0.5},{"$f":"Fevrier!R5","v":0.5},{"$f":"Fevrier!S5","v":"C"},{"$f":"Fevrier!T5","v":"ORANGE\n2x EP02 1H30\nERAGNY 95"},{"$f":"Fevrier!U5","v":0.5},{"$f":"Fevrier!V5","v":0.5},{"$f":"Fevrier!W5","v":"C"},{"$f":"Fevrier!X5","v":0},{"$f":"Fevrier!Y5","v":0.5},{"$f":"Fevrier!Z5","v":0.5},{"$f":"Fevrier!AA5","v":0},{"$f":"Fevrier!AB5","v":"SANOFI\nI202 3H\nCHARTRES 45"},{"$f":"Fevrier!AC5","v":0.5},{"$f":"Fevrier!AD5","v":0.5},{"$f":"Fevrier!AE5","v":"O"},{"$f":"Fevrier!AF5","v":0},{"$f":"Fevrier!AG5","v":0.5},{"$f":"Fevrier!AH5","v":0.5},{"$f":"Fevrier!AI5","v":0},{"$f":"Fevrier!AJ5","v":0},{"$f":"Fevrier!AK5","v":0.5},{"$f":"Fevrier!AL5","v":0.5},{"$f":"Fevrier!AM5","v":0},{"$f":"Fevrier!AN5","v":0},{"$f":"Fevrier!AO5","v":0.5},{"$f":"Fevrier!AP5","v":0.5},{"$f":"Fevrier!AQ5","v":0},{"$f":"Fevrier!AR5","v":0},{"$f":"Fevrier!AS5","v":0.5},{"$f":"Fevrier!AT5","v":0.5},{"$f":"Fevrier!AU5","v":0},{"$f":"Fevrier!AV5","v":"ORANGE\n2x EP02 1H30\nERAGNY 95"},{"$f":"Fevrier!AW5","v":0.5},{"$f":"Fevrier!AX5","v":0.5},{"$f":"Fevrier!AY5","v":"C"}]
[null,null,"pm",{"$f":"Fevrier!D6","v":"ORANGE\n2x EP02 1H30\nERAGNY 95"},{"$f":"Fevrier!E6","v":0.5},{"$f":"Fevrier!F6","v":0.5},{"$f":"Fevrier!G6","v":"C"},{"$f":"Fevrier!H6","v":0},{"$f":"Fevrier!I6","v":0.5},{"$f":"Fevrier!J6","v":0.5},{"$f":"Fevrier!K6","v":0},{"$f":"Fevrier!L6","v":0},{"$f":"Fevrier!M6","v":0.5},{"$f":"Fevrier!N6","v":0.5},{"$f":"Fevrier!O6","v":0},{"$f":"Fevrier!P6","v":0},{"$f":"Fevrier!Q6","v":0.5},{"$f":"Fevrier!R6","v":0.5},{"$f":"Fevrier!S6","v":0},{"$f":"Fevrier!T6","v":0},{"$f":"Fevrier!U6","v":0.5},{"$f":"Fevrier!V6","v":0.5},{"$f":"Fevrier!W6","v":0},{"$f":"Fevrier!X6","v":0},{"$f":"Fevrier!Y6","v":0.5},{"$f":"Fevrier!Z6","v":0.5},{"$f":"Fevrier!AA6","v":0},{"$f":"Fevrier!AB6","v":0},{"$f":"Fevrier!AC6","v":0.5},{"$f":"Fevrier!AD6","v":0.5},{"$f":"Fevrier!AE6","v":0},{"$f":"Fevrier!AF6","v":"SANOFI\nI202 3H\nCHARTRES 45"},{"$f":"Fevrier!AG6","v":0.5},{"$f":"Fevrier!AH6","v":0.5},{"$f":"Fevrier!AI6","v":"O"},{"$f":"Fevrier!AJ6","v":0},{"$f":"Fevrier!AK6","v":0.5},{"$f":"Fevrier!AL6","v":0.5},{"$f":"Fevrier!AM6","v":0},{"$f":"Fevrier!AN6","v":0},{"$f":"Fevrier!AO6","v":0.5},{"$f":"Fevrier!AP6","v":0.5},{"$f":"Fevrier!AQ6","v":0},{"$f":"Fevrier!AR6","v":0},{"$f":"Fevrier!AS6","v":0.5},{"$f":"Fevrier!AT6","v":0.5},{"$f":"Fevrier!AU6","v":0},{"$f":"Fevrier!AV6","v":0},{"$f":"Fevrier!AW6","v":0.5},{"$f":"Fevrier!AX6","v":0.5},{"$f":"Fevrier!AY6","v":0}]
[null,"2018-02-02","am",{"$f":"Fevrier!D7","v":"ORANGE\n2x EP02 1H30\nERAGNY 95"},{"$f":"Fevrier!E7","v":0.5},{"$f":"Fevrier!F7","v":0.5},{"$f":"Fevrier!G7","v":"C"},{"$f":"Fevrier!H7","v":0},{"$f":"Fevrier!I7","v":0.5},{"$f":"Fevrier!J7","v":0.5},{"$f":"Fevrier!K7","v":0},{"$f":"Fevrier!L7","v":0},{"$f":"Fevrier!M7","v":0.5},{"$f":"Fevrier!N7","v":0.5},{"$f":"Fevrier!O7","v":0},{"$f":"Fevrier!P7","v":0},{"$f":"Fevrier!Q7","v":0.5},{"$f":"Fevrier!R7","v":0.5},{"$f":"Fevrier!S7","v":0},{"$f":"Fevrier!T7","v":0},{"$f":"Fevrier!U7","v":0.5},{"$f":"Fevrier!V7","v":0.5},{"$f":"Fevrier!W7","v":0},{"$f":"Fevrier!X7","v":0},{"$f":"Fevrier!Y7","v":0.5},{"$f":"Fevrier!Z7","v":0.5},{"$f":"Fevrier!AA7","v":0},{"$f":"Fevrier!AB7","v":"SANOFI\nI202 3H\nCHARTRES 45"},{"$f":"Fevrier!AC7","v":0.5},{"$f":"Fevrier!AD7","v":0.5},{"$f":"Fevrier!AE7","v":"C"},{"$f":"Fevrier!AF7","v":0},{"$f":"Fevrier!AG7","v":0.5},{"$f":"Fevrier!AH7","v":0.5},{"$f":"Fevrier!AI7","v":0},{"$f":"Fevrier!AJ7","v":0},{"$f":"Fevrier!AK7","v":0.5},{"$f":"Fevrier!AL7","v":0.5},{"$f":"Fevrier!AM7","v":0},{"$f":"Fevrier!AN7","v":0},{"$f":"Fevrier!AO7","v":0.5},{"$f":"Fevrier!AP7","v":0.5},{"$f":"Fevrier!AQ7","v":0},{"$f":"Fevrier!AR7","v":0},{"$f":"Fevrier!AS7","v":0.5},{"$f":"Fevrier!AT7","v":0.5},{"$f":"Fevrier!AU7","v":0},{"$f":"Fevrier!AV7","v":"SANOFI\nI202 3H\nCHARTRES 45"},{"$f":"Fevrier!AW7","v":0.5},{"$f":"Fevrier!AX7","v":0.5},{"$f":"Fevrier!AY7","v":"O"}]
[null,null,"pm",{"$f":"Fevrier!D8","v":"ORANGE\n2x EP02 1H30\nERAGNY 95"},{"$f":"Fevrier!E8","v":0.5},{"$f":"Fevrier!F8","v":0.5},{"$f":"Fevrier!G8","v":"C"},{"$f":"Fevrier!H8","v":"SANOFI\nI202 3H\nCHARTRES 45"},{"$f":"Fevrier!I8","v":0.5},{"$f":"Fevrier!J8","v":0.5},{"$f":"Fevrier!K8","v":"C"},{"$f":"Fevrier!L8","v":"SANOFI\nI202 3H\nCHARTRES 45"},{"$f":"Fevrier!M8","v":0.5},{"$f":"Fevrier!N8","v":0.5},{"$f":"Fevrier!O8","v":"O"},{"$f":"Fevrier!P8","v":"SANOFI\nI202 3H\nCHARTRES 45"},{"$f":"Fevrier!Q8","v":0.5},{"$f":"Fevrier!R8","v":0.5},{"$f":"Fevrier!S8","v":"C"},{"$f":"Fevrier!T8","v":0},{"$f":"Fevrier!U8","v":0.5},{"$f":"Fevrier!V8","v":0.5},{"$f":"Fevrier!W8","v":0},{"$f":"Fevrier!X8","v":0},{"$f":"Fevrier!Y8","v":0.5},{"$f":"Fevrier!Z8","v":0.5},{"$f":"Fevrier!AA8","v":0},{"$f":"Fevrier!AB8","v":"SANOFI\nI202 3H\nCHARTRES 45"},{"$f":"Fevrier!AC8","v":0.5},{"$f":"Fevrier!AD8","v":0.5},{"$f":"Fevrier!AE8","v":"C"},{"$f":"Fevrier!AF8","v":"SANOFI\nI202 3H\nCHARTRES 45"},{"$f":"Fevrier!AG8","v":0.5},{"$f":"Fevrier!AH8","v":0.5},{"$f":"Fevrier!AI8","v":"O"},{"$f":"Fevrier!AJ8","v":0},{"$f":"Fevrier!AK8","v":0.5},{"$f":"Fevrier!AL8","v":0.5},{"$f":"Fevrier!AM8","v":0},{"$f":"Fevrier!AN8","v":0},{"$f":"Fevrier!AO8","v":0.5},{"$f":"Fevrier!AP8","v":0.5},{"$f":"Fevrier!AQ8","v":0},{"$f":"Fevrier!AR8","v":0},{"$f":"Fevrier!AS8","v":0.5},{"$f":"Fevrier!AT8","v":0.5},{"$f":"Fevrier!AU8","v":0},{"$f":"Fevrier!AV8","v":"SANOFI\nI202 3H\nCHARTRES 45"},{"$f":"Fevrier!AW8","v":0.5},{"$f":"Fevrier!AX8","v":0.5},{"$f":"Fevrier!AY8","v":"O"}]

{"sheet":"Fevrier","index":2,"n_rows":44,"n_cols":51,"rows_kept":44,"cut":false,"hidden":false,"merged":[[24,46,25,46],[24,50,25,50],[0,47,1,50],[14,46,15,46],[14,50,15,50],[22,46,23,46],[22,50,23,50],[24,42,25,42],[26,1,27,1],[26,15,27,15],[26,18,27,18],[38,0,43,0],[38,1,39,1],[42,1,43,1],[28,0,37,0],[28,1,29,1],[30,1,31,1],[32,1,33,1],[34,1,35,1],[36,1,37,1],[40,1,41,1],[14,42,15,42],[16,1,17,1],[16,10,17,10],[18,0,27,0],[18,1,19,1],[20,1,21,1],[20,15,21,15],[8,0,17,0],[8,1,9,1],[10,1,11,1],[14,1,15,1],[14,10,15,10],[22,1,23,1],[22,42,23,42],[24,1,25,1],[24,34,25,34],[0,35,1,38],[0,39,1,42],[0,43,1,46],[0,0,2,2],[0,3,1,6],[0,7,1,10],[0,11,1,14],[0,15,1,18],[0,19,1,22],[12,1,13,1],[0,23,1,26],[0,27,1,30],[0,31,1,34],[4,0,7,0],[4,1,5,1],[6,1,7,1]]}
["2018-02-01",null,null,"PHILIPPE (EP)",null,null,null,"ANDRE  (EP)",null,null,null,"(CM2)",null,null,null,"CHRISTIAN (CM1)",null,null,null,"Jean-Côme (Dragon)",null,null,null,"JEAN FRANCOIS",null,null,null,"ANTOINE Antoine",null,null,null,"THIERRY BINET",null,null,null,"PASCAL GARIN",null,null,null,"JORIS LONGFIER",null,null,null,"PRESTATAIRE",null,null,null,"COFISEC"]
[]
[null,null,null,{"$f":"F3/E3","v":1},{"$f":"SUM(E5:E38)","v":17},{"$f":"SUM(F5:F38)","v":17},5,{"$f":"J3/I3","v":1},{"$f":"SUM(I5:I38)","v":17},{"$f":"SUM(J5:J38)","v":17},12,null,{"$f":"SUM(M5:M38)","v":17},{"$f":"SUM(N5:N38)","v":17},null,{"$f":"R3/Q3","v":1},{"$f":"SUM(Q5:Q38)","v":17},{"$f":"SUM(R5:R38)","v":17},null,{"$f":"V3/U3","v":1},{"$f":"SUM(U5:U38)","v":17},{"$f":"SUM(V5:V38)","v":17},null,{"$f":"Z3/Y3","v":1},{"$f":"SUM(Y5:Y38)","v":17},{"$f":"SUM(Z5:Z38)","v":17},null,{"$f":"AD3/AC3","v":1},{"$f":"SUM(AC5:AC38)","v":17},{"$f":"SUM(AD5:AD38)","v":17},null,{"$f":"AH3/AG3","v":1},{"$f":"SUM(AG5:AG38)","v":17},{"$f":"SUM(AH5:AH38)","v":17},null,{"$f":"AL3/AK3","v":1},{"$f":"SUM(AK5:AK38)","v":17},{"$f":"SUM(AL5:AL38)","v":17},null,{"$f":"AP3/AO3","v":1},{"$f":"SUM(AO5:AO38)","v":17},{"$f":"SUM(AP5:AP38)","v":17},null,{"$f":"AT3/AS3","v":1},{"$f":"SUM(AS5:AS38)","v":17},{"$f":"SUM(AT5:AT38)","v":17},null,{"$f":"AX3/AW3","v":1},{"$f":"SUM(AW5:AW38)","v":17},{"$f":"SUM(AX5:AX38)","v":17}]
["SEM","JOUR","AM/PM","FORMATION","Ouv","trav","STATUT","FORMATION","Ouv","trav","STATUT","FORMATION","Ouv","trav","STATUT","FORMATION","Ouv","trav","STATUT","FORMATION","Ouv","trav","STATUT","FORMATION","Ouv","trav","STATUT","FORMATION","Ouv","trav","STATUT","FORMATION","Ouv","trav","STATUT","FORMATION","Ouv","trav","STATUT","FORMATION","Ouv","trav","STATUT","FORMATION","Ouv","trav","STATUT","FORMATION","Ouv","trav","STATUT"]
[5,"2018-02-01","am",null,0.5,0.5,null,"ORANGE\n2x EP02 1H30\nERAGNY 95",0.5,0.5,"C","ORANGE\n2x EP02 1H30\nERAGNY 95",0.5,0.5,"C","ORANGE\n2x EP02 1H30\nERAGNY 95",0.5,0.5,"C","ORANGE\n2x EP02 1H30\nERAGNY 95",0.5,0.5,"C",null,0.5,0.5,null,"SANOFI\nI202 3H\nCHARTRES 45",0.5,0.5,"O",null,0.5,0.5,null,null,0.5,0.5,null,null,0.5,0.5,null,null,0.5,0.5,null,"ORANGE\n2x EP02 1H30\nERAGNY 95",0.5,0.5,"C"]
[null,null,"pm","ORANGE\n2x EP02 1H30\nERAGNY 95",0.5,0.5,"C",null,0.5,0.5,null,null,0.5,0.5,null,null,0.5,0.5,null,null,0.5,0.5,null,null,0.5,0.5,null,null,0.5,0.5,null,"SANOFI\nI202 3H\nCHARTRES 45",0.5,0.5,"O",null,0.5,0.5,null,null,0.5,0.5,null,null,0.5,0.5,null,null,0.5,0.5]
[null,"2018-02-02","am","ORANGE\n2x EP02 1H30\nERAGNY 95",0.5,0.5,"C",null,0.5,0.5,null,null,0.5,0.5,null,null,0.5,0.5,null,null,0.5,0.5,null,null,0.5,0.5,null,"SANOFI\nI202 3H\nCHARTRES 45",0.5,0.5,"C",null,0.5,0.5,null,null,0.5,0.5,null,null,0.5,0.5,null,null,0.5,0.5,null,"SANOFI\nI202 3H\nCHARTRES 45",0.5,0.5,"O"]
[null,null,"pm","ORANGE\n2x EP02 1H30\nERAGNY 95",0.5,0.5,"C","SANOFI\nI202 3H\nCHARTRES 45",0.5,0.5,"C","SANOFI\nI202 3H\nCHARTRES 45",0.5,0.5,"O","SANOFI\nI202 3H\nCHARTRES 45",0.5,0.5,"C",null,0.5,0.5,null,null,0.5,0.5,null,"SANOFI\nI202 3H\nCHARTRES 45",0.5,0.5,"C","SANOFI\nI202 3H\nCHARTRES 45",0.5,0.5,"O",null,0.5,0.5,null,null,0.5,0.5,null,null,0.5,0.5,null,"SANOFI\nI202 3H\nCHARTRES 45",0.5,0.5,"O"]
[6,"2018-02-05","am",null,0.5,0.5,null,null,0.5,0.5,null,null,0.5,0.5,null,null,0.5,0.5,null,null,0.5,0.5,null,null,0.5,0.5,null,null,0.5,0.5,null,null,0.5,0.5,null,null,0.5,0.5,null,null,0.5,0.5,null,null,0.5,0.5,null,null,0.5,0.5]
[null,null,"pm",null,0.5,0.5,null,null,0.5,0.5,null,null,0.5,0.5,null,null,0.5,0.5,null,null,0.5,0.5,null,null,0.5,0.5,null,null,0.5,0.5,null,null,0.5,0.5,null,null,0.5,0.5,null,null,0.5,0.5,null,null,0.5,0.5,null,null,0.5,0.5]
[null,"2018-02-06","am",null,0.5,0.5,null,null,0.5,0.5,null,null,0.5,0.5,null,null,0.5,0.5,null,null,0.5,0.5,null,null,0.5,0.5,null,null,0.5,0.5,null,null,0.5,0.5,null,null,0.5,0.5,null,null,0.5,0.5,null,null,0.5,0.5,null,null,0.5,0.5]
[null,null,"pm",null,0.5,0.5,null,null,0.5,0.5,null,null,0.5,0.5,null,null,0.5,0.5,null,null,0.5,0.5,null,null,0.5,0.5,null,null,0.5,0.5,null,null,0.5,0.5,null,null,0.5,0.5,null,null,0.5,0.5,null,null,0.5,0.5,null,null,0.5,0.5]
[null,"2018-02-07","am",null,0.5,0.5,null,null,0.5,0.5,null,null,0.5,0.5,null,null,0.5,0.5,null,null,0.5,0.5,null,null,0.5,0.5,null,null,0.5,0.5,null,null,0.5,0.5,null,null,0.5,0.5,null,null,0.5,0.5,null,null,0.5,0.5,null,null,0.5,0.5]
[null,null,"pm",null,0.5,0.5,null,null,0.5,0.5,null,null,0.5,0.5,null,null,0.5,0.5,null,null,0.5,0.5,null,null,0.5,0.5,null,null,0.5,0.5,null,null,0.5,0.5,null,null,0.5,0.5,null,null,0.5,0.5,null,null,0.5,0.5,null,null,0.5,0.5]
[null,"2018-02-08","am",null,0.5,0.5,null,null,0.5,0.5,null,null,0.5,0.5,null,null,0.5,0.5,null,null,0.5,0.5,null,null,0.5,0.5,null,null,0.5,0.5,null,null,0.5,0.5,null,null,0.5,0.5,null,null,0.5,0.5,null,null,0.5,0.5,null,null,0.5,0.5]
[null,null,"pm",null,0.5,0.5,null,null,0.5,0.5,null,null,0.5,0.5,null,null,0.5,0.5,null,null,0.5,0.5,null,null,0.5,0.5,null,null,0.5,0.5,null,null,0.5,0.5,null,null,0.5,0.5,null,null,0.5,0.5,null,null,0.5,0.5,null,null,0.5,0.5]
[null,"2018-02-09","am",null,0.5,0.5,null,null,0.5,0.5,null,null,0.5,0.5,null,null,0.5,0.5,null,null,0.5,0.5,null,null,0.5,0.5,null,null,0.5,0.5,null,null,0.5,0.5,null,null,0.5,0.5,null,null,0.5,0.5,null,null,0.5,0.5,null,null,0.5,0.5]
[null,null,"pm",null,0.5,0.5,null,null,0.5,0.5,null,null,0.5,0.5,null,null,0.5,0.5,null,null,0.5,0.5,null,null,0.5,0.5,null,null,0.5,0.5,null,null,0.5,0.5,null,null,0.5,0.5,null,null,0.5,0.5,null,null,0.5,0.5,null,null,0.5,0.5]
[7,"2018-02-12","am",null,0.5,0.5,null,null,0.5,0.5,null,null,0.5,0.5,null,null,0.5,0.5,null,null,0.5,0.5,null,null,0.5,0.5,null,null,0.5,0.5,null,null,0.5,0.5,null,null,0.5,0.5,null,null,0.5,0.5,null,null,0.5,0.5,null,null,0.5,0.5]
[null,null,"pm",null,0.5,0.5,null,null,0.5,0.5,null,null,0.5,0.5,null,null,0.5,0.5,null,null,0.5,0.5,null,null,0.5,0.5,null,null,0.5,0.5,null,null,0.5,0.5,null,null,0.5,0.5,null,null,0.5,0.5,null,null,0.5,0.5,null,null,0.5,0.5]
[null,"2018-02-13","am",null,0.5,0.5,null,null,0.5,0.5,null,null,0.5,0.5,null,null,0.5,0.5,null,null,0.5,0.5,null,null,0.5,0.5,null,null,0.5,0.5,null,null,0.5,0.5,null,null,0.5,0.5,null,null,0.5,0.5,null,null,0.5,0.5,null,null,0.5,0.5]
[null,null,"pm",null,0.5,0.5,null,null,0.5,0.5,null,null,0.5,0.5,null,null,0.5,0.5,null,null,0.5,0.5,null,null,0.5,0.5,null,null,0.5,0.5,null,null,0.5,0.5,null,null,0.5,0.5,null,null,0.5,0.5,null,null,0.5,0.5,null,null,0.5,0.5]
[null,"2018-02-14","am",null,0.5,0.5,null,null,0.5,0.5,null,null,0.5,0.5,null,null,0.5,0.5,null,null,0.5,0.5,null,null,0.5,0.5,null,null,0.5,0.5,null,null,0.5,0.5,null,null,0.5,0.5,null,null,0.5,0.5,null,null,0.5,0.5,null,null,0.5,0.5]
[null,null,"pm",null,0.5,0.5,null,null,0.5,0.5,null,null,0.5,0.5,null,null,0.5,0.5,null,null,0.5,0.5,null,null,0.5,0.5,null,null,0.5,0.5,null,null,0.5,0.5,null,null,0.5,0.5,null,null,0.5,0.5,null,null,0.5,0.5,null,null,0.5,0.5]
[null,"2018-02-15","am",null,0.5,0.5,null,null,0.5,0.5,null,null,0.5,0.5,null,null,0.5,0.5,null,null,0.5,0.5,null,null,0.5,0.5,null,null,0.5,0.5,null,null,0.5,0.5,null,null,0.5,0.5,null,null,0.5,0.5,null,null,0.5,0.5,null,null,0.5,0.5]
[null,null,"pm",null,0.5,0.5,null,null,0.5,0.5,null,null,0.5,0.5,null,null,0.5,0.5,null,null,0.5,0.5,null,null,0.5,0.5,null,null,0.5,0.5,null,null,0.5,0.5,null,null,0.5,0.5,null,null,0.5,0.5,null,null,0.5,0.5,null,null,0.5,0.5]
[null,"2018-02-16","am",null,0.5,0.5,null,null,0.5,0.5,null,null,0.5,0.5,null,null,0.5,0.5,null,null,0.5,0.5,null,null,0.5,0.5,null,null,0.5,0.5,null,null,0.5,0.5,null,null,0.5,0.5,null,null,0.5,0.5,null,null,0.5,0.5,null,null,0.5,0.5]
[null,null,"pm",null,0.5,0.5,null,null,0.5,0.5,null,null,0.5,0.5,null,null,0.5,0.5,null,null,0.5,0.5,null,null,0.5,0.5,null,null,0.5,0.5,null,null,0.5,0.5,null,null,0.5,0.5,null,null,0.5,0.5,null,null,0.5,0.5,null,null,0.5,0.5]
[8,"2018-02-19","am",null,0.5,0.5,null,null,0.5,0.5,null,null,0.5,0.5,null,null,0.5,0.5,null,null,0.5,0.5,null,null,0.5,0.5,null,null,0.5,0.5,null,null,0.5,0.5,null,null,0.5,0.5,null,null,0.5,0.5,null,null,0.5,0.5,null,null,0.5,0.5]
[null,null,"pm",null,0.5,0.5,null,null,0.5,0.5,null,null,0.5,0.5,null,null,0.5,0.5,null,null,0.5,0.5,null,null,0.5,0.5,null,null,0.5,0.5,null,null,0.5,0.5,null,null,0.5,0.5,null,null,0.5,0.5,null,null,0.5,0.5,null,null,0.5,0.5]
[null,"2018-02-20","am",null,0.5,0.5,null,null,0.5,0.5,null,null,0.5,0.5,null,null,0.5,0.5,null,null,0.5,0.5,null,null,0.5,0.5,null,null,0.5,0.5,null,null,0.5,0.5,null,null,0.5,0.5,null,null,0.5,0.5,null,null,0.5,0.5,null,null,0.5,0.5]
[null,null,"pm",null,0.5,0.5,null,null,0.5,0.5,null,null,0.5,0.5,null,null,0.5,0.5,null,null,0.5,0.5,null,null,0.5,0.5,null,null,0.5,0.5,null,null,0.5,0.5,null,null,0.5,0.5,null,null,0.5,0.5,null,null,0.5,0.5,null,null,0.5,0.5]
[null,"2018-02-21","am",null,0.5,0.5,null,null,0.5,0.5,null,null,0.5,0.5,null,null,0.5,0.5,null,null,0.5,0.5,null,null,0.5,0.5,null,null,0.5,0.5,null,null,0.5,0.5,null,null,0.5,0.5,null,null,0.5,0.5,null,null,0.5,0.5,null,null,0.5,0.5]
[null,null,"pm",null,0.5,0.5,null,null,0.5,0.5,null,null,0.5,0.5,null,null,0.5,0.5,null,null,0.5,0.5,null,null,0.5,0.5,null,null,0.5,0.5,null,null,0.5,0.5,null,null,0.5,0.5,null,null,0.5,0.5,null,null,0.5,0.5,null,null,0.5,0.5]
[null,"2018-02-22","am",null,0.5,0.5,null,null,0.5,0.5,null,null,0.5,0.5,null,null,0.5,0.5,null,null,0.5,0.5,null,null,0.5,0.5,null,null,0.5,0.5,null,null,0.5,0.5,null,null,0.5,0.5,null,null,0.5,0.5,null,null,0.5,0.5,null,null,0.5,0.5]
[null,null,"pm",null,0.5,0.5,null,null,0.5,0.5,null,null,0.5,0.5,null,null,0.5,0.5,null,null,0.5,0.5,null,null,0.5,0.5,null,null,0.5,0.5,null,null,0.5,0.5,null,null,0.5,0.5,null,null,0.5,0.5,null,null,0.5,0.5,null,null,0.5,0.5]
[null,"2018-02-23","am",null,0.5,0.5,null,null,0.5,0.5,null,null,0.5,0.5,null,null,0.5,0.5,null,null,0.5,0.5,null,null,0.5,0.5,null,null,0.5,0.5,null,null,0.5,0.5,null,null,0.5,0.5,null,null,0.5,0.5,null,null,0.5,0.5,null,null,0.5,0.5]
[null,null,"pm",null,0.5,0.5,null,null,0.5,0.5,null,null,0.5,0.5,null,null,0.5,0.5,null,null,0.5,0.5,null,null,0.5,0.5,null,null,0.5,0.5,null,null,0.5,0.5,null,null,0.5,0.5,null,null,0.5,0.5,null,null,0.5,0.5,null,null,0.5,0.5]
[9,"2018-02-26","am",null,0.5,0.5,null,null,0.5,0.5,null,null,0.5,0.5,null,null,0.5,0.5,null,null,0.5,0.5,null,null,0.5,0.5,null,null,0.5,0.5,null,null,0.5,0.5,null,null,0.5,0.5,null,null,0.5,0.5,null,null,0.5,0.5,null,null,0.5,0.5]
[null,null,"pm",null,0.5,0.5,null,null,0.5,0.5,null,null,0.5,0.5,null,null,0.5,0.5,null,null,0.5,0.5,null,null,0.5,0.5,null,null,0.5,0.5,null,null,0.5,0.5,null,null,0.5,0.5,null,null,0.5,0.5,null,null,0.5,0.5,null,null,0.5,0.5]
[null,"2018-02-27","am",null,0.5,0.5,null,null,0.5,0.5,null,null,0.5,0.5,null,null,0.5,0.5,null,null,0.5,0.5,null,null,0.5,0.5,null,null,0.5,0.5,null,null,0.5,0.5,null,null,0.5,0.5,null,null,0.5,0.5,null,null,0.5,0.5,null,null,0.5,0.5]
[null,null,"pm",null,0.5,0.5,null,null,0.5,0.5,null,null,0.5,0.5,null,null,0.5,0.5,null,null,0.5,0.5,null,null,0.5,0.5,null,null,0.5,0.5,null,null,0.5,0.5,null,null,0.5,0.5,null,null,0.5,0.5,null,null,0.5,0.5,null,null,0.5,0.5]
[null,"2018-02-28","am",null,0.5,0.5,null,null,0.5,0.5,null,null,0.5,0.5,null,null,0.5,0.5,null,null,0.5,0.5,null,null,0.5,0.5,null,null,0.5,0.5,null,null,0.5,0.5,null,null,0.5,0.5,null,null,0.5,0.5,null,null,0.5,0.5,null,null,0.5,0.5]
[null,null,"pm",null,0.5,0.5,null,null,0.5,0.5,null,null,0.5,0.5,null,null,0.5,0.5,null,null,0.5,0.5,null,null,0.5,0.5,null,null,0.5,0.5,null,null,0.5,0.5,null,null,0.5,0.5,null,null,0.5,0.5,null,null,0.5,0.5,null,null,0.5,0.5]

{"sheet":"mars","index":3,"n_rows":48,"n_cols":51,"rows_kept":48,"cut":false,"hidden":false,"merged":[[14,46,15,46],[22,46,23,46],[24,46,25,46],[0,47,1,50],[14,50,15,50],[22,50,23,50],[24,50,25,50],[0,43,1,46],[38,0,47,0],[28,0,37,0],[28,1,29,1],[30,1,31,1],[32,1,33,1],[34,1,35,1],[36,1,37,1],[38,1,39,1],[40,1,41,1],[42,1,43,1],[44,1,45,1],[46,1,47,1],[14,10,15,10],[14,42,15,42],[16,1,17,1],[16,10,17,10],[18,0,27,0],[18,1,19,1],[20,1,21,1],[20,15,21,15],[22,1,23,1],[22,42,23,42],[24,1,25,1],[24,42,25,42],[26,1,27,1],[26,15,27,15],[26,18,27,18],[4,0,7,0],[4,1,5,1],[6,1,7,1],[8,0,17,0],[8,1,9,1],[10,1,11,1],[12,1,13,1],[14,1,15,1],[0,23,1,26],[0,27,1,30],[0,31,1,34],[0,35,1,38],[0,39,1,42],[0,19,1,22],[0,0,2,2],[0,3,1,6],[0,7,1,10],[0,11,1,14],[0,15,1,18]]}
["2018-03-01",null,null,"PHILIPPE (EP)",null,null,null,"ANDRE  (EP)",null,null,null,"(CM2)",null,null,null,"CHRISTIAN (CM1)",null,null,null,"Jean-Côme (Dragon)",null,null,null,"JEAN FRANCOIS",null,null,null,"ANTOINE Antoine",null,null,null,"THIERRY BINET",null,null,null,"PASCAL GARIN",null,null,null,"JORIS LONGFIER",null,null,null,"PRESTATAIRE",null,null,null,"COFISEC"]
[]
[null,null,null,{"$f":"F3/E3","v":{"$error":"#DIV/0!"}},{"$f":"SUM(E5:E38)","v":0},{"$f":"SUM(F5:F38)","v":0},5,{"$f":"J3/I3","v":{"$error":"#DIV/0!"}},{"$f":"SUM(I5:I38)","v":0},{"$f":"SUM(J5:J38)","v":0},12,null,{"$f":"SUM(M5:M38)","v":0},{"$f":"SUM(N5:N38)","v":0},null,{"$f":"R3/Q3","v":{"$error":"#DIV/0!"}},{"$f":"SUM(Q5:Q38)","v":0},{"$f":"SUM(R5:R38)","v":0},null,{"$f":"V3/U3","v":{"$error":"#DIV/0!"}},{"$f":"SUM(U5:U38)","v":0},{"$f":"SUM(V5:V38)","v":0},null,{"$f":"Z3/Y3","v":{"$error":"#DIV/0!"}},{"$f":"SUM(Y5:Y38)","v":0},{"$f":"SUM(Z5:Z38)","v":0},null,{"$f":"AD3/AC3","v":{"$error":"#DIV/0!"}},{"$f":"SUM(AC5:AC38)","v":0},{"$f":"SUM(AD5:AD38)","v":0},null,{"$f":"AH3/AG3","v":{"$error":"#DIV/0!"}},{"$f":"SUM(AG5:AG38)","v":0},{"$f":"SUM(AH5:AH38)","v":0},null,{"$f":"AL3/AK3","v":{"$error":"#DIV/0!"}},{"$f":"SUM(AK5:AK38)","v":0},{"$f":"SUM(AL5:AL38)","v":0},null,{"$f":"AP3/AO3","v":{"$error":"#DIV/0!"}},{"$f":"SUM(AO5:AO38)","v":0},{"$f":"SUM(AP5:AP38)","v":0},null,{"$f":"AT3/AS3","v":{"$error":"#DIV/0!"}},{"$f":"SUM(AS5:AS38)","v":0},{"$f":"SUM(AT5:AT38)","v":0},null,{"$f":"AX3/AW3","v":{"$error":"#DIV/0!"}},{"$f":"SUM(AW5:AW38)","v":0},{"$f":"SUM(AX5:AX38)","v":0}]
["SEM","JOUR","AM/PM","FORMATION","Ouv","trav","STATUT","FORMATION","Ouv","trav","STATUT","FORMATION","Ouv","trav","STATUT","FORMATION","Ouv","trav","STATUT","FORMATION","Ouv","trav","STATUT","FORMATION","Ouv","trav","STATUT","FORMATION","Ouv","trav","STATUT","FORMATION","Ouv","trav","STATUT","FORMATION","Ouv","trav","STATUT","FORMATION","Ouv","trav","STATUT","FORMATION","Ouv","trav","STATUT","FORMATION","Ouv","trav","STATUT"]
[5,"2018-03-01","am",null,null,null,null,null,null,null,null,null,null,null,null,null,null,null,null,null,null,null,null,null,null,null,null,null,null,null,null,null,null,null,null,null,null,null,null,null,null,null,null,null,null,null,null,null,null,null,"C"]
[null,null,"pm",null,null,null,null,null,null,null,null,null,null,null,null,null,null,null,null,null,null,null,null,null,null,null,null,null,null,null,null,null,null,null,null,null,null,null,null,null,null,null,null,null,null,null,null,null,null,null,"C"]
[null,"2018-03-02","am",null,null,null,null,null,null,null,null,null,null,null,null,null,null,null,null,null,null,null,null,null,null,null,null,null,null,null,null,null,null,null,null,null,null,null,null,null,null,null,null,null,null,null,null,null,null,null,"C"]
[null,null,"pm",null,null,null,null,null,null,null,null,null,null,null,null,null,null,null,null,null,null,null,null,null,null,null,null,null,null,null,null,null,null,null,null,null,null,null,null,null,null,null,null,null,null,null,null,null,null,null,"C"]
[6,"2018-03-05","am"]
[null,null,"pm",null,null,null,null,null,null,null,null,null,null,null,null,null,null,null,null,null,null,null,null,null,null,null,null,null,null,null,null,null,null,null,null,null,null,null,null,null,null,null,null,null,null,null,null,null,null,null,"C"]
[null,"2018-03-06","am",null,null,null,null,null,null,null,null,null,null,null,null,null,null,null,null,null,null,null,null,null,null,null,null,null,null,null,null,null,null,null,null,null,null,null,null,null,null,null,null,null,null,null,null,null,null,null,"C"]
[null,null,"pm",null,null,null,null,null,null,null,null,null,null,null,null,null,null,null,null,null,null,null,null,null,null,null,null,null,null,null,null,null,null,null,null,null,null,null,null,null,null,null,null,null,null,null,null,null,null,null,"C"]
[null,"2018-03-07","am"]
[null,null,"pm"]
[null,"2018-03-08","am"]
[null,null,"pm"]
[null,"2018-03-09","am"]
[null,null,"pm",null,null,null,null,null,null,null,null,null,null,null,null,null,null,null,null,null,null,null,null,null,null,null,null,null,null,null,null,null,null,null,null,null,null,null,null,null,null,null,null,null,null,null,null,null,null,null,"F"]
[7,"2018-03-12","am",null,null,null,null,null,null,null,null,null,null,null,null,null,null,null,null,null,null,null,null,null,null,null,null,null,null,null,null,null,null,null,null,null,null,null,null,null,null,null,null,null,null,null,null,null,null,null,"V"]
[null,null,"pm",null,null,null,null,null,null,null,null,null,null,null,null,null,null,null,null,null,null,null,null,null,null,null,null,null,null,null,null,null,null,null,null,null,null,null,null,null,null,null,null,null,null,null,null,null,null,null,"F"]
[null,"2018-03-13","am",null,null,null,null,null,null,null,null,null,null,null,null,null,null,null,null,null,null,null,null,null,null,null,null,null,null,null,null,null,null,null,null,null,null,null,null,null,null,null,null,null,null,null,null,null,null,null,"F"]
[null,null,"pm",null,null,null,null,null,null,null,null,null,null,null,null,null,null,null,null,null,null,null,null,null,null,null,null,null,null,null,null,null,null,null,null,null,null,null,null,null,null,null,null,null,null,null,null,null,null,null,"F"]
[null,"2018-03-14","am",null,null,null,null,null,null,null,null,null,null,null,null,null,null,null,null,null,null,null,null,null,null,null,null,null,null,null,null,null,null,null,null,null,null,null,null,null,null,null,null,null,null,null,null,null,null,null,"F"]
[null,null,"pm"]
[null,"2018-03-15","am",null,null,null,null,null,null,null,null,null,null,null,null,null,null,null,null,null,null,null,null,null,null,null,null,null,null,null,null,null,null,null,null,null,null,null,null,null,null,null,null,null,null,null,null,null,null,null,"F"]
[null,null,"pm"]
[null,"2018-03-16","am"]
[null,null,"pm",null,null,null,null,null,null,null,null,null,null,null,null,null,null,null,null,null,null,null,null,null,null,null,null,null,null,null,null,null,null,null,null,null,null,null,null,null,null,null,null,null,null,null,null,null,null,null,"F"]
[8,"2018-03-19","am",null,null,null,null,null,null,null,null,null,null,null,null,null,null,null,null,null,null,null,null,null,null,null,null,null,null,null,null,null,null,null,null,null,null,null,null,null,null,null,null,null,null,null,null,null,null,null,"F"]
[null,null,"pm",null,null,null,null,null,null,null,null,null,null,null,null,null,null,null,null,null,null,null,null,null,null,null,null,null,null,null,null,null,null,null,null,null,null,null,null,null,null,null,null,null,null,null,null,null,null,null,"F"]
[null,"2018-03-20","am",null,null,null,null,null,null,null,null,null,null,null,null,null,null,null,null,null,null,null,null,null,null,null,null,null,null,null,null,null,null,null,null,null,null,null,null,null,null,null,null,null,null,null,null,null,null,null,"F"]
[null,null,"pm"]
[null,"2018-03-21","am"]
[null,null,"pm",null,null,null,null,null,null,null,null,null,null,null,null,null,null,null,null,null,null,null,null,null,null,null,null,null,null,null,null,null,null,null,null,null,null,null,null,null,null,null,null,null,null,null,null,null,null,null,"C+BL"]
[null,"2018-03-22","am",null,null,null,null,null,null,null,null,null,null,null,null,null,null,null,null,null,null,null,null,null,null,null,null,null,null,null,null,null,null,null,null,null,null,null,null,null,null,null,null,null,null,null,null,null,null,null,"C+BL"]
[null,null,"pm",null,null,null,null,null,null,null,null,null,null,null,null,null,null,null,null,null,null,null,null,null,null,null,null,null,null,null,null,null,null,null,null,null,null,null,null,null,null,null,null,null,null,null,null,null,null,null,"C+BL"]
[null,"2018-03-23","am",null,null,null,null,null,null,null,null,null,null,null,null,null,null,null,null,null,null,null,null,null,null,null,null,null,null,null,null,null,null,null,null,null,null,null,null,null,null,null,null,null,null,null,null,null,null,null,"C+BL"]
[null,null,"pm",null,null,null,null,null,null,null,null,null,null,null,null,null,null,null,null,null,null,null,null,null,null,null,null,null,null,null,null,null,null,null,null,null,null,null,null,null,null,null,null,null,null,null,null,null,null,null,"C+BL"]
[9,"2018-03-26","am"]
[null,null,"pm",null,null,null,null,null,null,null,null,null,null,null,null,null,null,null,null,null,null,null,null,null,null,null,null,null,null,null,null,null,null,null,null,null,null,null,null,null,null,null,null,null,null,null,null,null,null,null,"C"]
[null,"2018-03-27","am",null,null,null,null,null,null,null,null,null,null,null,null,null,null,null,null,null,null,null,null,null,null,null,null,null,null,null,null,null,null,null,null,null,null,null,null,null,null,null,null,null,null,null,null,null,null,null,"C"]
[null,null,"pm",null,null,null,null,null,null,null,null,null,null,null,null,null,null,null,null,null,null,null,null,null,null,null,null,null,null,null,null,null,null,null,null,null,null,null,null,null,null,null,null,null,null,null,null,null,null,null,"C"]
[null,"2018-03-28","am"]
[null,null,"pm"]
[null,"2018-03-29","am"]
[null,null,"pm"]
[null,"2018-03-30","am"]
[null,null,"pm"]

{"sheet":"Juillet","index":4,"n_rows":46,"n_cols":43,"rows_kept":46,"cut":false,"hidden":false,"merged":[[42,1,43,1],[44,0,45,0],[44,1,45,1],[34,0,43,0],[34,1,35,1],[36,1,37,1],[36,6,37,6],[30,1,31,1],[38,1,39,1],[40,1,41,1],[40,6,41,6],[24,19,25,19],[26,1,27,1],[32,1,33,1],[26,23,27,23],[26,26,27,26],[28,1,29,1],[28,26,29,26],[12,1,13,1],[12,6,13,6],[24,0,33,0],[24,1,25,1],[24,10,25,10],[18,23,19,23],[18,26,19,26],[22,1,23,1],[22,3,23,3],[22,6,23,6],[22,10,23,10],[22,23,23,23],[0,35,1,38],[4,10,5,10],[0,19,1,22],[0,0,2,2],[14,0,23,0],[14,1,15,1],[16,1,17,1],[18,1,19,1],[4,0,13,0],[20,1,21,1],[4,1,5,1],[6,1,7,1],[20,26,21,26],[10,1,11,1],[10,10,11,10],[22,26,23,26],[10,38,11,38],[8,1,9,1],[8,15,9,15],[8,18,9,18],[8,38,9,38],[4,42,5,42],[4,38,5,38],[4,22,5,22],[4,30,5,30],[0,3,1,6],[0,7,1,10],[0,11,1,14],[0,15,1,18],[4,39,5,39],[0,39,1,42],[4,11,5,11],[4,14,5,14],[0,23,1,26],[0,27,1,30],[0,31,1,34],[4,6,5,6]]}
["2017-07-01",null,null,"PHILIPPE (EP)",null,null,null,"ANDRE  (EP)",null,null,null,"THIERRY (CM2)",null,null,null,"CHRISTIAN (CM1)",null,null,null,"Jean-Côme (Dragon)",null,null,null,"JEAN FRANCOIS",null,null,null,"NICOLAS",null,null,null,"THIERRY BINET",null,null,null,"PASCAL GARIN",null,null,null,"JORIS LONGFIER"]
[]
[null,null,null,{"$f":"F3/E3","v":0.15789473684210525},{"$f":"SUM(E5:E46)","v":19},{"$f":"SUM(F5:F46)","v":3},1,{"$f":"J3/I3","v":0.10526315789473684},{"$f":"SUM(I5:I46)","v":19},{"$f":"SUM(J5:J46)","v":2},1,{"$f":"N3/M3","v":0.15},{"$f":"SUM(M5:M46)","v":20},{"$f":"SUM(N5:N46)","v":3},null,{"$f":"R3/Q3","v":1},{"$f":"SUM(Q5:Q46)","v":14},{"$f":"SUM(R5:R46)","v":14},6,{"$f":"V3/U3","v":0.4},{"$f":"SUM(U5:U46)","v":17.5},{"$f":"SUM(V5:V46)","v":7},null,{"$f":"Z3/Y3","v":0.44736842105263158},{"$f":"SUM(Y5:Y46)","v":19},{"$f":"SUM(Z5:Z46)","v":8.5},1,{"$f":"AD3/AC3","v":0},{"$f":"SUM(AC5:AC46)","v":15},{"$f":"SUM(AD5:AD46)","v":0},5,{"$f":"AH3/AG3","v":0.66666666666666663},{"$f":"SUM(AG5:AG46)","v":12},{"$f":"SUM(AH5:AH46)","v":8},8,{"$f":"AL3/AK3","v":0},{"$f":"SUM(AK5:AK46)","v":5},{"$f":"SUM(AL5:AL46)","v":0},16,{"$f":"AP3/AO3","v":0.46153846153846156},{"$f":"SUM(AO5:AO46)","v":19.5},{"$f":"SUM(AP5:AP46)","v":9},0]
["SEM","JOUR","AM/PM","FORMATION","Ouv","trav","STATUT","FORMATION","Ouv","trav","STATUT","FORMATION","Ouv","trav","STATUT","FORMATION","Ouv","trav","STATUT","FORMATION","Ouv","trav","STATUT","FORMATION","Ouv","trav","STATUT","FORMATION","Ouv","trav","STATUT","FORMATION","Ouv","trav","STATUT","FORMATION","Ouv","trav","STATUT","FORMATION","Ouv","trav","STATUT"]
[27,"2017-07-03","am","MAC DO \nEPI 4 sessions\n75015",0.5,0.5,"F",null,0.5,null,null,null,0.5,null,null,"Advantages  Services\nAudit / Conseil\nIle de France ",0.5,0.5,"C","ROUTE",0.5,0.5,null,"GIVAUDAN LAVIROTTE\nrecyclage ESI avec mousse\nLYON",0.5,0.5,"F","VACANCES",null,null,null,"Socorail i03\n9H-12H \nLe Havre ",0.5,0.5,"F","VACANCES",null,null,null,"LET SERVICES I203R VERN SUR SEICHE (35) 10h00",0.5,null,"report"]
[null,null,"pm","MAC DO \nEPI 4 sessions\n75015",0.5,0.5,null,null,0.5,null,null,null,0.5,null,null,"Advantages  Services\nAudit / Conseil\nIle de France ",0.5,0.5,"C","ROUTE",0.5,0.5,null,"GIVAUDAN LAVIROTTE\nrecyclage ESI avec mousse\nLYON",0.5,0.5,"F","VACANCES",null,null,null,"Hopital Durécu\nI03\nDarnétal",0.5,0.5,"F","VACANCES",null,null,null,null,0.5]
[null,"2017-07-04","am",null,0.5,null,null,null,0.5,null,null,null,0.5,null,null,"Advantages  Services\nAudit / Conseil\nIle de France ",0.5,0.5,"C","Auberge de jeunesse fuaj\nEPI PYROS 1h30 + formation evac 1h30\nCarcassonne (11)",0.5,0.5,"F",null,0.5,null,null,"VACANCES",null,null,null,null,0.5,null,null,"VACANCES",null,null,null,"eudier brico le havre i03\n09 à 12",0.5,0.5,"F"]
[null,null,"pm",null,0.5,null,null,null,0.5,null,null,null,0.5,null,null,"Route",0.5,0.5,null,null,0.5,null,null,"SERENIDES ST JEAN\n3 rue des jardins\nCHATILLON EN DIOIS (26)\n450€",0.5,0.5,"F","VACANCES",null,null,null,"ROUTE",0.5,0.5,null,"VACANCES",null,null,null,"Socorail i03\n9H-12H \nLe Havre ",0.5,0.5,"F"]
[null,"2017-07-05","am",null,0.5,null,null,null,0.5,null,null,null,0.5,null,null,"THERMAL CERAMICS\n2 ESI 3H\nST MARCELLIN EN FOREZ (42)",0.5,0.5,"F",null,0.5,null,null,"SOCIETE FALLON\nEPI I03\n chez broux 74 ",0.5,0.5,"F","VACANCES",null,null,null,"CERP\nI204R\nLES SORINIERES 44",0.5,0.5,"F","VACANCES",null,null,null,"institut immaculé \nI03",0.5,0.5,"F"]
[null,null,"pm",null,0.5,null,null,null,0.5,null,null,null,0.5,null,null,null,0.5,0.5,null,null,0.5,null,null,"EMMAUS\nEXERCICE D'EVACUATION AVEC FUMEE AVEC RAPPORT\n74 CRANVES SALES 14h",0.5,0.5,"F","VACANCES",null,null,null,"CERP\nI202\nLES SORINIERES 44",0.5,0.5,"F","VACANCES",null,null,null,"institut immaculé \nI03",0.5,0.5,"F"]
[null,"2017-07-06","am",null,0.5,null,null,null,0.5,null,null,null,0.5,null,null,"THERMAL CERAMICS\n2 ESI 3H\nST MARCELLIN EN FOREZ (42)",0.5,0.5,"F","Lycee jeanne d'arc \n2 EPI 1h30 \nCarcassonne",0.5,0.5,"F","DECOPER\nEPI 4h\nCluses 74308",0.5,0.5,"F","VACANCES",null,null,null,"CERP\nSST02\nLES SORINIERES",0.5,0.5,"F","VACANCES",null,null,null,"axe métal\ni12 x2 à st désir 14",0.5,0.5,"F"]
[null,null,"pm",null,0.5,null,null,null,0.5,null,null,null,0.5,null,null,"Route",0.5,0.5,null,"Lycee jeanne d'arc \n2 EPI 1h30 \nCarcassonne",0.5,0.5,"F",null,0.5,null,null,"VACANCES",null,null,null,"CERP\nSST02\nLES SORINIERES",0.5,0.5,"F","VACANCES",null,null,null,"axe métal\ni12 x2 à st désir 15",0.5,0.5,"F"]
[null,"2017-07-07","am",null,0.5,null,null,null,0.5,null,null,null,0.5,null,null,"Advantages  Services\nAudit / Conseil\nIle de France ",0.5,0.5,"C","route",0.5,0.5,null,null,0.5,null,null,"VACANCES",null,null,null,"CERP\nI06 \nLES SORINIERES",0.5,0.5,"F","VACANCES",null,null,null,"KYNEXIA 8h-12h 27240 sylvains les moulins i06",0.5,0.5,"F"]
[null,null,"pm",null,0.5,null,null,null,0.5,null,null,null,0.5,null,null,"Advantages  Services\nAudit / Conseil\nIle de France ",0.5,0.5,"C",null,0.5,null,null,null,0.5,null,null,"VACANCES",null,null,null,"ROUTE",0.5,0.5,null,"VACANCES",null,null,null,"atelier",0.5,0.5]
[28,"2017-07-10","am",null,0.5,null,null,null,0.5,null,null,null,0.5,null,null,"Advantages  Services\nAudit / Conseil\nIle de France ",0.5,0.5,"C",null,0.5,null,null,"roulage",0.5,0.5,null,null,0.5,null,null,null,0.5,null,null,"VACANCES",null,null,null,"Socorail i03\n9H-12H \nLe Havre ",0.5,0.5,"F"]
[null,null,"pm",null,0.5,null,null,null,0.5,null,null,null,0.5,null,null,"Advantages  Services\nAudit / Conseil\nIle de France ",0.5,0.5,"C",null,0.5,null,null,"SFP NANTERRE",0.5,0.5,null,null,0.5,null,null,null,0.5,null,null,"VACANCES",null,null,null,"ATELIER",0.5,0.5]
[null,"2017-07-11","am",null,0.5,null,null,null,0.5,null,null,null,0.5,null,null,"Advantages  Services\nAudit / Conseil\nIle de France ",0.5,0.5,"C",null,0.5,null,null,"SFP NANTERRE",0.5,0.5,null,null,0.5,null,null,"Milton roy\n i106 avec ari\nPONT SAINT PIERRE 27",0.5,0.5,"F","VACANCES",null,null,null,"BIC TECHNOLOGIES\ni07x2 \nCLICHY 92",0.5,0.5,"F"]
[null,null,"pm",null,0.5,null,null,null,0.5,null,null,null,0.5,null,null,"Advantages  Services\nAudit / Conseil\nIle de France ",0.5,0.5,"C",null,0.5,null,null,"roulage",0.5,0.5,null,null,0.5,null,null,"Milton roy\n i106 avec ari\nPONT SAINT PIERRE 27",0.5,0.5,"F","VACANCES",null,null,null,"BIC TECHNOLOGIES\ni07x2 \nCLICHY 92",0.5,0.5,"F"]
[null,"2017-07-12","am",null,0.5,null,null,null,0.5,null,null,null,0.5,null,null,"Advantages  Services\nAudit / Conseil\nIle de France ",0.5,0.5,"C","VACANCES",null,null,null,"IVTEC\ni04 10h-12h \nMIONS 69",0.5,0.5,"F",null,0.5,null,null,"esi initial / milton roy\ni106 avec ari",0.5,0.5,"F","VACANCES",null,null,null,null,0.5]
[null,null,"pm",null,0.5,null,null,null,0.5,null,null,null,0.5,null,null,"Advantages  Services\nAudit / Conseil\nIle de France ",0.5,0.5,"C",null,0.5,null,null,null,0.5,0.5,null,null,0.5,null,null,null,0.5,null,null,"VACANCES",null,null,null,null,0.5]
[null,"2017-07-13","am",null,0.5,null,null,null,0.5,null,null,null,0.5,null,null,"Advantages  Services\nAudit / Conseil\nIle de France ",0.5,0.5,"C",null,0.5,null,null,null,0.5,null,null,null,0.5,null,null,null,0.5,null,null,"VACANCES",null,null,null,null,0.5]
[null,null,"pm",null,0.5,null,null,null,0.5,null,null,null,0.5,null,null,"Advantages  Services\nAudit / Conseil\nIle de France ",0.5,0.5,"C","Lycee Professionnel Val de Cher\nI03 3h\nSAINT AIGNAN 41",0.5,0.5,"C+BL",null,0.5,null,null,null,0.5,null,null,null,0.5,null,null,"VACANCES",null,null,null,null,0.5,0.5]
[null,"2017-07-14","am"]
[null,null,"pm"]
[29,"2017-07-17","am",null,0.5,null,null,null,0.5,null,null,null,0.5,null,null,"Advantages  Services\nAudit / Conseil\nIle de France ",0.5,0.5,"C","VITA COLOR\n1 DRA03 3H + Exo Evac sans fumée\nETRECHY 91",0.5,0.5,"C+BL",null,0.5,null,null,null,0.5,null,null,null,0.5,null,null,"VACANCES",null,null,null,null,0.5]
[null,null,"pm",null,0.5,null,null,null,0.5,null,null,null,0.5,null,null,"Advantages  Services\nAudit / Conseil\nIle de France ",0.5,0.5,"C",null,0.5,0.5,"C+BL",null,0.5,null,null,null,0.5,null,null,"ROUTE",0.5,0.5,null,"VACANCES",null,null,null,null,0.5]
[null,"2017-07-18","am","SST 01 PREVENTIQUE\nRouen",0.5,0.5,"C","SST 01 PREVENTIQUE\nRouen",0.5,0.5,"C","SST 01 PREVENTIQUE\nRouen",0.5,0.5,"C","Advantages  Services\nAudit / Conseil\nIle de France ",0.5,0.5,"C","SST 01 PREVENTIQUE\nRouen",0.5,0.5,"C","ALME\nI03 en 2h 10h-12h\nSEYNOD",0.5,0.5,"C+BL",null,0.5,null,null,"sst02 ime-itep à plouigneau (29)",0.5,0.5,"c","VACANCES",null,null,null,"SST 01 PREVENTIQUE\nRouen",0.5,0.5,"C"]
[null,null,"pm","SST 01 PREVENTIQUE\nRouen",0.5,0.5,"C","SST 01 PREVENTIQUE\nRouen",0.5,0.5,"C","SST 01 PREVENTIQUE\nRouen",0.5,0.5,"C","Advantages  Services\nAudit / Conseil\nIle de France ",0.5,0.5,"C","SST 01 PREVENTIQUE\nRouen",0.5,0.5,"C",null,0.5,0.5,null,null,0.5,null,null,"sst02 ime-itep à plouigneau (29)",0.5,0.5,"c","VACANCES",null,null,null,"SST 01 PREVENTIQUE\nRouen",0.5,0.5,"C"]
[null,"2017-07-19","am","SST 01 PREVENTIQUE\nRouen",0.5,0.5,"C","SST 01 PREVENTIQUE\nRouen",0.5,0.5,"C","SST 01 PREVENTIQUE\nRouen",0.5,0.5,"C",null,0.5,0.5,"C","SST 01 PREVENTIQUE\nRouen",0.5,0.5,"C",null,0.5,null,null,null,0.5,null,null,"ROUTE",0.5,0.5,null,"VACANCES",null,null,null,"SST 01 PREVENTIQUE\nRouen",0.5,0.5,"C"]
[null,null,"pm","SST 01 PREVENTIQUE\nRouen",0.5,0.5,"C","SST 01 PREVENTIQUE\nRouen",0.5,0.5,"C","SST 01 PREVENTIQUE\nRouen",0.5,0.5,"C","Advantages  Services\nAudit / Conseil\nIle de France ",0.5,0.5,"C","SST 01 PREVENTIQUE\nRouen",0.5,0.5,"C",null,0.5,null,null,null,0.5,null,null,null,0.5,null,null,"VACANCES",null,null,null,"SST 01 PREVENTIQUE\nRouen",0.5,0.5,"C"]
[null,"2017-07-20","am",null,0.5,null,null,null,0.5,null,null,null,0.5,null,null,"Advantages  Services\nAudit / Conseil\nIle de France ",0.5,0.5,"C","VACANCES",null,null,null,null,0.5,null,null,null,0.5,null,null,"VACANCES",null,null,null,"VACANCES"]
[null,null,"pm",null,0.5,null,null,null,0.5,null,null,"BIC I204R",0.5,0.5,"O","Advantages  Services\nAudit / Conseil\nIle de France ",0.5,0.5,"C",null,0.5,null,null,null,0.5,null,null,null,0.5,null,null,"VACANCES",null,null,null,"VACANCES",null,null,null,"14h  SPX  à Evreux I204R",0.5,0.5,"C+BL"]
[null,"2017-07-21","am",null,0.5,null,null,null,0.5,null,null,"RdV ACMS Nanterre",0.5,0.5,null,"Advantages  Services\nAudit / Conseil\nIle de France ",0.5,0.5,"C",null,null,null,null,null,0.5,null,null,null,0.5,null,null,"VACANCES",null,null,null,"VACANCES",null,null,null,null,0.5]
[null,null,"pm",null,0.5,null,null,null,0.5,null,null,null,0.5,null,null,"Advantages  Services\nAudit / Conseil\nIle de France ",0.5,0.5,"C","NETTO IO3 de 12h à 14h\n02310 charly s/marne ",0.5,0.5,"C",null,0.5,null,null,null,0.5,null,null,"VACANCES",null,null,null,"VACANCES",null,null,null,null,0.5]
[30,"2017-07-24","am",null,0.5,null,null,null,0.5,null,null,null,0.5,null,null,"VACANCES",null,null,null,null,0.5,null,null,"THIANTY\nEPI 2H de 10h à 12h\nALEX 74",0.5,0.5,"C",null,0.5,null,null,"VACANCES",null,null,null,"VACANCES",null,null,null,null,0.5]
[null,null,"pm",null,0.5,null,null,null,0.5,null,null,null,0.5,null,null,"VACANCES",null,null,null,null,0.5,null,null,null,0.5,null,null,null,0.5,null,null,"VACANCES",null,null,null,"VACANCES",null,null,null,null,0.5]
[null,"2017-07-25","am","hermes maroquinerie\n2 ep02 1h30\nbelley 01",0.5,null,"O",null,0.5,null,null,null,0.5,null,null,"VACANCES",null,null,null,null,0.5,null,null,null,0.5,null,null,null,0.5,null,null,"VACANCES",null,null,null,null,0.5,null,null,null,0.5]
[null,null,"pm",null,0.5,null,null,null,0.5,null,null,null,0.5,null,null,"VACANCES",null,null,null,null,0.5,null,null,null,0.5,null,null,null,0.5,null,null,"VACANCES",null,null,null,null,0.5,null,null,null,0.5]
[null,"2017-07-26","am",null,0.5,null,null,null,0.5,null,null,null,0.5,null,null,"VACANCES",null,null,null,null,0.5,null,null,"RDV PRACTICIMA REYRIEUX 01",0.5,0.5,"C",null,0.5,null,null,"VACANCES",null,null,null,null,0.5,null,null,null,0.5]
[null,null,"pm",null,0.5,null,null,null,0.5,null,null,null,0.5,null,null,"VACANCES",null,null,null,null,0.5,null,null,null,0.5,null,null,null,0.5,null,null,"VACANCES",null,null,null,null,0.5,null,null,null,0.5]
[null,"2017-07-27","am",null,0.5,null,null,null,0.5,null,null,null,0.5,null,null,"VACANCES",null,null,null,"VACANCES",null,null,null,null,0.5,null,null,null,0.5,null,null,"VACANCES",null,null,null,null,0.5,null,null,null,0.5]
[null,null,"pm",null,0.5,null,null,null,0.5,null,null,null,0.5,null,null,"VACANCES",null,null,null,null,0.5,null,null,"CLINIQUE ST CHARLES \nFORINCI13H - 13h-16h\nLYON 1",0.5,0.5,"C",null,0.5,null,null,"VACANCES",null,null,null,null,0.5,null,null,null,0.5]
[null,"2017-07-28","am",null,0.5,null,null,null,0.5,null,null,null,0.5,null,null,"VACANCES",null,null,null,"VACANCES",null,null,null,null,0.5,null,null,null,0.5,null,null,"VACANCES",null,null,null,null,0.5,null,null,"RECUP",0.5]
[null,null,"pm",null,0.5,null,null,null,0.5,null,null,null,0.5,null,null,"VACANCES",null,null,null,null,0.5,null,null,null,0.5,null,null,null,0.5,null,null,"VACANCES",null,null,null,null,0.5,null,null,"RECUP",0.5]
[31,"2017-07-31","am","VACANCES",null,null,null,"VACANCES",null,null,null,null,0.5,null,null,"VACANCES",null,null,null,null,0.5,null,null,"VACANCES",null,null,null,null,0.5,null,null,"VACANCES",null,null,null,null,0.5,null,null,"RECUP",0.5]
[null,null,"pm","VACANCES",null,null,null,"VACANCES",null,null,null,null,0.5,null,null,"VACANCES",null,null,null,null,0.5,null,null,"VACANCES",null,null,null,null,0.5,null,null,"VACANCES",null,null,null,null,0.5,null,null,"RECUP",0.5]

{"sheet":"Aout","index":5,"n_rows":50,"n_cols":43,"rows_kept":50,"cut":false,"hidden":false,"merged":[[42,0,49,0],[42,1,43,1],[44,1,45,1],[46,1,47,1],[48,1,49,1],[32,0,41,0],[32,1,33,1],[34,1,35,1],[36,1,37,1],[38,1,39,1],[40,1,41,1],[22,0,31,0],[22,1,23,1],[24,1,25,1],[24,18,25,18],[24,26,25,26],[26,1,27,1],[26,26,27,26],[28,1,29,1],[30,1,31,1],[20,1,21,1],[20,26,21,26],[10,1,11,1],[12,0,21,0],[12,1,13,1],[14,1,15,1],[16,1,17,1],[4,0,11,0],[4,1,5,1],[16,26,17,26],[18,1,19,1],[18,26,19,26],[6,19,7,19],[6,22,7,22],[6,35,7,35],[6,38,7,38],[8,1,9,1],[8,35,9,35],[8,38,9,38],[6,1,7,1],[6,6,7,6],[0,23,1,26],[0,27,1,30],[0,31,1,34],[0,35,1,38],[0,39,1,42],[0,19,1,22],[0,0,2,2],[0,3,1,6],[0,7,1,10],[0,11,1,14],[0,15,1,18]]}
["2017-08-01",null,null,"PHILIPPE (EP)",null,null,null,"ANDRE  (EP)",null,null,null,"THIERRY (CM2)",null,null,null,"CHRISTIAN (CM1)",null,null,null,"Jean-Côme (Dragon)",null,null,null,"JEAN FRANCOIS",null,null,null,"NICOLAS Antoine",null,null,null,"THIERRY BINET",null,null,null,"PASCAL GARIN",null,null,null,"JORIS LONGFIER"]
[]
[null,null,null,{"$f":"F3/E3","v":0},{"$f":"SUM(E5:E50)","v":4},{"$f":"SUM(F5:F46)","v":0},13,{"$f":"J3/I3","v":0},{"$f":"SUM(I5:I50)","v":4},{"$f":"SUM(J5:J46)","v":0},13,{"$f":"N3/M3","v":0},{"$f":"SUM(M5:M50)","v":8},{"$f":"SUM(N5:N46)","v":0},13,{"$f":"R3/Q3","v":1},{"$f":"SUM(Q5:Q50)","v":7},{"$f":"SUM(R5:R50)","v":7},19,{"$f":"V3/U3","v":0},{"$f":"SUM(U5:U50)","v":9},{"$f":"SUM(V5:V46)","v":0},12,{"$f":"Z3/Y3","v":0.25},{"$f":"SUM(Y5:Y50)","v":4},{"$f":"SUM(Z5:Z46)","v":1},17,{"$f":"AD3/AC3","v":0},{"$f":"SUM(AC5:AC50)","v":18},{"$f":"SUM(AD5:AD46)","v":0},3,{"$f":"AH3/AG3","v":0.1111111111111111},{"$f":"SUM(AG5:AG50)","v":9},{"$f":"SUM(AH5:AH46)","v":1},12,{"$f":"AL3/AK3","v":3.8461538461538464E-2},{"$f":"SUM(AK5:AK50)","v":13},{"$f":"SUM(AL5:AL46)","v":0.5},8,{"$f":"AP3/AO3","v":7.6923076923076927E-2},{"$f":"SUM(AO5:AO50)","v":6.5},{"$f":"SUM(AP5:AP46)","v":0.5},14]
["SEM","JOUR","AM/PM","FORMATION","Ouv","trav","STATUT","FORMATION","Ouv","trav","STATUT","FORMATION","Ouv","trav","STATUT","FORMATION","Ouv","trav","STATUT","FORMATION","Ouv","trav","STATUT","FORMATION","Ouv","trav","STATUT","FORMATION","Ouv","trav","STATUT","FORMATION","Ouv","trav","STATUT","FORMATION","Ouv","trav","STATUT","FORMATION","Ouv","trav","STATUT"]
[31,"2017-08-01","am","VACANCES",null,null,null,"VACANCES",null,null,null,null,0.5,null,null,"VACANCES",null,null,null,null,0.5,null,null,"VACANCES",null,null,null,null,0.5,null,null,"VACANCES",null,null,null,null,0.5,null,null,"RECUP",0.5]
[null,null,"pm","VACANCES",null,null,null,"VACANCES",null,null,null,null,0.5,null,null,"VACANCES",null,null,null,null,0.5,null,null,"VACANCES",null,null,null,null,0.5,null,null,"VACANCES",null,null,null,null,0.5,null,null,"RECUP",0.5]
[null,"2017-08-02","am","VACANCES",null,null,null,"VACANCES",null,null,null,null,0.5,null,null,"VACANCES",null,null,null,null,0.5,null,null,"VACANCES",null,null,null,null,0.5,null,null,"VACANCES",null,null,null,null,0.5,null,null,"RECUP",0.5]
[null,null,"pm","VACANCES",null,null,null,"VACANCES",null,null,null,null,0.5,null,null,"VACANCES",null,null,null,null,0.5,null,null,"VACANCES",null,null,null,null,0.5,null,null,"VACANCES",null,null,null,null,0.5,null,null,"RECUP",0.5]
[null,"2017-08-03","am","VACANCES",null,null,null,"VACANCES",null,null,null,null,0.5,null,null,"VACANCES",null,null,null,null,0.5,null,null,"VACANCES",null,null,null,null,0.5,null,null,"VACANCES",null,null,null,null,0.5,null,null,"RECUP",0.5]
[null,null,"pm","VACANCES",null,null,null,"VACANCES",null,null,null,null,0.5,null,null,"VACANCES",null,null,null,null,0.5,null,null,"VACANCES",null,null,null,null,0.5,null,null,"VACANCES",null,null,null,null,0.5,null,null,"RECUP",0.5]
[null,"2017-08-04","am","VACANCES",null,null,null,"VACANCES",null,null,null,null,0.5,null,null,"VACANCES",null,null,null,null,0.5,null,null,"VACANCES",null,null,null,null,0.5,null,null,"VACANCES",null,null,null,"Chariot Cat.3 St Léger",0.5,null,"O"]
[null,null,"pm","VACANCES",null,null,null,"VACANCES",null,null,null,null,0.5,null,null,"VACANCES",null,null,null,null,0.5,null,null,"VACANCES",null,null,null,null,0.5,null,null,"VACANCES",null,null,null,"Chariot Cat.3 St Léger",0.5,null,"O",null,0.5]
[32,"2017-08-07","am","VACANCES",null,null,null,"VACANCES",null,null,null,"VACANCES",null,null,null,"VACANCES",null,null,null,null,0.5,null,null,"VACANCES",null,null,null,null,0.5,null,null,"VACANCES",null,null,null,"VACANCES",null,null,null,null,0.5]
[null,null,"pm","VACANCES",null,null,null,"VACANCES",null,null,null,"VACANCES",null,null,null,"VACANCES",null,null,null,null,0.5,null,null,"VACANCES",null,null,null,null,0.5,null,null,"VACANCES",null,null,null,"VACANCES",null,null,null,null,0.5]
[null,"2017-08-08","am","VACANCES",null,null,null,"VACANCES",null,null,null,"VACANCES",null,null,null,"VACANCES",null,null,null,null,0.5,null,null,"VACANCES",null,null,null,null,0.5,null,null,"VACANCES",null,null,null,"VACANCES",null,null,null,"bronze alu i04 la couture boussey 27750 10h30-12h00",0.5,null,"C+BL"]
[null,null,"pm","VACANCES",null,null,null,"VACANCES",null,null,null,"VACANCES",null,null,null,"VACANCES",null,null,null,null,0.5,null,null,"VACANCES",null,null,null,null,0.5,null,null,"VACANCES",null,null,null,"VACANCES",null,null,null,null,0.5]
[null,"2017-08-09","am","VACANCES",null,null,null,"VACANCES",null,null,null,"VACANCES",null,null,null,"VACANCES",null,null,null,null,0.5,null,null,"VACANCES",null,null,null,null,0.5,null,null,"VACANCES",null,null,null,"VACANCES",null,null,null,"Formation masques\n filtrants entre 12h et 14h . Anthony",0.5,0.5,"C"]
[null,null,"pm","VACANCES",null,null,null,"VACANCES",null,null,null,"VACANCES",null,null,null,"VACANCES",null,null,null,null,0.5,null,null,"VACANCES",null,null,null,null,0.5,null,null,"VACANCES",null,null,null,"VACANCES",null,null,null,null,0.5]
[null,"2017-08-10","am","VACANCES",null,null,null,"VACANCES",null,null,null,"VACANCES",null,null,null,"VACANCES",null,null,null,"ROUTE",0.5,null,null,"VACANCES",null,null,null,null,0.5,null,null,"VACANCES",null,null,null,"VACANCES",null,null,null,"VACANCES"]
[null,null,"pm","VACANCES",null,null,null,"VACANCES",null,null,null,"VACANCES",null,null,null,"VACANCES",null,null,null,"ROUTE",0.5,null,null,"VACANCES",null,null,null,null,0.5,null,null,"VACANCES",null,null,null,"VACANCES",null,null,null,"VACANCES"]
[null,"2017-08-11","am","VACANCES",null,null,null,"VACANCES",null,null,null,"VACANCES",null,null,null,"VACANCES",null,null,null,"gémo\ni04\n saint martin des champs (29) ",0.5,null,"C+BL","VACANCES",null,null,null,null,0.5,null,null,"VACANCES",null,null,null,"VACANCES",null,null,null,"VACANCES"]
[null,null,"pm","VACANCES",null,null,null,"VACANCES",null,null,null,"VACANCES",null,null,null,"VACANCES",null,null,null,null,0.5,null,null,"VACANCES",null,null,null,null,0.5,null,null,"VACANCES",null,null,null,"VACANCES",null,null,null,"VACANCES"]
[33,"2017-08-14","am","RTT employeur",null,null,null,"RTT employeur",null,null,null,"RTT employeur",null,null,null,"RTT employeur",null,null,null,"RTT employeur",null,null,null,"RTT employeur",null,null,null,"RTT employeur",null,null,null,"RTT employeur",null,null,null,"RTT employeur",null,null,null,"RTT employeur"]
[null,null,"pm"]
[null,"2017-08-15","am"]
[null,null,"pm"]
[null,"2017-08-16","am","VACANCES",null,null,null,"VACANCES",null,null,null,"VACANCES",null,null,null,"VACANCES",null,null,null,"VACANCES",null,null,null,"VACANCES",null,null,null,"VACANCES",null,null,null,"VACANCES",null,null,null,"VACANCES",null,null,null,"VACANCES"]
[null,null,"pm","VACANCES",null,null,null,"VACANCES",null,null,null,"VACANCES",null,null,null,"VACANCES",null,null,null,"VACANCES",null,null,null,"VACANCES",null,null,null,"VACANCES",null,null,null,"VACANCES",null,null,null,"VACANCES",null,null,null,"VACANCES"]
[null,"2017-08-17","am","VACANCES",null,null,null,"VACANCES",null,null,null,"VACANCES",null,null,null,"VACANCES",null,null,null,"VACANCES",null,null,null,"VACANCES",null,null,null,"VACANCES",null,null,null,"VACANCES",null,null,null,"VACANCES",null,null,null,"VACANCES"]
[null,null,"pm","VACANCES",null,null,null,"VACANCES",null,null,null,"VACANCES",null,null,null,"VACANCES",null,null,null,"VACANCES",null,null,null,"VACANCES",null,null,null,"VACANCES",null,null,null,"VACANCES",null,null,null,"VACANCES",null,null,null,"VACANCES"]
[null,"2017-08-18","am","VACANCES",null,null,null,"VACANCES",null,null,null,"VACANCES",null,null,null,"VACANCES",null,null,null,"VACANCES",null,null,null,"VACANCES",null,null,null,"VACANCES",null,null,null,"VACANCES",null,null,null,"VACANCES",null,null,null,"VACANCES"]
[null,null,"pm","VACANCES",null,null,null,"VACANCES",null,null,null,"VACANCES",null,null,null,"VACANCES",null,null,null,"VACANCES",null,null,null,"VACANCES",null,null,null,"VACANCES",null,null,null,"VACANCES",null,null,null,"VACANCES",null,null,null,"VACANCES"]
[34,"2017-08-21","am","VACANCES",null,null,null,"VACANCES",null,null,null,"VACANCES",null,null,null,"VACANCES",null,null,null,"VACANCES",null,null,null,"VACANCES",null,null,null,null,0.5,null,null,null,0.5,null,null,null,0.5,null,null,"VACANCES"]
[null,null,"pm","VACANCES",null,null,null,"VACANCES",null,null,null,"VACANCES",null,null,null,"VACANCES",null,null,null,"VACANCES",null,null,null,"VACANCES",null,null,null,null,0.5,null,null,null,0.5,null,null,null,0.5,null,null,"VACANCES"]
[null,"2017-08-22","am","VACANCES",null,null,null,"VACANCES",null,null,null,"VACANCES",null,null,null,"VACANCES",null,null,null,"VACANCES",null,null,null,"VACANCES",null,null,null,null,0.5,null,null,"MEPLE\nI6\nTOURVILLE",0.5,null,"c",null,0.5,null,null,"VACANCES"]
[null,null,"pm","VACANCES",null,null,null,"VACANCES",null,null,null,"VACANCES",null,null,null,"VACANCES",null,null,null,"VACANCES",null,null,null,"VACANCES",null,null,null,null,0.5,null,null,"MEPLE\nI6\nTOURVILLE",0.5,null,"c",null,0.5,null,null,"VACANCES"]
[null,"2017-08-23","am","VACANCES",null,null,null,"VACANCES",null,null,null,"VACANCES",null,null,null,"Advantages  Services\nAudit / Conseil\nIle de France ",0.5,0.5,"C","VACANCES",null,null,null,"VACANCES",null,null,null,null,0.5,null,null,"Révision FIAT",0.5,null,"C",null,0.5,null,null,"VACANCES"]
[null,null,"pm","VACANCES",null,null,null,"VACANCES",null,null,null,"VACANCES",null,null,null,"Advantages  Services\nAudit / Conseil\nIle de France ",0.5,0.5,"C","VACANCES",null,null,null,"VACANCES",null,null,null,null,0.5,null,null,"Révision FIAT",0.5,null,"C",null,0.5,null,null,"VACANCES"]
[null,"2017-08-24","am","VACANCES",null,null,null,"VACANCES",null,null,null,"VACANCES",null,null,null,"Advantages  Services\nAudit / Conseil\nIle de France ",0.5,0.5,"C","VACANCES",null,null,null,"VACANCES",null,null,null,null,0.5,null,null,null,0.5,null,null,null,0.5,null,null,"VACANCES"]
[null,null,"pm","VACANCES",null,null,null,"VACANCES",null,null,null,"VACANCES",null,null,null,"Advantages  Services\nAudit / Conseil\nIle de France ",0.5,0.5,"C","VACANCES",null,null,null,"VACANCES",null,null,null,null,0.5,null,null,null,0.5,null,null,null,0.5,null,null,"VACANCES"]
[null,"2017-08-25","am","VACANCES",null,null,null,"VACANCES",null,null,null,"VACANCES",null,null,null,"Advantages  Services\nAudit / Conseil\nIle de France ",0.5,0.5,"C","VACANCES",null,null,null,"VACANCES",null,null,null,null,0.5,null,null,"ephyla \ni03\narzal 56 9h-12h",0.5,null,"c","ligue havraise I206",0.5,null,"c","VACANCES"]
[null,null,"pm","VACANCES",null,null,null,"VACANCES",null,null,null,"VACANCES",null,null,null,"Advantages  Services\nAudit / Conseil\nIle de France ",0.5,0.5,"C","VACANCES",null,null,null,"VACANCES",null,null,null,null,0.5,null,null,null,0.5,null,null,"ligue havraise I206",0.5,null,"c","VACANCES"]
[35,"2017-08-28","am",null,0.5,null,null,null,0.5,null,null,null,0.5,null,null,"Advantages  Services\nAudit / Conseil\nIle de France ",0.5,0.5,"C","VACANCES",null,null,null,null,0.5,null,null,null,0.5,null,null,"RAS à St Etienne du rouvray (76) i04",0.5,0.5,"C+BL",null,0.5,null,null,"VACANCES"]
[null,null,"pm",null,0.5,null,null,null,0.5,null,null,null,0.5,null,null,"Advantages  Services\nAudit / Conseil\nIle de France ",0.5,0.5,"C","VACANCES",null,null,null,null,0.5,null,null,null,0.5,null,null,null,0.5,null,null,null,0.5,null,null,"VACANCES"]
[null,"2017-08-29","am",null,0.5,null,null,null,0.5,null,null,null,0.5,null,null,"Advantages  Services\nAudit / Conseil\nIle de France ",0.5,0.5,"C","VACANCES",null,null,null,"MFR LA METARE EPI PYROS\nEPI IO3\nSaint-Etienne (42) ",0.5,0.5,"O",null,0.5,null,null,"CLINIQUE MATHILDE\nI203R\nROUEN",0.5,0.5,"C+BL","CLINIQUE MATHILDE\nI203R\nROUEN",0.5,0.5,"C","VACANCES"]
[null,null,"pm",null,0.5,null,null,null,0.5,null,null,null,0.5,null,null,"Advantages  Services\nAudit / Conseil\nIle de France ",0.5,0.5,"C","VACANCES",null,null,null,"MFR LA METARE EPI PYROS\nEPI IO3\nSaint-Etienne (42) ",0.5,0.5,"O",null,0.5,null,null,null,0.5,null,null,null,0.5,null,null,"VACANCES"]
[null,"2017-08-30","am","Passage aux mines\ntract de phil + semi dédé",0.5,null,null,null,0.5,null,null,null,0.5,null,null,"Advantages  Services\nAudit / Conseil\nIle de France ",0.5,0.5,"C","VACANCES",null,null,null,"GIVAUDAN LAVIROTTE\nrecyclage ESI avec mousse\nLyon 08",0.5,0.5,"C",null,0.5,null,null,null,0.5,null,null,null,0.5,null,null,"VACANCES"]
[null,null,"pm",null,0.5,null,null,null,0.5,null,null,null,0.5,null,null,"Advantages  Services\nAudit / Conseil\nIle de France ",0.5,0.5,"C","VACANCES",null,null,null,"GIVAUDAN LAVIROTTE\nrecyclage ESI avec mousse\nLyon 08",0.5,0.5,"C",null,0.5,null,null,null,0.5,null,null,null,0.5,null,null,"VACANCES"]
[null,"2017-08-31","am","Passage aux mines\ntract de phil + semi dédé",0.5,null,null,"ROUTE",0.5,null,null,null,0.5,null,null,"Advantages  Services\nAudit / Conseil\nIle de France ",0.5,0.5,"C","VACANCES",null,null,null,"XPOLOGISTICS\n2x i03 2h\nBELLEGARDE SUR VALSERINE 01",0.5,null,"O",null,0.5,null,null,null,0.5,null,null,null,0.5,null,null,"VACANCES"]
[null,null,"pm",null,0.5,null,null,"ROUTE",0.5,null,null,null,0.5,null,null,"Advantages  Services\nAudit / Conseil\nIle de France ",0.5,0.5,"C","VACANCES",null,null,null,"XPOLOGISTICS\n2x i03 2h\nBELLEGARDE SUR VALSERINE 01",0.5,null,"O",null,0.5,null,null,null,0.5,null,null,null,0.5,null,null,"VACANCES"]

{"sheet":"Septembre","index":6,"n_rows":54,"n_cols":47,"rows_kept":54,"cut":false,"hidden":false,"merged":[[0,43,1,46],[38,7,39,7],[38,10,39,10],[40,1,41,1],[40,3,41,3],[40,6,41,6],[30,18,31,18],[28,1,29,1],[28,10,29,10],[14,26,15,26],[6,26,7,26],[12,26,13,26],[6,23,7,23],[10,18,11,18],[0,23,1,26],[24,1,25,1],[26,0,35,0],[26,1,27,1],[32,1,33,1],[32,3,33,3],[32,6,33,6],[30,1,31,1],[36,0,45,0],[36,1,37,1],[38,1,39,1],[38,3,39,3],[38,6,39,6],[44,1,45,1],[22,1,23,1],[22,15,23,15],[20,18,21,18],[42,1,43,1],[42,3,43,3],[42,6,43,6],[34,1,35,1],[16,23,17,23],[16,26,17,26],[18,1,19,1],[18,3,19,3],[18,6,19,6],[6,0,15,0],[14,1,15,1],[14,10,15,10],[12,1,13,1],[20,6,21,6],[6,6,7,6],[6,10,7,10],[20,1,21,1],[12,6,13,6],[8,1,9,1],[8,10,9,10],[10,1,11,1],[6,1,7,1],[6,3,7,3],[16,0,25,0],[16,1,17,1],[0,27,1,30],[0,31,1,34],[0,35,1,38],[0,39,1,42],[0,11,1,14],[0,15,1,18],[0,19,1,22],[4,0,5,0],[4,1,5,1],[0,0,2,2],[0,3,1,6],[0,7,1,10]]}
["2017-09-01",null,null,"PHILIPPE (EP)",null,null,null,"ANDRE  (EP)",null,null,null,"THIERRY (CM2)",null,null,null,"CHRISTIAN (CM1)",null,null,null,"Jean-Côme (Dragon)",null,null,null,"JEAN FRANCOIS",null,null,null,"ANTOINE Antoine",null,null,null,"THIERRY BINET",null,null,null,"PASCAL GARIN",null,null,null,"JORIS LONGFIER",null,null,null,"TONY BOUTEILLER"]
[]
[null,null,null,{"$f":"F3/E3","v":0.5},{"$f":"SUM(E5:E46)","v":21},{"$f":"SUM(F5:F46)","v":10.5},null,{"$f":"J3/I3","v":0.52500000000000002},{"$f":"SUM(I5:I46)","v":20},{"$f":"SUM(J5:J46)","v":10.5},null,{"$f":"N3/M3","v":0},{"$f":"SUM(M5:M46)","v":21},{"$f":"SUM(N5:N46)","v":0},null,{"$f":"R3/Q3","v":0.5714285714285714},21,{"$f":"SUM(R5:R44)","v":12},null,{"$f":"V3/U3","v":0.56666666666666665},{"$f":"SUM(U5:U46)","v":15},{"$f":"SUM(V5:V46)","v":8.5},6,{"$f":"Z3/Y3","v":0.52380952380952384},{"$f":"SUM(Y5:Y46)","v":21},{"$f":"SUM(Z5:Z46)","v":11},null,{"$f":"AD3/AC3","v":9.5238095238095233E-2},{"$f":"SUM(AC5:AC46)","v":21},{"$f":"SUM(AD5:AD46)","v":2},null,{"$f":"AH3/AG3","v":0.7},{"$f":"SUM(AG5:AG46)","v":20},{"$f":"SUM(AH5:AH46)","v":14},null,{"$f":"AL3/AK3","v":0.16666666666666666},{"$f":"SUM(AK5:AK46)","v":21},{"$f":"SUM(AL5:AL46)","v":3.5},1,{"$f":"AP3/AO3","v":0.68421052631578949},{"$f":"SUM(AO5:AO46)","v":19},{"$f":"SUM(AP5:AP46)","v":13},1,{"$f":"AT3/AS3","v":0},{"$f":"SUM(AS5:AS46)","v":19.5},{"$f":"SUM(AT5:AT46)","v":0}]
["SEM","JOUR","AM/PM","FORMATION","Ouv","trav","STATUT","FORMATION","Ouv","trav","STATUT","FORMATION","Ouv","trav","STATUT","FORMATION","Ouv","trav","STATUT","FORMATION","Ouv","trav","STATUT","FORMATION","Ouv","trav","STATUT","FORMATION","Ouv","trav","STATUT","FORMATION","Ouv","trav","STATUT","FORMATION","Ouv","trav","STATUT","FORMATION","Ouv","trav","STATUT","FORMATION","Ouv","trav","STATUT"]
[35,"2017-09-01","am",null,0.5,null,null,"VTNI\nEP02 1h \nMartin l'Eglise (76)",0.5,0.5,"C",null,0.5,null,null,null,0.5,null,null,"VACANCES",null,null,null,"OPAC 73\nI03 9H-12H\nCHAMBERY",0.5,null,"O",null,0.5,null,null,"CLINIQUE MATHILDE\n4X I207\nROUEN",0.5,0.5,"C",null,0.5,null,null,"VACANCES",null,null,null,null,0.5]
[null,null,"pm",null,0.5,null,null,"VTNI\nEP02 1h \nMartin l'Eglise (76)",0.5,0.5,"C",null,0.5,null,null,null,0.5,null,null,"VACANCES",null,null,null,null,0.5,null,null,null,0.5,null,null,"CLINIQUE MATHILDE\n4X I207\nROUEN",0.5,0.5,"C",null,0.5,null,null,"VACANCES",null,null,null,null,0.5]
[36,"2017-09-04","am",null,0.5,null,null,null,0.5,null,null,"CM2 ORANGE MONTPELLIER",0.5,null,null,"ORANGE\n2 EPI 1H30\nMONTPELLIER 34",0.5,0.5,"C","VACANCES",null,null,null,"NP SAVOIE\n2 EPI 3h\nBELMONT TRAMONET 73",0.5,0.5,"O",null,0.5,null,null,"\nCHAMBRE DES METIERS\nI204R 11H00\nROUEN 76",0.5,null,"C",null,0.5,null,null,"\nCHAMBRE DES METIERS\nI204R 11H00\nROUEN 76",0.5,null,"C",null,0.5]
[null,null,"pm",null,0.5,null,null,null,0.5,null,null,"CM2 ORANGE MONTPELLIER",0.5,null,null,"ORANGE\n2 EPI 1H30\nMONTPELLIER 34",0.5,0.5,"C","VACANCES",null,null,null,null,0.5,0.5,null,null,0.5,null,null,null,0.5,null,null,null,0.5,null,null,null,0.5,null,null,null,0.5]
[null,"2017-09-05","am","HP ENTERPRISE\n1 EPI 3h\nGRENOBLE (38)",0.5,0.5,"C","AIRPORT COLLEGE\n 1 sessions de 3h\nROISSY",0.5,0.5,"C","CM2 ORANGE MONTPELLIER",0.5,null,null,"ORANGE\n2 EPI 1H30\nMONTPELLIER 34",0.5,0.5,"C","VACANCES",null,null,null,"GERONDINES LAMARTINE\nVALENCE (26)\n400€",0.5,0.5,"O",null,0.5,null,null,null,0.5,null,null,null,0.5,null,null,"MF PRODUCTION\nSST02\nMAROMME",0.5,0.5,"C",null,0.5]
[null,null,"pm",null,0.5,null,null,"AIRPORT COLLEGE\n 1 sessions de 3h\nROISSY",0.5,0.5,null,"CM2 ORANGE MONTPELLIER",0.5,null,null,"ORANGE\n2 EPI 1H30\nMONTPELLIER 34",0.5,0.5,"C","VACANCES",null,null,null,"EHPAD DELESSERT\nROMANS SUR ISERE (26)\n400€",0.5,0.5,"O",null,0.5,null,null,"CITOXLAB\n2X I04 \nMISEREY",0.5,0.5,"C",null,0.5,null,null,"MF PRODUCTION\nSST02\nMAROMME",0.5,0.5,"C",null,0.5]
[null,"2017-09-06","am","AIRPORT COLLEGE\n2 EPI 1H30\nLYON",0.5,0.5,"O",null,null,null,null,"CM2 ORANGE MONTPELLIER",0.5,null,null,"ORANGE\n2 EPI 1H30\nMONTPELLIER 34",0.5,0.5,"C","VACANCES",null,null,null,null,0.5,0.5,null,null,0.5,null,null,"ARRED SST02 BOIS GUILLAUME 76",0.5,0.5,"C",null,0.5,null,null,"IDF THERMIC\n  exerc d'évac avec fumée et rapport\nNoisy  le roi  78",0.5,null,"C",null,0.5]
[null,null,"pm","AIRPORT COLLEGE\n2 EPI 1H30\nLYON",0.5,0.5,"O",null,null,null,null,"CM2 ORANGE MONTPELLIER",0.5,null,null,"ORANGE\n2 EPI 1H30\nMONTPELLIER 34",0.5,0.5,null,"VACANCES",null,null,null,null,0.5,null,null,null,0.5,null,null,"ARRED SST02 BOIS GUILLAUME 76",0.5,0.5,"C",null,0.5,null,null,null,0.5,null,null,null,0.5]
[null,"2017-09-07","am",null,0.5,null,null,"AIRPORT COLLEGE\n2 EPI 1H30\nROISSY 95",0.5,0.5,"C","CM2 ORANGE MONTPELLIER",0.5,null,null,"ORANGE\n2 EPI 1H30\nMONTPELLIER 34",0.5,0.5,"C","VACANCES",null,null,null,"SUEZ\n2X I06PRIMO 3H  \nRILLEUX LA PAPE 69",0.5,0.5,"C",null,0.5,null,null,"GREIF\ni107\nGRAND QUEVILLY 76",0.5,0.5,"C","GREIF\nSST02\nGRAND QUEVILLY 76",0.5,0.5,"C","mac donal'ds isigny \ni03",0.5,0.5,"C"]
[null,null,"pm",null,0.5,null,null,"AIRPORT COLLEGE\n2 EPI 1H30\nROISSY 95",0.5,0.5,"C","CM2 ORANGE MONTPELLIER",0.5,null,null,"ORANGE\n2 EPI 1H30\nMONTPELLIER 34",0.5,0.5,"C","VACANCES",null,null,null,"SUEZ\n2X I06PRIMO 3H  \nRILLEUX LA PAPE 69",0.5,0.5,null,null,0.5,null,null,"GREIF i107 \nGRAND QUEVILLY 76 ",0.5,0.5,"C","GREIF\nSST02\nGRAND QUEVILLY 76 ",0.5,0.5,"C","mac donald's isigny\ni200",0.5,0.5,"C"]
[null,"2017-09-08","am",null,0.5,null,null,null,0.5,null,null,"CM2 ORANGE NARBONNE",0.5,null,null,"ORANGE\n2 EPI 1H30\nNARBONNE 11",0.5,0.5,"C","VACANCES",null,null,null,"CANDIA \nESI  RECYCLAGE  I105\nCLERMONT FERRAND ",0.5,0.5,"C",null,0.5,null,null,"GREIF i107 \nGRAND QUEVILLY 76 ",0.5,0.5,"C",null,0.5,null,null,"SDDP\nSST02\nEVREUX",0.5,0.5,"C",null,0.5]
[null,null,"pm",null,0.5,null,null,null,0.5,null,null,"CM2 ORANGE NARBONNE",0.5,null,null,"ORANGE\n2 EPI 1H30\nNARBONNE 11",0.5,0.5,"C","VACANCES",null,null,null,"CANDIA \nESI  RECYCLAGE  I105\nCLERMONT FERRAND ",0.5,0.5,null,null,0.5,null,null,null,0.5,null,null,null,0.5,null,null,"SDDP\nSST02\nEVREUX",0.5,0.5,"C",null,0.5]
[37,"2017-09-11","am","HP ENTERPRISE\nUM EP 03 3H\nNANTERRE (92)",0.5,null,"O","NOVO NORDISK\n2 UMEP02 1H30\n28 chartres",0.5,0.5,"C","Nexance\nmodule sur mesure evac\nBourg en bresse  01 \njournée de lasecu",0.5,null,"C","C. HOSPITALIER ISSOIRE (63)\nFORINCI13H - 3h30",0.5,0.5,"O","LECLERC\n2x epi i04 1h30\nSAINT NICOLAS DE REDON 44 ",0.5,0.5,"C","NP SAVOIE\n2 EPI 3h\nBELMONT TRAMONET 73",0.5,0.5,"C","Nexance\nmodule sur mesure evac\nBourg en bresse  01 \njournée de lasecu",0.5,null,"C",null,0.5,null,null,null,0.5,null,null,"DELIFRANCE\nI04X2\nMARTAINVILLE (76)",0.5,0.5,"O",null,0.5]
[null,null,"pm",null,0.5,null,null,"NOVO NORDISK\n2 UMEP02 1H30\n28 chartres",0.5,0.5,"C","Nexance\nmodule sur mesure evac\nBourg en bresse  01 \njournée de lasecu",0.5,null,"C",null,0.5,null,null,"LECLERC\n2x epi i04 1h30\nSAINT NICOLAS DE REDON 44 ",0.5,0.5,"C",null,0.5,0.5,null,"Nexance\nmodule sur mesure evac\nBourg en bresse  01 \njournée de lasecu",0.5,null,"C",null,0.5,null,null,null,0.5,null,null,null,0.5,null,null,null,0.5]
[null,"2017-09-12","am","HOPITAL DE NAVARRE\n4 UMEP02 1h30\nEVREUX (27)",0.5,0.5,"C","NOVO NORDISK\n2 UMEP02 1H30\n28 chartres",0.5,0.5,"C",null,0.5,null,null,"EHPAD BIANCHERI\nHAUTERIVES (26)\n400€",0.5,0.5,"C","lafarge sablières d'armorique i03 à Lanester (56)",0.5,null,"O","MAISON DEP DE LA FAMILLE\n3 EXO + 1 EPI 3H\nNIMES (30)",0.5,0.5,"C",null,0.5,null,null,"CONDIVEX\n2X I03\nETREPAGNY 27",0.5,0.5,"C","MOET HENNESSY\nExercid'évac AGA1 ou AGA2",0.5,null,"O","APTAR\nI06\nLE NEUBOURG 27 ",0.5,0.5,"C",null,0.5]
[null,null,"pm",null,0.5,0.5,null,"NOVO NORDISK\n2 UMEP02 1H30\n28 chartres",0.5,0.5,"C",null,0.5,null,null,"EHPAD BEAUSOLEIL\nMOURS ST EUSEBE (26)\n450€",0.5,0.5,"C",null,0.5,null,null,"MAISON DEP DE LA FAMILLE\n1  EXO + 1 EPI 3H\nNIMES (30)",0.5,0.5,"C",null,0.5,null,null,"CONDIVEX\n2X I03\nETREPAGNY 27 ",0.5,0.5,"C",null,0.5,null,null,"APTAR\nI06\nLE NEUBOURG 27 ",0.5,0.5,"C",null,0.5]
[null,"2017-09-13","am","AIRPORT COLLEGE\n 2 UMEP02 1h30\nORLY",0.5,0.5,"C","GDA \n2 UMEP02 1H30\n93 TREMBLAY EN France",0.5,0.5,"C",null,0.5,null,null,null,0.5,null,null,"2 SENSBILISATION EVAC (I207) LECLERC ST NIOLAS DE REDON 44 ",0.5,0.5,"C",null,0.5,null,null,null,0.5,0.5,null,"MEPLE\n2X I06\nTOURVILLE LA RIVIERE 76 ",0.5,null,"C","MOET HENNESSY\nExercid'évac AGA1 ou AGA2",0.5,null,"O",null,0.5,0.5,null,null,0.5]
[null,null,"pm","AIRPORT COLLEGE\n 2 UMEP02 1h30\nORLY",0.5,0.5,null,"GDA \n2 UMEP02 1H30\n93 TREMBLAY EN France",0.5,0.5,"C",null,0.5,null,null,null,0.5,null,null,"2 SENSBILISATION EVAC (I207) LECLERC ST NIOLAS DE REDON 44 ",0.5,0.5,"C",null,0.5,null,null,null,0.5,0.5,null,"MEPLE\n2X I06\nTOURVILLE LA RIVIERE 76 ",0.5,null,"C",null,0.5,null,null,null,0.5,0.5,null,null,0.5]
[null,"2017-09-14","am","FINAGAZ\n2 EPI 1h30\nCourbevoie (92)",0.5,0.5,"C","RENAULT\n2 EPI UMEP02 1H30\nGUYANCOURT 78",0.5,0.5,"C",null,0.5,null,null,"EHPAD LE MONTEL\n2X i13h 3H\n63 ???????",0.5,0.5,"C","OKKO HOTEL\nI200 (guide et serre file +exercice d'évac) sans fumée 3h \n92500 rueil malmaison",0.5,0.5,"C","EHPAD BIANCHERI\nHAUTERIVES (26)\n400€",0.5,0.5,"C",null,0.5,null,null,null,0.5,null,null,"Renault chargé d'évaxcuation\ni202 en 2heures  (nbre de sessions a definir)",0.5,null,"O","Route",0.5,0.5,null,null,0.5]
[null,null,"pm",null,0.5,null,null,"RENAULT\n2 EPI UMEP02 1H30\nGUYANCOURT 78",0.5,0.5,"C",null,0.5,null,null,null,0.5,0.5,"C","ROUTE",0.5,0.5,null,"EHPAD PEYSSON\n400€\nROMANS SUR ISERE",0.5,0.5,"C",null,0.5,null,null,"CITOXLAB\n2X I04 \nMISEREY",0.5,0.5,"C","Renault chargé d'évaxcuation\ni202 en 2heures \n (nbre de sessions a definir)",0.5,null,"O","EHPAD PIERRE GOENVIC\nI13H 13H30-17H\nPLONEOUR LANVERN (29)",0.5,0.5,"C","s",0.5]
[null,"2017-09-15","am",null,0.5,null,null,null,0.5,null,null,"CM2 GIVAUDAN",0.5,null,null,"GIVAUDAN LAVIROTTE\n1X CM1 06\nLYON",0.5,0.5,"C","ROUTE",0.5,0.5,null,"OPAC 73\nI03 9H-12H\nCHAMBERY",0.5,null,"O",null,0.5,null,null,"DELIFRANCE\nI06\nMARTAINVILLE (76)",0.5,0.5,"O",null,0.5,null,null,"Route",0.5,0.5,null,null,0.5]
[null,null,"pm",null,0.5,null,null,null,0.5,null,null,"CM2 GIVAUDAN",0.5,null,null,"GIVAUDAN LAVIROTTE\n1X CM1 06\nLYON",0.5,0.5,"C","LES JARDINS DU CASTEL\nI13H 14H15-17H15\nCHATEAUGIRON (35)",0.5,0.5,"C",null,0.5,null,null,null,0.5,null,null,"DELIFRANCE\nI06\nMARTAINVILLE (76)",0.5,0.5,"O",null,0.5,null,null,"MF PRODUCTION ET FUTURA\n2X I204R\nMAROMME",0.5,0.5,"C"]
[38,"2017-09-18","am","RENAULT\n2 EPI UMEP02\nGUYANCOURT 78",0.5,0.5,"C",null,0.5,null,null,null,0.5,null,null,null,0.5,null,null,"SOMATER\n2 EPI BAC 1H30\nMAROLLES 72",0.5,0.5,"C","MUJTUALITE FRANCAISE DU RHONE\nEPI 3H 17H30 -20H30\nLYON 8E",0.5,0.5,"C",null,0.5,null,null,"KOYO\nI105\nMAROMME",0.5,0.5,"C","BIC \nGestes et postures\nLa Courneuve 93",0.5,null,"O","i06 MF PRODUCTION SAUMUR 49",0.5,0.5,"C",null,0.5]
[null,null,"pm","RENAULT\n2 EPI UMEP02\nGUYANCOURT 78",0.5,0.5,"C",null,0.5,null,null,null,0.5,null,null,"ROUTE",0.5,0.5,null,"SOMATER\n2 EPI BAC 1H30\nMAROLLES 72",0.5,0.5,"C",null,0.5,null,null,null,0.5,null,null,"KOYO\nI105\nMAROMME",0.5,0.5,"C","BIC \nGestes et postures\nLa Courneuve 93",0.5,null,"O","i06 MF PRODUCTION SAUMUR 49 ",0.5,0.5,"C",null,0.5]
[null,"2017-09-19","am",null,0.5,0.5,null,"NOVANDIE \nEPI\nviel moutier 62",0.5,"0,,5","C","CM2 TARBES",0.5,null,null,"ORANGE\n2 EPI 1H30\nTARBES",0.5,0.5,"C","OKKO HOTEL\ni 03 3h\nrueil malmaison 92",0.5,0.5,"C",null,0.5,null,null,null,0.5,null,null,"KOYO\nI105\nMAROMME",0.5,0.5,"C","RP42 GRT GAZ à GENEVILLIERS  92",0.5,0.5,"C","i06 MF PRODUCTION SAUMUR 49",0.5,0.5,"C",null,0.5]
[null,null,"pm",null,0.5,0.5,null,"NOVANDIE \nEPI\nviel moutier 62",0.5,0.5,null,"CM2 TARBES",0.5,null,null,"ORANGE\n2 EPI 1H30\nTARBES",0.5,0.5,"C",null,0.5,null,null,"maison de retraite sevigne\nI13h 3h\nSt Martin le Vinoux (38)",0.5,0.5,"C",null,0.5,null,null,"KOYO\nI105\nMAROMME",0.5,0.5,"C","RP42 GRT GAZ à GENEVILLIERS  92",0.5,0.5,"C","i06 MF PRODUCTION SAUMUR 49 ",0.5,0.5,"C",null,0.5]
[null,"2017-09-20","am",null,0.5,null,null,"ROUTE",0.5,0.5,null,"ROUTE",0.5,null,null,null,0.5,null,null,"BRICOMARCHE \nEPI io4  \nsaint maure de  touraine 37",0.5,0.5,"C","MARMILLON\nI07 2H 10H-12H\nARBENT 01",0.5,null,"C",null,0.5,null,null,"KOYO\nI105\nMAROMME",0.5,0.5,"C","ligue havraise",0.5,0.5,"O","mac donald's bayeux 14\nsst02",0.5,0.5,"C",null,0.5]
[null,null,"pm","ROUTE",0.5,null,null,"ROUTE",0.5,0.5,null,"ROUTE",0.5,null,null,null,0.5,null,null,null,0.5,null,null,null,0.5,null,null,null,0.5,null,null,"KOYO\nI105\nMAROMME",0.5,0.5,"c","ligue havraise",0.5,0.5,"O","mac donald's bayeux 14\nsst03",0.5,0.5,"C",null,0.5]
[null,"2017-09-21","am","ST MICRO\nNICE SOPHIA\n2 sessions EPI\nvoir horaires planning",0.5,0.5,"C","AIRPORT \n2 EPI 1H30\nMULHOIUSE",0.5,0.5,"C","SKF\nCM1 04 \nST MARCEL 27",0.5,null,"O",null,0.5,null,null,"Mutuelle UNEO\n3 sessions de UMDRAG 02\nMontrouge 92",0.5,null,"O","BiODERMA \nSST01\nLYON",0.5,0.5,"C","SKF\nCM1 04 \nST MARCEL 27",0.5,null,null,"ARRED\nSST02 \nBOIS GUILLAUME 76",0.5,0.5,"C","Renault chargé d'évaxcuation\ni202 en 2heures  (nbre de sessions a definir)",0.5,null,"O","bureau",0.5,null,null,null,0.5]
[null,null,"pm",null,0.5,0.5,null,"AIRPORT \n2 EPI 1H30\nMULHOIUSE",0.5,0.5,"C","SKF\nCM1 04 \nST MARCEL 27",0.5,null,"O",null,0.5,null,null,"Mutuelle UNEO\n3 sessions de UMDRAG 02\nMontrouge 92",0.5,null,"O","BiODERMA \nSST01\nLYON",0.5,0.5,"C","SKF\nCM1 04 \nST MARCEL 27",0.5,null,null,"ARRED\nSST02 \nBOIS GUILLAUME 76",0.5,0.5,"C","Renault chargé d'évaxcuation\ni202 en 2heures \n (nbre de sessions a definir)",0.5,null,"O","SDDP ET EUROSTOK\n2X I204R\nEVREUX 27",0.5,0.5,"C",null,0.5]
[null,"2017-09-22","am",null,0.5,null,null,"IFAS\n2 EPI 1H30\nMULHOIUSE",0.5,null,"O","SKF\nCM1 04 \nST MARCEL 27",0.5,null,"O",null,0.5,0.5,null,"COJEAN\n2 EPI 1h30\nPARIS 15",0.5,0.5,"C","BiODERMA \nSST01\nLYON",0.5,0.5,"C","SKF\nCM1 04 \nST MARCEL 27",0.5,null,null,"BIC \n1 epi ria I07  \nmontevrain 77",0.5,null,"O","BIC \nGestes et postures\nLa Courneuve 93",0.5,null,"o","sst02 vpi rouen ",0.5,null,"C",null,0.5]
[null,null,"pm",null,0.5,null,null,"ROUTE",0.5,null,null,"SKF\nCM1 04 \nST MARCEL 27",0.5,null,"O",null,0.5,0.5,null,null,0.5,null,null,"BiODERMA \nSST01\nLYON",0.5,0.5,"C","SKF\nCM1 04 \nST MARCEL 27",0.5,null,null,"BIC \n 1epi ria I07  \nmontevrain 77",0.5,null,"O","BIC \nGestes et postures\nLa Courneuve 93",0.5,null,"o","sst02 vpi rouen ",0.5,null,"C",null,0.5]
[39,"2017-09-25","am",null,0.5,null,null,null,0.5,null,null,"ROUTE",0.5,null,null,null,0.5,null,null,"MOET HENNESSY\nExercid'évac AGA1 ou AGA2",0.5,null,null,"MUJTUALITE FRANCAISE DU RHONE\nEPI 3H 17H30 -20H30\nLYON 8E",0.5,0.5,"C",null,0.5,0.5,null,null,0.5,null,null,null,0.5,null,null,null,0.5,null,null,null,0.5]
[null,null,"pm","HP\n1EPI 3h\nGRENOBLE",0.5,0.5,"C","ROUTE",0.5,null,null,"ROUTE",0.5,null,null,null,0.5,null,null,null,0.5,null,null,null,0.5,null,null,null,0.5,0.5,null,"CITOXLAB\n2X I04 \nMISEREY",0.5,0.5,"C",null,0.5,null,null,"MGEN  Rouen (76)\ni204r à 13h30",0.5,null,"O",null,0.5]
[null,"2017-09-26","am","AOSTE\n4 EPI 1H30",0.5,0.5,"C","UM EP 02\nNantes\n4 sessions 1h30\nAIRPORT COLLEGE",0.5,0.5,"C","CM2 GIVAUDAN",0.5,null,null,"GIVAUDAN LAVIROTTE\n1X CM1 06\nLYON",0.5,0.5,"C","MOET HENNESSY\nExercid'évac AGA1 ou AGA2",0.5,null,null,"OPAC 73\nI03 9H-12H\nCHAMBERY",0.5,null,"C",null,0.5,null,null,"mac donald's\nSST01\nBAYEUX 14",0.5,0.5,"C",null,0.5,null,null,"I03   LA CLE DES CHAMPS  à MONTJAVOULT (60)",0.5,0.5,"C",null,0.5]
[null,null,"pm",null,0.5,0.5,null,null,0.5,0.5,null,"CM2 GIVAUDAN",0.5,null,null,"GIVAUDAN LAVIROTTE\n2X CM1 02\nLYON",0.5,0.5,"C",null,0.5,null,null,null,0.5,null,null,null,0.5,null,null,"mac donald's\nSST01\nBAYEUX 14",0.5,0.5,"C","I202 IMMEUBLE HASTINGS ROUEN 76 13H30 16H30",0.5,0.5,"C","I03   LA CLE DES CHAMPS  à MONTJAVOULT (60)",0.5,0.5,"C",null,0.5]
[null,"2017-09-27","am","AOSTE\nST SYMPHORIEN SUR COISE\n4 EPI 1H30AOSTE\n",0.5,0.5,"C","ROUTE",0.5,null,null,null,0.5,null,null,"THERMAL CERAMICS\n1X i108 - 8H30-12H30\nST MARCELLIN EN FOREZ 42\nref. 17003856",0.5,null,"C","BOLLORE ENERGY\nI03 3H 8H - 11H\nMONTEREAU (77)",0.5,0.5,"C",null,0.5,null,null,null,0.5,null,null,"mac donald's de BAYEUX 14\nsst03",0.5,0.5,"C","CM301 PONTIER ELINGUEUR RECYCLAGE CHEZ BIC ECRITURE MONTEVRAIN 77 ",0.5,null,"C","bureau",0.5,null,null,null,0.5]
[null,null,"pm",null,0.5,0.5,null,null,0.5,null,null,null,0.5,null,null,null,0.5,null,null,"BOLLORE ENERGY\nI03 3H 14H - 17H\nMONTEREAU (77)",0.5,0.5,"C","MARMILLON\nI107 2H 14H-16H\nARBENT 01",0.5,null,"C",null,0.5,null,null,"mac donald's de BAYEUX 14\nsst04",0.5,0.5,"C","CM301 PONTIER ELINGUEUR RECYCLAGE CHEZ BIC ECRITURE MONTEVRAIN 78",0.5,null,"C","CER à Belbeuf 76 SST07",0.5,null,"C",null,0.5]
[null,"2017-09-28","am","AOSTE\nVERNOUX\n4 EPI 1H30",0.5,0.5,"C","APTAR\n2 epi UMEP02 1h30 \nLOUVECIENNES (78) ",0.5,null,"O","RENAULT\n2 EPI UMEP02\nGUYANCOURT 78",0.5,null,"C",null,0.5,null,null,"BOLLORE ENERGY\nI03 3H 8H30 - 11H30\nROMILLY (10)",0.5,0.5,"C",null,0.5,null,null,"RENAULT\n2 EPI UMEP02\nGUYANCOURT 78",0.5,null,"O","AEROCHIM\nI06primo\nBernay (27)",0.5,0.5,"O",null,0.5,null,null,"SDDPP\nSST02\nEVREUX",0.5,0.5,"C",null,0.5]
[null,null,"pm",null,0.5,0.5,null,"APTAR\n2 epi UMEP02 1h30 \nLOUVECIENNES (78) ",0.5,null,"O","RENAULT\n2 EPI UMEP02\nGUYANCOURT 78",0.5,null,"C",null,0.5,null,null,"BOLLORE ENERGY\nI03 3H 14H - 17H\nROMILLY (10)",0.5,0.5,"C",null,0.5,null,null,"RENAULT\n2 EPI UMEP02\nGUYANCOURT 78",0.5,null,"O","AEROCHIM\nI06primo\nBernay (27)",0.5,0.5,"O",null,0.5,null,null,"SDDPP\nSST02\nEVREUX",0.5,0.5,"C",null,0.5]
[null,"2017-09-29","am","ROUTE",0.5,null,null,null,0.5,null,null,null,0.5,null,null,null,0.5,null,null,"RECALL\nFORINCI06\nJOUE LES TOURS (37)",0.5,null,"C",null,0.5,null,null,null,0.5,null,null,null,null,null,null,null,0.5,null,null,null,null,null,null,null,0.5]
[null,null,"pm",null,0.5,null,null,null,0.5,null,null,null,0.5,null,null,null,0.5,null,null,null,0.5,null,null,"MARMILLON\nI107 2H 14H-16H\nARBENT 01",0.5,null,"C",null,0.5,null,null,null,null,null,null,null,0.5,null,null,null,null,null,null,null,0.5]
[]
[]
[]
[]
[]
[]
[]
[null,null,null,null,null,null,null,null,null,null,null,null,null,null,null,null,null,null,null,null,null,null,null,null,null,null,null,null,null,null,null,null,null,null,null,null,null,null,null,null,null,null,"CCC"]

{"sheet":"Octobre","index":7,"n_rows":48,"n_cols":47,"rows_kept":48,"cut":false,"hidden":false,"merged":[[36,3,37,3],[36,6,37,6],[44,0,47,0],[44,1,45,1],[46,1,47,1],[34,0,43,0],[38,1,39,1],[42,1,43,1],[36,1,37,1],[34,1,35,1],[38,3,39,3],[38,6,39,6],[40,1,41,1],[40,3,41,3],[40,6,41,6],[30,10,31,10],[36,10,37,10],[46,7,47,7],[32,10,33,10],[34,6,35,6],[26,10,27,10],[28,10,29,10],[34,15,35,15],[34,18,35,18],[24,0,33,0],[24,1,25,1],[24,3,25,3],[24,6,25,6],[24,7,25,7],[26,1,27,1],[26,6,27,6],[30,6,31,6],[28,1,29,1],[28,6,29,6],[32,1,33,1],[30,1,31,1],[18,26,19,26],[20,1,21,1],[20,3,21,3],[20,6,21,6],[24,10,25,10],[12,26,13,26],[10,1,11,1],[10,6,11,6],[10,26,11,26],[8,1,9,1],[14,26,15,26],[16,1,17,1],[16,6,17,6],[16,7,17,7],[16,10,17,10],[16,18,17,18],[0,19,1,22],[14,0,23,0],[14,1,15,1],[14,15,15,15],[14,22,15,22],[18,1,19,1],[18,6,19,6],[18,18,19,18],[22,18,23,18],[22,1,23,1],[22,3,23,3],[8,3,9,3],[8,6,9,6],[12,1,13,1],[22,6,23,6],[0,7,1,10],[0,43,1,46],[0,23,1,26],[0,27,1,30],[0,31,1,34],[0,35,1,38],[0,39,1,42],[0,11,1,14],[0,15,1,18],[6,3,7,3],[6,6,7,6],[4,0,13,0],[4,1,5,1],[6,1,7,1],[0,0,2,2],[0,3,1,6]]}
["2017-10-01",null,null,"PHILIPPE (EP)",null,null,null,"ANDRE  (EP)",null,null,null,"THIERRY (CM2)",null,null,null,"CHRISTIAN (CM1)",null,null,null,"Jean-Côme (Dragon)",null,null,null,"JEAN FRANCOIS",null,null,null,"ANTOINE Antoine",null,null,null,"THIERRY BINET",null,null,null,"PASCAL GARIN",null,null,null,"JORIS LONGFIER",null,null,null,"MICHAEL ALBALADEJO"]
[]
[null,null,null,{"$f":"F3/E3","v":0.56818181818181823},{"$f":"SUM(E5:E48)","v":22},{"$f":"SUM(F5:F46)","v":12.5},null,{"$f":"J3/I3","v":0.5},{"$f":"SUM(I5:I48)","v":18},{"$f":"SUM(J5:J46)","v":9},null,{"$f":"N3/M3","v":0},{"$f":"SUM(M5:M48)","v":21},{"$f":"SUM(N5:N46)","v":0},null,{"$f":"R3/Q3","v":0.34210526315789475},{"$f":"SUM(Q5:Q48)","v":19},{"$f":"SUM(R5:R46)","v":6.5},null,{"$f":"V3/U3","v":0.18181818181818182},{"$f":"SUM(U5:U48)","v":22},{"$f":"SUM(V5:V46)","v":4},null,{"$f":"Z3/Y3","v":0.22727272727272727},{"$f":"SUM(Y5:Y48)","v":22},{"$f":"SUM(Z5:Z46)","v":5},null,{"$f":"AD3/AC3","v":0},{"$f":"SUM(AC5:AC48)","v":22},{"$f":"SUM(AD5:AD46)","v":0},null,{"$f":"AH3/AG3","v":0.58536585365853655},{"$f":"SUM(AG5:AG46)","v":20.5},{"$f":"SUM(AH5:AH46)","v":12},null,{"$f":"AL3/AK3","v":4.5454545454545456E-2},{"$f":"SUM(AK5:AK48)","v":22},{"$f":"SUM(AL5:AL46)","v":1},null,{"$f":"AP3/AO3","v":0.36363636363636365},{"$f":"SUM(AO5:AO48)","v":22},{"$f":"SUM(AP5:AP46)","v":8},null,{"$f":"AT3/AS3","v":0},{"$f":"SUM(AS5:AS48)","v":22},{"$f":"SUM(AT5:AT46)","v":0}]
["SEM","JOUR","AM/PM","FORMATION","Ouv","trav","STATUT","FORMATION","Ouv","trav","STATUT","FORMATION","Ouv","trav","STATUT","FORMATION","Ouv","trav","STATUT","FORMATION","Ouv","trav","STATUT","FORMATION","Ouv","trav","STATUT","FORMATION","Ouv","trav","STATUT","FORMATION","Ouv","trav","STATUT","FORMATION","Ouv","trav","STATUT","FORMATION","Ouv","trav","STATUT","FORMATION","Ouv","trav","STATUT"]
[40,"2017-10-02","am","HP ENTERPRISE\n1 EPI 3h\nLES ULIS (91)",0.5,0.5,"C",null,0.5,null,null,null,0.5,null,null,"SALAISONS DU MACONNAIS\nI202 3H\nPIERRECLOS (71)",0.5,0.5,"C",null,0.5,null,null,null,0.5,null,null,null,0.5,null,null,"i06 primo chez AEROCHIM à Bernay (27)",0.5,0.5,"O","BIC ECRITURE MONTEVRAIN 77 CM04 INITIALE CHARIOT CAT3 POUR 2 PERS",0.5,null,"O",null,0.5,null,null,null,0.5]
[null,null,"pm","ROUTE",0.5,null,null,null,0.5,null,null,null,0.5,null,null,null,0.5,null,null,null,0.5,null,null,"PHILAGRO SUMITOMO\nEXO EVAC - 2h A 14H\nSAINT-DIZIER-MONT-D'OR (69)",0.5,0.5,"C",null,0.5,null,null,"i06 primo chez AEROCHIM à Bernay (27)",0.5,0.5,"O","BIC ECRITURE MONTEVRAIN 77 CM04 INITIALE CHARIOT CAT3 POUR 2 PERS",0.5,null,"O",null,0.5,null,null,null,0.5]
[null,"2017-10-03","am","CLINIQUE MATHILDE\n4 EPI 1h30\nROUEN (76)",0.5,0.5,"C","RENAULT\n2 EPI UMEP02\nGUYANCOURT 78",null,null,"C",null,null,null,null,null,0.5,null,null,null,0.5,null,null,null,0.5,null,null,"ORANGE\n2 EPI 1H30\nERAGNY 95",0.5,null,"C","CLINIQUE MATHILDE\nI203R\nRouen",0.5,0.5,"C","BIC ECRITURE MONTEVRAIN 77 CM04 INITIALE CHARIOT CAT3 POUR 2 PERS",0.5,null,"O","CLINIQUE MATHILDE\nI203R\nRouen",0.5,0.5,"C",null,0.5]
[null,null,"pm",null,0.5,0.5,null,"RENAULT\n2 EPI UMEP02\nGUYANCOURT 78",null,null,"C",null,null,null,null,"EPHAD CHÂTEAU DE LA SERRA\nEPI 4H\nVillette d'anthon (38)",0.5,0.5,"C","EHPAD PIERRE GOENVIC\nI13H - 13H30-17H\nPLONEOUR LANVERN",0.5,0.5,"C","EPHAD CHÂTEAU DE LA SERRA\nVillette d'anthon (38)\nEPI-MSR 4H ",0.5,0.5,"C","ORANGE\n2 EPI 1H30\nERAGNY 95",0.5,null,"C",null,0.5,null,null,"BIC ECRITURE MONTEVRAIN 77 CM04 INITIALE CHARIOT CAT3 POUR 2 PERS",0.5,null,"O",null,0.5,null,null,"MUTUELLE UNEO\nIO4+I207+Exerci evac\nMETZ",0.5,null,"O"]
[null,"2017-10-04","am","AIRPORT COLLEGE\n 4 sessions de 1h30\nROISSY",0.5,0.5,"O",null,0.5,null,null,null,0.5,null,null,null,0.5,null,null,"ROUTE",0.5,null,null,null,0.5,null,null,null,0.5,null,null,"CERP LORIENT (56) i03",0.5,null,"C",null,0.5,null,null,"mac donal'ds bayeux\ni03",0.5,0.5,"c",null,0.5]
[null,null,"pm",null,0.5,0.5,null,null,0.5,null,null,null,0.5,null,null,null,0.5,null,null,"ROUTE",0.5,null,null,null,0.5,null,null,null,0.5,null,null,"CERP LORIENT (56) i202",null,null,"C","MAISON ENFANTSLE CLOS\nI204R - 14H\nEQUEMAUVILLE",0.5,0.5,"C","mac donald's bayeux\ni200",0.5,0.5,"c",null,0.5]
[null,"2017-10-05","am","ORANGE\n2X EPI 1H30\nNOISY LE GRAND 93",0.5,0.5,"C","AFM Telethon\n4 sessions\n49170 Saint-georges s/loire",0.5,0.5,"C","ORANGE\n2 CM2 02 1H30\nMONTIGNY LE BRETONNEUX 78",0.5,null,"C",null,0.5,null,null,"CEA \n2x umdra02\nsaclay 78",0.5,0.5,"C","CANDIA SST INITIAL\n63 clermond ferrand",0.5,null,"O","ORANGE\n2 EPI 1H30\nMONTIGNY LE BRETONNEUX 78",0.5,null,"C","PI04 CHEZ DELIFRANCE à MARTAINVILE (76) ",0.5,0.5,"C","MOET HENNESSY\nMAC SST\n75016",0.5,null,"O","GREIF\nSST02\nGRAND QUEVILLY 76",0.5,0.5,"C",null,0.5]
[null,null,"pm","ORANGE\n2X EPI 1H30\nNOISY LE GRAND 93",0.5,0.5,null,"AFM Telethon\n4 sessions\n49170 Saint-georges s/loire",0.5,0.5,"C",null,0.5,null,null,null,0.5,null,null,"CEA \n2x umdra02\nsaclay 78",0.5,0.5,"C","CANDIA SST INITIAL\n63 clermond ferrand",0.5,null,null,null,0.5,null,null,null,0.5,null,null,"MOET HENNESSY\nMAC SST01\n75016",0.5,null,"O","GREIF\nSST02\nGRAND QUEVILLY 76",0.5,0.5,"C",null,0.5]
[null,"2017-10-06","am","ROUTE",0.5,null,null,"FONDATION VERDIER\n2 EPI 1H30\nTOURS",0.5,0.5,"C",null,0.5,null,null,"GIVAUDAN LAVIROTTE\nrecyclage ESI avec mousse\nLyon 08",0.5,0.5,"C","ROUTE",0.5,null,null,"CANDIA SST INITIAL\n63 clermond ferrand",0.5,null,"O",null,0.5,null,null,null,0.5,null,null,null,0.5,null,null,"BACHELET BONNEFOND\nI03\nLE PETIT QUEVILLY 76",0.5,null,"c",null,0.5]
[null,null,"pm","ROUTE",0.5,null,null,"FONDATION VERDIER\n2 EPI 1H30\nTOURS",0.5,0.5,"C",null,0.5,null,null,"GIVAUDAN LAVIROTTE\nrecyclage ESI avec mousse\nLyon 08",0.5,0.5,"C","BOLLORE ENERGY\nI03 3h\nNEVERS 58",0.5,null,"C","CANDIA SST INITIAL\n63 clermond ferrand",0.5,null,null,null,0.5,null,null,null,0.5,null,null,null,0.5,null,null,null,0.5,null,null,null,0.5]
[41,"2017-10-09","am","VPI CNPE 2 sessions \n26 st paul trois chateaux ",0.5,null,"O","ST MICRO\n4 sessions EPI\nRennes spatial 35",0.5,null,"C",null,0.5,null,null,"EHPAD LE MONTEL\n2 SESSIONS DE 3H  EPI +mise en secuirté des résidents\n63",0.5,0.5,"C",null,0.5,null,"C","ZELLER + GMELLIN \nEPI FORINCI03 9H00-12H0 \nGENAS 69",0.5,0.5,"C",null,0.5,null,null,"ARRED SST02 BOIS GUILLAUME 76",0.5,0.5,"C","MOET HENNESSY\nSST01\n75016",0.5,null,0,null,0.5,null,null,null,0.5]
[null,null,"pm","VPI CNPE 2 sessions \n26 st paul trois chateaux ",0.5,null,"O","ST MICRO\n4 sessions EPI\nRennes spatial 35",0.5,null,"C",null,0.5,null,null,null,0.5,0.5,"C","BOLLORE ENERGY\nI03 3H 14H - 17H\nLUCE (28)",0.5,null,null,"ZELLER + GMELLIN \nEPI FORINCI03 9H00-12H0 \nGENAS 69",0.5,0.5,null,null,0.5,null,null,"ARRED SST02 BOIS GUILLAUME 76",0.5,0.5,"C","MOET HENNESSY\nSST01\n75016",0.5,null,0,null,0.5,null,null,null,0.5]
[null,"2017-10-10","am","VPI CNPE 2 sessions 07 Cruas meysse ",0.5,null,"O","ROUTE",0.5,0.5,null,"ORANGE\n2 CM2 02 1H30\nSOISY 95",0.5,null,"C","ROUTE",0.5,0.5,null,null,0.5,null,null,"MUTUALITE FRANCAISE\nEPI PYROS 3H\nCLUSES",0.5,0.5,"C","ORANGE\n2 EPI 1H30\nSOISY 95",0.5,null,"C","MAISON ENFANTSLE CLOS\n2X I03\nEQUEMAUVILLE",0.5,0.5,"C","MOET HENNESSY\nSST01\n75016",0.5,null,"o","FERRERO \nSST02\nMT ST AIGNAN 76",0.5,0.5,"C",null,0.5]
[null,null,"pm","VPI CNPE 2 sessions 07 Cruas meysse ",0.5,null,null,null,0.5,0.5,null,null,0.5,null,null,"ROUTE",0.5,0.5,null,"ADMR\nEPI PYROS 3H\nTOURS (37)",0.5,0.5,"C",null,0.5,null,null,null,0.5,null,null,"MAISON ENFANTSLE CLOS\n2X I03\nEQUEMAUVILLE",0.5,0.5,"C","MOET HENNESSY\nSST01\n75016",0.5,null,"o","FERRERO MSA\nSST02\nMT ST AIGNAN 76",0.5,0.5,"C",null,0.5]
[null,"2017-10-11","am","AOSTE \n4 EPI 1h30\nMACLAS(42)",0.5,0.5,"C","RENAULT\n2 EPI UMEP02\nGUYANCOURT 78",null,null,"C","MUTUELLE UNEO\nUM EP 03 + exercice d'évac\nMERIGNAC",0.5,null,"O","GDA \n2 sessions UM CM2 02\n93 TREMBLAY EN France",0.5,0.5,"C","BOLLORE ENERGY\nI03 3H 8H30 - 11H30\nORLEANS (45)",0.5,0.5,"C",null,0.5,null,null,null,0.5,null,null,null,0.5,null,null,null,0.5,null,null,"Renault chargé d'évaxcuation\ni202 en 2heures  (nbre de sessions a definir)",0.5,null,"o",null,0.5]
[null,null,"pm","AOSTE \n4 EPI 1h30\nMACLAS(42)",0.5,0.5,null,"RENAULT\n2 EPI UMEP02\nGUYANCOURT 78",null,null,"C","MUTUELLE UNEO\nUM EP 03 + exercice d'évac\nMERIGNAC",0.5,null,"O","GDA \n2 sessions UM CM2 02\n93 TREMBLAY EN France",0.5,0.5,null,"BOLLORE ENERGY\nI03 3H 14H30 - 17H30\nORLEANS (45)",0.5,0.5,"C",null,0.5,null,null,null,0.5,null,null,"CER BELBEUF 76 SST07",0.5,null,"C",null,0.5,null,null,"Renault chargé d'évaxcuation\ni202 en 2heures \n (nbre de sessions a definir)",0.5,null,"o",null,0.5]
[null,"2017-10-12","am","ST MICRO\nGRENOBLE\n4 sessions EPI\nvoir horaires planning",0.5,0.5,"C","APTAR\n4 EPI 1h30 \nLOUVECIENNES (78) ",0.5,null,"O",null,0.5,null,null,"L'OREAL 2 sessions de 3h EPI \nCreuzier levieux 03",0.5,null,"C","CLINIQUE OCEANE\nI13H \nLE HAVRE",0.5,null,"O","MUTUALITE FRANCAISE\nEPI PYROS 3H\nCHAMBERY",0.5,0.5,"C",null,0.5,null,null,"PI04 CHEZ DELIFRANCE à MARTAINVILE (76) ",0.5,0.5,"C","MBDA\nI202\nPlessis Robinson (92)",0.5,0.5,"O","MF PRODUCTION\nSST02\nMAROMME",0.5,0.5,"C",null,0.5]
[null,null,"pm",null,0.5,0.5,null,"APTAR\n4 EPI 1h30 \nLOUVECIENNES (78) ",0.5,null,"O",null,0.5,null,null,"L'OREAL 2 sessions EPI  de 3h \nCreuzierl evieux 03",0.5,null,"C","CLINIQUE OCEANE\nI13H \nLE HAVRE",0.5,null,"O",null,0.5,null,null,null,0.5,null,null,null,0.5,null,null,null,0.5,null,null,"MF PRODUCTION\nSST02\nMAROMME",0.5,0.5,"C",null,0.5]
[null,"2017-10-13","am","ST MICRO\nGRENOBLE\n4 sessions EPI\nvoir horaires planning",0.5,0.5,"C",null,0.5,null,null,null,0.5,null,null,"L'OREAL \nESI\nCreuzier levieux 03",0.5,null,"O",null,0.5,null,null,"PHARMACIE DE LA POTERIE\nI03\nFERNEY VOLTAIRE 01",0.5,null,"C",null,0.5,null,null,"MILTON ROY\nI204R PONT SAINT PIERRE (27)",0.5,0.5,"C",null,0.5,null,null,"MILTON ROY\nI204R\nPONT ST PIERRE  (27) ",0.5,0.5,"C",null,0.5]
[null,null,"pm",null,0.5,0.5,null,null,0.5,null,null,null,0.5,null,null,"L'OREAL \nESI\nCreuzier levieux 03",0.5,null,null,null,0.5,null,null,null,0.5,null,null,null,0.5,null,null,null,0.5,null,null,null,0.5,null,null,null,0.5,null,null,null,0.5]
[42,"2017-10-16","am","ST MICRO\n4 EP02 h1h30\nCROLLES",0.5,0.5,"C","ST MICRO\n4 EP02 1h30\nTOURS",0.5,0.5,"C",null,0.5,null,null,"C. HOSPITALIER ISSOIRE (63)\nFORINCI13H - 3h30",0.5,0.5,"C",null,0.5,null,null,"MARMILLON\nI106 4H 13H30-17H30\nARBENT 01",0.5,null,"C",null,0.5,null,null,"MILTON ROY\nPI02\npont saint pierre (27) ",0.5,0.5,"C","BIC ECRITURE MONTEVRAIN 77 CM104 NACELLE 3B POUR 6 PERS",0.5,null,"O",null,0.5,null,null,null,0.5]
[null,null,"pm",null,0.5,0.5,null,null,0.5,0.5,null,null,0.5,null,null,"ROUTE",0.5,null,null,null,0.5,null,null,null,0.5,null,null,null,0.5,null,null,null,0.5,null,null,"BIC ECRITURE MONTEVRAIN 77 CM104 NACELLE 3B POUR 6 PERS",0.5,null,"O",null,0.5,null,null,null,0.5]
[null,"2017-10-17","am","ST MICRO\n2 EP02 h1h30\nCROLLES",0.5,0.5,"C","ST MICRO\n2 EP02 1h30\nTOURS",0.5,0.5,"C",null,0.5,null,null,"Greif  \n 1x umcm103 EPI+RIA 10h-12h \nHaisnes (62)",null,null,"C",null,0.5,null,null,"MUTUALITE FRANCAISE\nEPI PYROS 3H\nANNECY",0.5,0.5,"C",null,0.5,null,null,"CONDIVEX\nSST02\nETREPAGNY",0.5,0.5,"C","Clinique RAMSAY SST01\n75016",0.5,null,"C","LEROY MERLIN\nI202\nTOURVILLE la riviere ",0.5,0.5,"C",null,0.5]
[null,null,"pm","ST MICRO\n2 EP02 h1h30\nCROLLES",0.5,0.5,null,"ST MICRO\n2 EP02 1h30\nTOURS",0.5,0.5,null,null,0.5,null,null,"Greif à Haisnes (62)\numcm103\n 2x EPI+RIA 13h-15h et 15h15-17h15\nHaisnes (62)",null,null,"C",null,0.5,null,null,"SYSTHERM\nI07 2H\nGREZY SUR AIX",0.5,null,"O",null,0.5,null,null,"CONDIVEX\nSST02\nETREPAGNY",0.5,0.5,"C","Clinique RAMSAY SST01\n75016",0.5,null,"C","LEROY MERLIN\nI202\nTOURVILLE la riviere ",0.5,0.5,"C",null,0.5]
[null,"2017-10-18","am","ST MICRO\n4 EP02 h1h30\nCROLLES",0.5,0.5,"C","ST MICRO\n2 EP02 1h30\nTOURS",0.5,0.5,"C",null,0.5,null,null,"ROUTE",null,null,null,null,0.5,null,null,"SYSTHERM\nI07 2H\nGREZY SUR AIX",0.5,null,"O",null,0.5,null,null,"ARRED \nSST01 \nBOIS GUILLAUME 76",0.5,0.5,"C","Clinique RAMSAY SST01\n75016",0.5,null,"C",null,0.5,null,null,null,0.5]
[null,null,"pm","ST MICRO\n2 EP02 h1h30\nCROLLES",0.5,0.5,null,"ST MICRO\n2 EP02 1h30\nTOURS",0.5,0.5,null,null,0.5,null,null,null,null,null,null,null,0.5,null,null,null,0.5,null,null,null,0.5,null,null,"ARRED \nSST01 \nBOIS GUILLAUME 76",0.5,0.5,"C","Clinique RAMSAY SST01\n75016",0.5,null,"C","Route",0.5,0.5,null,null,0.5]
[null,"2017-10-19","am","ST MICRO\n2 EP02 h1h30\nCROLLES",0.5,0.5,"C","ST MICRO\n2 EP02 1h30\nTOURS",0.5,0.5,"C","ORANGE\n2 CM2 02 1H30\nMEYLAN 38",0.5,null,"C",null,null,null,null,null,0.5,null,null,"MUJTUALITE FRANCAISE DU RHONE\nEPI 3H 18H -21H\nVILLEURBANNE",0.5,0.5,"C",null,0.5,null,null,"ARRED \nSST01 \nBOIS GUILLAUME 76",0.5,0.5,"C","Renault chargé d'évaxcuation\ni202 en 2heures  (nbre de sessions a definir)",0.5,null,"o","sst02 ime-itep à plouigneau (29)",0.5,0.5,"c",null,0.5]
[null,null,"pm","ST MICRO\n2 EP02 h1h30\nCROLLES",0.5,0.5,null,"ST MICRO\n2 EP02 1h30\nTOURS",0.5,0.5,null,"ORANGE\n2 CM2 02 1H30\nMEYLAN 38",0.5,null,"C",null,null,null,null,"EHPAD TY AN DUD COZ\nI13H\nROSPORDEN (35)",0.5,0.5,"C",null,0.5,null,null,null,0.5,null,null,"ARRED \nSST01 \nBOIS GUILLAUME 76",0.5,0.5,"C","Renault chargé d'évaxcuation\ni202 en 2heures \n (nbre de sessions a definir)",0.5,null,"o","sst02 ime-itep à plouigneau (29)",0.5,0.5,"c",null,0.5]
[null,"2017-10-20","am",null,0.5,null,null,"ST MICRO\n2 EP02 1h30\nTOURS",0.5,0.5,"C",null,0.5,null,null,null,0.5,null,null,null,0.5,null,null,null,0.5,null,null,null,0.5,null,null,null,0.5,null,null,null,0.5,null,null,"Route",0.5,0.5,null,null,0.5]
[null,null,"pm",null,0.5,null,null,"ST MICRO\n2 EP02 1h30\nTOURS",0.5,0.5,null,null,0.5,null,null,null,0.5,null,null,"LES JARDINS DU CASTEL\nI13H - 13H45-17H15\nCHATEAUGIRON",0.5,0.5,"C",null,0.5,null,null,null,0.5,null,null,null,0.5,null,null,null,0.5,null,null,null,0.5,null,null,null,0.5]
[43,"2017-10-23","am","RENAULT\n2 EPI UMEP02\nGUYANCOURT 78",0.5,null,"C","ROYAL MONCEAU\n3 sesssions de 1 heure\nUM EP 02\n75008",null,null,"O",null,0.5,null,null,"CCM SAS TEXEN \n4 sessions EPI\nIZERNORE (01)",0.5,0.5,"C+BL",null,0.5,null,null,null,0.5,null,null,null,0.5,null,null,"KOYO\nPI02\nMAROMME",0.5,0.5,"C","condivex Etrépagny 27  initiale nacelle cat. 3B",0.5,null,"o",null,0.5,null,null,null,0.5]
[null,null,"pm","RENAULT\n2 EPI UMEP02\nGUYANCOURT 78",0.5,null,null,"ROYAL MONCEAU\n3 sesssions de 1 heure\nUM EP 02\n75008",null,null,"O",null,0.5,null,null,null,0.5,0.5,null,"ROUTE",0.5,null,null,null,0.5,null,null,null,0.5,null,null,"KOYO\nPI02\nMAROMME",0.5,0.5,"C","condivex Etrépagny 27  initiale nacelle cat. 3B",0.5,null,"o",null,0.5,null,null,null,0.5]
[null,"2017-10-24","am","AIRPORT COLLEGE\n4 EPI 1h30\nMarseille",0.5,0.5,"O","ROYAL MONCEAU\n3 sesssions de 1 heure\nUM EP 02\n75008",0.5,null,"O",null,0.5,null,null,null,0.5,null,null,"MUTUELLE UNEO\nI04+I207 +exercice d'évac\nla ciotat 2sessions de 3h30\n",0.5,null,"O",null,0.5,null,null,null,0.5,null,null,"KOYO\nPI02\nMAROMME",0.5,0.5,"C","condivex Etrépagny 27  initiale nacelle cat. 3B",0.5,null,"o",null,0.5,null,null,null,0.5]
[null,null,"pm",null,0.5,0.5,null,"ROYAL MONCEAU\n3 sesssions de 1 heure\nUM EP 02\n75008",0.5,null,null,null,0.5,null,null,null,0.5,null,null,"MUTUELLE UNEO\nI04+I207 +exercice d'évac\nLA CIOTAT",0.5,null,"O",null,0.5,null,null,null,0.5,null,null,"KOYO\nPI02\nMAROMME",0.5,0.5,"C","condivex Etrépagny 27  initiale nacelle cat. 3B",0.5,null,"o",null,0.5,null,null,null,0.5]
[null,"2017-10-25","am",null,0.5,null,null,"ROYAL MONCEAU\n3 sesssions de 1 heure\nUM EP 02\n75008",0.5,null,"O",null,0.5,null,null,null,0.5,null,null,null,0.5,null,null,"CANDIA SST MAC\n63 clermond ferrand",0.5,null,"O",null,0.5,null,null,"KOYO\nPI02\nMAROMME",0.5,0.5,"C",null,0.5,null,null,null,0.5,null,null,null,0.5]
[null,null,"pm",null,0.5,null,null,"ROYAL MONCEAU\n3 sesssions de 1 heure\nUM EP 02\n75008",0.5,null,"O",null,0.5,null,null,null,0.5,null,null,null,0.5,null,null,"CANDIA SST MAC\n63 clermond ferrand",0.5,null,"O",null,0.5,null,null,null,0.5,null,null,null,0.5,null,null,null,0.5,null,null,null,0.5]
[null,"2017-10-26","am",null,0.5,null,null,"ROYAL MONCEAU\n3 sesssions de 1 heure\nUM EP 02\n75008",0.5,null,"O",null,0.5,null,null,null,0.5,null,null,"ecole ste thérèse \ni03\nsaint nazaire 44",0.5,null,"o","SUEZ\n4 EPI I06\nRILLEUX LA PAPE 69",0.5,0.5,"C",null,0.5,null,null,"RENAULT\n4X EV02\nPLESSY (92)",0.5,0.5,"C",null,0.5,null,null,null,0.5,null,null,null,0.5]
[null,null,"pm",null,0.5,null,null,"ROYAL MONCEAU\n3 sesssions de 1 heure\nUM EP 02\n75008",0.5,null,"O",null,0.5,null,null,null,0.5,null,null,null,0.5,null,null,"SUEZ\n4 EPI I06\nRILLEUX LA PAPE 69",0.5,0.5,"C",null,0.5,null,null,"RENAULT\n4X EV02\nPLESSY (92)",0.5,0.5,"C",null,0.5,null,null,null,0.5,null,null,null,0.5]
[null,"2017-10-27","am","FONDATION VERDIER\n2 EPI 1H30\nTOURS",0.5,0.5,"O","ROYAL MONCEAU\n3 sesssions de 1 heure\nUM EP 02\n75008",null,null,"O",null,0.5,null,null,null,0.5,null,null,null,0.5,null,null,null,0.5,null,null,null,0.5,null,null,null,0.5,null,null,null,0.5,null,null,null,0.5,null,null,null,0.5]
[null,null,"pm","FONDATION VERDIER\n2 EPI 1H30\nTOURS",0.5,0.5,"O","ROYAL MONCEAU\n3 sesssions de 1 heure\nUM EP 02\n75008",null,null,"O",null,0.5,null,null,null,0.5,null,null,null,0.5,null,null,null,0.5,null,null,null,0.5,null,null,null,0.5,null,null,null,0.5,null,null,null,0.5,null,null,null,0.5]
[44,"2017-10-30","am",null,0.5,null,null,"NOVO NORDISK\n4 SESSIONS 1H30\nCHARTRES",0.5,0.5,"C",null,0.5,null,null,null,0.5,null,null,null,0.5,null,null,null,0.5,null,null,null,0.5,null,null,null,0.5,null,null,null,0.5,null,null,null,0.5,null,null,null,0.5]
[null,null,"pm",null,0.5,null,null,"NOVO NORDISK\n4 SESSIONS 1H30\nCHARTRES",0.5,0.5,"C",null,0.5,null,null,null,0.5,null,null,null,0.5,null,null,null,0.5,null,null,null,0.5,null,null,null,0.5,null,null,null,0.5,null,null,null,0.5,null,null,null,0.5]
[null,"2017-10-31","am",null,0.5,null,null,"NOVO NORDISK\n4 SESSIONS 1H30\nCHARTRES",0.5,0.5,"C",null,0.5,null,null,null,0.5,null,null,"LA MERISAIE\nI03 3H\n41 PONTLEVOY",0.5,null,"O",null,0.5,null,null,null,0.5,null,null,null,0.5,null,null,null,0.5,null,null,null,0.5,null,null,null,0.5]
[null,null,"pm",null,0.5,null,null,null,0.5,0.5,"C",null,0.5,null,null,null,0.5,null,null,null,0.5,null,null,null,0.5,null,null,null,0.5,null,null,null,0.5,null,null,null,0.5,null,null,null,0.5,null,null,null,0.5]

{"sheet":"Novembre","index":8,"n_rows":48,"n_cols":47,"rows_kept":48,"cut":false,"hidden":false,"merged":[[40,0,47,0],[40,1,41,1],[42,1,43,1],[44,1,45,1],[46,1,47,1],[34,23,35,23],[34,26,35,26],[36,1,37,1],[36,15,37,15],[30,0,39,0],[30,1,31,1],[38,1,39,1],[34,10,35,10],[38,7,39,7],[38,10,39,10],[24,26,25,26],[26,1,27,1],[26,6,27,6],[24,10,25,10],[24,23,25,23],[18,6,19,6],[18,7,19,7],[34,1,35,1],[34,7,35,7],[32,1,33,1],[32,3,33,3],[28,1,29,1],[24,1,25,1],[24,3,25,3],[24,6,25,6],[24,7,25,7],[20,0,29,0],[20,1,21,1],[22,1,23,1],[16,1,17,1],[16,3,17,3],[18,1,19,1],[18,3,19,3],[16,6,17,6],[16,7,17,7],[8,18,9,18],[8,26,9,26],[10,0,19,0],[10,1,11,1],[10,10,11,10],[10,15,11,15],[10,18,11,18],[12,3,13,3],[12,6,13,6],[14,1,15,1],[8,23,9,23],[18,10,19,10],[16,10,17,10],[4,0,9,0],[8,1,9,1],[8,3,9,3],[8,6,9,6],[0,43,1,46],[0,23,1,26],[0,27,1,30],[0,31,1,34],[0,35,1,38],[0,39,1,42],[0,19,1,22],[6,3,7,3],[6,6,7,6],[0,0,1,2],[0,3,1,6],[0,7,1,10],[0,11,1,14],[0,15,1,18],[4,1,5,1],[4,3,5,3],[4,6,5,6],[6,1,7,1]]}
["2017-11-01",null,null,"PHILIPPE (EP)",null,null,null,"ANDRE  (EP)",null,null,null,"THIERRY (CM2)",null,null,null,"CHRISTIAN (CM1)",null,null,null,"Jean-Côme (Dragon)",null,null,null,"JEAN FRANCOIS",null,null,null,"ANTOINE Antoine",null,null,null,"THIERRY BINET",null,null,null,"PASCAL GARIN",null,null,null,"JORIS LONGFIER",null,null,null,"TONY BOUTEILLER"]
[]
[null,null,null,{"$f":"F3/E3","v":0.5},{"$f":"SUM(E5:E48)","v":20},{"$f":"SUM(F5:F46)","v":10},null,{"$f":"J3/I3","v":0.47499999999999998},{"$f":"SUM(I5:I48)","v":20},{"$f":"SUM(J5:J46)","v":9.5},null,{"$f":"N3/M3","v":0},{"$f":"SUM(M5:M48)","v":21},{"$f":"SUM(N5:N46)","v":0},null,{"$f":"R3/Q3","v":0.33333333333333331},{"$f":"SUM(Q5:Q48)","v":21},{"$f":"SUM(R5:R46)","v":7},null,{"$f":"V3/U3","v":4.7619047619047616E-2},{"$f":"SUM(U5:U48)","v":21},{"$f":"SUM(V5:V46)","v":1},null,{"$f":"Z3/Y3","v":7.1428571428571425E-2},{"$f":"SUM(Y5:Y48)","v":21},{"$f":"SUM(Z5:Z46)","v":1.5},null,{"$f":"AD3/AC3","v":0},{"$f":"SUM(AC5:AC48)","v":21},{"$f":"SUM(AD5:AD46)","v":0},null,{"$f":"AH3/AG3","v":0.26190476190476192},{"$f":"SUM(AG5:AG48)","v":21},{"$f":"SUM(AH5:AH46)","v":5.5},null,{"$f":"AL3/AK3","v":0.6428571428571429},{"$f":"SUM(AK5:AK48)","v":21},{"$f":"SUM(AL5:AL46)","v":13.5},null,{"$f":"AP3/AO3","v":9.5238095238095233E-2},{"$f":"SUM(AO5:AO48)","v":21},{"$f":"SUM(AP5:AP46)","v":2},null,{"$f":"AT3/AS3","v":0},{"$f":"SUM(AS5:AS48)","v":21},{"$f":"SUM(AT5:AT46)","v":0}]
["SEM","JOUR","AM/PM","FORMATION","Ouv","trav","STATUT","FORMATION","Ouv","trav","STATUT","FORMATION","Ouv","trav","STATUT","FORMATION","Ouv","trav","STATUT","FORMATION","Ouv","trav","STATUT","FORMATION","Ouv","trav","STATUT","FORMATION","Ouv","trav","STATUT","FORMATION","Ouv","trav","STATUT","FORMATION","Ouv","trav","STATUT","FORMATION","Ouv","trav","STATUT","FORMATION","Ouv","trav","STATUT"]
[44,"2017-11-01","am"]
[null,null,"pm"]
[null,"2017-11-02","am","SAFE et ONIP\n6 EPI 1h\nHONDOUVILLE (27)",0.5,0.5,"C",null,0.5,null,null,null,0.5,null,null,null,0.5,null,null,null,0.5,null,null,null,0.5,null,null,null,0.5,null,null,null,0.5,null,null,"RP40 GRT GAZ EVRY GREGY SUR YERRES 77",0.5,0.5,"C",null,0.5,null,null,null,0.5]
[null,null,"pm",null,0.5,0.5,null,null,0.5,null,null,null,0.5,null,null,null,0.5,null,null,null,0.5,null,null,null,0.5,null,null,null,0.5,null,null,null,0.5,null,null,"RP40 GRT GAZ EVRY GREGY SUR YERRES 77",0.5,0.5,"C",null,0.5,null,null,null,0.5]
[null,"2017-11-03","am","SAFE et ONIP\n6 EPI 1h\nHONDOUVILLE (27)",0.5,0.5,"C",null,0.5,null,null,null,0.5,null,null,null,0.5,0.5,null,null,0.5,null,null,null,0.5,null,null,null,0.5,null,null,null,0.5,null,null,"RP40 GRT GAZ EVRY GREGY SUR YERRES 77",0.5,0.5,"C",null,0.5,null,null,null,0.5]
[null,null,"pm",null,0.5,0.5,null,null,0.5,null,null,null,0.5,null,null,null,0.5,0.5,null,null,0.5,null,null,null,0.5,null,null,null,0.5,null,null,null,0.5,null,null,"RP40 GRT GAZ EVRY GREGY SUR YERRES 77",0.5,0.5,"C",null,0.5,null,null,null,0.5]
[45,"2017-11-06","am",null,null,null,null,null,0.5,null,null,null,0.5,null,null,"C. HOSPITALIER ISSOIRE (63)\nFORINCI13H - 3h30",0.5,0.5,"C","LA MERISAIE\nI03 3H\n41 PONTLEVOY",0.5,null,"O",null,0.5,null,null,null,0.5,null,null,null,0.5,null,null,null,0.5,null,null,null,0.5,null,null,null,0.5]
[null,null,"pm",null,null,null,null,null,0.5,null,null,null,0.5,null,null,null,0.5,0.5,null,null,0.5,null,null,null,0.5,null,null,null,0.5,null,null,null,0.5,null,null,null,0.5,null,null,null,0.5,null,null,null,0.5]
[null,"2017-11-07","am","UM EP 02\nNice\n4 sessions 1h30\nAIRPORT COLLEGE",0.5,0.5,"O","APTAR\n4 EPI 1h30 \nLOUVECIENNES (78) ",0.5,null,"O",null,0.5,null,null,"EHPAD ARLANC\nI13H 4H\nARLANC (63)",0.5,0.5,"C",null,0.5,null,null,null,0.5,null,null,null,0.5,null,null,"PI01 ari initial chez OMMIC Limeil-Brévannes (94)",0.5,0.5,"C","LEROY MERLIN\nRP40\nISNEAUVILLE 76 ",0.5,0.5,"C","MF PRODUCTION\nSST02\nMAROMME",0.5,0.5,"C",null,0.5]
[null,null,"pm",null,0.5,0.5,null,"APTAR\n4 EPI 1h30 \nLOUVECIENNES (78) ",0.5,null,"O",null,0.5,null,null,"EHPAD VIVEROLLES\nI13H 4H\nVIVEROLLES (63)",0.5,0.5,"C",null,0.5,null,null,"MDR SEVIGNE 38\nEPI MSR\n13H30-17h30",0.5,0.5,"C",null,0.5,null,null,null,0.5,null,null,"LEROY MERLIN\nRP40\nISNEAUVILLE 76 ",0.5,0.5,"C","MF PRODUCTION\nSST02\nMAROMME",0.5,0.5,"C",null,0.5]
[null,"2017-11-08","am","YARA \n2 sessions\nGONFREVILLE (76) ",0.5,0.5,"O","ORANGE\n2x EPI 1h30\nLAGNY SUR MARNE (77)",0.5,0.5,"C",null,0.5,null,null,null,0.5,null,null,null,0.5,null,null,null,0.5,null,null,null,0.5,null,null,null,0.5,null,null,"LEROY MERLIN\nRP40\nISNEAUVILLE 76 ",0.5,0.5,"C",null,0.5,null,null,null,0.5]
[null,null,"pm","YARA \n2 sessions\nGONFREVILLE (76) ",0.5,0.5,"O","ORANGE\n2x EPI 1h30\nLAGNY SUR MARNE (77)",0.5,0.5,"C",null,0.5,null,null,null,0.5,null,null,null,0.5,null,null,null,0.5,null,null,null,0.5,null,null,null,0.5,null,null,"LEROY MERLIN\nRP40\nISNEAUVILLE 76 ",0.5,0.5,"C","CER BELBEUF 76 SST07",0.5,null,"C",null,0.5]
[null,"2017-11-09","am","AIRPORT COLLEGE\n 4 sessions de 1h30\nROISSY",0.5,0.5,"O","HOPITAL DE NAVARRE\n4 sessions EPI 1h30\nEVREUX (27)",0.5,0.5,"C",null,0.5,null,null,"YARA GONFREVILLE (76)\n4 sessions ",0.5,0.5,"O","CLINIQUE OCEANE\nI13H",0.5,0.5,"O",null,0.5,null,null,null,0.5,null,null,"ARRED SST01 BOIS GUILLAUME 76",0.5,0.5,"C",null,0.5,null,null,"elba à moult (14) i12x2",0.5,null,"c",null,0.5]
[null,null,"pm",null,0.5,0.5,null,null,0.5,0.5,null,null,0.5,null,null,"YARA GONFREVILLE (76)\n4 sessions ",0.5,0.5,"O","CLINIQUE OCEANE\nI13H",0.5,0.5,"O",null,0.5,null,null,null,0.5,null,null,"ARRED SST01 BOIS GUILLAUME 76",0.5,0.5,"C",null,0.5,null,null,null,0.5,null,null,null,0.5]
[null,"2017-11-10","am",null,0.5,null,null,null,0.5,null,null,null,0.5,null,null,"YARA GONFREVILLE (76)\n4 sessions ",0.5,0.5,"O",null,0.5,null,null,null,0.5,null,null,null,0.5,null,null,"ARRED SST01 BOIS GUILLAUME 76",0.5,0.5,"C",null,0.5,null,null,null,0.5,null,null,null,0.5]
[null,null,"pm",null,0.5,null,null,null,0.5,null,null,null,0.5,null,null,"YARA GONFREVILLE (76)\n4 sessions ",0.5,0.5,"O",null,0.5,null,null,null,0.5,null,null,null,0.5,null,null,"ARRED SST01 BOIS GUILLAUME 76",0.5,0.5,"C",null,0.5,null,null,null,0.5,null,null,null,0.5]
[46,"2017-11-13","am","OMNIC\n2 UMEP02\nLimeil brvannes 94",0.5,null,"O","NOVO NORDISK\n4 sessions UMEP02\n28 chartres",0.5,0.5,"C",null,0.5,null,null,null,0.5,null,null,null,0.5,null,null,null,0.5,null,null,null,0.5,null,null,null,0.5,null,null,"LEROY MERLIN\nRP40\nISNEAUVILLE 76 ",0.5,0.5,"C",null,0.5,null,null,null,0.5]
[null,null,"pm","OMNIC\n2 UMEP02\nLimeil brvannes 94",0.5,null,"O","NOVO NORDISK\n4 sessions UMEP02\n28 chartres",0.5,0.5,"C",null,0.5,null,null,null,0.5,null,null,null,0.5,null,null,null,0.5,null,null,null,0.5,null,null,null,0.5,null,null,"LEROY MERLIN\nRP40\nISNEAUVILLE 76 ",0.5,0.5,"C",null,0.5,null,null,null,0.5]
[null,"2017-11-14","am","OMNIC\n2 UMEP02\nLimeil brvannes 94",0.5,null,"O","NOVO NORDISK\n4 sessions UMEP02\n28 chartres",0.5,0.5,"C",null,0.5,null,null,null,0.5,null,null,"CEA umdra02\nsaclay 78 4 sessions",0.5,null,"C","SUEZ\n4 EPI I06\nRILLEUX LA PAPE 69",0.5,0.5,"O",null,0.5,null,null,"CONDIVEX\nPI02\nEtrepagny",0.5,0.5,"C","LEROY MERLIN\nRP40\nISNEAUVILLE 76 ",0.5,0.5,"C","elba à moult (14) i12x2",0.5,null,"c",null,0.5]
[null,null,"pm","OMNIC\n2 UMEP02\nLimeil brvannes 94",0.5,null,"O","NOVO NORDISK\n4 sessions UMEP02\n28 chartres",0.5,0.5,"C",null,0.5,null,null,null,0.5,null,null,"CEA umdra02\nsaclay 78 4 sessions",0.5,null,"C","SUEZ\n4 EPI I06\nRILLEUX LA PAPE 69",0.5,0.5,"O",null,0.5,null,null,"CONDIVEX\nPI02\nEtrepagny",0.5,0.5,"C","LEROY MERLIN\nRP40\nISNEAUVILLE 76 ",0.5,0.5,"C",null,0.5,null,null,null,0.5]
[null,"2017-11-15","am","AIRPORT COLLEGE\n 2 sessions de 3h\nROISSY",0.5,0.5,"O",null,0.5,null,null,null,0.5,null,null,null,0.5,null,null,null,0.5,null,null,null,0.5,null,null,null,0.5,null,null,null,0.5,null,null,"condivex à Etrépagny 27 CM05",0.5,0.5,"c",null,0.5,null,null,null,0.5]
[null,null,"pm",null,0.5,null,null,null,0.5,null,null,null,0.5,null,null,null,0.5,null,null,null,0.5,null,null,null,0.5,null,null,null,0.5,null,null,null,0.5,null,null,"condivex à Etrépagny 27 CM05",0.5,0.5,"c",null,0.5,null,null,null,0.5]
[null,"2017-11-16","am","MBDA\n2 EPI 1h30\nPLESSIS-ROBINSON (92)",0.5,0.5,"C",null,null,null,null,null,0.5,null,null,null,0.5,null,null,null,0.5,null,null,null,0.5,null,null,null,0.5,null,null,null,0.5,null,null,"RP40 GRT GAZ CUVILLY 60",0.5,0.5,"C",null,0.5,null,null,null,0.5]
[null,null,"pm",null,0.5,null,null,null,null,null,null,null,0.5,null,null,null,0.5,null,null,null,0.5,null,null,null,0.5,null,null,null,0.5,null,null,null,0.5,null,null,"RP40 GRT GAZ CUVILLY 60",0.5,0.5,"C",null,0.5,null,null,null,0.5]
[null,"2017-11-17","am","ORANGE GARDENS\n2 EPI 1H30\nChatillon (92)",0.5,0.5,"C",null,0.5,null,null,null,0.5,null,null,null,0.5,null,null,null,0.5,null,null,null,0.5,null,null,null,0.5,null,null,null,0.5,null,null,"RP40 GRT GAZ CUVILLY 60",0.5,0.5,"C",null,0.5,null,null,null,0.5]
[null,null,"pm","ORANGE GARDENS\n2 EPI 1H30\nChatillon (92)",0.5,0.5,"C",null,0.5,null,null,null,0.5,null,null,null,0.5,null,null,null,0.5,null,null,null,0.5,null,null,null,0.5,null,null,null,0.5,null,null,"RP40 GRT GAZ CUVILLY 60",0.5,0.5,"C",null,0.5,null,null,null,0.5]
[47,"2017-11-20","am","MILTON ROY\n4 EPI 1H30\nPONT SAINT PIERRE (27)",0.5,0.5,"C",null,0.5,null,null,null,0.5,null,null,"GIVAUDAN LAVIROTTE\n1X CM1 06\nLYON",0.5,0.5,"O","ORANGE\n2X DRA02 1H30\nMONTLUCON 03",0.5,null,"O",null,0.5,null,null,null,0.5,null,null,"ARRED SST01 BOIS GUILLAUME 76",0.5,0.5,"C",null,0.5,null,null,null,0.5,null,null,null,0.5]
[null,null,"pm","MILTON ROY\n4 EPI 1H30\nPONT SAINT PIERRE (27)",0.5,0.5,"C","ROUTE",0.5,0.5,null,null,0.5,null,null,"GIVAUDAN LAVIROTTE\n2X CM1 02\nLYON",0.5,0.5,"O","ROUTE",0.5,null,null,null,0.5,null,null,null,0.5,null,null,"ARRED SST01 BOIS GUILLAUME 76",0.5,0.5,"C",null,0.5,null,null,null,0.5,null,null,null,0.5]
[null,"2017-11-21","am","Renault plessis \n4 sessions \nrobinson 92\n",0.5,0.5,"C","AEROCHIM \n2 epi 1h30 \nBERNAY 27",0.5,0.5,"O",null,0.5,null,null,null,0.5,null,null,"ORANGE\n2X DRA02 1H30\nVICHY 03",0.5,null,"O",null,0.5,null,null,null,0.5,null,null,"ARRED SST01 BOIS GUILLAUME 76",0.5,0.5,"C","RENAULT\n4X EV02\nAUBEVOYE",0.5,0.5,"C",null,0.5,null,null,null,0.5]
[null,null,"pm",null,0.5,0.5,"C","AEROCHIM \n2 epi 1h30 \nBERNAY 27",0.5,0.5,"O",null,0.5,null,null,null,0.5,null,null,"ROUTE",0.5,null,null,null,0.5,null,null,null,0.5,null,null,"ARRED SST01 BOIS GUILLAUME 76",0.5,0.5,"C",null,0.5,null,null,null,0.5,null,null,null,0.5]
[null,"2017-11-22","am",null,0.5,null,null,"AEROCHIM \n2 epi 1h30 \nBERNAY 27",0.5,0.5,"O",null,0.5,null,null,null,0.5,null,null,"ORANGE\n2X DRA02 1H30\nMOULINS 03",0.5,null,"O",null,0.5,null,null,null,0.5,null,null,null,0.5,null,null,null,0.5,null,null,null,0.5,null,null,null,0.5]
[null,null,"pm",null,0.5,null,null,null,0.5,0.5,null,null,0.5,null,null,null,0.5,null,null,"ROUTE",0.5,null,null,null,0.5,null,null,null,0.5,null,null,null,0.5,null,null,null,0.5,null,null,null,0.5,null,null,null,0.5]
[null,"2017-11-23","am","GREIF \nUMEP02 2 EPI 1H30\nGRAND QUEVILLY 76",0.5,null,"C","AEROCHIM \n2 epi 1h30 \nBERNAY 27",0.5,0.5,"O",null,0.5,null,null,"EHPAD LE MONTEL\n2 SESSIONS DE 3H  EPI +mise en secuirté des résidents\n63",0.5,0.5,"C","ORANGE\n2X DRA02 1H30\nAURILLAC 03",0.5,null,"O",null,0.5,null,null,null,0.5,null,null,null,0.5,null,null,"LEROY MERLIN\nRP40\nISNEAUVILLE 76 ",0.5,0.5,"C","FERRERO MSA\nSST 02\nGRAND QUEVILLY (76)",0.5,0.5,"C",null,0.5]
[null,null,"pm","GREIF \nUMEP02 2 EPI 1H30\nGRAND QUEVILLY 76",0.5,null,"C","AEROCHIM \n2 epi 1h30 \nBERNAY 27",0.5,0.5,"O",null,0.5,null,null,null,0.5,0.5,"C","ROUTE",0.5,null,null,null,0.5,null,null,null,0.5,null,null,null,0.5,null,null,"LEROY MERLIN\nRP40\nISNEAUVILLE 76 ",0.5,0.5,"C","FERRERO MSA\nSST 02\nGRAND QUEVILLY (76)",0.5,0.5,"C",null,0.5]
[null,"2017-11-24","am","GREIF \nUMEP02 2 EPI 1H30\nGRAND QUEVILLY 76",0.5,null,"C",null,0.5,0.5,null,null,0.5,null,null,null,0.5,null,null,"ORANGE\n2X DRA02 1H30\nLE PYU EN VELAY 03",0.5,null,"O",null,0.5,null,null,null,0.5,null,null,null,0.5,null,null,"LEROY MERLIN\nRP40\nISNEAUVILLE 76 ",0.5,0.5,"C",null,0.5,null,null,null,0.5]
[null,null,"pm","GREIF \nUMEP02 2 EPI 1H30\nGRAND QUEVILLY 76",0.5,null,"C",null,0.5,null,null,null,0.5,null,null,null,0.5,null,null,"ROUTE",0.5,null,null,null,0.5,null,null,null,0.5,null,null,null,0.5,null,null,"LEROY MERLIN\nRP40\nISNEAUVILLE 76 ",0.5,0.5,"C",null,0.5,null,null,null,0.5]
[48,"2017-11-27","am",null,0.5,null,null,null,0.5,null,null,null,0.5,null,null,null,0.5,null,null,null,0.5,null,null,null,0.5,null,null,null,0.5,null,null,null,0.5,null,null,"LEROY MERLIN\nRP40\nISNEAUVILLE 76 ",0.5,0.5,"C",null,0.5,null,null,null,0.5]
[null,null,"pm",null,0.5,null,null,null,0.5,null,null,null,0.5,null,null,null,0.5,null,null,null,0.5,null,null,null,0.5,null,null,null,0.5,null,null,null,0.5,null,null,"LEROY MERLIN\nRP40\nISNEAUVILLE 76 ",0.5,0.5,"C",null,0.5,null,null,null,0.5]
[null,"2017-11-28","am",null,0.5,null,null,"Renault Aubevoye 27\n2 EP02 1H30\nAubevoye 27",0.5,0.5,"C",null,0.5,null,null,null,0.5,null,null,null,0.5,null,null,null,0.5,null,null,null,0.5,null,null,"CERP \nsst02\nLES SORINIERES 44",0.5,null,"O","LEROY MERLIN\nRP40\nISNEAUVILLE 76 ",0.5,0.5,"C",null,0.5,null,null,null,0.5]
[null,null,"pm",null,0.5,null,null,"Renault Aubevoye 27\n2 EP02 1H30\nAubevoye 27",0.5,0.5,"C",null,0.5,null,null,null,0.5,null,null,null,0.5,null,null,null,0.5,null,null,null,0.5,null,null,"CERP \nsst02\nLES SORINIERES 44",0.5,null,"O","LEROY MERLIN\nRP40\nISNEAUVILLE 76 ",0.5,0.5,"C",null,0.5,null,null,null,0.5]
[null,"2017-11-29","am","NOVANDIE\n2 UMEP02 1H30\nVIEIL MOUTIER (62)",0.5,0.5,"C",null,0.5,null,null,null,0.5,null,null,null,0.5,null,null,null,0.5,null,null,null,0.5,null,null,null,0.5,null,null,"CERP \nsst01\nLES SORINIERES 44",0.5,null,"O",null,0.5,null,null,null,0.5,null,null,null,0.5]
[null,null,"pm","NOVANDIE\n2 UMEP02 1H30\nVIEIL MOUTIER (62)",0.5,0.5,"C","ROUTE",0.5,0.5,null,null,0.5,null,null,null,0.5,null,null,null,0.5,null,null,null,0.5,null,null,null,0.5,null,null,"CERP \nsst01\nLES SORINIERES 44",0.5,null,"O",null,0.5,null,null,null,0.5,null,null,null,0.5]
[null,"2017-11-30","am",null,0.5,null,null,"ORANGE\n2x EPI 1h30\nRENNES TATELIN (35)",0.5,0.5,"C",null,0.5,null,null,null,0.5,null,null,null,0.5,null,null,null,0.5,null,null,null,0.5,null,null,"CERP \nsst01\nLES SORINIERES 44",0.5,null,"O","BIC ECRITURE MONTEVRAIN 77 CM05 RECY CHARIOT CAT3 POUR 6 PERS",0.5,null,"O",null,0.5,null,null,null,0.5]
[null,null,"pm",null,0.5,null,null,"ORANGE\n2x EPI 1h30\nRENNES PATTON (35)",0.5,0.5,"C",null,0.5,null,null,null,0.5,null,null,null,0.5,null,null,null,0.5,null,null,null,0.5,null,null,"CERP \nsst01\nLES SORINIERES 44",0.5,null,"O","BIC ECRITURE MONTEVRAIN 77 CM05 RECY CHARIOT CAT3 POUR 6 PERS",0.5,null,"O",null,0.5,null,null,null,0.5]

{"sheet":"Decembre","index":9,"n_rows":50,"n_cols":47,"rows_kept":50,"cut":false,"hidden":false,"merged":[[44,0,49,0],[44,1,45,1],[46,1,47,1],[46,10,47,10],[48,1,49,1],[32,1,33,1],[32,15,33,15],[32,18,33,18],[34,0,43,0],[34,1,35,1],[36,1,37,1],[36,6,37,6],[38,1,39,1],[40,1,41,1],[40,6,41,6],[40,10,41,10],[42,1,43,1],[28,1,29,1],[28,10,29,10],[28,26,29,26],[28,42,29,42],[30,1,31,1],[30,10,31,10],[30,34,31,34],[30,42,31,42],[20,42,21,42],[22,1,23,1],[22,6,23,6],[22,10,23,10],[24,0,33,0],[24,1,25,1],[26,1,27,1],[26,10,27,10],[26,15,27,15],[26,18,27,18],[14,0,23,0],[14,1,15,1],[16,1,17,1],[18,1,19,1],[20,1,21,1],[20,10,21,10],[4,0,13,0],[4,1,5,1],[6,1,7,1],[8,1,9,1],[10,1,11,1],[10,7,11,7],[12,1,13,1],[0,23,1,26],[0,27,1,30],[0,31,1,34],[0,35,1,38],[0,39,1,42],[0,43,1,46],[0,0,2,2],[0,3,1,6],[0,7,1,10],[0,11,1,14],[0,15,1,18],[0,19,1,22]]}
["2018-01-01",null,null,"PHILIPPE (EP)",null,null,null,"ANDRE  (EP)",null,null,null,"(CM2)",null,null,null,"CHRISTIAN (CM1)",null,null,null,"Jean-Côme (Dragon)",null,null,null,"JEAN FRANCOIS",null,null,null,"ANTOINE Antoine",null,null,null,"THIERRY BINET",null,null,null,"PASCAL GARIN",null,null,null,"JORIS LONGFIER",null,null,null,"Prestataire"]
[]
[null,null,null,{"$f":"F3/E3","v":{"$error":"#DIV/0!"}},{"$f":"SUM(E5:E44)","v":0},{"$f":"SUM(F5:F44)","v":0},null,{"$f":"J3/I3","v":{"$error":"#DIV/0!"}},{"$f":"SUM(I5:I44)","v":0},{"$f":"SUM(J5:J44)","v":0},null,null,{"$f":"SUM(M5:M44)","v":0},{"$f":"SUM(N5:N44)","v":0},null,{"$f":"R3/Q3","v":{"$error":"#DIV/0!"}},{"$f":"SUM(Q5:Q44)","v":0},{"$f":"SUM(R5:R44)","v":0},null,{"$f":"V3/U3","v":{"$error":"#DIV/0!"}},{"$f":"SUM(U5:U44)","v":0},{"$f":"SUM(V5:V44)","v":0},null,{"$f":"Z3/Y3","v":{"$error":"#DIV/0!"}},{"$f":"SUM(Y5:Y44)","v":0},{"$f":"SUM(Z5:Z44)","v":0},null,{"$f":"AD3/AC3","v":{"$error":"#DIV/0!"}},{"$f":"SUM(AC5:AC44)","v":0},{"$f":"SUM(AD5:AD44)","v":0},null,{"$f":"AH3/AG3","v":{"$error":"#DIV/0!"}},{"$f":"SUM(AG5:AG44)","v":0},{"$f":"SUM(AH5:AH44)","v":0},null,{"$f":"AL3/AK3","v":{"$error":"#DIV/0!"}},{"$f":"SUM(AK5:AK44)","v":0},{"$f":"SUM(AL5:AL44)","v":0},null,{"$f":"AP3/AO3","v":{"$error":"#DIV/0!"}},{"$f":"SUM(AO5:AO44)","v":0},{"$f":"SUM(AP5:AP44)","v":0},null,{"$f":"AT3/AS3","v":{"$error":"#DIV/0!"}},{"$f":"SUM(AS5:AS44)","v":0},{"$f":"SUM(AT5:AT44)","v":0}]
["SEM","JOUR","AM/PM","FORMATION","Ouv","trav","STATUT","FORMATION","Ouv","trav","STATUT","FORMATION","Ouv","trav","STATUT","FORMATION","Ouv","trav","STATUT","FORMATION","Ouv","trav","STATUT","FORMATION","Ouv","trav","STATUT","FORMATION","Ouv","trav","STATUT","FORMATION","Ouv","trav","STATUT","FORMATION","Ouv","trav","STATUT","FORMATION","Ouv","trav","STATUT","FORMATION","Ouv","trav","STATUT"]
[10,"2018-01-01","am",null,null,null,"C"]
[null,null,"pm",null,null,null,"C"]
[null,"2018-01-02","am"]
[null,null,"pm"]
[null,"2018-01-03","am"]
[null,null,"pm"]
[null,"2018-01-04","am",null,null,null,null,null,null,null,"C"]
[null,null,"pm"]
[null,"2018-01-05","am"]
[null,null,"pm"]
[11,"2018-01-08","am"]
[null,null,"pm",null,null,null,"C",null,null,null,null,null,null,null,null,null,null,null,"C"]
[null,"2018-01-09","am",null,null,null,"C+BL",null,null,null,null,null,null,null,null,null,null,null,null,null,null,null,null,null,null,null,"C"]
[null,null,"pm",null,null,null,null,null,null,null,null,null,null,null,null,null,null,null,"F"]
[null,"2018-01-10","am",null,null,null,"F"]
[null,null,"pm"]
[null,"2018-01-11","am"]
[null,null,"pm",null,null,null,null,null,null,null,null,null,null,null,null,null,null,null,null,null,null,null,null,null,null,null,"F"]
[null,"2018-01-12","am"]
[null,null,"pm"]
[12,"2018-01-15","am"]
[null,null,"pm"]
[null,"2018-01-16","am"]
[null,null,"pm"]
[null,"2018-01-17","am"]
[null,null,"pm"]
[null,"2018-01-18","am"]
[null,null,"pm"]
[null,"2018-01-19","am"]
[null,null,"pm"]
[13,"2018-01-22","am"]
[null,null,"pm"]
[null,"2018-01-23","am"]
[null,null,"pm"]
[null,"2018-01-24","am"]
[null,null,"pm"]
[null,"2018-01-25","am"]
[null,null,"pm"]
[null,"2018-01-26","am"]
[null,null,"pm"]
[13,"2018-01-29","am"]
[null,null,"pm"]
[null,"2018-01-30","am"]
[null,null,"pm"]
[null,"2018-01-31","am"]
[null,null,"pm"]

{"sheet":"Taux Occup","index":10,"n_rows":52,"n_cols":19,"rows_kept":52,"cut":false,"hidden":false,"merged":[[48,1,51,1],[48,2,51,2],[50,14,50,16],[40,1,43,1],[40,2,43,2],[42,14,42,16],[44,1,47,1],[44,2,47,2],[46,14,46,16],[32,1,35,1],[32,2,35,2],[34,14,34,16],[36,1,39,1],[36,2,39,2],[38,14,38,16],[24,1,27,1],[24,2,27,2],[26,14,26,16],[28,1,31,1],[28,2,31,2],[30,14,30,16],[16,1,19,1],[16,2,19,2],[18,14,18,16],[20,1,23,1],[20,2,23,2],[22,14,22,16],[6,1,10,1],[6,2,10,2],[8,14,8,16],[11,1,15,1],[11,2,15,2],[13,14,13,16],[4,14,4,16],[4,1,5,1],[4,2,5,2],[4,3,5,3],[4,4,4,7],[4,8,4,12]]}
[]
[null,null,"données à saisir"]
[null,null,"données récupérées"]
[]
[null,"MOIS","Nb Jours Ouvrés","Détail","UNITES MOBILES",null,null,null,"TRADITIONNEL",null,null,null,null,null,"MOYENNE"]
[null,null,null,null,"Pmarin","Abordes","Tlohy","Cpequay","Jcsicurani","Jfbassereau","Tbouteiller","Jlongfier","Tbinet",null,"globale","unité mobie","Traditionnel"]
[null,"Février",20,"CP / arrêt"]
[null,null,null,"ouvrés"]
[null,null,null,"formation"]
[null,null,null,"roulage",4,4,0,4,3,4,3,3,1]
[null,null,null,"%",{"$f":"(E9+E10)/E8","v":{"$error":"#DIV/0!"}},{"$f":"(F9+F10)/F8","v":{"$error":"#DIV/0!"}},0,{"$f":"(H9+H10)/H8","v":{"$error":"#DIV/0!"}},{"$error":"#DIV/0!"},{"$error":"#DIV/0!"},{"$error":"#DIV/0!"},{"$error":"#DIV/0!"},{"$error":"#DIV/0!"},null,{"$f":"(E11+F11+H11+I11+J11+K11+L11+M11)/8","v":{"$error":"#DIV/0!"}},{"$f":"(E11+F11+H11)/3","v":{"$error":"#DIV/0!"}},{"$f":"(I11+J11+K11+L11+M11)/5","v":{"$error":"#DIV/0!"}}]
[null,"Mars",23,"CP / arrêt",{"$f":"#REF!","v":{"$error":"#REF!"}},{"$f":"#REF!","v":{"$error":"#REF!"}},{"$f":"#REF!","v":{"$error":"#REF!"}},{"$f":"#REF!","v":{"$error":"#REF!"}},{"$f":"#REF!","v":{"$error":"#REF!"}},{"$f":"#REF!","v":{"$error":"#REF!"}},0,{"$f":"#REF!","v":{"$error":"#REF!"}},{"$f":"#REF!","v":{"$error":"#REF!"}}]
[null,null,null,"ouvrés",{"$f":"#REF!","v":{"$error":"#REF!"}},{"$f":"#REF!","v":{"$error":"#REF!"}},{"$f":"#REF!","v":{"$error":"#REF!"}},{"$f":"#REF!","v":{"$error":"#REF!"}},{"$f":"#REF!","v":{"$error":"#REF!"}},{"$f":"#REF!","v":{"$error":"#REF!"}},{"$f":"C12-K12","v":23},{"$f":"#REF!","v":{"$error":"#REF!"}},{"$f":"#REF!","v":{"$error":"#REF!"}}]
[null,null,null,"formation",{"$f":"#REF!","v":{"$error":"#REF!"}},{"$f":"#REF!","v":{"$error":"#REF!"}},{"$f":"#REF!","v":{"$error":"#REF!"}},{"$f":"#REF!","v":{"$error":"#REF!"}},{"$f":"#REF!","v":{"$error":"#REF!"}},{"$f":"#REF!","v":{"$error":"#REF!"}},2,{"$f":"#REF!","v":{"$error":"#REF!"}},{"$f":"#REF!","v":{"$error":"#REF!"}}]
[null,null,null,"roulage",4,4,0,5,0,4,2,3,3]
[null,null,null,"%",{"$f":"(E14+E15)/E13","v":{"$error":"#REF!"}},{"$f":"(F14+F15)/F13","v":{"$error":"#REF!"}},0,{"$f":"(H14+H15)/H13","v":{"$error":"#REF!"}},{"$error":"#REF!"},{"$error":"#REF!"},0.17391304347826086,{"$error":"#REF!"},{"$error":"#REF!"},null,{"$f":"(E16+F16+H16+I16+J16+K16+L16+M16)/8","v":{"$error":"#REF!"}},{"$f":"(E16+F16+H16)/3","v":{"$error":"#REF!"}},{"$f":"(I16+J16+K16+L16+M16)/5","v":{"$error":"#REF!"}}]
[null,"Avril",19,"CP / arrêt",{"$f":"avril!$G$3","v":0},{"$f":"avril!$K$3","v":7},{"$f":"avril!$AE$3","v":4},{"$f":"avril!$S$3","v":3},{"$f":"avril!$W$3","v":0},{"$f":"avril!$AA$3","v":4},{"$f":"avril!$AU$3","v":4},{"$f":"avril!$AQ$3","v":5},{"$f":"avril!$AA$3","v":4}]
[null,null,null,"ouvrés",{"$f":"avril!$E$3","v":19},{"$f":"avril!$I$3","v":11},{"$f":"avril!$AC$3","v":19},{"$f":"avril!$Q$3","v":16},{"$f":"avril!$U$3","v":19},{"$f":"avril!$Y$3","v":15},{"$f":"avril!$AS$3","v":15},{"$f":"avril!$AO$3","v":13},{"$f":"avril!$AG$3","v":14}]
[null,null,null,"formation",{"$f":"avril!$F$3","v":11},{"$f":"avril!$J$3","v":9},{"$f":"avril!$AD$3","v":6.5},{"$f":"avril!$R$3","v":11},{"$f":"avril!$V$3","v":9.5},{"$f":"avril!$Z$3","v":8.5},{"$f":"avril!$AT$3","v":7},{"$f":"avril!AP3","v":8},{"$f":"avril!$AH$3","v":9}]
[null,null,null,"%",{"$f":"E19/E18","v":0.57894736842105265},0.81818181818181823,0.34210526315789475,0.6875,0.5,0.56666666666666665,0.46666666666666667,0.61538461538461542,0.6428571428571429,null,{"$f":"(E20+F20+H20+I20+J20+K20+L20+M20)/8","v":0.60952553477224536},{"$f":"(E20+F20+H20)/3","v":0.69487639553429037},{"$f":"(I20+J20+K20+L20+M20)/5","v":0.55831501831501829}]
[null,"Mai",19,"CP / arrêt",{"$f":"Mai!$G$3","v":0},{"$f":"Mai!$K$3","v":2},null,{"$f":"Mai!$S$3","v":4},{"$f":"Mai!$W$3","v":4},{"$f":"Mai!$AA$3","v":3},{"$f":"Mai!AU3","v":3},{"$f":"Mai!$AQ$3","v":0},{"$f":"Mai!$AI$3","v":14}]
[null,null,null,"ouvrés",{"$f":"Mai!$E$3","v":18},{"$f":"Mai!$I$3","v":17},null,{"$f":"Mai!$Q$3","v":15},{"$f":"Mai!$U$3","v":17},{"$f":"Mai!$Y$3","v":18},{"$f":"Mai!AS3","v":12.5},{"$f":"Mai!$AO$3","v":17},{"$f":"Mai!$AG$3","v":5}]
[null,null,null,"formation",{"$f":"Mai!$F$3","v":8},{"$f":"Mai!$J$3","v":10.5},null,{"$f":"Mai!$R$3","v":11.5},{"$f":"Mai!$V$3","v":11},{"$f":"Mai!$Z$3","v":11},{"$f":"Mai!AT3","v":1.5},{"$f":"Mai!$AP$3","v":12},{"$f":"Mai!$AH$3","v":4.5}]
[null,null,null,"%",{"$f":"E23/E22","v":0.44444444444444442},{"$f":"F23/F22","v":0.61764705882352944},0,{"$f":"H23/H22","v":0.76666666666666672},0.6470588235294118,0.61111111111111116,0.12,0.70588235294117652,0.9,null,{"$f":"(E24+F24+H24+I24+J24+K24+L24+M24)/8","v":0.60160130718954252},{"$f":"(E24+F24+H24)/3","v":0.60958605664488019},{"$f":"(I24+J24+K24+L24+M24)/5","v":0.59681045751633988}]
[null,"Juin",21,"CP / arrêt",{"$f":"Juin!G3","v":0},{"$f":"Juin!K3","v":0},null,{"$f":"Juin!S3","v":6},{"$f":"Juin!W3","v":0},{"$f":"Juin!AA3","v":0},{"$f":"Juin!AU3","v":0},{"$f":"Juin!AQ3","v":0},{"$f":"Juin!AI3","v":1}]
[null,null,null,"ouvrés",{"$f":"Juin!E3","v":21},{"$f":"Juin!I3","v":21},null,{"$f":"Juin!Q3","v":16},{"$f":"Juin!U3","v":20},{"$f":"Juin!Y3","v":21},{"$f":"Juin!AS3","v":21},{"$f":"Juin!AO3","v":20.5},{"$f":"Juin!AG3","v":17}]
[null,null,null,"formation",{"$f":"Juin!F3","v":19},{"$f":"Juin!J3","v":15.5},null,{"$f":"Juin!R3","v":14},{"$f":"Juin!V3","v":16},{"$f":"Juin!Z3","v":14},{"$f":"Juin!AT3","v":0},{"$f":"Juin!AP3","v":13},{"$f":"Juin!AH3","v":10}]
[null,null,null,"%",{"$f":"E27/E26","v":0.90476190476190477},{"$f":"F27/F26","v":0.73809523809523814},0,{"$f":"H27/H26","v":0.875},0.8,0.66666666666666663,0,0.63414634146341464,0.58823529411764708,null,{"$f":"(E28+F28+H28+I28+J28+K28+L28+M28)/8","v":0.65086318063810888},{"$f":"(E28+F28+H28)/3","v":0.8392857142857143},{"$f":"(I28+J28+K28+L28+M28)/5","v":0.5378096604495457},null,{"$f":"AVERAGE(I28:M28)","v":0.5378096604495457}]
[null,"Juillet",20,"CP / arrêt",{"$f":"Juillet!G3","v":1},{"$f":"Juillet!K3","v":1},null,{"$f":"Juillet!S3","v":6},{"$f":"Juillet!W3","v":0},{"$f":"Juillet!AA3","v":1},{"$f":"Juillet!#REF!","v":{"$error":"#REF!"}},{"$f":"Juillet!AQ3","v":0},{"$f":"Juillet!AI3","v":8}]
[null,null,null,"ouvrés",{"$f":"Juillet!E3","v":19},{"$f":"Juillet!I3","v":19},null,{"$f":"Juillet!Q3","v":14},{"$f":"Juillet!U3","v":17.5},{"$f":"Juillet!Y3","v":19},{"$f":"Juillet!#REF!","v":{"$error":"#REF!"}},{"$f":"Juillet!AO3","v":19.5},{"$f":"Juillet!AG3","v":12}]
[null,null,null,"formation",{"$f":"Juillet!F3","v":3},{"$f":"Juillet!J3","v":2},null,{"$f":"Juillet!R3","v":14},{"$f":"Juillet!V3","v":7},{"$f":"Juillet!Z3","v":8.5},{"$f":"Juillet!#REF!","v":{"$error":"#REF!"}},{"$f":"Juillet!AP3","v":9},{"$f":"Juillet!AH3","v":8}]
[null,null,null,"%",{"$f":"E31/E30","v":0.15789473684210525},{"$f":"F31/F30","v":0.10526315789473684},0,{"$f":"H31/H30","v":1},0.4,0.44736842105263158,{"$error":"#REF!"},0.46153846153846156,0.66666666666666663,null,{"$f":"(E32+F32+H32+I32+J32+K32+L32+M32)/8","v":{"$error":"#REF!"}},{"$f":"(E32+F32+H32)/3","v":0.42105263157894735},{"$f":"(I32+J32+K32+L32+M32)/5","v":{"$error":"#REF!"}}]
[null,"Aout",21,"CP / arrêt"]
[null,null,null,"ouvrés"]
[null,null,null,"formation"]
[null,null,null,"%",{"$f":"E35/E34","v":{"$error":"#DIV/0!"}},{"$f":"F35/F34","v":{"$error":"#DIV/0!"}},0,{"$f":"H35/H34","v":{"$error":"#DIV/0!"}},{"$error":"#DIV/0!"},{"$error":"#DIV/0!"},{"$error":"#DIV/0!"},{"$error":"#DIV/0!"},{"$error":"#DIV/0!"},null,{"$f":"(E36+F36+H36+I36+J36+K36+L36+M36)/8","v":{"$error":"#DIV/0!"}},{"$f":"(E36+F36+H36)/3","v":{"$error":"#DIV/0!"}},{"$f":"(I36+J36+K36+L36+M36)/5","v":{"$error":"#DIV/0!"}}]
[null,"Septembre",21,"CP / arrêt"]
[null,null,null,"ouvrés"]
[null,null,null,"formation"]
[null,null,null,"%",{"$f":"E39/E38","v":{"$error":"#DIV/0!"}},{"$f":"F39/F38","v":{"$error":"#DIV/0!"}},0,{"$f":"H39/H38","v":{"$error":"#DIV/0!"}},{"$error":"#DIV/0!"},{"$error":"#DIV/0!"},{"$error":"#DIV/0!"},{"$error":"#DIV/0!"},{"$error":"#DIV/0!"},null,{"$f":"(E40+F40+H40+I40+J40+K40+L40+M40)/8","v":{"$error":"#DIV/0!"}},{"$f":"(E40+F40+H40)/3","v":{"$error":"#DIV/0!"}},{"$f":"(I40+J40+K40+L40+M40)/5","v":{"$error":"#DIV/0!"}}]
[null,"Octobre",22,"CP / arrêt"]
[null,null,null,"ouvrés"]
[null,null,null,"formation"]
[null,null,null,"%",{"$f":"E43/E42","v":{"$error":"#DIV/0!"}},{"$f":"F43/F42","v":{"$error":"#DIV/0!"}},0,{"$f":"H43/H42","v":{"$error":"#DIV/0!"}},{"$error":"#DIV/0!"},{"$error":"#DIV/0!"},{"$error":"#DIV/0!"},{"$error":"#DIV/0!"},{"$error":"#DIV/0!"},null,{"$f":"(E44+F44+H44+I44+J44+K44+L44+M44)/8","v":{"$error":"#DIV/0!"}},{"$f":"(E44+F44+H44)/3","v":{"$error":"#DIV/0!"}},{"$f":"(I44+J44+K44+L44+M44)/5","v":{"$error":"#DIV/0!"}}]
[null,"Novembre",20,"CP / arrêt"]
[null,null,null,"ouvrés"]
[null,null,null,"formation"]
[null,null,null,"%",{"$f":"E47/E46","v":{"$error":"#DIV/0!"}},{"$f":"F47/F46","v":{"$error":"#DIV/0!"}},0,{"$f":"H47/H46","v":{"$error":"#DIV/0!"}},{"$error":"#DIV/0!"},{"$error":"#DIV/0!"},{"$error":"#DIV/0!"},{"$error":"#DIV/0!"},{"$error":"#DIV/0!"},null,{"$f":"(E48+F48+H48+I48+J48+K48+L48+M48)/8","v":{"$error":"#DIV/0!"}},{"$f":"(E48+F48+H48)/3","v":{"$error":"#DIV/0!"}},{"$f":"(I48+J48+K48+L48+M48)/5","v":{"$error":"#DIV/0!"}}]
[null,"Décembre",19,"CP / arrêt"]
[null,null,null,"ouvrés"]
[null,null,null,"formation"]
[null,null,null,"%",{"$f":"E51/E50","v":{"$error":"#DIV/0!"}},{"$f":"F51/F50","v":{"$error":"#DIV/0!"}},0,{"$f":"H51/H50","v":{"$error":"#DIV/0!"}},{"$error":"#DIV/0!"},{"$error":"#DIV/0!"},{"$error":"#DIV/0!"},{"$error":"#DIV/0!"},{"$error":"#DIV/0!"},null,{"$f":"(E52+F52+H52+I52+J52+K52+L52+M52)/8","v":{"$error":"#DIV/0!"}},{"$f":"(E52+F52+H52)/3","v":{"$error":"#DIV/0!"}},{"$f":"(I52+J52+K52+L52+M52)/5","v":{"$error":"#DIV/0!"}}]

{"sheet":"Légende","index":11,"n_rows":29,"n_cols":19,"rows_kept":29,"cut":false,"hidden":false,"merged":[[26,6,26,10],[28,6,28,10],[2,2,2,6],[2,8,2,12],[2,16,2,19],[21,6,21,10],[23,6,23,10],[25,6,25,10]]}
[]
[]
[null,null,"COULEURS",null,null,null,null,null,"SI CONFIRME",null,null,null,null,null,null,null,"CHAMP STATUT"]
[null,"THEME FORMATION","PRIMAIRE WEB",null,"SECONDAIRE WEB",null,"PLANNING EXCEL",null,null,null,"PYROS",null,"UM",null,"SI FACTURE",null,"ITEMS","DESCRIPTION","TEXTE + COULEUR"]
[]
[null,"INCENDIE","rgb(183,28,28)\n#B71C1C",null,"rgb(244,67,54)\n#F44336",null,null,null,null,null,null,null,null,null,"NOM DU CLIENT\ncode formation + libellé + nb session\nVille + département\nN° commande (si besoin est)",null,"C","Formation confirmée de façon officielle (écrit)","C"]
[]
[null,"EVACUATION","rgb(27,94,32)\n#1B5E20",null,"rgb(76,175,80)\n#4CAF50",null,null,null,null,null,"na",null,"na",null,"NOM DU CLIENT\ncode formation + libellé + nb session\nVille + département\nN° commande (si besoin est)",null,"C+BL","Le Bon de livraison + les feuilles de présence + le bilan ont été envoyées","C+BL"]
[]
[null,"SECOURISME","rgb(255,235,59)\n#FFEB3B",null,"rgb(245,127,23)\n#F57F17",null,null,null,null,null,"na",null,"na",null,"NOM DU CLIENT\ncode formation + libellé + nb session\nVille + département\nN° commande (si besoin est)",null,"REPORTE","Formation reportée\nIndiquer la date de report ou en \"instance de report\"","REPORTE\nJJ/MM/AAAA"]
[]
[null,"CONDUITE MANUTENTION","rgb(74,20,140)\n#4A148C",null,"rgb(156,39,176)\n#9C27B0",null,null,null,null,null,"na",null,"na",null,"NOM DU CLIENT\ncode formation + libellé + nb session\nVille + département\nN° commande (si besoin est)",null,"ANNULE","Formation annulée et non reportée","ANNULE"]
[]
[null,"PROTECTION RESPIRATOIRE","rgb(230,81,0)\n#E65100",null,"rgb(255,152,0)\n#FF9800",null,null,null,null,null,"na",null,"na",null,"NOM DU CLIENT\ncode formation + libellé + nb session\nVille + département\nN° commande (si besoin est)",null,"FACTURE","Formation ayant été facturée","F"]
[]
[null,"RISQUES PROFESSIONNELS","rgb(13,71,161)\n#0D47A1",null,"rgb(33,150,243)\n#2196F3",null,null,null,null,null,"na",null,"na",null,"NOM DU CLIENT\ncode formation + libellé + nb session\nVille + département\nN° commande (si besoin est)"]
[]
[null,"CONSEIL/AUDIT",null,null,null,null,null,null,null,null,"na",null,"na",null,"NOM DU CLIENT\ncode formation + libellé + nb session\nVille + département\nN° commande (si besoin est)"]
[]
[]
[]
[null,"STRUCTURE D'UNE SAISIE",null,null,null,null,"NOM DU CLIENT\ncode formation + libellé + nb session\nVille + département\nN° commande (si besoin est)"]
[]
[null,"Exemple 1",null,null,null,null,"ORANGE\nUMEP02 4 EPI 1H30\nREIMS (51)\nn° commande ; xxxxxxx"]
[]
[null,"Exemple 2",null,null,null,null,"ORANGE\n2 EPI 3H\nREIMS (51)\nn° commande ; xxxxxxx"]
[null,null,null,null,null,null,"valide aussi même sans code"]
[]
[null,"Exemple 3"]

{"sheet":"avril","index":12,"n_rows":44,"n_cols":48,"rows_kept":44,"cut":false,"hidden":false,"merged":[[36,15,37,15],[36,18,37,18],[38,7,39,7],[38,10,39,10],[40,1,41,1],[40,3,41,3],[40,6,41,6],[42,1,43,1],[34,0,43,0],[34,1,35,1],[38,1,39,1],[34,7,35,7],[36,1,37,1],[36,3,37,3],[36,6,37,6],[24,0,33,0],[24,1,25,1],[24,7,25,7],[20,10,21,10],[28,18,29,18],[30,1,31,1],[30,10,31,10],[28,15,33,15],[32,1,33,1],[18,1,19,1],[24,10,25,10],[28,1,29,1],[28,6,29,6],[28,10,29,10],[24,26,25,26],[26,1,27,1],[26,3,27,3],[26,6,27,6],[26,7,31,7],[24,23,25,23],[16,15,17,15],[16,18,17,18],[16,19,17,19],[16,22,17,22],[14,0,23,0],[14,1,15,1],[16,1,17,1],[16,3,17,3],[16,6,17,6],[16,7,23,7],[22,1,23,1],[22,3,23,3],[22,6,23,6],[20,1,21,1],[20,3,21,3],[20,6,21,6],[0,19,1,22],[6,23,7,23],[6,26,7,26],[8,1,9,1],[8,7,9,7],[8,10,9,10],[8,23,9,23],[4,18,5,18],[6,1,7,1],[6,3,7,3],[6,6,7,6],[6,7,7,7],[6,10,7,10],[0,0,2,2],[0,3,1,6],[0,7,1,10],[0,11,1,14],[0,15,1,18],[4,0,13,0],[4,1,5,1],[4,7,5,7],[4,10,5,10],[4,15,5,15],[12,1,13,1],[12,7,13,7],[12,10,13,10],[12,15,13,15],[10,1,11,1],[10,7,11,7],[10,10,11,10],[0,43,1,46],[6,43,7,43],[8,43,9,43],[10,43,11,43],[0,23,1,26],[0,27,1,30],[0,31,1,34],[0,35,1,38],[0,39,1,42],[8,31,9,31],[8,34,9,34],[10,23,11,23]]}
["2017-04-01",null,null,"PHILIPPE (EP)",null,null,null,"ANDRE  (EP)",null,null,null,"NICOLAS (CM2)",null,null,null,"CHRISTIAN (CM1)",null,null,null,"Jean-Côme (Dragon)",null,null,null,"JEAN FRANCOIS",null,null,null,"Thierry Lohy",null,null,null,"THIERRY BINET",null,null,null,"PASCAL GARIN",null,null,null,"JORIS LONGFIER",null,null,null,"TONY BOUTEILLER"]
[]
[null,null,null,{"$f":"F3/E3","v":0.57894736842105265},{"$f":"SUM(E5:E50)","v":19},{"$f":"SUM(F5:F50)","v":11},null,{"$f":"J3/I3","v":0.81818181818181823},{"$f":"SUM(I5:I50)","v":11},{"$f":"SUM(J5:J50)","v":9},7,{"$f":"N3/M3","v":{"$error":"#DIV/0!"}},{"$f":"SUM(M5:M50)","v":0},{"$f":"SUM(N5:N50)","v":0},null,{"$f":"R3/Q3","v":0.6875},{"$f":"SUM(Q5:Q50)","v":16},{"$f":"SUM(R5:R50)","v":11},3,{"$f":"V3/U3","v":0.5},{"$f":"SUM(U5:U50)","v":19},{"$f":"SUM(V5:V50)","v":9.5},null,{"$f":"Z3/Y3","v":0.56666666666666665},{"$f":"SUM(Y5:Y50)","v":15},{"$f":"SUM(Z5:Z50)","v":8.5},4,{"$f":"AD3/AC3","v":0.34210526315789475},{"$f":"SUM(AC5:AC50)","v":19},{"$f":"SUM(AD5:AD50)","v":6.5},4,{"$f":"AH3/AG3","v":0.6428571428571429},{"$f":"SUM(AG5:AG50)","v":14},{"$f":"SUM(AH5:AH50)","v":9},5,{"$f":"AL3/AK3","v":0.9375},{"$f":"SUM(AK5:AK50)","v":16},{"$f":"SUM(AL5:AL50)","v":15},3,{"$f":"AP3/AO3","v":0.61538461538461542},{"$f":"SUM(AO5:AO50)","v":13},{"$f":"SUM(AP5:AP50)","v":8},5,{"$f":"AT3/AS3","v":0.46666666666666667},{"$f":"SUM(AS5:AS50)","v":15},{"$f":"SUM(AT5:AT50)","v":7},4]
["SEM","JOUR","AM/PM","FORMATION","Ouv","trav","STATUT","FORMATION","Ouv","trav","STATUT","FORMATION","Ouv","trav","STATUT","FORMATION","Ouv","trav","STATUT","FORMATION","Ouv","trav","STATUT","FORMATION","Ouv","trav","STATUT","FORMATION","Ouv","trav","STATUT","FORMATION","Ouv","trav","STATUT","FORMATION","Ouv","trav","STATUT","FORMATION","Ouv","trav","STATUT","FORMATION","Ouv","trav","STATUT"]
[14,"2017-04-03","am","route",0.5,0.5,null,"LEROY MERLIN \nISNEAUVILLE (76)",0.5,0.5,"F",null,null,null,null,"CCM SAS TEXEN \n4 EPI 1H30\nIZERNORE (01)",0.5,0.5,"F",null,0.5,null,null,"C. HOSPITALIER ISSOIRE (63)\nFORINCI13H - 3h30",0.5,0.5,"F","Avec Dédé",0.5,0.5,"obser","COPIREL\nI107 ESI + ARI\nCRIQUEBEUF",0.5,0.5,"F","LEROY MERLIN\n????\nISNEAUVILLE",0.5,0.5,"f",null,0.5,null,null,null,0.5]
[null,null,"pm","Orange \n2 sessions EPI\nEPINAL\nn° commande 61457516",0.5,0.5,"F",null,0.5,0.5,null,null,null,null,null,null,0.5,0.5,null,null,0.5,null,null,"ROULAGE",0.5,0.5,null,"Avec Dédé",0.5,0.5,"obser","COPIREL\nI107 ESI + ARI\nCRIQUEBEUF",0.5,0.5,"F","BUREAU",0.5,0.5,null,"HOPITAL DURECU DARNETAL\nI03 \nLIEU ?",0.5,0.5,"F","ROULAGE",0.5,0.5]
[null,"2017-04-04","am","Orange \n4 sessions EPI\nNANCY\nn° commande / 61462482",0.5,0.5,"F","LEROY MERLIN \nISNEAUVILLE (76)",0.5,0.5,"F",null,null,null,null,null,0.5,null,null,"SIDAMO\nEPI PYROS 3h\nCHAUSSEE ST VICTOR (41)",0.5,0.5,"F","RECYCLAGE MONITEUR\nROUEN",0.5,0.5,null,null,0.5,null,null,null,0.5,null,null,"CROIX ROUGE\nSST MAC\nBOIS GUILLAUME",0.5,0.5,null,null,0.5,null,null,"RECYCLAGE MONITEUR\nROUEN",0.5,0.5]
[null,null,"pm",null,0.5,0.5,null,null,0.5,0.5,null,null,null,null,null,"IME LES COLOMBES\n14h 17h\nMONTELEGER (26)\nEPI MSR 3h",0.5,0.5,"F",null,0.5,null,null,null,0.5,0.5,null,null,0.5,null,null,null,0.5,null,null,"CROIX ROUGE\nSST MAC\nBOIS GUILLAUME",0.5,0.5,null,null,0.5,null,null,null,0.5,0.5,null,"²"]
[null,"2017-04-05","am","route",0.5,0.5,null,"route",0.5,0.5,null,null,null,null,null,"ROULAGE",0.5,0.5,null,"SIDAMO\nEPI PYROS 3h\nCHAUSSEE ST VICTOR (41)",0.5,0.5,"F","RECYCLAGE MONITEUR\nROUEN",0.5,0.5,null,null,0.5,null,null,"Ascca nexity\nSST02 MAC\nCERGY PONTOISE 95",0.5,0.5,"C+BL","CROIX ROUGE\nSST MAC\nBOIS GUILLAUME",0.5,0.5,null,"CERP\nI202\nST ETIENNE DU ROUVRAY",0.5,0.5,"F","RECYCLAGE MONITEUR\nROUEN",0.5,0.5]
[null,null,"pm",null,0.5,null,null,null,0.5,0.5,null,null,null,null,null,"CARREFOUR MARKET\nFORM SSI\nVAUVERT (30)",0.5,0.5,"F",null,0.5,null,null,null,0.5,0.5,null,null,0.5,null,null,null,0.5,0.5,null,"CROIX ROUGE\nSST MAC\nBOIS GUILLAUME",0.5,0.5,null,null,0.5,null,null,null,0.5,0.5]
[null,"2017-04-06","am","AIRPORT COLLEGE\n2 UM EP 02\nLyon",0.5,null,"REPORTE\nattente réponse","ORANGE\n4 EPI 1H30\nLANNION\nn° commande : 61499235",0.5,0.5,"F",null,null,null,null,"ROULAGE",0.5,0.5,null,"SIDAMO\nEPI PYROS 3h\nCHAUSSEE ST VICTOR (41)",0.5,0.5,"F","RECYCLAGE MONITEUR\nROUEN",0.5,0.5,null,null,0.5,null,null,"CLINIQUE MATHILDE\nI203R\nROUEN",0.5,0.5,"F","CROIX ROUGE\nSST MAC\nBOIS GUILLAUME",0.5,0.5,null,"CLINIQUE MATHILDE\nI203R\nROUEN",0.5,0.5,"F","RECYCLAGE MONITEUR\nROUEN",0.5,0.5]
[null,null,"pm",null,0.5,null,null,null,0.5,0.5,null,null,null,null,null,"EHPAD DAUPHINE\nEPI MSR 450 € HT\nROMAN S/isere",0.5,0.5,"F","route",0.5,0.5,null,null,0.5,0.5,null,null,0.5,null,null,null,0.5,null,null,"CROIX ROUGE\nSST MAC\nBOIS GUILLAUME",0.5,0.5,null,null,0.5,null,null,null,0.5,0.5]
[null,"2017-04-07","am",null,0.5,null,null,"ORANGE\n4 EPI 1H30\nLANNION\nn° commande : 61488669",0.5,0.5,"F",null,null,null,null,"EHPAD LE MONTEL\n2 SESSIONS DE 3H  EPI +mise en secuirté des résidents\n63",0.5,0.5,"F",null,0.5,null,null,null,0.5,null,null,"Avec Joris",0.5,0.5,"obser","DP",0.5,0.5,null,"GREIF\nSST02 MAC\nLIEU ?",0.5,0.5,"C+BL","TVS\nI03\nVERNON",0.5,0.5,"F",null,0.5]
[null,null,"pm",null,0.5,null,null,null,0.5,0.5,null,null,null,null,null,null,0.5,0.5,"F",null,0.5,null,null,null,0.5,null,null,"Avec Joris",0.5,0.5,"obser","DP",0.5,0.5,null,"GREIF\nSST02 MAC\nLIEU ?",0.5,0.5,"C+BL","TVS\nI03\nVERNON",0.5,0.5,"F","LES JARDINS DE CATEL\nI13H - 14H15-17H15\nCHATEAUGIRON (35)",0.5,0.5,"C+BL"]
[15,"2017-04-10","am",null,0.5,null,null,"route",0.5,0.5,null,null,null,null,null,"GIVAUDAN LAVIROTTE\nRecyclage  1 ESI 4 h  ",0.5,0.5,"C+BL",null,0.5,null,null,null,0.5,null,null,"Bureau Rouen",0.5,0.5,"Relance","GREIF\nI106 + ARI\nGRAND QUEVILLY",0.5,0.5,"F","VACANCES",null,null,null,null,0.5,null,null,"VACANCES"]
[null,null,"pm","route",0.5,0.5,null,null,null,null,null,null,null,null,null,"GIVAUDAN LAVIROTTE\nRecyclage  1 ESI 4 h  ",0.5,0.5,"C+BL","route",0.5,0.5,null,"EHPAD PEYSSON\nROMANS SUR ISERE (26)\n450€",0.5,0.5,"F","Bureau Rouen",0.5,0.5,"Relance","GREIF\nI106 + ARI\nGRAND QUEVILLY",0.5,0.5,"F","VACANCES",null,null,null,null,0.5,null,null,"VACANCES"]
[null,"2017-04-11","am","BPARA\nSAINT-ETIENNE\n4 epi 1h30",0.5,0.5,"F","congés payés",null,null,null,null,null,null,null,"EHPAD LOUBET \n2 sessions EPI MSR\nMONTELIMAR 26 \n800 €",0.5,0.5,"C+BL","FUAJ\n2 EPI 1H30 + Guide et Serre-File\nLILLE (59) ",0.5,null,"REPORTE\nAU 20/06","CROUS\n1 SSI 3H - 9h-12h\n8 rue jeanne koeller 69003 Lyon/71-77 jean jaures villeurbanne\nContact : Francisca Caparros 04 78 54 01 01 // 06 32 64 21 97",0.5,0.5,"F",null,0.5,null,null,"OPCALIA",0.5,null,null,"BUREAU\nTRAVAUX SUPPORT ET DEROULE PEDA SST",0.5,0.5,null,"NETTO\nI03\nARGENTAN",0.5,0.5,"C+BL","IMPRIMERIE RAYNARD\nI207 10H-11H30\nLIEU ????",0.5,0.5,"C"]
[null,null,"pm",null,0.5,0.5,null,null,null,null,null,null,null,null,null,null,0.5,0.5,null,null,0.5,null,null,"CROUS\n1 SSI 3H - 14h-17h\n29 rue du professeur nicolas 69008 Lyon\nContact : Beabo Okio Dauvilliers\n04 72 78 41 60 // 06 84 62 66 53 ",0.5,0.5,"F",null,0.5,null,null,null,0.5,null,null,"BUREAU\nTRAVAUX SUPPORT ET DEROULE PEDA SST",0.5,0.5,null,null,0.5,null,null,null,0.5]
[null,"2017-04-12","am","BPARA\nLYON\n2 epi 1h30",0.5,0.5,"F",null,null,null,null,null,null,null,null,null,0.5,null,null,"route",0.5,null,null,null,0.5,null,null,"Avec Joris",0.5,0.5,"obser","MILTON ROY\nI106 ESI INITIALE\nLIEU ?",0.5,null,"REPORTE","SFP NANTERRE",0.5,0.5,null,"ARRED\nI03\nCANTELEU",0.5,0.5,"F","VACANCES"]
[null,null,"pm","BPARA\nLYON\n2 epi 1h30",0.5,0.5,"F",null,null,null,null,null,null,null,null,null,0.5,null,null,"route",0.5,0.5,null,null,0.5,null,null,"Avec Joris",0.5,0.5,"obser","MILTON ROY\nI106 ESI INITIALE\nLIEU ?",0.5,null,"REPORTE","SFP NANTERRE",0.5,0.5,null,"ARRED\nI03\nCANTELEU",0.5,0.5,"F","VACANCES"]
[null,"2017-04-13","am","ORANGE\n4  EPI 1h30\nBELFORT\nn° commande : 61462889",0.5,0.5,"F",null,null,null,null,null,null,null,null,null,0.5,null,null,"Tuyaux flexibles Rudolph\nEPI+RIA 2 EPI de 2h\n78000 SARTROUVILLE",0.5,0.5,"F","route",0.5,0.5,null,null,0.5,null,null,null,0.5,null,null,"VACANCES",null,null,null,null,0.5,null,null,"VACANCES"]
[null,null,"pm",null,0.5,0.5,null,null,null,null,null,null,null,null,null,null,0.5,null,null,"route",0.5,0.5,null,"EHPAD EDEN\nVALENCE (26)\n450€",0.5,null,"A REPORTER\nOCT 17",null,0.5,null,null,"MILTON ROY\nI106 ESI INITIALE\nLIEU ?",0.5,null,"REPORTE","VACANCES",null,null,null,null,0.5,null,null,"VACANCES"]
[null,"2017-04-14","am","ORANGE\n4 sessions EPI\nDIJON\nn° commande : 61470560",0.5,0.5,"F",null,null,null,null,null,null,null,null,null,0.5,null,null,null,0.5,null,null,"ELIS\n2 EXO EVAC\nDECINES CHARPIEU(10h20) + MIRIBEL ",0.5,0.5,"F",null,0.5,null,null,"VACANCES",null,null,null,"VACANCES",null,null,null,"VACANCES",null,null,null,"VACANCES"]
[null,null,"pm",null,0.5,0.5,null,null,null,null,null,null,null,null,null,null,0.5,null,null,null,0.5,null,null,null,0.5,null,null,null,0.5,null,null,"VACANCES",null,null,null,"VACANCES",null,null,null,"VACANCES",null,null,null,"VACANCES"]
[16,"2017-04-17","am"]
[null,null,"pm"]
[null,"2017-04-18","am","AIRPORT COLLEGE\n2 SESSIONS EPI 3h30\nROISSY",0.5,0.5,"F","congés payés",null,null,null,null,null,null,null,"Lycée bon secours \n2 EPI 1H30 \nperpignan (66)",0.5,0.5,"F",null,0.5,null,null,"CROUS\n1  SSI 3H\nVILLEURBANNE",0.5,0.5,"F","VACANCES",0.5,null,null,"VACANCES",null,null,null,null,0.5,null,null,"VACANCES",null,null,null,null,0.5]
[null,null,"pm",null,0.5,0.5,null,null,null,null,null,null,null,null,null,"Lycée bon secours \n2 EPI 1H30 \nperpignan (66)",0.5,0.5,"F",null,0.5,null,null,null,0.5,null,null,"VACANCES",0.5,null,null,"VACANCES",null,null,null,null,0.5,null,null,"VACANCES",null,null,null,null,0.5]
[null,"2017-04-19","am",null,0.5,null,null,null,null,null,null,null,null,null,null,"congés payés",null,null,null,null,0.5,null,null,"SUEZ\n1 EPI 3H\nVoreppe 38",0.5,0.5,"F","VACANCES",0.5,null,null,"VACANCES",null,null,null,"RDV commercial OF à St Malot pour partenaria UM et incendie",0.5,0.5,null,"VACANCES",null,null,null,null,0.5]
[null,null,"pm",null,0.5,null,null,null,null,null,null,null,null,null,null,null,null,null,null,"Route",0.5,0.5,null,null,0.5,null,null,"VACANCES",0.5,null,null,"VACANCES",null,null,null,"RDV commercial OF à St Malot pour partenaria UM et incendie",0.5,0.5,null,"VACANCES",null,null,null,null,0.5]
[null,"2017-04-20","am",null,0.5,null,null,null,null,null,null,null,null,null,null,null,null,null,null,"Lycee jeanne d'arc \n2 EPI 1h30 \nCarcassonne",0.5,null,"REPORTE\n05072017","PHILAGRO SUMITOMO\nEXO EVAC - 2h A 11H\nSAINT-DIZIER-MONT-D'OR (69)",0.5,0.5,"C+BL","VACANCES",0.5,null,null,"VACANCES",null,null,null,"CABOT CARBONE\nPDP\nLILLEBONNE",0.5,0.5,null,"VACANCES",null,null,null,null,0.5]
[null,null,"pm",null,0.5,null,null,null,null,null,null,null,null,null,null,null,null,null,null,"Route",0.5,0.5,null,null,0.5,null,null,"VACANCES",0.5,null,null,"VACANCES",null,null,null,"CABOT CARBONE\nPDP\nLILLEBONNE",0.5,0.5,null,"VACANCES",null,null,null,null,0.5]
[null,"2017-04-21","am",null,0.5,null,null,null,null,null,null,null,null,null,null,null,null,null,null,null,0.5,null,null,"VACANCES",null,null,null,"VACANCES",0.5,null,null,"VACANCES",null,null,null,"ORANGE GARDENS\nVISITE DU SITE\nCHATILLON (92)",0.5,0.5,"C","MC DO\nI204R\nGROS HORLOGE",0.5,0.5,"F","IMPRIMEIE RAYNARD\nI03 9H-12H\nLIEU ????",0.5,0.5,"C"]
[null,null,"pm",null,0.5,null,null,"route",0.5,0.5,null,null,null,null,null,null,null,null,null,null,0.5,null,null,"VACANCES",null,null,null,"VACANCES",0.5,null,null,"VACANCES",null,null,null,"ORANGE GARDENS\nI202 Chargés d'évacuation\nCHATILLON (92)",0.5,0.5,"C","MF PRODUCTION & FUTURA\n2X I204R\nMAROMME",0.5,0.5,"C+BL",null,0.5]
[17,"2017-04-24","am","ORANGE\n2 sessions EPI\nGENTILLY",0.5,0.5,"F","ST MICRO\nRENNES SPATIAL\n4 sessions EPI\nvoir horaires planning",0.5,null,"A Reporter à planifier",null,null,null,null,null,0.5,null,null,"Route",0.5,0.5,null,"VACANCES",null,null,null,null,0.5,null,null,"ITEP L'OREE DU BOIS\nI04 PRIMO\nMONT SAINT AIGNAN",0.5,0.5,"C+BL","LEROY MERLIN\nCM104 NACELLE CAT 3A 6 PERS\nISNEAUVILLE",0.5,0.5,"C+BL","VACANCES",null,null,null,"FUAJ\nI03 - 9H-12H\nSAINT BRIEUC ",0.5,0.5,"C"]
[null,null,"pm",null,0.5,null,null,null,0.5,null,"A Reporter à planifier",null,null,null,null,"SCHUTZ\n2 EPI 1h30 - breifing RIA\nMARCOUSSIS (78)",0.5,null,"REPORTé au 15 05","CALVIN KLEIN\nEPI 2H + Exercice d'évac sans fumée\nSERRIS",0.5,0.5,"F","VACANCES",null,null,null,null,0.5,null,null,"HOPITAL DURECU DARNETAL\nI03 \nLIEU ?",0.5,0.5,"F","LEROY MERLIN\nCM104 NACELLE CAT 3A 6 PERS\nISNEAUVILLE",0.5,0.5,"C+BL","VACANCES",null,null,null,"FUAJ\nI202 - 13H30-16H30\nSAINT BRIEUC ",0.5,0.5,"C"]
[null,"2017-04-25","am"," ",0.5,0.5,"F","ST MICRO\nRENNES R&D\n2 sessions EPI\nvoir horaires planning",0.5,0.5,"F",null,null,null,null,"DANONE\n4 EPI 2h +RIA \n76220 Ferrières en Bray",0.5,0.5,"F","RECALL\nio6 primo\nDe 10h à 13h\nCOMPANS 77",0.5,0.5,"F","VACANCES",null,null,null,null,0.5,null,null,"LEROY MERLIN\nI06\nISNEAUVILLE",0.5,0.5,"C+BL","SFK \nCM402 RECY GERBEUR ACC\nSAINT-MARCEL 27",0.5,0.5,"C",null,null,null,null,null,0.5]
[null,null,"pm",null,0.5,0.5,null,"route",0.5,0.5,null,null,null,null,null,null,0.5,0.5,null,"Route",0.5,0.5,null,"VACANCES",null,null,null,"ACMS - 16h00",0.5,0.5,null,"LEROY MERLIN\nI06\nISNEAUVILLE",0.5,0.5,"C+BL","SFK \nCM402 RECY GERBEUR ACC\nSAINT-MARCEL 27",0.5,0.5,"C",null,null,null,null,null,0.5]
[null,"2017-04-26","am","MBDA\n2 sessions EPI 1h30\n92 Le PLESSIS-ROBINSON",0.5,0.5,"F","ST MICRO\n4  EPI 1h30\nLE MANS",0.5,0.5,"F",null,null,null,null,"Rouen",0.5,0.5,null,"ALME\n1 EPI 2H\nSEYNOD (74)",0.5,null,"O","Candia\nSST MAC\nClermond (63)",0.5,null,"ANNULE\nREPORTEE  au 30 JUIN","Avec Joris",0.5,0.5,"obser","Cabot Carbone\n1er jour Groupe 1 Module A LILLEBONNE",0.5,0.5,"C+BL","CAF du Calvados à Caen - RDV pour formations 2017 avec nouvelle interlocutrice",0.5,0.5,null,"BODYCOTE\nI03 \nST AUBIN LES ELBEUF",0.5,0.5,"F","IMPRIMERIE RAYNARD\nI207 9H-17H\nLIEU ????",0.5,0.5,"C"]
[null,null,"pm",null,0.5,null,null,null,0.5,0.5,null,null,null,null,null,null,0.5,0.5,null,"Route",0.5,0.5,null,"Candia\nSST MAC\nClermond (63)",0.5,null,"ANNULE\nREPORTEE  au 30 JUIN","Avec Joris",0.5,0.5,"obser","Cabot Carbone\n1er jour Groupe Module C \nLILLEBONNE",0.5,0.5,"C+BL","TRAVAUX SST BUREAU",0.5,0.5,null,"MAISON D'ENFANT LE CLOS\nI201\nLIEU ???",0.5,0.5,"C+BL","IMPRIMERIE RAYNARD\nI207 9H-17H\nLIEU ????",0.5,0.5,"C"]
[null,"2017-04-27","am","ORANGE GARDENS\n4 EPI 1H30\nChatillon (92)",0.5,0.5,"F","ST MICRO\nLE MANS\n2 EPI 1h30",0.5,0.5,"F",null,null,null,null,null,0.5,null,null,"Véhicule en réparation",0.5,0.5,null,"MAIRIE DE FRANGY\n1 EPI 3H\nFRANGY (74)",0.5,0.5,"F",null,0.5,null,null,"Cabot carbone \n1er jour du groupe 2 Module A\nLILLEBONNE",0.5,0.5,"C+BL","BUREAU Travaux support et déroulé pédagogique SST",0.5,0.5,null,"RENAULT\nEV02\nGUYANCOURT",0.5,0.5,"C+BL",null,0.5]
[null,null,"pm",null,0.5,0.5,null,"route",0.5,0.5,null,null,null,null,null,"CABOT CARBONE\n1er GROUPE 2 Module B\nLILLEBONNE",0.5,0.5,"C+BL","Le manoir du verger\nEPI PYROS 3H\n14H30 à 17h30\n37270 VERETZ",0.5,0.5,"F",null,0.5,null,null,null,0.5,null,null,null,0.5,null,null,"BUREAU Travaux support et déroulé pédagogique SST",0.5,0.5,null,"RENAULT\nEV02\nGUYANCOURT",0.5,0.5,"C+BL","LA PAPATERIE (CLIENT PREV INC)\nI04 - 14H30-16H\nLAVAL",0.5,null,"REPORTé "]
[null,"2017-04-28","am",null,0.5,null,null,null,0.5,null,null,null,null,null,null,"CABOT CARBONE\n2e jour GROUPE 1 Module B\nLILLEBONNE",0.5,0.5,"C+BL","CEA dragon\n2 EPI 1h30\nLe Vesinet (78)",0.5,0.5,"F","VACANCES",null,null,null,"Avec Joris",0.5,0.5,"obser","LA VIE DU RAIL \nSST03 gestes qui sauvent\nGARE SAINT LAZARE",0.5,0.5,"C+BL","SDPP à Evreux \nRDV commercial formations 2017 (engins + …)",0.5,0.5,null,"LEROY MERLIN\n????\nISNEAUVILLE",0.5,0.5,"C+BL","CLINIQUE OCEANE\nI13H\nLIEU ???",0.5,null,"REPORTé "]
[null,null,"pm",null,0.5,null,null,null,0.5,null,null,null,null,null,null,"CABOT CARBONE\n2e jour GROUPE 2 Module D\nLILLEBONNE",0.5,0.5,"C+BL","CEA dragon\n2 EPI 1h30\nLe Vesinet (78)",0.5,0.5,"F","VACANCES",null,null,null,"Avec Joris",0.5,0.5,"obser","LA VIE DU RAIL \nSST03 gestes qui sauvent\nGARE SAINT LAZARE",0.5,0.5,"C+BL","SDPP à Evreux \nRDV commercial formations 2017 (engins + …)",0.5,0.5,null,"ARRED\nI03\nCANTELEU",0.5,0.5,"C+BL","CLINIQUE OCEANE\nI13H\nLIEU ???",0.5,null,"REPORTé "]

{"sheet":"Mai","index":13,"n_rows":50,"n_cols":49,"rows_kept":50,"cut":false,"hidden":false,"merged":[[0,47,1,48],[34,0,43,0],[34,1,35,1],[36,1,37,1],[36,3,37,3],[36,6,37,6],[40,1,41,1],[40,10,41,10],[40,15,41,15],[42,1,43,1],[42,15,43,15],[38,1,39,1],[38,10,39,10],[32,26,33,26],[26,26,27,26],[28,1,29,1],[28,26,29,26],[38,26,39,26],[42,26,43,26],[42,23,43,23],[22,26,23,26],[22,23,23,23],[32,23,33,23],[26,23,27,23],[44,0,49,0],[44,1,45,1],[44,7,45,7],[44,10,45,10],[44,15,49,15],[46,1,47,1],[46,3,47,3],[46,6,47,6],[46,10,47,10],[48,1,49,1],[48,10,49,10],[42,18,43,18],[36,18,37,18],[14,0,23,0],[30,1,31,1],[30,10,31,10],[32,1,33,1],[20,15,21,15],[26,7,27,7],[20,18,21,18],[26,10,27,10],[22,1,23,1],[22,6,23,6],[14,1,15,1],[14,3,15,3],[24,0,33,0],[24,1,25,1],[24,3,25,3],[24,6,25,6],[24,15,25,15],[24,18,25,18],[26,1,27,1],[14,39,15,39],[18,1,19,1],[20,1,21,1],[14,42,15,42],[16,1,17,1],[16,7,19,7],[16,19,17,19],[16,22,17,22],[14,23,15,23],[14,26,15,26],[14,27,15,27],[14,30,15,30],[14,31,15,31],[14,34,15,34],[14,11,15,11],[14,14,15,14],[14,15,15,15],[14,18,15,18],[14,19,15,19],[14,22,15,22],[14,6,15,6],[14,7,15,7],[4,31,5,31],[14,10,15,10],[12,1,13,1],[12,6,13,6],[10,15,11,15],[10,18,11,18],[8,1,9,1],[8,7,9,7],[8,10,9,10],[8,15,9,15],[8,18,9,18],[4,15,5,15],[4,18,5,18],[4,19,5,19],[4,0,13,0],[4,1,5,1],[4,3,5,3],[4,6,5,6],[4,7,5,7],[0,15,1,18],[0,19,1,22],[0,0,2,2],[0,3,1,6],[0,7,1,10],[0,11,1,14],[10,1,11,1],[10,7,11,7],[10,10,11,10],[6,1,7,1],[6,6,7,6],[4,10,5,10],[4,11,5,11],[4,14,5,14],[4,22,5,22],[0,43,1,46],[4,43,5,43],[4,46,5,46],[14,43,15,43],[14,46,15,46],[0,23,1,26],[0,27,1,30],[0,31,1,34],[0,35,1,38],[0,39,1,42],[8,34,9,34],[10,23,11,23],[10,26,11,26],[4,35,5,35],[4,38,5,38],[4,39,5,39],[4,42,5,42],[14,35,15,35],[14,38,15,38],[4,34,5,34],[4,23,5,23],[4,26,5,26],[4,27,5,27],[4,30,5,30]]}
["2017-05-01",null,null,"PHILIPPE (EP)",null,null,null,"ANDRE  (EP)",null,null,null,"THIERRY (CM2)",null,null,null,"CHRISTIAN (CM1)",null,null,null,"Jean-Côme (Dragon)",null,null,null,"JEAN FRANCOIS",null,null,null,"NICOLAS",null,null,null,"THIERRY BINET",null,null,null,"PASCAL GARIN",null,null,null,"JORIS LONGFIER",null,null,null,"TONY BOUTEILLER",null,null,null,"Michael ALBALADEJO"]
[]
[null,null,null,{"$f":"F3/E3","v":0.44444444444444442},{"$f":"SUM(E5:E50)","v":18},{"$f":"SUM(F5:F50)","v":8},0,{"$f":"J3/I3","v":0.61764705882352944},{"$f":"SUM(I5:I50)","v":17},{"$f":"SUM(J5:J50)","v":10.5},2,{"$f":"N3/M3","v":0.2857142857142857},{"$f":"SUM(M5:M50)","v":7},{"$f":"SUM(N5:N50)","v":2},12,{"$f":"R3/Q3","v":0.76666666666666672},{"$f":"SUM(Q5:Q50)","v":15},{"$f":"SUM(R5:R50)","v":11.5},4,{"$f":"V3/U3","v":0.6470588235294118},{"$f":"SUM(U5:U50)","v":17},{"$f":"SUM(V5:V50)","v":11},4,{"$f":"Z3/Y3","v":0.61111111111111116},{"$f":"SUM(Y5:Y50)","v":18},{"$f":"SUM(Z5:Z50)","v":11},3,{"$f":"AD3/AC3","v":5.2631578947368418E-2},{"$f":"SUM(AC5:AC50)","v":19},{"$f":"SUM(AD5:AD50)","v":1},null,{"$f":"AH3/AG3","v":0.9},{"$f":"SUM(AG5:AG50)","v":5},{"$f":"SUM(AH5:AH50)","v":4.5},14,{"$f":"AL3/AK3","v":0.89473684210526316},{"$f":"SUM(AK5:AK50)","v":19},{"$f":"SUM(AL5:AL50)","v":17},null,{"$f":"AP3/AO3","v":0.70588235294117652},{"$f":"SUM(AO5:AO50)","v":17},{"$f":"SUM(AP5:AP50)","v":12},0,{"$f":"AT3/AS3","v":0.12},{"$f":"SUM(AS5:AS50)","v":12.5},{"$f":"SUM(AT5:AT50)","v":1.5},3]
["SEM","JOUR","AM/PM","FORMATION","Ouv","trav","STATUT","FORMATION","Ouv","trav","STATUT","FORMATION","Ouv","trav","STATUT","FORMATION","Ouv","trav","STATUT","FORMATION","Ouv","trav","STATUT","FORMATION","Ouv","trav","STATUT","FORMATION","Ouv","trav","STATUT","FORMATION","Ouv","trav","STATUT","FORMATION","Ouv","trav","STATUT","FORMATION","Ouv","trav","STATUT","FORMATION","Ouv","trav","STATUT","FORMATION","STATUT"]
[18,"2017-05-01","am"]
[null,null,"pm"]
[null,"2017-05-02","am","Renault\n2 EPI 1h30\nGuyancourt",0.5,0.5,"F",null,0.5,null,null,"SFP rouen",0.5,0.5,"avec Joris",null,0.5,null,null,"ROUTE",0.5,0.5,null,null,0.5,null,null,null,0.5,null,null,"VACANCES",null,null,null,null,0.5,null,null,null,0.5,null,null,null,0.5]
[null,null,"pm","Renault\n2 EPI 1h30\nGuyancourt",0.5,0.5,null,null,0.5,0.5,null,"SFP rouen",0.5,0.5,"avec Joris","ROUTE",0.5,0.5,null,"ALPI SA \nEPI 1h30\n 13 h30  à 15h \n77000 lognes",0.5,0.5,"F","EOVI LES COLLINES\n1 EPI 3H\nSAINT DONNAT",0.5,0.5,"F",null,0.5,null,null,"VACANCES",null,null,null,null,0.5,null,null,"BLAISE PASCAL & GALEES DU ROI\nI204R\nROUEN",0.5,0.5,"F",null,0.5]
[null,"2017-05-03","am",null,0.5,null,null,"TOURS HABITAT\n4 EPI 2h\nTOURS",0.5,0.5,"F",null,0.5,null,null,"SKF \nSensibilisation Azote Liquide (3h) + \nRisques Chimiques (3h30)\nSaint-Marcel (27)",0.5,0.5,"PAS DE FORMATION","Maison des oiseaux \n2 EPI  1h30 \n36400 la chatre",0.5,0.5,"F",null,0.5,null,null,null,0.5,null,null,"VACANCES",null,null,null,"LEROY MERLIN\nCM104 NACELLE CAT 3A 6 PERS\nISNEAUVILLE",0.5,0.5,"F","ANNE FONTAINE\nI03\nSERRIS (77)",0.5,0.5,"F",null,0.5]
[null,null,"pm",null,0.5,null,null,null,0.5,0.5,null,null,0.5,null,null,null,0.5,0.5,null,"Maison des oiseaux \n2 EPI  1h30 \n36400 la chatre",0.5,0.5,"F",null,0.5,null,null,null,0.5,null,null,"VACANCES",null,null,null,"LEROY MERLIN\nCM104 NACELLE CAT 3A 6 PERS\nISNEAUVILLE",0.5,0.5,"F","ROUTE",0.5,0.5,null,null,0.5]
[null,"2017-05-04","am",null,0.5,null,null,"TOURS HABITAT\n4 EPI 2h\nTOURS",0.5,0.5,"F",null,0.5,null,null,"DANONE\n76220 Ferrières en Bray\n4 sessions de 2h EPI +RIA ",0.5,0.5,"F",null,0.5,null,null,"OKKO HOTEL \n2 sessions de 3h : i05 en 1h + i207 en 2h\nGRENOBLE",0.5,0.5,"F",null,0.5,null,null,"VACANCES",null,null,null,"LEROY MERLIN\nCM104 NACELLE CAT 3A 6 PERS\nISNEAUVILLE",0.5,0.5,"F","LEROY MERLIN\nI202\nTOURVILLE",0.5,0.5,"F",null,0.5]
[null,null,"pm",null,0.5,null,null,null,0.5,0.5,null,null,0.5,null,null,null,0.5,0.5,null,null,0.5,null,null,null,0.5,0.5,null,null,0.5,null,null,"VACANCES",null,null,null,"LEROY MERLIN\nCM104 NACELLE CAT 3A 6 PERS\nISNEAUVILLE",0.5,0.5,"F","LEROY MERLIN\nI202\nTOURVILLE",0.5,0.5,"F",null,0.5]
[null,"2017-05-05","am",null,0.5,null,null,null,0.5,0.5,null,"Avec Joris",0.5,0.5,"I204R","ROUTE",0.5,0.5,null,null,0.5,null,null,null,0.5,0.5,null,null,0.5,null,null,"VACANCES",null,null,null,"SKF \nCM300 FORMATION FORMATEURS\nPONTIERS ELINGUEURS\nSAINT MARCEL (27)",0.5,0.5,"O","MC DO \nI204R\nST ETIENNE DU ROUVRAY",0.5,0.5,"F",null,0.5]
[null,null,"pm",null,0.5,null,null,null,0.5,null,null,"Avec Joris",0.5,0.5,"Pi02",null,0.5,null,null,null,0.5,null,null,null,0.5,null,null,null,0.5,null,null,"VACANCES",null,null,null,"SKF \nCM300 FORMATION FORMATEURS\nPONTIERS ELINGUEURS\nSAINT MARCEL (27)",0.5,0.5,"O","BUREAU VERITAS\nPI02\nST LEGER",0.5,0.5,"F",null,0.5]
[19,"2017-05-08","am"]
[null,null,"pm"]
[null,"2017-05-09","am","FACILIT RAIL\n2 EPI 1H30\nCHARENTON",0.5,0.5,"F","congés payés",null,null,null,"CP",null,null,null,null,0.5,null,null,"CHR HANSEN\nARPAJON (91)\n4 sessions EPI 1h30",0.5,0.5,"F",null,0.5,null,null,null,0.5,null,null,"VACANCES",null,null,null,"MILTON ROY\nI204R\nLIEU ????",0.5,0.5,"F","MILTON ROY\nI204R\nLIEU ???",0.5,0.5,"F",null,0.5]
[null,null,"pm","FACILIT RAIL\n2 EPI 1H30\nCHARENTON",0.5,0.5,"F",null,null,null,null,"CP",null,null,null,null,0.5,null,null,null,0.5,0.5,null,"GERONDINES LOUIS PASQUIER\nCHABEUIL (26)",0.5,0.5,"F",null,0.5,null,null,"VACANCES",null,null,null,"BUREAU \nRAPP EVAC MILTON",0.5,0.5,null,null,0.5,null,null,null,0.5]
[null,"2017-05-10","am",null,null,null,null,null,null,null,null,"CP",null,null,null,"ROUTE",0.5,0.5,null,"ROUTE",0.5,0.5,null,"CROUS\n8h-10h : 4 rue du sauveur lyon 7/360 rue garibaldi 69007 lyon\n10h-12h : 96 rue pasteur 69007 lyon/6 rue rachais 69003 lyon\nContact : Valery Sliwinski 04 72 80 17 94 // 06 13 17 85 56\n",0.5,0.5,"F",null,0.5,null,null,"VACANCES",null,null,null,"SKF \nCM301 NACELLE CAT 3A\nPONTIERS ELINGUEURS\nSAINT MARCEL (27)",0.5,0.5,"F","ANNE FONTAINE\nI03\nHONFLEUR (14)",0.5,0.5,"F",null,0.5]
[null,null,"pm",null,null,null,null,null,null,null,null,"CP",null,null,null,"ROUTE",0.5,0.5,null,null,0.5,null,null,"CROUS\n1 SSI 3h - 14h-17h\n393 avenue bourgelat 69280 marcy l'étoile\nContact : charles-andre sanchis 04 78 19 82 13 // 06 82 59 95 27\n",0.5,0.5,"F",null,0.5,null,null,"VACANCES",null,null,null,"SKF \nCM301 NACELLE CAT 3A\nPONTIERS ELINGUEURS\nSAINT MARCEL (27)",0.5,0.5,"F",null,0.5,null,null,null,0.5]
[null,"2017-05-11","am","MBDA\n2 EPI 1h30\nLe PLESSIS-ROBINSON (92)",0.5,0.5,"F",null,0.5,null,null,"CP",null,null,null,"DANONE\n76220 Ferrières en Bray\n4 sessions de 2h EPI +RIA ",0.5,0.5,"F",null,0.5,null,null,null,0.5,null,null,null,0.5,null,null,"VACANCES",null,null,null,"LEROY MERLIN\nCM104 NACELLE CAT 3A 6 PERS\nISNEAUVILLE",0.5,0.5,"F","RENAULT\n4X EV02\nGUYANCOURT (78)",0.5,0.5,"F"]
[null,null,"pm",null,0.5,null,null,null,0.5,null,null,"CP",null,null,null,null,0.5,0.5,null,null,0.5,null,null,"EHPAD BEAUSOLEIL\nMOURS ST EUSEBE (26)\n450€",0.5,0.5,"F",null,0.5,null,null,"VACANCES",null,null,null,"LEROY MERLIN\nCM104 NACELLE CAT 3A 6 PERS\nISNEAUVILLE",0.5,0.5,"F","RENAULT\n4X EV02\nGUYANCOURT (78)",0.5,0.5,"F"]
[null,"2017-05-12","am",null,0.5,null,null,"ROUTE",0.5,0.5,null,"CP",null,null,null,null,0.5,null,null,"THIBAULT\nEPI IO3 \n37190 AZAY Le rideau\n9h à 12h",0.5,0.5,"F","EMMAUS\nSST INITIAL\n74 CRANVES",0.5,0.5,"F",null,0.5,null,null,"VACANCES",null,null,null,"SKF \nCM300 FORMATION FORMATEURS\nPONTIERS ELINGUEURS\nSAINT MARCEL (27)",0.5,0.5,"F","MC DO \nI204R\nST ETIENNE DU ROUVRAY",0.5,0.5,"F",null,0.5]
[null,null,"pm",null,0.5,null,null,null,0.5,null,null,"CP",null,null,null,null,0.5,null,null,null,0.5,null,null,null,0.5,0.5,null,null,0.5,null,null,"VACANCES",null,null,null,"SKF \nCM300 FORMATION FORMATEURS\nPONTIERS ELINGUEURS\nSAINT MARCEL (27)",0.5,0.5,"F","SDPP EVREUX + STOCK\nI204R\nEVREUX",0.5,0.5,"F","LES JARDINS DU CASTEL\nI13H - 14H15-17H15\nCHATEAUGIRON (35)",0.5,0.5,"F"]
[20,"2017-05-15","am","SLAM/CUISINELLA\n4 EPI 1H30\nSELESTAT (68)",0.5,0.5,"F","ROUTE",0.5,0.5,null,"CP",null,null,null,"EHPAD LE MONTEL\n2 SESSIONS DE 3H  EPI +mise en secuirté des résidents\n63",0.5,0.5,"F","AIRCOS\n1 EPI PYROS 11H-12H\nARDON (45)",0.5,0.5,"F","LDPI\n2 EPI  I07 2H00\nST QUENTIN FALLAVIER (38)\n",0.5,null,"O",null,0.5,null,null,"MC DO\nI204R\nGRAND QUEVILLY",0.5,0.5,"F","SKF \nCM301 MAC\nPONTIERS ELINGUEURS\nSAINT MARCEL (27)",0.5,0.5,"F",null,null,null,null,null,0.5]
[null,null,"pm",null,0.5,0.5,null,"SCHUTZ\n2 EPI 1h30 - breifing RIA\nMARCOUSSIS (78)",0.5,0.5,"F","CP",null,null,null,null,0.5,0.5,null,"AIRCOS\n1 EPI PYROS 14H-15H\nARDON (45)",0.5,0.5,"F",null,0.5,null,null,null,0.5,null,null,"HOPITAL DURECU\nI03\nDARNETAL",0.5,0.5,"F","SKF \nCM301 MAC\nPONTIERS ELINGUEURS\nSAINT MARCEL (27)",0.5,0.5,"F",null,null,null,null,null,0.5]
[null,"2017-05-16","am","ROUTE",0.5,0.5,null,"HOPITAL DE NAVARRE\n4 sessions EPI 1h30\nEVREUX (27)",0.5,0.5,"F","CP",null,null,null,"Clinique du haut cantal \nEPI 3H\n(15) riom es montagnes",0.5,0.5,"F","ROUTE",0.5,null,null,"EHPAD BIANCHERI\nHAUTERIVES (26)\n400€",0.5,0.5,"F",null,0.5,null,null,"CARPIMKO\nI202\nMONTIGNY LE BRETONNEUX",0.5,0.5,"F","LEROY MERLIN\nCM101 NACELLE CAT 3A\nISNEAUVILLE",0.5,0.5,"F"]
[null,null,"pm",null,0.5,null,null,null,0.5,0.5,null,"CP",null,null,null,"Clinique du haut cantal \nEPI 3H\n(15) riom es montagnes",0.5,0.5,"F","MAC DO PYROS\n3H de 14h à 17h\nNoisy le grand (93)",0.5,0.5,"F",null,0.5,0.5,null,null,0.5,null,null,"Route",0.5,0.5,null,"LEROY MERLIN\nCM101 NACELLE CAT 3A\nISNEAUVILLE",0.5,0.5,"F"]
[null,"2017-05-17","am","Renault\n2X EPI 1H30 \nGuyancourt",0.5,0.5,"F",null,0.5,0.5,null,"CP",null,null,null,"ROUTE",0.5,0.5,null,null,0.5,null,null,"VACANCES",null,null,null,null,0.5,null,null,"IMMEUBLE HASTINGS\nI204R\nROUEN",0.5,0.5,"F","SKF \nCM05 RECY CHARIOT CAT 3\nPONTIERS ELINGUEURS\nSAINT MARCEL (27)",0.5,0.5,"F","Hotel garden\ni207 de 12h30 à 14h\nparis",0.5,null,"F","SALON OCEADE\nEDERN (29)",0.5,0.5,"O"]
[null,null,"pm","Renault\n2X EPI 1H30 \nGuyancourt",0.5,0.5,"F",null,0.5,0.5,null,"CP",null,null,null,null,0.5,0.5,null,"LYCEE CLAUDE DE France\nI03 3H - 13H15 IMPERATIF\nROMORANTHIN-LANTHENAY",0.5,0.5,"F","VACANCES",null,null,null,null,0.5,null,null,"Route",0.5,0.5,null,"SKF \nCM05 RECY CHARIOT CAT 3\nPONTIERS ELINGUEURS\nSAINT MARCEL (27)",0.5,0.5,"F","CER\nSST07 16H30-19H \n93 SAINT DENIS",0.5,0.5,"F","EHPAD PIERRE GOENVIC\nI13H - 13H30-17H\nPLONEOUR LANVERN (29)",0.5,0.5,"F"]
[null,"2017-05-18","am","SLAUR SARDET\n2 EPI 1H30\nle havre",0.5,0.5,"F","ST MICRO\nPARIS\n4 sessions EPI\nvoir horaires planning",0.5,0.5,"Reporté au 15 juin","CP",null,null,null,"Clinique du haut cantal \nEPI 3H\n(15) riom es montagnes",0.5,0.5,"F",null,0.5,null,null,null,0.5,null,null,null,0.5,null,null,"CORNING\nPI02\nBAGNEAUX SUR LOING",0.5,0.5,"C","Nanterre",0.5,0.5,null,"CLINIQUE MATHILDE\nSST01\nROUEN",0.5,0.5,"F"]
[null,null,"pm","SLAUR SARDET\n2 EPI 1H30\nle havre",0.5,0.5,"F",null,0.5,0.5,null,"CP",null,null,null,"Clinique du haut cantal \nEPI 3H\n(15) riom es montagnes",0.5,0.5,"F",null,0.5,null,null,"GERONDINES LAMARTINE\nVALENCE (26)\n450€",0.5,0.5,"F",null,0.5,null,null,"CORNING\nPI02\nBAGNEAUX SUR LOING",0.5,0.5,"C","RENAULT LARDY avec ROBIN\n???\nLARDY (91)",0.5,0.5,null,"CLINIQUE MATHILDE\nSST01\nROUEN",0.5,0.5,"F"]
[null,"2017-05-19","am",null,0.5,null,null,null,0.5,null,null,"CP",null,null,null,"Clinique du haut cantal \nI13H\n(15) riom es montagnes",0.5,0.5,"F","AiRCOS\n4 EPI PYROS 10H-11H et 11h-12h\nROMORANTHIN (41)",0.5,0.5,"F","EMMAUS\nSST INITIAL\n74 CRANVES",0.5,0.5,"F",null,0.5,null,null,"Route",0.5,0.5,null,"Nanterre",0.5,0.5,null,"CLINIQUE MATHILDE\nSST01\nROUEN",0.5,0.5,"F",null,0.5]
[null,null,"pm",null,0.5,null,null,null,0.5,null,null,"CP",null,null,null,"Clinique du haut cantal \nI13H\n(15) riom es montagnes",0.5,0.5,"F","AiRCOS\n4 EPI PYROS 14H-15H et 15h-16h\nROMORANTHIN (41)",0.5,0.5,"F",null,0.5,0.5,null,null,0.5,null,null,null,0.5,null,null,"Nanterre",0.5,0.5,null,"CLINIQUE MATHILDE\nSST01\nROUEN",0.5,0.5,"F",null,0.5]
[21,"2017-05-22","am",null,0.5,null,null,null,0.5,null,null,"CP",null,null,null,"C. HOSPITALIER ISSOIRE\nFORINCI13H - 3h30\nISSOIRE 63",0.5,0.5,"F","BMW\n2 SESSIONS 1H30\nTIGERY (91)\nde 9h à 10h30 et de 10h30 à 12h",0.5,0.5,"F","VACANCES",null,null,null,null,0.5,null,null,"VACANCES",null,null,null,"LEROY MERLIN\nCM05 MAC CHARIOTS 1/3/5\nISNEAUVILLE",0.5,0.5,"REPORTE\n09/2017 ","MC DO \nI204R\nVAL DE REUIL",0.5,0.5,"F",null,0.5]
[null,null,"pm",null,0.5,null,null,null,0.5,null,null,"CP",null,null,null,null,0.5,null,null,"ROUTE",0.5,0.5,null,"VACANCES",null,null,null,null,0.5,null,null,"VACANCES",null,null,null,"LEROY MERLIN\nCM05 MAC CHARIOTS 1/3/5\nISNEAUVILLE",0.5,0.5,"REPORTE\n09/2017 ","HOPITAL DURECU\nI03 \nDARNETAL",0.5,0.5,"F",null,0.5]
[null,"2017-05-23","am",null,0.5,null,null,null,0.5,null,null,"CP",null,null,null,"DANONE\n2 EPI +RIA 2H \n76220 Ferrières en Bray",0.5,0.5,"F","VACANCES",null,null,null,null,0.5,null,null,null,0.5,null,null,"VACANCES",null,null,null,"LEROY MERLIN\nCM05 MAC CHARIOTS 1/3/5\nISNEAUVILLE",0.5,0.5,"REPORTE\n09/2017 ","COPRO DES BULINS\nI04 + I207\nMONT ST AIGNAN",0.5,0.5,"F","VACANCES"]
[null,null,"pm",null,0.5,null,null,null,0.5,null,null,"CP",null,null,null,"DANONE\n2 EPI +RIA 2H \n76220 Ferrières en Bray",0.5,0.5,null,"VACANCES",null,null,null,"EHPAD BEAUSOLEIL\nMOURS ST EUSEBE (26)\n450€",0.5,null,"F",null,0.5,null,null,"VACANCES",null,null,null,"BUREAU",0.5,0.5,null,null,0.5,null,null,"VACANCES",null,null,null,"BUFFALO 47 \nExercice d'évac 1H30\nExercice d'évac sans fumée","F"]
[null,"2017-05-24","am",null,0.5,null,null,null,0.5,null,null,"CP",null,null,null,"VACANCES",null,null,null,"VACANCES",null,null,null,"Clinique du haut cantal \nI13H\n(15) riom es montagnes",0.5,0.5,"F",null,0.5,null,null,"VACANCES",null,null,null,"NANTERRE",0.5,0.5,null,"mf production\ni06 8h30 à 12h30\nmaromme",0.5,null,"F","VACANCES"]
[null,null,"pm",null,0.5,null,null,null,0.5,null,null,"CP",null,null,null,"VACANCES",null,null,null,"VACANCES",null,null,null,"Clinique du haut cantal \nI13H\n(15) riom es montagnes",0.5,0.5,null,null,0.5,null,null,"VACANCES",null,null,null,"ORANGE avec Nicolas",0.5,0.5,null,"mf production\ni06 8h30 à 12h30\nmaromme",0.5,null,"F","VACANCES"]
[null,"2017-05-25","am"]
[null,null,"pm"]
[null,"2017-05-26","am",null,null,null,null,null,null,null,null,null,null,null,null,null,null,null,null,null,null,null,null,"EMMAUS 74\n2 SESSIONS DE 3H FORINCI03",0.5,0.5,"F"]
[null,null,"pm",null,null,null,null,null,null,null,null,null,null,null,null,null,null,null,null,null,null,null,null,null,0.5,0.5]
[22,"2017-05-29","am",null,0.5,null,null,"Esprit de France\n4 sessions EPI\nrue françois 1er , 75008\n9h-10h30…14h-15h30…",0.5,0.5,"F",null,0.5,null,null,"CP",null,null,null,"OKKO HOTEL\n2 EPI 1H30\nPARIS 15EME",0.5,0.5,"F","VACANCES",0.5,null,null,null,0.5,null,null,"VACANCES",null,null,null,"Dieppe - Sécurité Routière",0.5,0.5,"C",null,0.5,null,null,"VACANCES"]
[null,null,"pm","ROUTE",0.5,0.5,null,null,0.5,0.5,null,null,0.5,null,null,null,null,null,null,"ROUTE",0.5,0.5,null,"VACANCES",0.5,null,null,null,0.5,null,null,"VACANCES",null,null,null,"LEROY MERLIN\nCM104 pratique pemp 3A\nISNEAUVILLE",0.5,0.5,"F","HOPITAL DURECU\nI03 \nDARNETAL",0.5,0.5,"F","VACANCES"]
[null,"2017-05-30","am","AIRPORT COLLEGE\n4 sessions 1h30\nMULHOUSE",0.5,0.5,"A REPORTER EN SEPTEMBRE","Esprit de France\n4 sessions EPI\nrue françois 1er , 75008\n9h-10h30…14h-15h30…",0.5,0.5,"F",null,0.5,null,null,null,null,null,null,"OKKO HOTEL\nI202\nPARIS 15EME",0.5,0.5,"F",null,0.5,null,null,null,0.5,null,null,"VACANCES",null,null,null,"Route",0.5,null,null,"Mod Passion\nI04 à 8h30\nBuchy",0.5,null,"F","RDV N.ANTOINE"]
[null,null,"pm",null,0.5,0.5,null,"Esprit de France\n4 sessions EPI\nrue françois 1er , 75008\n9h-10h30…14h-15h30…",0.5,0.5,null,null,0.5,null,null,null,null,null,null,"ROUTE",0.5,0.5,null,"EHPAD EDEN\nVALENCE (26)\n450€",0.5,0.5,"F",null,0.5,null,null,"VACANCES",null,null,null,"Route",0.5,null,null,"CCAS La Madeleine I03 evreux\n14h à 14h",0.5,0.5,"annule",null,0.5]
[null,"2017-05-31","am","ROUTE",0.5,0.5,null,"Esprit de France\n4 sessions EP\nrue françois 1er, 75008\n9h-10h30…14h-15h30…",0.5,0.5,"F",null,0.5,null,null,null,null,null,null,"Moet hennessy\n EPI + \nsensibilisation à l'évacuation\n EN CM2\nPARIS\nN° SGX20170680",0.5,0.5,"F","CANDIA\nESI RECYCLAGE\nClermond (63)\nN°COMMANDE : 2017-02 741",0.5,0.5,"A REPORTER","Moet hennessy\n EPI + \nsensibilisation à l'évacuation\n EN CM2\nPARIS\nN° SGX20170680",0.5,0.5,"F","VACANCES",null,null,null,"SYSTHERM\nSST01\nGRESY SUR AIX (73)",0.5,0.5,"C+BL",null,0.5,null,null,null,0.5]
[null,null,"pm",null,0.5,null,null,"Esprit de France\n4 sessions EP\nrue françois 1er, 75008\n9h-10h30…14h-15h30…",0.5,0.5,null,null,0.5,null,null,null,null,null,null,"Moet hennessy\n EPI + \nsensibilisation à l'évacuation\n EN CM2\nPARIS\nN° SGX20170680",0.5,0.5,"F","CANDIA\nESI RECYCLAGE\nClermond (63)\nN°COMMANDE : 2017-02 741",0.5,0.5,"A REPORTER","Moet hennessy\n EPI + \nsensibilisation à l'évacuation\n EN CM2\nPARIS\nN° SGX20170680",0.5,0.5,"F","VACANCES",null,null,null,"SYSTHERM\nSST01\nGRESY SUR AIX (73)",0.5,0.5,"C+BL","TAPON\nI06 PRIMO\nSAINT MARCEL",0.5,0.5,"F",null,0.5]

{"sheet":"Feuil2","index":14,"n_rows":23,"n_cols":3,"rows_kept":23,"cut":false,"hidden":false,"merged":[]}
[]
[null,null,"c"]
[]
[null,"ITEM","STATUT"]
[null,null,"c"]
[null,null,"f"]
[null,null,"c+bl"]
[null,null,"c"]
[null,null,"f"]
[null,null,"c+bl"]
[null,null,"c"]
[null,null,"f"]
[null,null,"c+bl"]
[null,null,"f"]
[null,null,"f"]
[null,null,"f"]
[null,null,"f"]
[null,null,"c"]
[null,null,"c"]
[null,null,"c"]
[null,null,"c"]
[null,null,"c"]
[null,null,"c+bl"]

{"sheet":"Juin","index":15,"n_rows":48,"n_cols":56,"rows_kept":48,"cut":false,"hidden":false,"merged":[[38,0,47,0],[38,1,39,1],[42,1,43,1],[44,1,45,1],[44,14,45,14],[40,1,41,1],[40,10,41,10],[46,1,47,1],[30,26,31,26],[32,1,33,1],[32,7,33,7],[32,10,33,10],[32,15,33,15],[32,18,33,18],[30,23,31,23],[28,0,37,0],[28,1,29,1],[28,3,29,3],[28,6,29,6],[24,1,25,1],[18,0,27,0],[18,6,19,6],[36,1,37,1],[20,7,21,7],[20,10,21,10],[22,1,23,1],[22,3,23,3],[22,6,23,6],[18,7,19,7],[34,1,35,1],[30,18,31,18],[30,1,31,1],[30,3,31,3],[30,6,31,6],[34,7,35,7],[34,10,35,10],[30,7,31,7],[26,1,27,1],[26,3,27,3],[26,6,27,6],[18,10,19,10],[20,1,21,1],[20,3,21,3],[20,6,21,6],[28,22,29,22],[42,26,43,26],[4,47,5,47],[6,1,7,1],[6,10,7,10],[6,15,7,15],[6,23,7,23],[6,26,7,26],[4,15,5,15],[4,18,5,18],[4,30,5,30],[24,3,25,3],[24,6,25,6],[16,15,17,15],[18,1,19,1],[18,3,19,3],[0,19,1,22],[0,43,1,46],[0,23,1,26],[0,27,1,30],[0,31,1,34],[0,35,1,38],[0,39,1,42],[0,0,2,2],[0,3,1,6],[0,7,1,10],[0,11,1,14],[0,15,1,18],[12,38,13,38],[24,26,25,26],[24,23,25,23],[14,38,15,38],[0,47,1,50],[8,0,17,0],[8,1,9,1],[16,1,17,1],[4,10,5,10],[12,35,13,35],[8,30,9,30],[4,0,7,0],[4,1,5,1],[4,3,5,3],[4,6,5,6],[4,7,5,7],[14,1,15,1],[12,1,13,1],[12,23,13,23],[10,1,11,1],[12,26,13,26]]}
["2017-06-01",null,null,"PHILIPPE (EP)",null,null,null,"ANDRE  (EP)",null,null,null,"THIERRY (CM2)",null,null,null,"CHRISTIAN (CM1)",null,null,null,"Jean-Côme (Dragon)",null,null,null,"JEAN FRANCOIS",null,null,null,"NICOLAS",null,null,null,"THIERRY BINET",null,null,null,"PASCAL GARIN",null,null,null,"JORIS LONGFIER",null,null,null,"TONY BOUTEILLER",null,null,null,"ANTOINE MILAZZO",null,null,null,"MICHAEL ALBALADEJO"]
[]
[null,null,null,{"$f":"F3/E3","v":0.90476190476190477},{"$f":"SUM(E5:E48)","v":21},{"$f":"SUM(F5:F48)","v":19},0,{"$f":"J3/I3","v":0.73809523809523814},{"$f":"SUM(I5:I48)","v":21},{"$f":"SUM(J5:J48)","v":15.5},0,{"$f":"N3/M3","v":2.7027027027027029E-2},{"$f":"SUM(M5:M48)","v":18.5},{"$f":"SUM(N5:N48)","v":0.5},null,{"$f":"R3/Q3","v":0.875},{"$f":"SUM(Q5:Q48)","v":16},{"$f":"SUM(R5:R48)","v":14},6,{"$f":"V3/U3","v":0.8},{"$f":"SUM(U5:U48)","v":20},{"$f":"SUM(V5:V48)","v":16},0,{"$f":"Z3/Y3","v":0.66666666666666663},{"$f":"SUM(Y5:Y48)","v":21},{"$f":"SUM(Z5:Z46)","v":14},0,{"$f":"AD3/AC3","v":0.5},{"$f":"SUM(AC5:AC50)","v":11},{"$f":"SUM(AD5:AD50)","v":5.5},10,{"$f":"AH3/AG3","v":0.58823529411764708},{"$f":"SUM(AG5:AG50)","v":17},{"$f":"SUM(AH5:AH50)","v":10},1,{"$f":"AL3/AK3","v":0.60526315789473684},{"$f":"SUM(AK5:AK50)","v":19},{"$f":"SUM(AL5:AL50)","v":11.5},2,{"$f":"AP3/AO3","v":0.63414634146341464},{"$f":"SUM(AO5:AO50)","v":20.5},{"$f":"SUM(AP5:AP50)","v":13},0,{"$f":"AT3/AS3","v":0},{"$f":"SUM(AS5:AS50)","v":21},{"$f":"SUM(AT5:AT50)","v":0},0,{"$f":"AX3/AW3","v":9.0909090909090912E-2},{"$f":"SUM(AW5:AW50)","v":22},{"$f":"SUM(AX5:AX50)","v":2},null,{"$f":"#REF!/#REF!","v":{"$error":"#REF!"}}]
["SEM","JOUR","AM/PM","FORMATION","Ouv","trav","STATUT","FORMATION","Ouv","trav","STATUT","FORMATION","Ouv","trav","STATUT","FORMATION","Ouv","trav","STATUT","FORMATION","Ouv","trav","STATUT","FORMATION","Ouv","trav","STATUT","FORMATION","Ouv","trav","STATUT","FORMATION","Ouv","trav","STATUT","FORMATION","Ouv","trav","STATUT","FORMATION","Ouv","trav","STATUT","FORMATION","Ouv","trav","STATUT","FORMATION","Ouv","trav","STATUT"]
[22,"2017-06-01","am","CLINIQUE MATHILDE\n4 EPI 1H30\nROUEN (76)",0.5,0.5,"F","RAMSAY GDS EPI\n3 sessions  pour 30 salariés 75016 \n9h-10h30 ; 10h30-12h00 puis\n13h30-15h ",0.5,0.5,"F",null,0.5,null,null,"CP",null,null,null,"CARPIMKO \n1 ou 2 epi \nMONTIGNY LE BRETONNEUX (78)",0.5,0.5,"F","GERONDINES LOUISE MICHEL\nPORTE LES VALENCE (26)\n450€",0.5,0.5,"F",null,0.5,0.5,null,"Cabot Carbone\nModule C--> TB\nLILLEBONNE",0.5,0.5,"F","SYSTHERM\nSST01\nGRESY SUR AIX (73)",0.5,0.5,"F","FERRERO\nSST02\nGRAND QUEVILLY",0.5,0.5,"F",null,0.5,null,null,"Formation comportement sécuritaire \n7h\nNovo nordisk à chartres",0.5,0.5,"F"]
[null,null,"pm",null,0.5,0.5,null,null,0.5,0.5,null,null,0.5,null,null,null,null,null,null,null,0.5,null,null,"MUTUALITE FRANCAISE DU RHONE\n1 EPI 3H00\nLYON 3E",0.5,0.5,"F",null,0.5,0.5,null,"Cabot Carbone\nModule D--> TB\nLILLEBONNE",0.5,0.5,"F","F",0.5,0.5,"F","FERRERO\nSST02\nGRAND QUEVILLY",0.5,0.5,"F",null,0.5,null,null,null,0.5,0.5,"F"]
[null,"2017-06-02","am",null,0.5,null,null,"Renault \n2 EPI 1h30\nAubevoye 27",0.5,0.5,"ANNULE","avec Joris - i05",0.5,null,null,"CP",null,null,null,"TSE\n I03 primo 2h \n94 Bonneuil s/marne 10H a 12 h",0.5,0.5,"F","AUDREX \nMAC SST CHEZ BROUX",0.5,0.5,"F",null,0.5,0.5,null,"RENAULT\n4X EV02\nPLESSY (92)de 08h15 à 15h30",0.5,0.5,"F","ROUTE",0.5,0.5,null,"PHARMASYNTHESE\nI05 + PI02\n08h à 12h\nST PIERRE LES ELBEUF",0.5,0.5,"F",null,0.5,null,null,null,0.5]
[null,null,"pm",null,0.5,null,null,"Renault \n2 EPI 1h30\nAubevoye 27",0.5,0.5,null,"avec Joris - Pi02",0.5,null,null,null,null,null,null,"TSE\n I03 primo 2h \n94 Bonneuil s/marne 13hà 15h",0.5,0.5,"F",null,0.5,0.5,null,null,0.5,0.5,null,"RENAULT\n4X EV02\nPLESSY (92)",0.5,0.5,"F","ROUTE",0.5,0.5,null,"PHARMASYNTHESE\nI05 + PI02\n13h à 17h\nST PIERRE LES ELBEUF",0.5,0.5,"F",null,0.5,null,null,null,0.5]
[23,"2017-06-05","am","RTT",null,null,null,"RTT",null,null,null,"RTT",null,null,null,"RTT",null,null,null,"RTT",null,null,null,"RTT",null,null,null,"RTT",null,null,null,"RTT",null,null,null,"RTT",null,null,null,"RTT",null,null,null,"RTT",null,null,null,null,0.5]
[null,null,"pm","RTT",null,null,null,"RTT",null,null,null,"RTT",null,null,null,"RTT",null,null,null,"RTT",null,null,null,"RTT",null,null,null,"RTT",null,null,null,"RTT",null,null,null,"RTT",null,null,null,"RTT",null,null,null,"RTT",null,null,null,null,0.5]
[null,"2017-06-06","am","Renault\n2 epi 1H30\nGuyancourt",0.5,0.5,"F","   ",0.5,null,null,null,0.5,null,null,null,0.5,null,null,"Résidence des cèdres \nEPI 3H \nSt Georges sur Cher (41)",0.5,0.5,"F","TECHNIDATA\n1 EPI 2H - 9h-11h\nMONTBONNOT",0.5,0.5,"F",null,0.5,null,null,"CEPL\nI204R\nFLEURY SUR ANDELLE 10h",0.5,0.5,"F","ROUTE",0.5,0.5,null,"atelier",0.5,null,null,null,0.5,null,null,null,0.5]
[null,null,"pm","Renault\n2 epi 1H30\nGuyancourt",0.5,0.5,"F","route",0.5,null,null,null,0.5,null,null,"EHPAD LES COLLINES\nST DONNAT (26)\n450 € EPI MSR",0.5,0.5,"F","Résidence des cèdres \nEvac Horiz Ets S&S 3h\nSt Georges sur Cher (41)",0.5,0.5,"F","MDR SEVIGNE 38\nEPI MSR\n13H30-17h30",0.5,0.5,"REPORTE 19/09",null,0.5,null,null,null,null,null,null,"ROUTE",0.5,0.5,null,"TAPON\nI06 PRIMO\nSAINT MARCEL 14h-17h30",0.5,0.5,"F",null,0.5,null,null,null,0.5]
[null,"2017-06-07","am","AIRPORT COLLEGE\n 2 EPI 1h30\nROISSY",0.5,0.5,"F","BIC\n2 EPI 1H30\nCLICHY 92",0.5,0.5,"F",null,0.5,null,null,"Clinique du haut cantal \nEXERCICE D'EVACUATION avec fumée I203R\n(15) riom es montagnes",0.5,0.5,"F","BAR HEOL\nI11\nBREHAN (56)",0.5,0.5,"F","THERMAL CERAMICS\n1 epi 2H\nSt Marcellin En Forez (42)",0.5,0.5,"F",null,0.5,null,null,"COTIXLAB\n I06 (RIA + ARI)\nLISEREY (27)",0.5,0.5,"F","AUDREX\nSST INITIALE\nANNECY",0.5,0.5,"F","VPI BUSSY\nI03 - 9h à 12h\nBUSSY",0.5,0.5,"F",null,0.5,null,null,null,0.5]
[null,null,"pm","AIRPORT COLLEGE\n 2 EPI  1h30\nROISSY",0.5,0.5,"F","BIC\n2 EPI 1H30\nCLICHY 92",0.5,0.5,"F",null,0.5,null,null,"ROUTE",0.5,0.5,null,"BAR HEOL\nI11\nBREHAN (56)",0.5,0.5,"F",null,0.5,0.5,null,null,0.5,null,null,"COTIXLAB\n I06 (RIA + ARI)\nLISEREY (27)",0.5,0.5,"F",null,0.5,0.5,null,"VPI BUSSY\nI203R - 14h à 16h\nBUSSY",0.5,0.5,"F",null,0.5,null,null,null,0.5,null,null,"MAC DO \nEPI  I03\nMontauban (82)","F"]
[null,"2017-06-08","am","MBDA\n2 EPI 1h30\nPLESSIS-ROBINSON (92)",0.5,0.5,"F","BIC\n1 x EPI  0H30 + I202 1H\nCLICHY 92",0.5,0.5,"F",null,0.5,null,null,"Pharmacie de la poterie  \nEP i03 de 9h à 12\nFernay voltaire (01)",0.5,0.5,"REPORTE","ROUTE",0.5,0.5,null,"THERMAL CERAMICS\n1 epi 2H\nSt Marcellin En Forez (42)",0.5,0.5,"F",null,0.5,null,null,"GREF\nI107\nGrand Quevilly (76)",0.5,0.5,"F","AUDREX\nSST INITIALE\nANNECY",0.5,0.5,"F","RENAULT\n4X EV02\nGUYANCOURT (78)",0.5,0.5,"F",null,0.5,null,null,null,0.5]
[null,null,"pm","ROUTE",0.5,0.5,null,"BIC\n1 x EPI  0H30 + I202 1H\nCLICHY 92",0.5,0.5,"F",null,0.5,null,null,"ROUTE",0.5,0.5,null,"EHPAD PIERRE GOENVIC\nI13H - 13H30-17\nPLONEOUR LANVERN (29)",0.5,0.5,"F","GERONDINES LAMARTINE\nVALENCE (26)\n450€",0.5,0.5,"F",null,0.5,null,null,"GREF\nI107\nGrand Quevilly (76)",0.5,0.5,"F","AUDREX\nSST INITIALE\nANNECY",0.5,0.5,null,"RENAULT\n4X EV02\nGUYANCOURT (78)",0.5,0.5,"F",null,0.5,null,null,null,0.5]
[null,"2017-06-09","am","AMAT SUR LE SITE DE ST MICRO\nCROLLES\n2 EPI 1H30\nvoir horaires planning",0.5,0.5,"F",null,0.5,null,null,null,0.5,null,null,"EHPAD LE MONTEL\n2 SESSIONS DE 3H  EPI +mise en secuirté des résidents\n63",0.5,0.5,"ANNULE","ROUTE",0.5,0.5,null,"AUDREX EPI PYROS \n8h30-11h30 soit chez le client 74 ou chez broux",0.5,0.5,"F",null,0.5,null,null,"GREF\nI107\nGrand Quevilly (76)",0.5,0.5,"F","ROUTE",0.5,0.5,null,"SDPP à Evreux (27) i06 ",0.5,null,"F",null,0.5,null,null,null,0.5]
[null,null,"pm","AMAT SUR LE SITE DE ST MICRO\nCROLLES\n2 EPI 1H30\nvoir horaires planning",0.5,0.5,"F",null,0.5,null,null,null,0.5,null,null,null,0.5,0.5,"ANNULE","LES JARDINS DU CASTEL\nI13H\nCHATEAUGIRON  (35)",0.5,0.5,"F",null,0.5,null,null,null,0.5,null,null,"CEPL\nI204R\nFLEURY SUR ANDELLE 14h",0.5,0.5,"F","ROUTE",0.5,0.5,null,"SDPP à Evreux (27) i06 ",0.5,null,"F",null,0.5,null,null,null,0.5]
[24,"2017-06-12","am","MAIRIE DE VOIRON\n4 EPI 1H30\nVOIRON",0.5,0.5,"F","LEROY MERLIN\n4 EPI 1H30\nTOURVILLE (76)",0.5,0.5,"F",null,0.5,null,null,null,0.5,null,null,null,null,null,null,null,0.5,null,null,"Orange Paris\nForm.Réglementation\nParis (75)\nref commande : 61532345",0.5,0.5,"F","9h30 rdv bernay (27) aerochim avec Anaïs",0.5,null,null,"PREV INCENDIE\nI202 à 10h\nREPORTE",0.5,null,"reporté","atelier PARE BRISE 8H30  ROUEN",0.5,null,null,null,0.5,null,null,null,0.5]
[null,null,"pm",null,0.5,0.5,null,null,0.5,0.5,null,null,0.5,null,null,"ROUTE",0.5,0.5,null,"ROUTE",null,null,null,"THERMAL CERAMICS\n1 epi 2H\nSt Marcellin En Forez (42)",0.5,0.5,"F","Orange Paris\nForm.Réglementation\nParis (75)",0.5,0.5,"F","HOPITAL DURECU\nI03\nDARNETAL",0.5,0.5,"F","PREV INCENDIE\ni204 à 13h30\nREPORTE",0.5,null,"reporté","LEROY MERLIN\n2X I09 \nTOURVILLE",0.5,0.5,"F",null,0.5,null,null,null,0.5]
[null,"2017-06-13","am","ST MICRO\nCROLLES\n4 sessions EPI\nvoir horaires planning",0.5,0.5,"F","LEROY MERLIN\n4 EPI 1H30\nTOURVILLE (76)",0.5,0.5,"F",null,null,null,null,"TSE\ni03 primo 2h \nCastelnau d'estrefonds 31",0.5,0.5,"F","PREVOIR CONVOYAGE\nORANGE\n2 EPI 1H30\nTOULOUSE\nréf commande : 61547648\n",0.5,0.5,"F","EHPAD BIANCHERI\nHAUTERIVES (26)\n450€ REPORTE LE 12 SEPT ",0.5,0.5,"reporté","Orange Paris\nI202\nParis (75)\nref commande 61532348",0.5,0.5,"F",null,0.5,null,null,"RENAULT\n2X EV02\nAUBEVOYE",0.5,0.5,"F","FERRERO MSA\nSST02\nSaint Aignan\n",0.5,0.5,"F",null,0.5,null,null,null,0.5]
[null,null,"pm",null,0.5,0.5,null,null,0.5,0.5,null,null,null,null,null,"TSE\ni03 primo 2h \nCastelnau d'estrefonds",0.5,0.5,"F","ORANGE\n2 EPI 1H30\nTOULOUSE",0.5,0.5,"F",null,0.5,null,null,"Orange Paris\nI202\nParis (75)",0.5,0.5,"F","LEROY MERLIN\n2X I09 \nTOURVILLE",0.5,0.5,"F","RENAULT\n2X EV02\nAUBEVOYE",0.5,0.5,"F","FERRERO MSA\nSST02\nSaint Aignan\n",0.5,0.5,"F",null,0.5,null,null,null,0.5,null,null,null,null,null,null," "]
[null,"2017-06-14","am","ST MICRO\nCROLLES\n4 sessions EPI\nvoir horaires planning",0.5,0.5,"F","LES PAPILLONS BLANCS DE BEAUNE\n2 EPI 1h30",0.5,0.5,"F",null,0.5,null,null,"New look\nepi+evac \ntéléphoner au client pour s'organsier\nTOULOUSE",0.5,0.5,"a reporter","ORANGE\n2 EPI 1H30\nTOULOUSE\nref commande : 61540061",0.5,0.5,"F","BROUX\nI202\nPRINGY (74)",0.5,null,"F",null,0.5,null,null,"PHARMASYNTHESE\nEXO EVAC\nST PIERRE LES ELBEUF ARRIVEE 9h30",0.5,0.5,"F","BUREAU",0.5,0.5,null,"PHARMASYNTHESE\nI204R\nST PIERRE LES ELBEUF ARRIVEE 9H30",0.5,0.5,"F",null,0.5,null,null,null,0.5]
[null,null,"pm",null,0.5,0.5,null,"LES PAPILLONS BLANCS DE BEAUNE\n2 EPI 1h30",0.5,0.5,"F",null,0.5,null,null,"ROUTE",0.5,0.5,null,"ORANGE\n2 EPI 1H30\nTOULOUSE\nref commande : 61540061",0.5,0.5,"F","ISECURIT\nI202\nGENAS (69)",0.5,null,"F","ROUTE",0.5,0.5,null,null,0.5,null,null,"ROUTE",0.5,0.5,null,"TAPON\nI06 PRIMO\nSAINT MARCEL",0.5,0.5,"F",null,0.5,null,null,null,0.5]
[null,"2017-06-15","am","ST MICRO\nCROLLES\n4 sessions EPI\nvoir horaires planning",0.5,0.5,"F","ST MICRO\nPARIS\n4 sessions EPI\nvoir horaires planning",0.5,null,"F",null,0.5,null,null,null,0.5,null,null,"ORANGE\n2 EPI 1H30\nTOULOUSE",0.5,0.5,"F","EHPAD LA PROVIDENCE\n2 EPI 3H00\nAUTUN (71)\nVOIR CONTACT MAIL",0.5,0.5,"F","SALOMON\nEXO EVAC\nANNECY",0.5,0.5,"F","TSE\nI03PRIMO\nNOYELLES GODAULT (62)",0.5,0.5,"F","SALOMON\nEXO EVAC\nANNECY",0.5,0.5,"F","CERP\nSST01\nPLESSIS ROBINSON",0.5,0.5,"ANNULE",null,0.5,null,null,null,0.5]
[null,null,"pm",null,0.5,0.5,null,"ST MICRO\nPARIS\n4 sessions EPI\nvoir horaires planning",0.5,null,"F",null,0.5,null,null,"EHPAD PEYSSON\nROMAN SUR ISERE (26)\n450 € EPI MSR",0.5,0.5,"F","ORANGE\n2 EPI 1H30\nTOULOUSE",0.5,0.5,"F",null,0.5,0.5,null,"ROUTE",0.5,0.5,null,"TSE\nI03PRIMO\nNOYELLES GODAULT (62)",0.5,0.5,"F","ROUTE",0.5,0.5,null,"CERP\nSST01\nPLESSIS ROBINSON",0.5,0.5,"ANNULE",null,0.5,null,null,null,0.5]
[null,"2017-06-16","am","ST MICRO\nCROLLES\n4 sessions EPI\nvoir horaires planning",0.5,0.5,"F",null,0.5,null,null,null,0.5,null,null,"CP",null,null,null,"ORANGE\n2 EPI 1H30\nTOULOUSE\nréf commande 61547556",0.5,0.5,"F","EHPAD LA PROVIDENCE\n1 EPI 3H00\nAUTUN (71)",0.5,0.5,"F",null,0.5,null,null,"PCDL à Le Genest St isle (53)  i03 9h-12h",0.5,null,"F","BUREAU",0.5,null,null,"CERP\nSST01\nPLESSIS ROBINSON",0.5,0.5,"ANNULE",null,0.5,null,null,null,0.5]
[null,null,"pm",null,0.5,0.5,null,null,0.5,null,null,null,0.5,null,null,"CP",null,null,null,"ORANGE\n2 EPI 1H30\nTOULOUSE",0.5,0.5,"F",null,0.5,null,null,null,0.5,null,null,null,0.5,null,null,"14h rdv CER BELBEUF avec ANAIS",0.5,null,null,"CERP\nSST01\nPLESSIS ROBINSON",0.5,0.5,"ANNULE",null,0.5,null,null,null,0.5]
[25,"2017-06-19","am","ST MICRO\nGRENOBLE\n4 sessions EPI\nvoir horaire planning",0.5,0.5,"F","Renault\n2 EPI 1H30\n plessis robinson 92",0.5,0.5,"F",null,0.5,null,null,"C. HOSPITALIER ISSOIRE (63)\nFORINCI13H - 3h30",0.5,0.5,"F",null,0.5,null,null,null,0.5,null,null,"VACANCES",null,null,null,"MILTON ROY\nI110 RECYCLAGE\nPONT SAINT PIERRE  27",0.5,0.5,"report","Trajet vers La Guerche",0.5,null,null,"APTAR\nI06\nLE NEUBOURG",0.5,0.5,"F",null,0.5,null,null,null,0.5]
[null,null,"pm",null,0.5,0.5,null,"Renault\n2 EPI 1H30\n plessis robinson 92",0.5,0.5,"F",null,0.5,null,null,null,0.5,null,null,"ROUTE",0.5,0.5,null,"OKKO HOTEL\n1EPI + SSI   \nLYON",0.5,0.5,"F","VACANCES",null,null,null,"MILTON ROY\nI110 RECYCLAGE\nPONT SAINT PIERRE  27",0.5,0.5,"report","ROUTE vers Trevou",0.5,0.5,null,"APTAR\nI06\nLE NEUBOURG",0.5,0.5,"F",null,0.5,null,null,null,0.5]
[null,"2017-06-20","am","ST MICRO\nGRENOBLE\n4 sessions EPI\nvoir horaire planning",0.5,0.5,"F","SANOFI \n6 EPI 1h\nGENTILLY (94)\nn° commande : E000286591",0.5,0.5,"F",null,0.5,null,null,"EHPAD ARLANC\nI13H 4H\nARLANC",0.5,0.5,"F","FUAJ\n2 EPI 1H30 \nLILLE (59) ",0.5,0.5,"F","SERENIDES LES CAMPANULES\nCHAPELLE EN VERCORS (26)\n450€",0.5,0.5,"F","VACANCES",null,null,null,null,null,null,null,"FOYER DU LOGEMENT\nI12+i203R\nTREVOU TREGUINEC (29)",0.5,0.5,"F","i04x2 chez delifrance à martainville (76)",0.5,null,"F",null,0.5,null,null,null,0.5]
[null,null,"pm",null,0.5,0.5,null,null,0.5,0.5,"F",null,0.5,null,null,"EHPAD VIVEROLLES\nI13H 4H\nVIVEROLLES",0.5,0.5,null,"FUAJ\ni202 3H\nLILLE (59) ",0.5,0.5,"F",null,0.5,0.5,null,"VACANCES",null,null,null,null,0.5,0.5,null,"ROUTE",0.5,0.5,null," ",0.5,null,null,null,0.5,null,null,null,0.5]
[null,"2017-06-21","am","UM EP 03\nMOUGINS (06)\n1 sessions 3h\nHP ENTERPRISE\nréf commande 149002",0.5,0.5,"F","SANOFI \n6 EPI 1h\nGENTILLY (94)\nn° commande : E000286591",0.5,0.5,"F",null,0.5,null,null,"Candia\n4 EPI 1h30\nClermond (63)",0.5,0.5,"F","ROUTE",0.5,0.5,null,"THERMAL CERAMICS\n1 epi 2H\nSt Marcellin En Forez (42)",0.5,0.5,"F","VACANCES",null,null,null,"La Pataterie\nI04 - 10h à 11h30\nLaval 53",0.5,0.5,"report","LIGUE HAVRAISE\nI206\nLE HAVRE",0.5,0.5,"F","i204r  LEROY MERLIN TOURVILLE LA RIVIERE (avec AM ) 9H10",0.5,null,"F",null,0.5,null,null,null,0.5]
[null,null,"pm","HP Mougins i203 à 14h\nexercice d'évacuation avec débriefing\nRéf commande : HPE515322",0.5,0.5,"F",null,0.5,0.5,null,null,0.5,null,null,null,0.5,0.5,null,null,0.5,null,null,null,0.5,null,null,"VACANCES",null,null,null,"ROUTE",0.5,null,null,"LIGUE HAVRAISE\nI206\nLE HAVRE",0.5,0.5,"F","atelier et rapports",0.5,null,null," ",0.5,null,null,null,0.5]
[null,"2017-06-22","am","ORANGE\n2 EPI 1H30\nNICE SOPHIA\nRéf commande 61553145",0.5,0.5,"F","SANOFI \n6 EPI 1h\nGENTILLY (94)\nn° commande : E000286591",0.5,0.5,"F",null,0.5,null,null,"EHPAD LA FEUILLERAIE\n1 EPI 3H\nRAZAC (24)\nVOIR CONTACT MAIL",0.5,0.5,"F","CAROLL \n2 EPI 1h30\nASCOUX  (45)",0.5,0.5,"F",null,0.5,null,null,"VACANCES",null,null,null,"GEMY à Vannes (56)  ",null,null,"F","SKF\nCM104\nSaint Marcel (27)",0.5,null,"F","FERRERO\nSST02\nGRAND QUEVILLY",0.5,0.5,"F",null,0.5,null,null,"Formation comportement sécuritaire \n7h\nnovo nordisk à chartres",0.5,0.5,"F"]
[null,null,"pm",null,0.5,null,null,null,0.5,0.5,null,null,0.5,null,null,"EHPAD LA FEUILLERAIE\n1 EPI 3H\nRAZAC (24)\nVOIR CONTACT MAIL",0.5,0.5,"F","CAROLL \n2 EPI 1h30\nASCOUX (45)",0.5,0.5,"F","EHPAD BEAUSOLEIL\nMOURS ST EUSEBE (26)\n450€",0.5,0.5,"F","VACANCES",null,null,null,"ROUTE",0.5,null,null,"SKF\nCM104\nSaint Marcel (27)",0.5,null,"F","FERRERO\nSST02\nGRAND QUEVILLY",0.5,0.5,"F",null,0.5,null,null,null,0.5,0.5,"F"]
[null,"2017-06-23","am","Intermarche \nEPI 1h30 + i207\nMarseille saint loup",0.5,0.5,"F",null,0.5,null,null,null,0.5,null,null,"CP",null,null,null,"CAROLL \n2 EPI 1h30\nASCOUX  (45)",0.5,0.5,"F",null,0.5,null,null,"VACANCES",null,null,null,"Orange \névac\nBoulogne Billancourt (92)",0.5,null,"F","leroy merlin isneauville CM05 ",0.5,null,"F","MF Production\nI06\nMaromme",0.5,null,"F",null,0.5,null,null,null,0.5]
[null,null,"pm","ROUTE",0.5,0.5,null,"ROUTE",0.5,0.5,null,null,0.5,null,null,"CP",null,null,null,"CAROLL \n2 EPI 1h30\nASCOUX (45)",0.5,0.5,"F","GERONDINES LOUISE MICHEL\nPORTE LES VALENCE (26)\n450€",0.5,0.5,"F","VACANCES",null,null,null,null,0.5,null,null,"leroy merlin isneauville CM05 ",0.5,null,"F","MF Production\nI06\nMaromme",0.5,null,"F",null,0.5,null,null,null,0.5]
[26,"2017-06-26","am",null,0.5,null,null,"Renault\n2 sessions\n guyancourt(78)",0.5,0.5,"F",null,0.5,null,null,"CP",null,null,null,"CENTRE DES FINANCES\n2EPI 1H30\nNANTERRE",0.5,0.5,"F","BiODERMA \nMAC SST02\nLYON",0.5,0.5,"F","VACANCES",null,null,null,"RTT",null,null,null,"Dieppe - Sécurité Routière",0.5,null,"F","FERRERO\nSST01\nGRAND QUEVILLY",0.5,0.5,"F",null,0.5,null,null,null,0.5]
[null,null,"pm","UM EP 03\nBOULOGNE-BILL (92)\n1 sessions 3h\nHP ENTERPRISE\nCommande 149003",0.5,0.5,"F","Renault\n2 sessions\nguyancourt (78)",0.5,0.5,"F",null,0.5,null,null,"CP",null,null,null,"ROUTE",0.5,null,null,"BiODERMA \n MAC SST02\nLYON",0.5,0.5,"F","VACANCES",null,null,null,"RTT",null,null,null,null,0.5,null,null,"FERRERO\nSST01\nGRAND QUEVILLY",0.5,0.5,"F",null,0.5,null,null,null,0.5]
[null,"2017-06-27","am","AIRPORT COLLEGE\n 2 sessions de 1h30\nORLY",0.5,0.5,"F","SANOFI\n4 EPI 1H30\n92 ANTONY\nn°commande : E000352346",0.5,0.5,"F",null,null,null,null,"SFP\nPréparation Advantages\nNanterre (92)",0.5,0.5,null,"OTV\n4 sessions de 1h30\ngarges les gonnesses 95140",0.5,0.5,"F",null,0.5,null,null,"VACANCES",null,null,null,"comcom montauban maison du développement  i03 à montauban de bretagne (35) de 9h à 12h ",0.5,null,"F","VPI Le Havre 9H-12 13H-17H\nCM402\nLe Havre",0.5,null,"F","FERRERO\nSST01\nGRAND QUEVILLY",0.5,0.5,"F",null,0.5,null,null,null,0.5]
[null,null,"pm","AIRPORT COLLEGE\n 2 sessions de 1h30\nORLY",0.5,0.5,"F",null,0.5,0.5,null,null,null,null,null,"SFP\nPréparation Advantages\nNanterre (92)",0.5,0.5,null,"OTV\n4 sessions de 1h30\ngarges les gonnesses 95140",0.5,0.5,"F","EHPAD DAUPHINE\nROMANS SUR ISERE (26)\n450€",0.5,0.5,"F","VACANCES",null,null,null,null,0.5,null,null,"VPI Le Havre\nCM402\nLe Havre",0.5,null,"F","FERRERO\nSST01\nGRAND QUEVILLY",0.5,0.5,"F",null,0.5,null,null,null,0.5]
[null,"2017-06-28","am","ORANGE\n2 EPI 1H30\nREIMS (51)\nref commande : 61540173",0.5,0.5,"F","SANOFI\n4 EPI 1H30\n92 ANTONY\nn°commande : E000352346",0.5,0.5,"F",null,null,null,null,"Candia\nESI RECYCLAGE\nClermond (63)\nN° commande : 2017-02 742",0.5,0.5,"F","Hopital de navarre\n2 EPI 1h30\nBERNAY 27",0.5,null,"F","MDR SEVIGNE\nSST MAC\nST MARTIN VIGNOUX (38)",0.5,0.5,"F","VACANCES",null,null,null,"recyclage N2",null,null,null,"SKF\nCM104\nSaint Marcel (27) SUITE DU 22/06",0.5,null,"F","Pisicine Grenouillière\nPI - 12h45 à 14h45\nAntony",0.5,null,"reporte",null,0.5,null,null,null,0.5]
[null,null,"pm","ORANGE\n2 EPI 1H30\nREIMS (51)",0.5,0.5,"F",null,0.5,0.5,null,"BIC\nI204R\nClichy",0.5,0.5,"REPORTE",null,0.5,0.5,null,"Hopital de navarre\n2 EPI 1h30\nBERNAY 27",0.5,null,"F",null,0.5,0.5,null,"VACANCES",null,null,null,"recyclage N2",0.5,null,null,"SKF\nCM104\nSaint Marcel (27) SUITE DU 22/06",0.5,null,"F","ROUTE",null,null,null,null,0.5,null,null,null,0.5]
[null,"2017-06-29","am","GPA (groupement pétrolier aviation)\n 4 sessions EPI\nRoissy",0.5,0.5,"F","SANOFI\n4 EPI 1H30\n92 ANTONY\nn°commande : E000352346",0.5,0.5,"F","FAIRE TRANSITER LE CM2",0.5,null,null,"FARTO\n4 SESSIONS EPI\nTHONES 74",0.5,0.5,"F","Hopital de navarre\n2 EPI 1h30\nBERNAY 27",0.5,null,"F",null,0.5,null,null,"VACANCES",null,null,null,"recyclage N2",null,null,null,"VACANCES",null,null,null,"Tipiak\nI105\nPont l'Evèque",0.5,null,"F",null,0.5,null,null,null,0.5]
[null,null,"pm",null,0.5,0.5,null,null,0.5,0.5,null,null,0.5,null,null,"FARTO\n4 SESSIONS EPI\nTHONES 74",0.5,0.5,"F","Hopital de navarre\n2 EPI 1h30\nBERNAY 27",0.5,null,"F","SERENIDES LES CAMPANULES\nCHAPELLE EN VERCORS (26)\n450€",0.5,0.5,"F","VACANCES",null,null,null,"recyclage N2",null,null,null,"VACANCES",null,null,null,"Tipiak\nI105\nPont l'Evèque",0.5,null,"F",null,0.5,null,null,null,0.5]
[null,"2017-06-30","am","AIRPORT COLLEGE\n 2 sessions de 3h00\nROISSY",0.5,0.5,"F",null,0.5,null,null,null,0.5,null,null,"TSE\n EPY PYROS  I04\n09h à 11h\nGENAS 69",0.5,0.5,"F","EHPAD LES POMMERIS\nEPI 3H \nVALLIERES LES GRANDES (41)",0.5,0.5,"F","Candia\nSST MAC\nClermond (63) ",0.5,0.5,"REPORTE ","VACANCES",null,null,null,"Tipiak\nSST02\nPont l'évèque",0.5,null,"F","VACANCES",null,null,null,"ATELIER",0.5,null,null,null,0.5,null,null,null,0.5,null,null,"FERRERO CARROS\nEPI I03 à 10h ou 14H\n06510 carros","F"]
[null,null,"pm","AIRPORT COLLEGE\n 2 sessions de 3h00\nROISSY",0.5,0.5,"F",null,0.5,null,null,null,0.5,null,null,"TSE\n EPY PYROS  I04\n12h à 14h\nGENAS 69",0.5,0.5,"F","EHPAD LES POMMERIS\nEvac Horiz Ets S&S 3h\nVALLIERES LES GRANDES (41)",0.5,0.5,"F","Candia\nSST MAC\nClermond (63)",0.5,0.5,"REPORTE","VACANCES",null,null,null,"Tipiak\nSST02\nPont l'évèque",0.5,null,"F","VACANCES",null,null,null,"CCAS La Madeleine I03 evreux\n14h à 17h",0.5,null,"C+BL",null,0.5,null,null,null,0.5]

{"sheet":"Feuil1","index":16,"n_rows":0,"n_cols":0,"rows_kept":0,"cut":false,"hidden":false,"merged":[]}